Workbook

Sheet Turbines_JT60SA (3)
E5: Vitesse de la roue ajustée en fonction de la puissance du frein | L5: =D57*0.3 -> 448.8
B8: Relation entre la puissance et la vitesse de rotation | M8: ²
B10: TURBINE 1
D12: DESIGN | F12: D3 | G12: STS | H12: test | I12: =L43 -> BAKING
B14: m | C14: g/s | D14: 191.5 | F14: 67.34541785 | G14: 69.55793575 | H14: 0.9084597809 | I14: 61.80958281
B15: Pin | C15: Bara | D15: 14.77 | F15: 14.77 | G15: 12.39 | H15: 8 | I15: 9.25
B16: Tin | C16: K | D16: 40.03 | F16: 50.44 | G16: 40.73 | H16: 55 | I16: 37.12
B17: Pout | C17: Bara | D17: 6.36 | F17: 6.417 | G17: 5.242 | H17: 1.35 | I17: 4.06
B18: Tout | C18: K | D18: =[2]!T2_turb(11,D15,D16,D17,D19) -> 31.09458691 | F18: =[2]!T2_turb(11,F15,F16,F17,F19) -> 41.79259899 | G18: =[2]!T2_turb(11,G15,G16,G17,G19) -> 32.51483936 | H18: =[2]!T2_turb(11,H15,H16,H17,H19) -> 46.31503646 | I18: =[2]!T2_turb(11,I15,I16,I17,I19) -> 29.37225064
B19: Efficacity | C19: % | D19: 0.78 | F19: =(0.321*F42^4-1.6098*F42^3+1.316*F42^2+0.9448*F42)*($D$19/0.97215493) -> 0.6096211737 | G19: =(0.321*G42^4-1.6098*G42^3+1.316*G42^2+0.9448*G42)*($D$19/0.97215493) -> 0.6928554088 | H19: =(0.321*H42^4-1.6098*H42^3+1.316*H42^2+0.9448*H42)*($D$19/0.97215493) -> 0.3144279735 | I19: =(0.321*I42^4-1.6098*I42^3+1.316*I42^2+0.9448*I42)*($D$19/0.97215493) -> 0.7420422726
B20: Power | C20: W | D20: =+D14*(D32-D33) -> 9122.443616 | F20: 3130.684699 | G20: 3033.74444 | H20: 41.97906336 | I20: 2521.103303
B21: Speed | C21: Hz | D21: 1995 | F21: 1391.684328 | G21: 1498.335087 | H21: 1000 | I21: 1578.717779
B22: Speed calculated from P=K.rho.N^3 | F22: =(F20/$D20*$D25/F25)^(1/3)*$D21 -> 1391.684328 | G22: =(G20/$D20*$D25/G25)^(1/3)*$D21 -> 1498.335087 | H22: =(H20/$D20*$D25/H25)^(1/3)*$D21 -> 999.9999995 | I22: =(I20/$D20*$D25/I25)^(1/3)*$D21 -> 1578.717779
F23: =(F21-F22)^2 -> 9.035587896e-16 | G23: =(G21-G22)^2 -> 8.26022965e-17 | H23: 2.484762524e-13 | I23: 1.087026995e-13
F24: =[2]!MinimizeNonnegative(F23,F14,10) -> <<Minimize F23 by changing F14 (nonnegative)>> | G24: =[2]!MinimizeNonnegative(G23,G14,10) -> <<Minimize G23 by changing G14 (nonnegative)>> | H24: =[2]!MinimizeNonnegative(H23,H14,10) -> <<Minimize H23 by changing H14 (nonnegative)>> | I24: =[2]!MinimizeNonnegative(I23,I14,10) -> <<Minimize I23 by changing I14 (nonnegative)>>
B25: Brake Pressure | D25: 5.2 | F25: =($D25-$D17)+F17 -> 5.257 | G25: =($D25-$D17)+G17 -> 4.082 | H25: =($D25-$D17)+H17 -> 0.19 | I25: =($D25-$D17)+I17 -> 2.9
B26: Rho (brake) | D26: =[2]!rho_(11,D25,330) -> 0.7569746494 | F26: =[2]!rho_(11,F25,330) -> 0.7652544075 | G26: =[2]!rho_(11,G25,330) -> 0.5944970341 | H26: =[2]!rho_(11,H25,330) -> 0.0277154773 | I26: =[2]!rho_(11,I25,330) -> 0.4225565264
B27: Wheel | C27: mm | D27: 35.8 | F27: =$D$27 -> 35.8 | G27: =$D$27 -> 35.8 | H27: =$D$27 -> 35.8 | I27: =$D$27 -> 35.8
B28: a = mÖT/P | D28: =D14*D16^0.5/D15 -> 82.03158029 | F28: =+$D$28 -> 82.03158029 | G28: =+$D$28 -> 82.03158029 | H28: =+$D$28 -> 82.03158029 | I28: =+$D$28 -> 82.03158029
B29: Rho (in) | C29: kg/m3 | D29: =[2]!rho_(11,D15,D16) -> 17.08767254 | F29: =[2]!rho_(11,F15,F16) -> 13.60304093 | G29: =[2]!rho_(11,G15,G16) -> 14.1781416 | H29: =[2]!rho_(11,H15,H16) -> 6.87370835 | I29: =[2]!rho_(11,I15,I16) -> 11.70816291
B30: Sound Speed @inlet | D30: =[2]!Sound_speed(11,D15,D16) -> 391.2334217 | F30: =[2]!Sound_speed(11,F15,F16) -> 435.3518859 | G30: =[2]!Sound_speed(11,G15,G16) -> 391.2891989 | H30: =[2]!Sound_speed(11,H15,H16) -> 445.4922939 | I30: =[2]!Sound_speed(11,I15,I16) -> 370.5157737
B31: S=Q/(rho*V) = cte | D31: =D14/(D29*D30) -> 0.02864507195 | F31: 0.01137186295 | G31: 0.0125380361 | H31: 0.0002966705303 | I31: 0.01424821152
B32: Hin | D32: =[2]!H_(11,D15,D16) -> 223.5710661 | F32: =[2]!H_(11,F15,F16) -> 279.0586177 | G32: =[2]!H_(11,G15,G16) -> 227.2127422 | H32: =[2]!H_(11,H15,H16) -> 302.113785 | I32: =[2]!H_(11,I15,I16) -> 207.8908573
B33: Hout | D33: =[2]!H_(11,D17,D18) -> 175.9342849 | F33: =[2]!H_(11,F17,F18) -> 232.5716435 | G33: =[2]!H_(11,G17,G18) -> 183.5981006 | H33: =[2]!H_(11,H17,H18) -> 255.9047351 | I33: =[2]!H_(11,I17,I18) -> 167.1026302
B34: Sin = Sout | D34: =[2]!S_(11,D15,D16) -> 15.48824406 | F34: =[2]!S_(11,F15,F16) -> 16.72066444 | G34: =[2]!S_(11,G15,G16) -> 15.95659187 | H34: =[2]!S_(11,H15,H16) -> 18.46569448 | I34: =[2]!S_(11,I15,I16) -> 16.08435866
B35: Tout(iso) | D35: =[1]!HeCalc(2,0,1,D17*10^5,8,D34*1000,1) -> 28.58076886 | F35: =[1]!HeCalc(2,0,1,F17*10^5,8,F34*1000,1) -> 36.15386889 | G35: =[1]!HeCalc(2,0,1,G17*10^5,8,G34*1000,1) -> 28.87508647 | H35: =[1]!HeCalc(2,0,1,H17*10^5,8,H34*1000,1) -> 26.99929172 | I35: =[1]!HeCalc(2,0,1,I17*10^5,8,I34*1000,1) -> 26.69973777
B36: Hout(iso) | D36: =[2]!H_(11,D17,D35) -> 162.4982696 | F36: =[2]!H_(11,F17,F35) -> 202.8031066 | G36: =[2]!H_(11,G17,G35) -> 164.2636174 | H36: =[2]!H_(11,H17,H35) -> 155.1515113 | I36: =[2]!H_(11,I17,I35) -> 152.9233323
B37: ΔHs | D37: =D32-D36 -> 61.07279652 | F37: 76.25551105 | G37: 62.94912484 | H37: 146.9622737 | I37: 54.96752496
B38: u1 | C38: m/s | D38: =(2*52.7%*D37*1000*D19)^0.5 -> 224.0740223 | F38: =PI()*$D$39*F21 -> 156.3109299 | G38: =PI()*$D$39*G21 -> 168.2897091 | H38: =PI()*$D$39*H21 -> 112.3178057 | I38: =PI()*$D$39*I21 -> 177.3181167
B39: D1 | D39: =D38/PI()/D21 -> 0.03575186794 | M39: T1
B40: Co = (2*ΔHs)^0,5 | D40: =(2000*D37)^0.5 -> 349.4933376 | F40: 390.5265959 | G40: 354.8214335 | H40: 542.1480863 | I40: 331.5645487 | L40: MAX | M40: =ROUND(F14,0)&"g/s @ "&F15&" b ; "&F16&"K" -> 67g/s @ 14,77 b ; 50,44K
B41: u1/Co | D41: =D38/D40 -> 0.6411396104 | F41: 0.400256811 | G41: 0.4742940906 | H41: 0.2071718198 | I41: 0.5347921466 | L41: MIN | M41: =ROUND(G14,0)&"g/s @ "&G15&" b ; "&G16&"K" -> 70g/s @ 12,39 b ; 40,73K
B42: U1/C0 off de / U1/C0 nom | D42: =D41/$D$41 -> 1 | F42: =F41/$D41 -> 0.6242896313 | G42: =G41/$D41 -> 0.7397672565 | H42: =H41/$D41 -> 0.3231305889 | I42: =I41/$D41 -> 0.8341274474 | L42: STS | M42: =ROUND(H14,0)&"g/s @ "&H15&" b ; "&H16&"K" -> 1g/s @ 8 b ; 55K
B43: Rdt | D43: =(0.321*D42^4-1.6098*D42^3+1.316*D42^2+0.9448*D42)*($D19/0.97215493) -> 0.7798756933 | F43: =(0.321*F42^4-1.6098*F42^3+1.316*F42^2+0.9448*F42)*($D19/0.97215493) -> 0.6096211737 | G43: =(0.321*G42^4-1.6098*G42^3+1.316*G42^2+0.9448*G42)*($D19/0.97215493) -> 0.6928554088 | H43: =(0.321*H42^4-1.6098*H42^3+1.316*H42^2+0.9448*H42)*($D19/0.97) -> 0.3151264996 | I43: =(0.321*I42^4-1.6098*I42^3+1.316*I42^2+0.9448*I42)*($D19/0.97215493) -> 0.7420422726 | L43: BAKING | M43: =ROUND(I14,0)&"g/s @ "&I15&" b ; "&I16&"K" -> 62g/s @ 9,25 b ; 37,12K
B46: TURBINE 2
D48: DESIGN | F48: =F12 -> D3 | G48: =G12 -> STS | H48: =H12 -> test | I48: =I12 -> BAKING
B50: m | C50: g/s | D50: 191.2 | F50: 147.6557639 | G50: 139.7865105 | H50: 3607.197829 | I50: 106.8459933
B51: Pin | C51: Bara | D51: 6.307 | F51: 6.417 | G51: 5.242 | H51: 1.35 | I51: 4.06
B52: Tin | C52: K | D52: 18.21 | F52: 22.92 | G52: 17.75 | H52: 30 | I52: 17.17
B53: Pout | C53: Bara | D53: 1.35 | F53: 1.35 | G53: 1.29 | H53: 1.3 | I53: 1.35
B54: Tout | C54: K | D54: =[2]!T2_turb(11,D51,D52,D53,D55) -> 11.61835748 | F54: =[2]!T2_turb(11,F51,F52,F53,F55) -> 14.93439442 | G54: =[2]!T2_turb(11,G51,G52,G53,G55) -> 11.85507099 | H54: =[2]!T2_turb(11,H51,H52,H53,H55) -> 29.77588982 | I54: =[2]!T2_turb(11,I51,I52,I53,I55) -> 12.5509376
B55: Efficacity | C55: % | D55: 0.76 | F55: =(0.321*F78^4-1.6098*F78^3+1.316*F78^2+0.9448*F78)*($D$55/0.97215493) -> 0.7361744071 | G55: =(0.321*G78^4-1.6098*G78^3+1.316*G78^2+0.9448*G78)*($D$55/0.97215493) -> 0.7484073575 | H55: =(0.321*H78^4-1.6098*H78^3+1.316*H78^2+0.9448*H78)*($D$55/0.97215493) -> 0.4967078603 | I55: =(0.321*I78^4-1.6098*I78^3+1.316*I78^2+0.9448*I78)*($D$55/0.97215493) -> 0.7314887076
B56: Power | C56: W | D56: =+D50*(D68-D69) -> 6144.650346 | F56: 5952.777143 | G56: 4033.090458 | H56: 4195.03291 | I56: 2429.801363
B57: Speed | C57: Hz | D57: 1496 | F57: 1480.263657 | G57: 1303.371892 | H57: 1320.03449 | I57: 1098.051709
F58: =(F56/$D56*$D61/F61)^(1/3)*$D57 -> 1480.263657 | G58: =(G56/$D56*$D61/G61)^(1/3)*$D57 -> 1303.371892 | H58: =(H56/$D56*$D61/H61)^(1/3)*$D57 -> 1320.03449 | I58: =(I56/$D56*$D61/I61)^(1/3)*$D57 -> 1098.051709
F59: =(F57-F58)^2 -> 1.177955117e-14 | G59: =(G57-G58)^2 -> 1.051558524e-20 | H59: =(H57-H58)^2 -> 9.770037475e-18 | I59: =(I57-I58)^2 -> 4.910584383e-18
F60: =[2]!MinimizeNonnegative(F59,F50,10) -> <<Minimize F59 by changing F50 (nonnegative)>> | G60: =[2]!MinimizeNonnegative(G59,G50,10) -> <<Minimize G59 by changing G50 (nonnegative)>> | H60: =[2]!MinimizeNonnegative(H59,H50,10) -> <<Minimize H59 by changing H50 (nonnegative)>> | I60: =[2]!MinimizeNonnegative(I59,I50,10) -> <<Minimize I59 by changing I50 (nonnegative)>>
B61: Brake Pressure | D61: 8 | F61: =($D61-$D53)+F53 -> 8 | G61: =($D61-$D53)+G53 -> 7.94 | H61: =($D61-$D53)+H53 -> 7.95 | I61: =($D61-$D53)+I53 -> 8
B62: Rho (brake) | D62: =[2]!rho_(11,D61,330) -> 1.16324325 | F62: =[2]!rho_(11,F61,330) -> 1.16324325 | G62: =[2]!rho_(11,G61,330) -> 1.154547255 | H62: =[2]!rho_(11,H61,330) -> 1.155996617 | I62: =[2]!rho_(11,I61,330) -> 1.16324325
B63: Wheel | C63: mm | D63: 39.5 | F63: =$D$27 -> 35.8 | G63: =$D$27 -> 35.8 | H63: =$D$27 -> 35.8 | I63: =$D$27 -> 35.8
B64: a = mÖT/P | D64: =D50*D52^0.5/D51 -> 129.3659642 | F64: =$D$64 -> 129.3659642 | G64: =$D$64 -> 129.3659642 | H64: 129.3659642 | I64: 129.3659642
B65: Rho (in) | C65: kg/m3 | D65: =[2]!rho_(11,D51,D52) -> 16.81725024 | F65: =[2]!rho_(11,F51,F52) -> 13.37529115 | G65: =[2]!rho_(11,G51,G52) -> 14.35919148 | H65: =[2]!rho_(11,H51,H52) -> 2.159549884 | I65: =[2]!rho_(11,I51,I52) -> 11.50593305
B66: Sound Speed | D66: =[2]!Sound_speed(11,D51,D52) -> 258.3914638 | F66: =[2]!Sound_speed(11,F51,F52) -> 290.0482302 | G66: =[2]!Sound_speed(11,G51,G52) -> 253.6442594 | H66: =[2]!Sound_speed(11,H51,H52) -> 324.0440915 | I66: =[2]!Sound_speed(11,I51,I52) -> 247.9282305
B67: S=Q/(rho*V) = cte | D67: =D50/(D65*D66) -> 0.04400020898 | F67: 0.03806071481 | G67: 0.03838046564 | H67: 5.154690727 | I67: 0.03745505312
B68: Hin | D68: =[2]!H_(11,D51,D52) -> 105.9022075 | F68: =[2]!H_(11,F51,F52) -> 131.8953521 | G68: =[2]!H_(11,G51,G52) -> 103.9794583 | H68: =[2]!H_(11,H51,H52) -> 170.8449104 | I68: =[2]!H_(11,I51,I52) -> 101.5489242
B69: Hout | D69: =[2]!H_(11,D53,D54) -> 73.76491485 | F69: =[2]!H_(11,F53,F54) -> 91.58011495 | G69: =[2]!H_(11,G53,G54) -> 75.1276725 | H69: =[2]!H_(11,H53,H54) -> 169.6819487 | I69: =[2]!H_(11,I53,I54) -> 78.80776854
B70: Sin = Sout | D70: =[2]!S_(11,D51,D52) -> 13.04156759 | F70: =[2]!S_(11,F51,F52) -> 14.27581398 | G70: =[2]!S_(11,G51,G52) -> 13.31525539 | H70: =[2]!S_(11,H51,H52) -> 19.0168641 | I70: =[2]!S_(11,I51,I52) -> 13.70131075
B71: Tout(iso) | D71: =[1]!HeCalc(2,0,1,D53*10^5,8,D70*1000,1) -> 9.763910711 | F71: =[1]!HeCalc(2,0,1,F53*10^5,8,F70*1000,1) -> 12.24042356 | G71: =[1]!HeCalc(2,0,1,G53*10^5,8,G70*1000,1) -> 10.07386184 | H71: =[1]!HeCalc(2,0,1,H53*10^5,8,H70*1000,1) -> 29.55038662 | I71: =[1]!HeCalc(2,0,1,I53*10^5,8,I70*1000,1) -> 11.01071411
B72: Hout(iso) | D72: =[2]!H_(11,D53,D71) -> 63.61629614 | F72: =[2]!H_(11,F53,F71) -> 77.13219168 | G72: =[2]!H_(11,G53,G71) -> 65.42854681 | H72: =[2]!H_(11,H53,H71) -> 168.503571 | I72: =[2]!H_(11,I53,I71) -> 70.46005649
B73: ΔHs | D73: =D68-D72 -> 42.28591132 | F73: 54.76316045 | G73: 38.55091148 | H73: 2.341339428 | I73: 31.0888677
B74: u1 | C74: m/s | D74: =(2*52.7%*D73*1000*D55)^0.5 -> 184.0453922 | F74: =PI()*$D$75*F57 -> 182.1094287 | G74: =PI()*$D$75*G57 -> 160.3473203 | H74: 162.3972363 | I74: 135.0878059
B75: D1 | D75: =D74/PI()/D57 -> 0.0391600721 | M75: T2
B76: Co = (2*ΔHs)^0,5 | D76: =(2000*D73)^0.5 -> 290.8123495 | F76: 330.9476105 | G76: 277.6721501 | H76: 68.43010197 | I76: 249.3546378 | L76: MAX | M76: =ROUND(F50,0)&"g/s @ "&F51&" b ; "&F52&"K" -> 148g/s @ 6,417 b ; 22,92K
B77: u1/Co | D77: =D74/D76 -> 0.6328664946 | F77: 0.5502666371 | G77: 0.5774699415 | H77: 2.373184193 | I77: 0.5417497226 | L77: MIN | M77: =ROUND(G50,0)&"g/s @ "&G51&" b ; "&G52&"K" -> 140g/s @ 5,242 b ; 17,75K
B78: U1/C0 off de / U1/C0 nom | D78: =D77/$D$41 -> 0.9870962336 | F78: =F77/$D77 -> 0.8694829664 | G78: =G77/$D77 -> 0.9124672366 | H78: =H77/$D77 -> 3.749897037 | I78: =I77/$D77 -> 0.8560252868 | L78: STS | M78: =ROUND(H50,0)&"g/s @ "&H51&" b ; "&H52&"K" -> 3607g/s @ 1,35 b ; 30K
B79: Rdt | D79: =(0.321*D78^4-1.6098*D78^3+1.316*D78^2+0.9448*D78)*($D55/0.97215493) -> 0.7593560473 | F79: =(0.321*F78^4-1.6098*F78^3+1.316*F78^2+0.9448*F78)*($D55/0.97215493) -> 0.7361744071 | G79: =(0.321*G78^4-1.6098*G78^3+1.316*G78^2+0.9448*G78)*($D55/0.97215493) -> 0.7484073575 | H79: =(0.321*H78^4-1.6098*H78^3+1.316*H78^2+0.9448*H78)*($D55/0.97215493) -> 0.4967078603 | I79: =(0.321*I78^4-1.6098*I78^3+1.316*I78^2+0.9448*I78)*($D55/0.97215493) -> 0.7314887076 | L79: BAKING | M79: =ROUND(I50,0)&"g/s @ "&I51&" b ; "&I52&"K" -> 107g/s @ 4,06 b ; 17,17K
B81: TURBINE 3
D83: DESIGN | F83: =F48 -> D3 | G83: =G48 -> STS | H83: =H48 -> test | I83: =I48 -> BAKING
B85: m | C85: g/s | D85: 399.8 | F85: 161.4761841 | G85: 95.08041999 | H85: =H99/(H88*H87)^0.5*H86 ->  | I85: 117.1010284
B86: Pin | C86: Bara | D86: 13.07 | F86: 13.07 | G86: 7.369 | I86: 10.48
B87: Tin | C87: K | D87: 7.292 | F87: 9.16 | G87: 7.912 | I87: 10.55
B88: Pout | C88: Bara | D88: 4.88 | F88: 4.88 | G88: 5.18 | I88: 5.18
B89: Tout | C89: K | D89: =[2]!T2_turb(11,D86,D87,D88,D90) -> 6.11984088 | F89: =[2]!T2_turb(11,F86,F87,F88,F90) -> 7.049446306 | G89: =[2]!T2_turb(11,G86,G87,G88,G90) -> 7.14472539 | H89: =[2]!T2_turb(11,H86,H87,H88,H90) ->  | I89: =[2]!T2_turb(11,I86,I87,I88,I90) -> 8.690381514
B90: Efficacity | C90: % | D90: 0.72 | F90: =(0.321*F113^4-1.6098*F113^3+1.316*F113^2+0.9448*F113)*($D$90/0.97215493) -> 0.5817973136 | G90: =(0.321*G113^4-1.6098*G113^3+1.316*G113^2+0.9448*G113)*($D$90/0.97215493) -> 0.5827244835 | H90: =(0.321*H113^4-1.6098*H113^3+1.316*H113^2+0.9448*H113)*($D$90/0.97215493) ->  | I90: =(0.321*I113^4-1.6098*I113^3+1.316*I113^2+0.9448*I113)*($D$90/0.97215493) -> 0.5020164146
B91: Power | C91: W | D91: =+D85*(D103-D104) -> 2075.54042 | F91: 954.7418547 | G91: 182.5141042 | I91: 610.6783492
B92: Speed | C92: Hz | D92: 2076 | F92: 1602.55252 | G92: 914.2081865 | H92: 862.6625785 | I92: 1367.362934
F93: =(F91/$D91*$D96/F96)^(1/3)*$D92 -> 1602.55252 | G93: =(G91/$D91*$D96/G96)^(1/3)*$D92 -> 914.2081864 | H93: =(H91/$D91*$D96/H96)^(1/3)*$D92 ->  | I93: =(I91/$D91*$D96/I96)^(1/3)*$D92 -> 1367.362934
F94: =(F92-F93)^2 -> 3.597032276e-15 | G94: =(G92-G93)^2 -> 3.786562044e-15 | H94: =(H92-H93)^2 ->  | I94: =(I92-I93)^2 -> 1.199592265e-18
F95: =[2]!MinimizeNonnegative(F94,F85,10) -> <<Minimize F94 by changing F85 (nonnegative)>> | G95: =[2]!MinimizeNonnegative(G94,G85,10) -> <<Minimize G94 by changing G85 (nonnegative)>> | H95: =[2]!MinimizeNonnegative(H94,H85,10) -> Error. The first parameter "H94" references a cell with an error. | I95: =[2]!MinimizeNonnegative(I94,I85,10) -> <<Minimize I94 by changing I85 (nonnegative)>>
B96: Brake Pressure | D96: 10.1 | F96: =($D96-$D88)+F88 -> 10.1 | G96: =($D96-$D88)+G88 -> 10.4 | H96: =($D96-$D88)+H88 -> 5.22 | I96: =($D96-$D88)+I88 -> 10.4
B97: Rho (brake) | D97: =[2]!rho_(11,D96,330) -> 1.467334205 | F97: =[2]!rho_(11,F96,330) -> 1.467334205 | G97: =[2]!rho_(11,G96,330) -> 1.510733122 | H97: =[2]!rho_(11,H96,330) -> 0.7598798717 | I97: =[2]!rho_(11,I96,330) -> 1.510733122
B98: Wheel | C98: mm | D98: 29.5 | F98: =$D$98 -> 29.5 | G98: =$D$98 -> 29.5 | H98: =$D$98 -> 29.5 | I98: =$D$98 -> 29.5
B99: a = mÖT/P | D99: =D85*D87^0.5/D86 -> 82.60199418 | F99: =$D$99 -> 82.60199418 | G99: =$D$99 -> 82.60199418 | H99: 82.60199418 | I99: 82.60199418
B100: Rho (in) | C100: kg/m3 | D100: =[2]!rho_(11,D86,D87) -> 122.041385 | F100: =[2]!rho_(11,F86,F87) -> 92.04202254 | G100: =[2]!rho_(11,G86,G87) -> 70.6496495 | H100: =[2]!rho_(11,H86,H87) -> NUM | I100: =[2]!rho_(11,I86,I87) -> 58.78998557
B101: Sound Speed | D101: =[2]!Sound_speed(11,D86,D87) -> 249.0567129 | F101: =[2]!Sound_speed(11,F86,F87) -> 219.0353462 | G101: =[2]!Sound_speed(11,G86,G87) -> 170.7864441 | H101: =[2]!Sound_speed(11,H86,H87) -> NUM | I101: =[2]!Sound_speed(11,I86,I87) -> 204.2669237
B102: S=Q/(rho*V) = cte | D102: =D85/(D100*D101) -> 0.01315338131 | F102: 0.008009550076 | G102: 0.007880026601 | I102: 0.009751227913
B103: Hin | D103: =[2]!H_(11,D86,D87) -> 28.15088458 | F103: =[2]!H_(11,F86,F87) -> 40.89014045 | G103: =[2]!H_(11,G86,G87) -> 36.81164396 | H103: =[2]!H_(11,H86,H87) ->  | I103: =[2]!H_(11,I86,I87) -> 54.05983231
B104: Hout | D104: =[2]!H_(11,D88,D89) -> 22.9594378 | F104: =[2]!H_(11,F88,F89) -> 34.97755427 | G104: =[2]!H_(11,G88,G89) -> 34.89206784 | H104: =[2]!H_(11,H88,H89) ->  | I104: =[2]!H_(11,I88,I89) -> 48.84486232
B105: Sin = Sout | D105: =[2]!S_(11,D86,D87) -> 5.060004669 | F105: =[2]!S_(11,F86,F87) -> 6.606972814 | G105: =[2]!S_(11,G86,G87) -> 6.945830207 | H105: =[2]!S_(11,H86,H87) ->  | I105: =[2]!S_(11,I86,I87) -> 8.300020451
B106: Tout(iso) | D106: =[1]!HeCalc(2,0,1,D88*10^5,8,D105*1000,1) -> 5.935138784 | F106: =[1]!HeCalc(2,0,1,F88*10^5,8,F105*1000,1) -> 6.699995029 | G106: =[1]!HeCalc(2,0,1,G88*10^5,8,G105*1000,1) -> 7.024181985 | H106: =[1]!HeCalc(2,0,1,H88*10^5,8,H105*1000,1) ->  | I106: =[1]!HeCalc(2,0,1,I88*10^5,8,I105*1000,1) -> 8.048894673
B107: Hout(iso) | D107: =[2]!H_(11,D88,D106) -> 20.94054184 | F107: =[2]!H_(11,F88,F106) -> 30.72751844 | G107: =[2]!H_(11,G88,G106) -> 33.5175038 | H107: =[2]!H_(11,H88,H106) ->  | I107: =[2]!H_(11,I88,I106) -> 43.67178554
B108: ΔHs | D108: =D103-D107 -> 7.210342742 | F108: 10.16262202 | G108: 3.294140164 | I108: 10.38804677
B109: u1 | C109: m/s | D109: =(2*52.7%*D108*1000*D90)^0.5 -> 73.97151411 | F109: =PI()*$D$110*F92 -> 57.1017516 | G109: =PI()*$D$110*G92 -> 32.57483804 | H109: 30.73817779 | I109: 48.72153497
B110: D1 | D110: =D109/PI()/D92 -> 0.01134193846 | M110: T3
B111: Co = (2*ΔHs)^0,5 | D111: =(2000*D108)^0.5 -> 120.0861586 | F111: 142.5666302 | G111: 81.1682224 | I111: 144.1391464 | L111: MAX | M111: =ROUND(F85,0)&"g/s @ "&F86&" b ; "&F87&"K" -> 161g/s @ 13,07 b ; 9,16K
B112: u1/Co | D112: =D109/D111 -> 0.6159870129 | F112: 0.400526768 | G112: 0.4013250146 | I112: 0.3380173685 | L112: MIN | M112: =ROUND(G85,0)&"g/s @ "&G86&" b ; "&G87&"K" -> 95g/s @ 7,369 b ; 7,912K
B113: U1/C0 off de / U1/C0 nom | D113: =D112/$D$41 -> 0.9607689228 | F113: =F112/$D112 -> 0.6502195008 | G113: =G112/$D112 -> 0.6515153829 | H113: =H112/$D112 ->  | I113: =I112/$D112 -> 0.5487410634 | L113: STS | M113: =ROUND(H85,0)&"g/s @ "&H86&" b ; "&H87&"K" -> 
B114: Rdt | D114: =(0.321*D113^4-1.6098*D113^3+1.316*D113^2+0.9448*D113)*($D90/0.97215493) -> 0.7171786088 | F114: =(0.321*F113^4-1.6098*F113^3+1.316*F113^2+0.9448*F113)*($D90/0.97215493) -> 0.5817973136 | G114: =(0.321*G113^4-1.6098*G113^3+1.316*G113^2+0.9448*G113)*($D90/0.97215493) -> 0.5827244835 | H114: =(0.321*H113^4-1.6098*H113^3+1.316*H113^2+0.9448*H113)*($D90/0.97215493) ->  | I114: =(0.321*I113^4-1.6098*I113^3+1.316*I113^2+0.9448*I113)*($D90/0.97215493) -> 0.5020164146 | L114: BAKING | M114: =ROUND(I85,0)&"g/s @ "&I86&" b ; "&I87&"K" -> 117g/s @ 10,48 b ; 10,55K
M116: =M39 -> T1 | N116: =M110 -> T3 | O116: T1+T2
B117: Courbe de rendement TC3 | L117: =L111 -> MAX | M117: =M40 -> 67g/s @ 14,77 b ; 50,44K | N117: =M111 -> 161g/s @ 13,07 b ; 9,16K | O117: =F85+F50 -> 309.131948
L118: =L112 -> MIN | M118: =M41 -> 70g/s @ 12,39 b ; 40,73K | N118: =M112 -> 95g/s @ 7,369 b ; 7,912K | O118: =G85+G50 -> 234.8669305
L119: =L113 -> STS | M119: =M42 -> 1g/s @ 8 b ; 55K | N119: =M113 ->  | O119: =H85+H50 -> 
L120: =L114 -> BAKING | M120: =M43 -> 62g/s @ 9,25 b ; 37,12K | N120: =M114 -> 117g/s @ 10,48 b ; 10,55K | O120: =I85+I50 -> 223.9470217
E121: d : mm
E122: N : Hz
E123: H : J/kG
B129: rendement=(0,321*rap^4 - 1,6098*rap^3 + 1,316*rap^2 + 0,9448*rap)*(ETAgar/0,97) | I129: U1/CO _nom | J129: 0.64
I130: Eta_gar | J130: 0.8
B131: U1/C0 | C131: =D19 -> 0.78 | D131: =D55 -> 0.76 | E131: =D90 -> 0.72
B132: 0 | C132: =(0.321*B132^4-1.6098*B132^3+1.316*B132^2+0.9448*B132)*$D$19/0.97215493 -> 0
B133: =B132+0.05 -> 0.05 | C133: =(0.321*$B133^4-1.6098*$B133^3+1.316*$B133^2+0.9448*$B133)*$C$131/0.97215493 -> 0.04038246185 | D133: =(0.321*$B133^4-1.6098*$B133^3+1.316*$B133^2+0.9448*$B133)*$D$131/0.97215493 -> 0.03934701411 | E133: =(0.321*$B133^4-1.6098*$B133^3+1.316*$B133^2+0.9448*$B133)*$E$131/0.97215493 -> 0.03727611863
B134: 0.1 | C134: =(0.321*$B134^4-1.6098*$B134^3+1.316*$B134^2+0.9448*$B134)*$C$131/0.97215493 -> 0.08509815817 | D134: =(0.321*$B134^4-1.6098*$B134^3+1.316*$B134^2+0.9448*$B134)*$D$131/0.97215493 -> 0.08291615412 | E134: =(0.321*$B134^4-1.6098*$B134^3+1.316*$B134^2+0.9448*$B134)*$E$131/0.97215493 -> 0.078552146
B135: 0.15 | C135: 0.1332363313 | D135: 0.1298200152 | E135: 0.1229873828
B136: 0.2 | C136: 0.1839248565 | D136: 0.1792088345 | E136: 0.1697767906
B137: 0.25 | C137: 0.2363302415 | D137: 0.2302704917 | E137: 0.2181509921
B138: 0.3 | C138: 0.2896576269 | D138: 0.2822305083 | E138: 0.267376271
B139: 0.35 | C139: 0.343150786 | D139: 0.3343520479 | E139: 0.3167545717
B140: 0.4 | C140: 0.3960921249 | D140: 0.3859359166 | E140: 0.3656234999
B141: 0.45 | C141: 0.4478026824 | D141: 0.4363205624 | E141: 0.4133563222
B142: 0.5 | C142: 0.4976421299 | D142: 0.4848820753 | E142: 0.4593619661
B143: 0.55 | C143: 0.5450087718 | D143: 0.5310341879 | E143: 0.5030850201
B144: 0.6 | C144: 0.5893395449 | D144: 0.5742282745 | E144: 0.5440057337
B145: 0.65 | C145: 0.630110019 | D145: 0.6139533518 | E145: 0.5816400175
B146: 0.7 | C146: 0.6668343964 | D146: 0.6497360786 | E146: 0.6155394429
B147: 0.75 | C147: 0.6990655125 | D147: 0.6811407558 | E147: 0.6452912423
B148: 0.8 | C148: 0.726394835 | D148: 0.7077693264 | E148: 0.6705183093
B149: 0.85 | C149: 0.7484524646 | D149: 0.7292613758 | E149: 0.6908791981
B150: 0.9 | C150: 0.7649071347 | D150: 0.7452941313 | E150: 0.7060681243
B151: 0.95 | C151: 0.7754662113 | D151: 0.7555824623 | E151: 0.7158149643
B152: 1 | C152: 0.7798756933 | D152: 0.7598788806 | E152: 0.7198852553
B153: 1.05 | C153: 0.7779202121 | D153: 0.75797354 | E153: 0.7180801958
B154: 1.1 | C154: 0.7694230322 | D154: 0.7496942365 | E154: 0.7102366451
B155: 1.15 | C155: 0.7542460504 | D155: 0.7349064081 | E155: 0.6962271235
B156: 1.2 | C156: 0.7322897966 | D156: 0.7135131352 | E156: 0.6759598123 | G156: F Let u be the peripheral speed of the wheel : u = p . Æ . N / 60 (in m/s)
B157: 1.25 | C157: 0.7034934333 | D157: 0.6854551401 | E157: 0.6493785538 | G157: F Let n, be the speed ratio of the turbine : n = u / [ 2 . (H1 - H2S ) ] 0.5 (dimensionless number)
B158: 1.3 | C158: 0.6678347555 | D158: 0.6507107874 | E158: 0.6164628512 | H158: N = speed of rotation of the turbine (in rpm)
B159: 1.35 | C159: 0.6253301913 | D159: 0.6092960839 | E159: 0.5772278689 | H159: Æ = diameter of the wheel of the turbine (in m)
B160: 1.4 | C160: 0.5760348014 | D160: 0.5612646783 | E160: 0.531724432
B161: 1.45 | C161: 0.520042279 | D161: 0.5067078616 | E161: 0.4800390268
B162: 1.5 | C162: 0.4574849505 | D162: 0.4457545671 | E162: 0.4222938004

Sheet Turbines_JT60SA
A1: 1 | B1: 2 | C1: 3 | D1: 4 | E1: 5 | F1: 6 | G1: 7 | H1: 8 | I1: 9 | J1: 10 | K1: 11 | L1: 12 | M1: 13 | N1: 14 | O1: 15 | P1: 16 | Q1: 17 | R1: 18 | S1: 19 | T1: 20 | U1: 21 | V1: 22 | W1: 23 | X1: 24 | Y1: 25 | Z1: 26 | AA1: 27 | AB1: 28
AF2: =1-1/3 -> 0.6666666667
E5: Vitesse de la roue ajustée en fonction de la puissance du frein | L5: =D66*0.3 -> 448.8
B8: Relation entre la puissance et la vitesse de rotation | M8: ²
B10: CV310
B11: Pin | C11: Bara | D11: 15 | F11: 15 | G11: 15 | H11: 15 | I11: 15
B12: Tin | C12: K | D12: =[2]!T_P_H_(11,D11,[2]!H_(11,D25,D26)) -> 40.02813956 | F12: =[2]!T_P_H_(11,F11,[2]!H_(11,F25,F26)) -> 39.99815347 | G12: =[2]!T_P_H_(11,G11,[2]!H_(11,G25,G26)) -> 40.70643849 | H12: =+H26 -> 66 | I12: =[2]!T_P_H_(11,I11,[2]!H_(11,I25,I26)) -> 37.11747776 | J12: =[2]!H_(11,F25,F26) -> 223.409975
B13: Rho | D13: =[2]!rho_(11,D11,D12) -> 17.34400697 | F13: =[2]!rho_(11,F11,F12) -> 17.35691132 | G13: =[2]!rho_(11,G11,G12) -> 17.05733037 | H13: =[2]!rho_(11,H11,H12) -> 10.61104091 | I13: =[2]!rho_(11,I11,I12) -> 18.6972559
B14: dP | D14: =(D11-D25)*1000 -> 230 | F14: =(F11-F25)*1000 -> 230 | G14: =(G11-G25)*1000 -> 2610 | H14: =(H11-H25)*1000 -> 4700 | I14: =(I11-I25)*1000 -> 5750
B15: Cvs | D15: 30 | F15: 30 | G15: 30 | H15: 30 | I15: 30
B16: Range | D16: 100 | F16: 100 | G16: 100 | H16: 100 | I16: 100
B17: Flow | D17: =IF(D11/2>D25,"S","SS") -> SS | F17: =IF(F11/2>F25,"S","SS") -> SS | G17: =IF(G11/2>G25,"S","SS") -> SS | H17: =IF(H11/2>H25,"S","SS") -> SS | I17: =IF(I11/2>I25,"S","SS") -> SS
B18: Cv | D18: =[2]!Cv_Simple(D12,D11,D11-D25,D13,D24,D17) -> 12.71708607 | F18: =[2]!Cv_Simple(F12,F11,F11-F25,F13,F24,F17) -> 12.71712405 | G18: =[2]!Cv_Simple(G12,G11,G11-G25,G13,G24,G17) -> 3.4564594 | H18: =[2]!Cv_Simple(H12,H11,H11-H25,H13,H24,H17) -> 2.33909315 | I18: =[2]!Cv_Simple(I12,I11,I11-I25,I13,I24,I17) -> 2.013134632
B19: Trim | D19: =[2]!Trim_From_Cv(D18/D15,D16) -> 0.813633178 | F19: =[2]!Trim_From_Cv(F18/F15,F16) -> 0.8136338264 | G19: =[2]!Trim_From_Cv(G18/G15,G16) -> 0.5307551026 | H19: =[2]!Trim_From_Cv(H18/H15,H16) -> 0.4459631312 | I19: =[2]!Trim_From_Cv(I18/I15,I16) -> 0.4133757827
B20: TURBINE 1
F21: =IF(ISERROR(F24),"","X") -> X | G21: X | H21: =IF(ISERROR(H24),"","X") -> X | I21: =IF(ISERROR(I24),"","X") -> X
D22: DESIGN | F22: D3 | G22: STS | H22: start-up | I22: =L52 -> BAKING
B24: m | C24: g/s | D24: 191.5 | F24: =F37*F25/F26^0.5 -> 191.571799 | G24: =G37*G25/G26^0.5 -> 159.2557712 | H24: 104.0031121 | I24: 124.5428578
B25: Pin | C25: Bara | D25: 14.77 | F25: 14.77 | G25: 12.39 | H25: 10.3 | I25: 9.25
B26: Tin | C26: K | D26: 40.03 | F26: 40 | G26: 40.73 | H26: 66 | I26: 37.12
B27: Pout | C27: Bara | D27: 6.36 | F27: 6.36 | G27: 5.242 | H27: 4.97 | I27: 4.06
B28: Tout | C28: K | D28: =[2]!T2_turb(11,D25,D26,D27,D29) -> 31.09458691 | F28: =[2]!T2_turb(11,F25,F26,F27,F29) -> 31.07248029 | G28: =[2]!T2_turb(11,G25,G26,G27,G29) -> 31.48039768 | H28: =[2]!T2_turb(11,H25,H26,H27,H29) -> 53.65230991 | I28: =[2]!T2_turb(11,I25,I26,I27,I29) -> 29.0255036
B29: Efficacity | C29: % | D29: 0.78 | F29: =(0.321*F51^4-1.6098*F51^3+1.316*F51^2+0.9448*F51)*($D$29/0.97215493) -> 0.7798806752 | G29: =(0.321*G51^4-1.6098*G51^3+1.316*G51^2+0.9448*G51)*($D$29/0.97215493) -> 0.7799750079 | H29: =(0.321*H51^4-1.6098*H51^3+1.316*H51^2+0.9448*H51)*($D$29/0.97215493) -> 0.7436136836 | I29: =(0.321*I51^4-1.6098*I51^3+1.316*I51^2+0.9448*I51)*($D$29/0.97215493) -> 0.7754508998
B30: Power | C30: W | D30: =+D24*(D41-D42) -> 9122.443616 | F30: =+F24*(F41-F42) -> 9117.584098 | G30: 7819.258362 | H30: 6815.955629 | I30: 5308.591576
B31: Speed | C31: Hz | D31: 1995 | F31: 1994.645702 | G31: 2054.333582 | H31: 2008.048538 | I31: 2023.488471
B32: Speed calculated from P=K.rho.N^3 | F32: =(F30/$D30*$D34/F34)^(1/3)*$D31 -> 1994.645692 | G32: =(G30/$D30*$D34/G34)^(1/3)*$D31 -> 2054.334405 | H32: =(H30/$D30*$D34/H34)^(1/3)*$D31 -> 2008.048563 | I32: =(I30/$D30*$D34/I34)^(1/3)*$D31 -> 2023.488422
B33: Converge brake Power | D33: =D27-D34 -> 1.16 | F33: =F31-F32 -> 1.033077046e-05 | G33: =G31-G32 -> -0.0008232627151 | H33: =H31-H32 -> -2.525864079e-05 | I33: =I31-I32 -> 4.865897949e-05
B34: Brake Pressure | D34: 5.2 | F34: =($D34-$D27)+F27 -> 5.2 | G34: =($D34-$D27)+G27 -> 4.082 | H34: =($D34-$D27)+H27 -> 3.81 | I34: =($D34-$D27)+I27 -> 2.9
B35: Rho (brake) | D35: =[2]!rho_(11,D34,330) -> 0.7569746494 | F35: =[2]!rho_(11,F34,330) -> 0.7569746494 | G35: =[2]!rho_(11,G34,330) -> 0.5944970341 | H35: =[2]!rho_(11,H34,330) -> 0.5549450942 | I35: =[2]!rho_(11,I34,330) -> 0.4225565264
B36: Wheel | C36: mm | D36: 35.8 | F36: =$D$36 -> 35.8 | G36: =$D$36 -> 35.8 | H36: =$D$36 -> 35.8 | I36: =$D$36 -> 35.8
B37: a = mÖT/P | D37: =D24*D26^0.5/D25 -> 82.03158029 | F37: =+$D$37 -> 82.03158029 | G37: =+$D$37 -> 82.03158029 | H37: =+$D$37 -> 82.03158029 | I37: =+$D$37 -> 82.03158029
B38: Rho (in) | C38: kg/m3 | D38: =[2]!rho_(11,D25,D26) -> 17.08767254 | F38: =[2]!rho_(11,F25,F26) -> 17.10039396 | G38: =[2]!rho_(11,G25,G26) -> 14.1781416 | H38: =[2]!rho_(11,H25,H26) -> 7.3557574 | I38: =[2]!rho_(11,I25,I26) -> 11.70816291
B39: Sound Speed @inlet | D39: =[2]!Sound_speed(11,D25,D26) -> 391.2334217 | F39: =[2]!Sound_speed(11,F25,F26) -> 391.0983443 | G39: =[2]!Sound_speed(11,G25,G26) -> 391.2891989 | H39: =[2]!Sound_speed(11,H25,H26) -> 488.8557373 | I39: =[2]!Sound_speed(11,I25,I26) -> 370.5157737
B40: S=Q/(rho*V) = cte | D40: =D24/(D38*D39) -> 0.02864507195 | F40: 0.02864438381 | G40: 0.02870635228 | H40: 0.02892265926 | I40: 0.02870935058
B41: Hin | D41: =[2]!H_(11,D25,D26) -> 223.5710661 | F41: =[2]!H_(11,F25,F26) -> 223.409975 | G41: =[2]!H_(11,G25,G26) -> 227.2127422 | H41: =[2]!H_(11,H25,H26) -> 360.1422039 | I41: =[2]!H_(11,I25,I26) -> 207.8908573
B42: Hout | D42: =[2]!H_(11,D27,D28) -> 175.9342849 | F42: =[2]!H_(11,F27,F28) -> 175.8164141 | G42: =[2]!H_(11,G27,G28) -> 178.1139981 | H42: =[2]!H_(11,H27,H28) -> 294.6061302 | I42: =[2]!H_(11,I27,I28) -> 165.2662406
B43: Sin = Sout | D43: =[2]!S_(11,D25,D26) -> 15.48824406 | F43: =[2]!S_(11,F25,F26) -> 15.48421829 | G43: =[2]!S_(11,G25,G26) -> 15.95659187 | H43: =[2]!S_(11,H25,H26) -> 18.89203458 | I43: =[2]!S_(11,I25,I26) -> 16.08435866
B44: Tout(iso) | D44: =[1]!HeCalc(2,0,1,D27*10^5,8,D43*1000,1) -> 28.58076886 | F44: =[1]!HeCalc(2,0,1,F27*10^5,8,F43*1000,1) -> 28.55930738 | G44: =[1]!HeCalc(2,0,1,G27*10^5,8,G43*1000,1) -> 28.87508647 | H44: =[1]!HeCalc(2,0,1,H27*10^5,8,H43*1000,1) -> 49.33078138 | I44: =[1]!HeCalc(2,0,1,I27*10^5,8,I43*1000,1) -> 26.69973777
B45: Hout(iso) | D45: =[2]!H_(11,D27,D44) -> 162.4982696 | F45: =[2]!H_(11,F27,F44) -> 162.3832533 | G45: =[2]!H_(11,G27,G44) -> 164.2636174 | H45: =[2]!H_(11,H27,H44) -> 272.0103214 | I45: =[2]!H_(11,I27,I44) -> 152.9233323
B46: ΔHs | D46: =D41-D45 -> 61.07279652 | F46: 61.02672175 | G46: 62.94912484 | H46: 88.1318825 | I46: 54.96752496
B47: u1 | C47: m/s | D47: =(2*52.7%*D46*1000*D29)^0.5 -> 224.0740223 | F47: =PI()*$D$48*F31 -> 224.0342284 | G47: =PI()*$D$48*G31 -> 230.73824 | H47: =PI()*$D$48*H31 -> 225.5396054 | I47: =PI()*$D$48*I31 -> 227.2737849
B48: D1 | D48: =D47/PI()/D31 -> 0.03575186794 | M48: T1
B49: Co = (2*ΔHs)^0,5 | D49: =(2000*D46)^0.5 -> 349.4933376 | F49: 349.3614797 | G49: 354.8214335 | H49: 419.8377841 | I49: 331.5645487 | L49: MAX | M49: =ROUND(F24,0)&"g/s @ "&F25&" b ; "&F26&"K" -> 192g/s @ 14,77 b ; 40K
B50: u1/Co | D50: =D47/D49 -> 0.6411396104 | F50: 0.641267688 | G50: 0.6502939739 | H50: 0.5372065448 | I50: 0.6854586408 | L50: MIN | M50: =ROUND(G24,0)&"g/s @ "&G25&" b ; "&G26&"K" -> 159g/s @ 12,39 b ; 40,73K
B51: U1/C0 off de / U1/C0 nom | D51: =D50/$D$50 -> 1 | F51: =F50/$D50 -> 1.000199766 | G51: =G50/$D50 -> 1.014278269 | H51: =H50/$D50 -> 0.8378932391 | I51: =I50/$D50 -> 1.069125398 | L51: STS | M51: =ROUND(H24,0)&"g/s @ "&H25&" b ; "&H26&"K" -> 104g/s @ 10,3 b ; 66K
B52: Rdt | D52: =(0.321*D51^4-1.6098*D51^3+1.316*D51^2+0.9448*D51)*($D29/0.97215493) -> 0.7798756933 | F52: =(0.321*F51^4-1.6098*F51^3+1.316*F51^2+0.9448*F51)*($D29/0.97215493) -> 0.7798806752 | G52: =(0.321*G51^4-1.6098*G51^3+1.316*G51^2+0.9448*G51)*($D29/0.97215493) -> 0.7799750079 | H52: =(0.321*H51^4-1.6098*H51^3+1.316*H51^2+0.9448*H51)*($D29/0.97) -> 0.7452656788 | I52: =(0.321*I51^4-1.6098*I51^3+1.316*I51^2+0.9448*I51)*($D29/0.97215493) -> 0.7754508998 | L52: BAKING | M52: =ROUND(I24,0)&"g/s @ "&I25&" b ; "&I26&"K" -> 125g/s @ 9,25 b ; 37,12K
F53: =F27-F60 -> -0.7295530154
B55: TURBINE 2
F56: =IF(ISERROR(F59),"","X") -> X | G56: X | H56: =IF(ISERROR(H59),"","X") -> X | I56: =IF(ISERROR(I59),"","X") -> X
D57: DESIGN | F57: =F22 -> D3 | G57: =G22 -> STS | H57: =H22 -> start-up | I57: =I22 -> BAKING | S57: K.rho
H58: 18 | Q58: 838 | R58: 2075 | S58: =R58/Q58^(3) -> 3.526030342e-06
B59: m | C59: g/s | D59: 191.2 | F59: =F24 -> 191.571799 | G59: =G24 -> 159.2557712 | H59: =H72/(H62*H61)^0.5*H60 -> 81.08124697 | I59: =I24 -> 124.5428578 | Q59: 650 | R59: =S58*Q59^3 -> 968.3360827
B60: Pin | C60: Bara | D60: 6.307 | F60: =F59*F61^0.5/F72 -> 7.089553015 | G60: =G59*G61^0.5/G72 -> 5.186499355 | H60: 4.87 | I60: =I59*I61^0.5/I72 -> 3.989182863 | Q60: =Q59/Q58 -> 0.7756563246 | R60: =R59/R58 -> 0.4666679917
B61: Tin | C61: K | D61: 18.21 | F61: 22.92 | G61: 17.75 | H61: 52.5 | I61: 17.17
B62: Pout | C62: Bara | D62: 1.35 | F62: 1.35 | G62: 1.29 | H62: 1.15 | I62: 1.35
B63: Tout | C63: K | D63: =[2]!T2_turb(11,D60,D61,D62,D64) -> 11.61835748 | F63: =[2]!T2_turb(11,F60,F61,F62,F64) -> 14.35316272 | G63: =[2]!T2_turb(11,G60,G61,G62,G64) -> 11.83202916 | H63: =[2]!T2_turb(11,H60,H61,H62,H64) -> 39.87422134 | I63: =[2]!T2_turb(11,I60,I61,I62,I64) -> 12.51973452
B64: Efficacity | C64: % | D64: 0.76 | F64: =(0.321*F86^4-1.6098*F86^3+1.316*F86^2+0.9448*F86)*($D$64/0.97215493) -> 0.7555492161 | G64: =(0.321*G86^4-1.6098*G86^3+1.316*G86^2+0.9448*G86)*($D$64/0.97215493) -> 0.7565909073 | H64: =(0.321*H86^4-1.6098*H86^3+1.316*H86^2+0.9448*H86)*($D$64/0.97215493) -> 0.5498202795 | I64: =(0.321*I86^4-1.6098*I86^3+1.316*I86^2+0.9448*I86)*($D$64/0.97215493) -> 0.7476648072
B65: Power | C65: W | D65: =+D59*(D76-D77) -> 6144.650346 | F65: 8272.850277 | G65: 4620.252167 | H65: 5368.553736 | I65: 2859.291022
B66: Speed | C66: Hz | D66: 1496 | F66: 1651.901995 | G66: 1363.779809 | H66: 1442.281681 | I66: 1159.271933
F67: =(F65/$D65*$D69/F69)^(1/3)*$D66 -> 1651.901915 | G67: =(G65/$D65*$D69/G69)^(1/3)*$D66 -> 1363.77981 | H67: =(H65/$D65*$D69/H69)^(1/3)*$D66 -> 1442.281717 | I67: =(I65/$D65*$D69/I69)^(1/3)*$D66 -> 1159.271935
F68: =F66-F67 -> 7.940502701e-05 | G68: =G66-G67 -> -9.661100648e-07 | H68: =H66-H67 -> -3.572058972e-05 | I68: =I66-I67 -> -2.09411769e-06
B69: Brake Pressure | D69: 8 | F69: =($D69-$D62)+F62 -> 8 | G69: =($D69-$D62)+G62 -> 7.94 | H69: =($D69-$D62)+H62 -> 7.8 | I69: =($D69-$D62)+I62 -> 8
B70: Rho (brake) | D70: =[2]!rho_(11,D69,330) -> 1.16324325 | F70: =[2]!rho_(11,F69,330) -> 1.16324325 | G70: =[2]!rho_(11,G69,330) -> 1.154547255 | H70: =[2]!rho_(11,H69,330) -> 1.134254938 | I70: =[2]!rho_(11,I69,330) -> 1.16324325
B71: Wheel | C71: mm | D71: 39.5 | F71: =$D$36 -> 35.8 | G71: =$D$36 -> 35.8 | H71: =$D$36 -> 35.8 | I71: =$D$36 -> 35.8
B72: a = mÖT/P | D72: =D59*D61^0.5/D60 -> 129.3659642 | F72: =$D$72 -> 129.3659642 | G72: =$D$72 -> 129.3659642 | H72: 129.3659642 | I72: 129.3659642
B73: Rho (in) | C73: kg/m3 | D73: =[2]!rho_(11,D60,D61) -> 16.81725024 | F73: =[2]!rho_(11,F60,F61) -> 14.76199187 | G73: =[2]!rho_(11,G60,G61) -> 14.20610413 | H73: =[2]!rho_(11,H60,H61) -> 4.414094183 | I73: =[2]!rho_(11,I60,I61) -> 11.30348122
B74: Sound Speed | D74: =[2]!Sound_speed(11,D60,D61) -> 258.3914638 | F74: =[2]!Sound_speed(11,F60,F61) -> 290.9946871 | G74: =[2]!Sound_speed(11,G60,G61) -> 253.5735988 | H74: =[2]!Sound_speed(11,H60,H61) -> 431.9913023 | I74: =[2]!Sound_speed(11,I60,I61) -> 247.8462444 | T74: T2
B75: S=Q/(rho*V) = cte | D75: =D59/(D73*D74) -> 0.04400020898 | F75: 0.04459658011 | G75: 0.04420955578 | H75: 0.0425210344 | I75: 0.04445537394 | S75: MAX | T75: =ROUND(F59,0)&"g/s @ "&F60&" b ; "&F61&"K" -> 192g/s @ 7,08955301539573 b ; 22,92K
B76: Hin | D76: =[2]!H_(11,D60,D61) -> 105.9022075 | F76: =[2]!H_(11,F60,F61) -> 131.6618124 | G76: =[2]!H_(11,G60,G61) -> 104.0146303 | H76: =[2]!H_(11,H60,H61) -> 288.5702542 | I76: =[2]!H_(11,I60,I61) -> 101.597828 | S76: MIN | T76: =ROUND(G59,0)&"g/s @ "&G60&" b ; "&G61&"K" -> 159g/s @ 5,18649935508971 b ; 17,75K
B77: Hout | D77: =[2]!H_(11,D62,D63) -> 73.76491485 | F77: =[2]!H_(11,F62,F63) -> 88.47774085 | G77: =[2]!H_(11,G62,G63) -> 75.00310922 | H77: =[2]!H_(11,H62,H63) -> 222.3582269 | I77: =[2]!H_(11,I62,I63) -> 78.63953815 | S77: STS | T77: =ROUND(H59,0)&"g/s @ "&H60&" b ; "&H61&"K" -> 81g/s @ 4,87 b ; 52,5K
B78: Sin = Sout | D78: =[2]!S_(11,D60,D61) -> 13.04156759 | F78: =[2]!S_(11,F60,F61) -> 14.05688605 | G78: =[2]!S_(11,G60,G61) -> 13.3391294 | H78: =[2]!S_(11,H60,H61) -> 19.26011356 | I78: =[2]!S_(11,I60,I61) -> 13.74032455 | S78: BAKING | T78: =ROUND(I59,0)&"g/s @ "&I60&" b ; "&I61&"K" -> 125g/s @ 3,98918286342516 b ; 17,17K
B79: Tout(iso) | D79: =[1]!HeCalc(2,0,1,D62*10^5,8,D78*1000,1) -> 9.763910711 | F79: =[1]!HeCalc(2,0,1,F62*10^5,8,F78*1000,1) -> 11.75501546 | G79: =[1]!HeCalc(2,0,1,G62*10^5,8,G78*1000,1) -> 10.11775177 | H79: =[1]!HeCalc(2,0,1,H62*10^5,8,H78*1000,1) -> 29.47686334 | I79: =[1]!HeCalc(2,0,1,I62*10^5,8,I78*1000,1) -> 11.08979996
B80: Hout(iso) | D80: =[2]!H_(11,D62,D79) -> 63.61629614 | F80: =[2]!H_(11,F62,F79) -> 74.50594403 | G80: =[2]!H_(11,G62,G79) -> 65.6695738 | H80: =[2]!H_(11,H62,H79) -> 168.1453995 | I80: =[2]!H_(11,I62,I79) -> 70.89116692
B81: ΔHs | D81: =D76-D80 -> 42.28591132 | F81: 57.15586838 | G81: 38.34505653 | H81: 120.4248547 | I81: 30.70666103
B82: u1 | C82: m/s | D82: =(2*52.7%*D81*1000*D64)^0.5 -> 184.0453922 | F82: =PI()*$D$83*F66 -> 203.2252343 | G82: =PI()*$D$83*G66 -> 167.7790039 | H82: 177.4366963 | I82: 142.6194235
B83: D1 | D83: =D82/PI()/D66 -> 0.0391600721
B84: Co = (2*ΔHs)^0,5 | D84: =(2000*D81)^0.5 -> 290.8123495 | F84: 338.1001875 | G84: 276.9297981 | H84: 490.7644134 | I84: 247.8171141
B85: u1/Co | D85: =D82/D84 -> 0.6328664946 | F85: 0.6010799221 | G85: 0.6058539206 | H85: 0.3615516763 | I85: 0.5755027212
B86: U1/C0 off de / U1/C0 nom | D86: =D85/$D$50 -> 0.9870962336 | F86: =F85/$D85 -> 0.9497736524 | G86: =G85/$D85 -> 0.9573171051 | H86: =H85/$D85 -> 0.5712921751 | I86: =I85/$D85 -> 0.909358808
B87: Rdt | D87: =(0.321*D86^4-1.6098*D86^3+1.316*D86^2+0.9448*D86)*($D64/0.97215493) -> 0.7593560473 | F87: =(0.321*F86^4-1.6098*F86^3+1.316*F86^2+0.9448*F86)*($D64/0.97215493) -> 0.7555492161 | G87: =(0.321*G86^4-1.6098*G86^3+1.316*G86^2+0.9448*G86)*($D64/0.97215493) -> 0.7565909073 | H87: =(0.321*H86^4-1.6098*H86^3+1.316*H86^2+0.9448*H86)*($D64/0.97215493) -> 0.5498202795 | I87: =(0.321*I86^4-1.6098*I86^3+1.316*I86^2+0.9448*I86)*($D64/0.97215493) -> 0.7476648072
B90: CV330
B91: Pin | C91: Bara | D91: 13.15 | F91: 13.15 | G91: 13.25 | H91: 13.5 | I91: 12.25 | J91: 13.15 | K91: 13.15 | L91: 13.15 | M91: 13.15 | N91: 13.15 | O91: 13.15 | P91: 13.15 | Q91: 13.15 | R91: 13.15 | S91: 13.15 | T91: 13.15 | U91: 13.15 | V91: 13.15 | W91: 13.15 | X91: 13.15 | Y91: 13.15 | Z91: 13.15 | AA91: 13.15 | AB91: 13.15
B92: Tin | C92: K | D92: =[2]!T_P_H_(11,D91,[2]!H_(11,D106,D107)) -> 7.290663568 | F92: =[2]!T_P_H_(11,F91,[2]!H_(11,F106,F107)) -> 9.166149668 | G92: =[2]!T_P_H_(11,G91,[2]!H_(11,G106,G107)) -> 8.622314625 | H92: =+H107 -> 8.828 | I92: =[2]!T_P_H_(11,I91,[2]!H_(11,I106,I107)) -> 10.79564053 | J92: =[2]!T_P_H_(11,J91,[2]!H_(11,J106,J107)) -> 7.289570189 | K92: =[2]!T_P_H_(11,K91,[2]!H_(11,K106,K107)) -> 7.287549476 | L92: =[2]!T_P_H_(11,L91,[2]!H_(11,L106,L107)) -> 7.286091223 | M92: =[2]!T_P_H_(11,M91,[2]!H_(11,M106,M107)) -> 7.281767836 | N92: =[2]!T_P_H_(11,N91,[2]!H_(11,N106,N107)) -> 7.280175123 | O92: =[2]!T_P_H_(11,O91,[2]!H_(11,O106,O107)) -> 7.280885227 | P92: =[2]!T_P_H_(11,P91,[2]!H_(11,P106,P107)) -> 7.283576767 | Q92: =[2]!T_P_H_(11,Q91,[2]!H_(11,Q106,Q107)) -> 7.292977542 | R92: =[2]!T_P_H_(11,R91,[2]!H_(11,R106,R107)) -> 7.309641747 | S92: =[2]!T_P_H_(11,S91,[2]!H_(11,S106,S107)) -> 7.335170768 | T92: =[2]!T_P_H_(11,T91,[2]!H_(11,T106,T107)) -> 7.371597533 | U92: =[2]!T_P_H_(11,U91,[2]!H_(11,U106,U107)) -> 7.421486544 | V92: =[2]!T_P_H_(11,V91,[2]!H_(11,V106,V107)) -> 7.488001 | W92: =[2]!T_P_H_(11,W91,[2]!H_(11,W106,W107)) -> 7.574845196 | X92: =[2]!T_P_H_(11,X91,[2]!H_(11,X106,X107)) -> 7.685926083 | Y92: =[2]!T_P_H_(11,Y91,[2]!H_(11,Y106,Y107)) -> 7.824616101 | Z92: =[2]!T_P_H_(11,Z91,[2]!H_(11,Z106,Z107)) -> 7.992825409 | AA92: =[2]!T_P_H_(11,AA91,[2]!H_(11,AA106,AA107)) -> 8.190438153 | AB92: =[2]!T_P_H_(11,AB91,[2]!H_(11,AB106,AB107)) -> 8.414996515
B93: Rho | D93: =[2]!rho_(11,D91,D92) -> 122.3393338 | F93: =[2]!rho_(11,F91,F92) -> 92.38543687 | G93: =[2]!rho_(11,G91,G92) -> 101.5881159 | H93: =[2]!rho_(11,H91,H92) -> 99.5385923 | I93: =[2]!rho_(11,I91,I92) -> 66.47696107 | J93: =[2]!rho_(11,J91,J92) -> 122.3554603 | K93: =[2]!rho_(11,K91,K92) -> 122.3852561 | L93: =[2]!rho_(11,L91,L92) -> 122.4067517 | M93: =[2]!rho_(11,M91,M92) -> 122.4704488 | N93: =[2]!rho_(11,N91,N92) -> 122.4939023 | O93: =[2]!rho_(11,O91,O92) -> 122.4834465 | P93: =[2]!rho_(11,P91,P92) -> 122.4438034 | Q93: =[2]!rho_(11,Q91,Q92) -> 122.3051943 | R93: =[2]!rho_(11,R91,R92) -> 122.0589282 | S93: =[2]!rho_(11,S91,S92) -> 121.6802709 | T93: =[2]!rho_(11,T91,T92) -> 121.1370961 | U93: =[2]!rho_(11,U91,U92) -> 120.3877662 | V93: =[2]!rho_(11,V91,V92) -> 119.3792007 | W93: =[2]!rho_(11,W91,W92) -> 118.0465516 | X93: =[2]!rho_(11,X91,X92) -> 116.3172901 | Y93: =[2]!rho_(11,Y91,Y92) -> 114.12278 | Z93: =[2]!rho_(11,Z91,Z92) -> 111.4162419 | AA93: =[2]!rho_(11,AA91,AA92) -> 108.1899242 | AB93: =[2]!rho_(11,AB91,AB92) -> 104.4920853
B94: dP | D94: =(D91-D106)*1000 -> 80 | F94: =(F91-F106)*1000 -> 80 | G94: 5881 | H94: 430 | I94: 1770 | J94: 25 | K94: 150 | L94: =(L91-L106)*1000 -> 250 | M94: 650 | N94: 1150 | O94: 1350 | P94: 1650 | Q94: =(Q91-Q106)*1000 -> 2150 | R94: 2650 | S94: 3150 | T94: 3650 | U94: =(U91-U106)*1000 -> 4150 | V94: 4650 | W94: 5150 | X94: 5650 | Y94: 6150 | Z94: 6650 | AA94: 7150 | AB94: 7650
B95: Cvs | D95: 30 | F95: 30 | G95: 30 | H95: 30 | I95: 30 | J95: 30 | K95: 30 | L95: 30 | M95: 30 | N95: 30 | O95: 30 | P95: 30 | Q95: 30 | R95: 30 | S95: 30 | T95: 30 | U95: 30 | V95: 30 | W95: 30 | X95: 30 | Y95: 30 | Z95: 30 | AA95: 30 | AB95: 30
B96: Range | D96: 250 | F96: 250 | G96: 250 | H96: 250 | I96: 250 | J96: 250 | K96: 250 | L96: 250 | M96: 250 | N96: 250 | O96: 250 | P96: 250 | Q96: 250 | R96: 250 | S96: 250 | T96: 250 | U96: 250 | V96: 250 | W96: 250 | X96: 250 | Y96: 250 | Z96: 250 | AA96: 250 | AB96: 250
B97: Flow | D97: =IF(D91/2>D106,"S","SS") -> SS | F97: =IF(F91/2>F106,"S","SS") -> SS | G97: SS | H97: SS | I97: SS | J97: SS | K97: SS | L97: =IF(L91/2>L106,"S","SS") -> SS | M97: SS | N97: SS | O97: SS | P97: SS | Q97: =IF(Q91/2>Q106,"S","SS") -> SS | R97: SS | S97: SS | T97: SS | U97: =IF(U91/2>U106,"S","SS") -> SS | V97: SS | W97: SS | X97: SS | Y97: SS | Z97: S | AA97: S | AB97: S
B98: Cv | D98: =[2]!Cv_Simple(D92,D91,D91-D106,D93,D105,D97) -> 16.8710422 | F98: =[2]!Cv_Simple(F92,F91,F91-F106,F93,F105,F97) -> 17.32203194 | G98: =[2]!Cv_Simple(G92,G91,G91-G106,G93,G105,G97) -> 1.562480837 | H98: =[2]!Cv_Simple(H92,H91,H91-H106,H93,H105,H97) -> 7.42909926 | I98: =[2]!Cv_Simple(I92,I91,I91-I106,I93,I105,I97) -> 3.496172633 | J98: =[2]!Cv_Simple(J92,J91,J91-J106,J93,J105,J97) -> 30.24542806 | K98: =[2]!Cv_Simple(K92,K91,K91-K106,K93,K105,K97) -> 12.28720817 | L98: =[2]!Cv_Simple(L92,L91,L91-L106,L93,L105,L97) -> 9.480121361 | M98: =[2]!Cv_Simple(M92,M91,M91-M106,M93,M105,M97) -> 5.785946393 | N98: =[2]!Cv_Simple(N92,N91,N91-N106,N93,N105,N97) -> 4.261634496 | O98: =[2]!Cv_Simple(O92,O91,O91-O106,O93,O105,O97) -> 3.900561664 | P98: =[2]!Cv_Simple(P92,P91,P91-P106,P93,P105,P97) -> 3.483615866 | Q98: =[2]!Cv_Simple(Q92,Q91,Q91-Q106,Q93,Q105,Q97) -> 2.986389099 | R98: =[2]!Cv_Simple(R92,R91,R91-R106,R93,R105,R97) -> 2.630744465 | S98: =[2]!Cv_Simple(S92,S91,S91-S106,S93,S105,S97) -> 2.358448331 | T98: =[2]!Cv_Simple(T92,T91,T91-T106,T93,T105,T97) -> 2.140269764 | U98: =[2]!Cv_Simple(U92,U91,U91-U106,U93,U105,U97) -> 1.959736796 | V98: =[2]!Cv_Simple(V92,V91,V91-V106,V93,V105,V97) -> 1.806801166 | W98: =[2]!Cv_Simple(W92,W91,W91-W106,W93,W105,W97) -> 1.674967616 | X98: =[2]!Cv_Simple(X92,X91,X91-X106,X93,X105,X97) -> 1.559825091 | Y98: =[2]!Cv_Simple(Y92,Y91,Y91-Y106,Y93,Y105,Y97) -> 1.458198744 | Z98: =[2]!Cv_Simple(Z92,Z91,Z91-Z106,Z93,Z105,Z97) -> 1.102392101 | AA98: =[2]!Cv_Simple(AA92,AA91,AA91-AA106,AA93,AA105,AA97) -> 1.032649281 | AB98: =[2]!Cv_Simple(AB92,AB91,AB91-AB106,AB93,AB105,AB97) -> 0.9632033459
B99: Cv | D99: =[2]!cv_gaz(11,D105,D91,D106,D92,0.87) -> 16.8570573 | F99: =[2]!cv_gaz(11,F105,F91,F106,F92,0.87) -> 17.30295512 | G99: =[2]!cv_gaz(11,G105,G91,G106,G92,0.87) -> 1.285055587 | H99: =[2]!cv_gaz(11,H105,H91,H106,H92,0.87) -> 7.363864642 | I99: =[2]!cv_gaz(11,I105,I91,I106,I92,0.87) -> 3.340381005 | J99: =[2]!cv_gaz(11,J105,J91,J106,J92,0.87) -> 30.25240628 | K99: =[2]!cv_gaz(11,K105,K91,K106,K92,0.87) -> 12.26035448 | L99: =[2]!cv_gaz(11,L105,L91,L106,L92,0.87) -> 9.440852109 | M99: =[2]!cv_gaz(11,M105,M91,M106,M92,0.87) -> 5.715413615 | N99: =[2]!cv_gaz(11,N105,N91,N106,N92,0.87) -> 4.164534601 | O99: =[2]!cv_gaz(11,O105,O91,O106,O92,0.87) -> 3.794457177 | P99: =[2]!cv_gaz(11,P105,P91,P106,P92,0.87) -> 3.365045329 | Q99: =[2]!cv_gaz(11,Q105,Q91,Q106,Q92,0.87) -> 2.848939353 | R99: =[2]!cv_gaz(11,R105,R91,R106,R92,0.87) -> 2.475943212 | S99: =[2]!cv_gaz(11,S105,S91,S106,S92,0.87) -> 2.187230854 | T99: =[2]!cv_gaz(11,T105,T91,T106,T92,0.87) -> 1.953179582 | U99: =[2]!cv_gaz(11,U105,U91,U106,U92,0.87) -> 1.757022661 | V99: =[2]!cv_gaz(11,V105,V91,V106,V92,0.87) -> 1.588468971 | W99: =[2]!cv_gaz(11,W105,W91,W106,W92,0.87) -> 1.440817995 | X99: =[2]!cv_gaz(11,X105,X91,X106,X92,0.87) -> 1.30950354 | Y99: =[2]!cv_gaz(11,Y105,Y91,Y106,Y92,0.87) -> 1.191285873 | Z99: =[2]!cv_gaz(11,Z105,Z91,Z106,Z92,0.87) -> 1.083768222 | AA99: =[2]!cv_gaz(11,AA105,AA91,AA106,AA92,0.87) -> 0.9850743894 | AB99: =[2]!cv_gaz(11,AB105,AB91,AB106,AB92,0.87) -> 0.8936304468
B100: Trim | D100: =[2]!Trim_From_Cv(D98/D95,D96) -> 0.8957524616 | F100: =[2]!Trim_From_Cv(F99/F95,F96) -> 0.9003307119 | G100: =[2]!Trim_From_Cv(G99/G95,G96) -> 0.4294272019 | H100: =[2]!Trim_From_Cv(H99/H95,H96) -> 0.7456085408 | I100: =[2]!Trim_From_Cv(I99/I95,I96) -> 0.6024399085 | J100: =[2]!Trim_From_Cv(J99/J95,J96) -> 1.001517415 | K100: =[2]!Trim_From_Cv(K99/K95,K96) -> 0.8379366346 | L100: =[2]!Trim_From_Cv(L99/L95,L96) -> 0.7906077473 | M100: =[2]!Trim_From_Cv(M99/M95,M96) -> 0.6997115912 | N100: =[2]!Trim_From_Cv(N99/N95,N96) -> 0.6423785512 | O100: =[2]!Trim_From_Cv(O99/O95,O96) -> 0.6255237431 | P100: =[2]!Trim_From_Cv(P99/P95,P96) -> 0.603772266 | Q100: =[2]!Trim_From_Cv(Q99/Q95,Q96) -> 0.5736181695 | R100: =[2]!Trim_From_Cv(R99/R95,R96) -> 0.5482036367 | S100: =[2]!Trim_From_Cv(S99/S95,S96) -> 0.5257485062 | T100: =[2]!Trim_From_Cv(T99/T95,T96) -> 0.5052507257 | U100: =[2]!Trim_From_Cv(U99/U95,U96) -> 0.4860822675 | V100: =[2]!Trim_From_Cv(V99/V95,V96) -> 0.4678171621 | W100: =[2]!Trim_From_Cv(W99/W95,W96) -> 0.4501479912 | X100: =[2]!Trim_From_Cv(X99/X95,X96) -> 0.4328404493 | Y100: =[2]!Trim_From_Cv(Y99/Y95,Y96) -> 0.4157046222 | Z100: =[2]!Trim_From_Cv(Z99/Z95,Z96) -> 0.3985734268 | AA100: =[2]!Trim_From_Cv(AA99/AA95,AA96) -> 0.3812805069 | AB100: =[2]!Trim_From_Cv(AB99/AB95,AB96) -> 0.363635749
B101: TURBINE 3
F102: =IF(ISERROR(F105),"","X") -> X | G102: X | H102: X | I102: =IF(ISERROR(I105),"","X") -> X | J102: X | K102: =IF(ISERROR(K105),"","X") -> X | L102: X | M102: X | N102: X | O102: X | P102: X | Q102: =IF(ISERROR(Q105),"","X") -> X | R102: X | S102: X | T102: X | U102: =IF(ISERROR(U105),"","X") -> X | V102: X | W102: X | X102: X | Y102: X | Z102: X | AA102: X | AB102: X
D103: DESIGN | F103: =F57 -> D3 | G103: =G57 -> STS | H103: D | I103: =I57 -> BAKING | J103: Lamin 1 | K103: Lamin 2 | L103: Lamin 3 | M103: Lamin 4 | N103: Lamin 5 | O103: Lamin 6 | P103: Lamin 7 | Q103: Lamin 8 | R103: Lamin 9 | S103: Lamin 10 | T103: Lamin 11 | U103: Lamin 12 | V103: Lamin 13 | W103: Lamin 14 | X103: Lamin 15 | Y103: Lamin 16 | Z103: Lamin 17 | AA103: Lamin 18 | AB103: Lamin 19
B105: m | C105: g/s | D105: 399.8 | F105: 356.7125721 | G105: 216.3993705 | H105: 363.3581931 | I105: 266.5174134 | J105: 401.537498 | K105: 397.7132936 | L105: 394.6539722 | M105: 382.4166391 | N105: 367.1199729 | O105: 361.0013037 | P105: 351.8232962 | Q105: 336.5266409 | R105: 321.2299745 | S105: 305.9333078 | T105: 290.636641 | U105: 275.3399717 | V105: 260.0433008 | W105: 244.7466243 | X105: 229.4499305 | Y105: 214.1531683 | Z105: 198.8566516 | AA105: 183.5591474 | AB105: 168.2633215
B106: Pin | C106: Bara | D106: 13.07 | F106: 13.07 | G106: 7.369 | H106: 13.07 | I106: 10.48 | J106: 13.125 | K106: 13 | L106: 12.9 | M106: 12.5 | N106: 12 | O106: 11.8 | P106: 11.5 | Q106: 11 | R106: 10.5 | S106: 10 | T106: =S106-0.5 -> 9.5 | U106: =T106-0.5 -> 9 | V106: 8.5 | W106: 8 | X106: 7.5 | Y106: 7 | Z106: 6.5 | AA106: 6 | AB106: 5.5
B107: Tin | C107: K | D107: 7.292 | F107: 9.16 | G107: 7.912 | H107: 8.828 | I107: 10.55 | J107: 7.29 | K107: 7.29 | L107: 7.29 | M107: 7.29 | N107: 7.29 | O107: 7.29 | P107: 7.29 | Q107: 7.29 | R107: 7.29 | S107: 7.29 | T107: 7.29 | U107: 7.29 | V107: 7.29 | W107: 7.29 | X107: 7.29 | Y107: 7.29 | Z107: 7.29 | AA107: 7.29 | AB107: 7.29
B108: Pout | C108: Bara | D108: 4.88 | F108: 4.88 | G108: 5.18 | H108: 4.88 | I108: 5.18 | J108: 4.88 | K108: 4.88 | L108: 4.88 | M108: 4.88 | N108: 4.88 | O108: 4.88 | P108: 4.88 | Q108: 4.88 | R108: 4.88 | S108: 4.88 | T108: 4.88 | U108: 4.88 | V108: 4.88 | W108: 4.88 | X108: 4.88 | Y108: 4.88 | Z108: 4.88 | AA108: 4.88 | AB108: 4.88
B109: Tout | C109: K | D109: =[2]!T2_turb(11,D106,D107,D108,D110) -> 6.11984088 | F109: =[2]!T2_turb(11,F106,F107,F108,F110) -> 6.93952816 | G109: =[2]!T2_turb(11,G106,G107,G108,G110) -> 7.107533505 | H109: =[2]!T2_turb(11,H106,H107,H108,H110) -> 6.770805661 | I109: =[2]!T2_turb(11,I106,I107,I108,I110) -> 8.468961872 | J109: =[2]!T2_turb(11,J106,J107,J108,J110) -> 6.117251319 | K109: =[2]!T2_turb(11,K106,K107,K108,K110) -> 6.121439014 | L109: =[2]!T2_turb(11,L106,L107,L108,L110) -> 6.124860747 | M109: =[2]!T2_turb(11,M106,M107,M108,M110) -> 6.139219579 | N109: =[2]!T2_turb(11,N106,N107,N108,N110) -> 6.158826113 | O109: =[2]!T2_turb(11,O106,O107,O108,O110) -> 6.167242163 | P109: =[2]!T2_turb(11,P106,P107,P108,P110) -> 6.180547097 | Q109: =[2]!T2_turb(11,Q106,Q107,Q108,Q110) -> 6.204752697 | R109: =[2]!T2_turb(11,R106,R107,R108,R110) -> 6.231926442 | S109: =[2]!T2_turb(11,S106,S107,S108,S110) -> 6.262711183 | T109: =[2]!T2_turb(11,T106,T107,T108,T110) -> 6.297975929 | U109: =[2]!T2_turb(11,U106,U107,U108,U110) -> 6.338910966 | V109: =[2]!T2_turb(11,V106,V107,V108,V110) -> 6.387156782 | W109: =[2]!T2_turb(11,W106,W107,W108,W110) -> 6.44496109 | X109: =[2]!T2_turb(11,X106,X107,X108,X110) -> 6.515334415 | Y109: =[2]!T2_turb(11,Y106,Y107,Y108,Y110) -> 6.602162845 | Z109: =[2]!T2_turb(11,Z106,Z107,Z108,Z110) -> 6.7103154 | AA109: =[2]!T2_turb(11,AA106,AA107,AA108,AA110) -> 6.845938364 | AB109: =[2]!T2_turb(11,AB106,AB107,AB108,AB110) -> 7.018725769
B110: Efficacity | C110: % | D110: 0.72 | F110: =(0.321*F133^4-1.6098*F133^3+1.316*F133^2+0.9448*F133)*($D$110/0.97215493) -> 0.7069699109 | G110: 0.7096103841 | H110: 0.7108555918 | I110: 0.6676350281 | J110: 0.7198983603 | K110: 0.7198698012 | L110: =(0.321*L133^4-1.6098*L133^3+1.316*L133^2+0.9448*L133)*($D$110/0.97215493) -> 0.719844353 | M110: 0.7197192206 | N110: 0.7195097905 | O110: 0.7194094703 | P110: 0.7192413771 | Q110: =(0.321*Q133^4-1.6098*Q133^3+1.316*Q133^2+0.9448*Q133)*($D$110/0.97215493) -> 0.7189152369 | R110: 0.7185347221 | S110: 0.7181064092 | T110: 0.7176419541 | U110: =(0.321*U133^4-1.6098*U133^3+1.316*U133^2+0.9448*U133)*($D$110/0.97215493) -> 0.7171613664 | V110: 0.7166990825 | W110: 0.7163156521 | X110: 0.7161198412 | Y110: 0.7163050779 | Z110: 0.7171790921 | AA110: 0.7189759002 | AB110: 0.7
B111: Power | C111: W | D111: =+D105*(D123-D124) -> 2075.54042 | F111: 2562.861395 | G111: 505.8456615 | H111: 2455.647484 | I111: 1848.411228 | J111: =+J105*(J123-J124) -> 2094.521622 | K111: 2050.005997 | L111: =+L105*(L123-L124) -> 2014.694614 | M111: 1876.137229 | N111: 1709.037966 | O111: 1644.11177 | P111: 1548.788648 | Q111: =+Q105*(Q123-Q124) -> 1395.467515 | R111: 1249.146332 | S111: 1109.884468 | T111: 977.7158651 | U111: =+U105*(U123-U124) -> 852.6259594 | V111: 734.5082322 | W111: 623.0873492 | X111: 517.7961296 | Y111: 417.6134062 | Z111: 320.9101233 | AA111: 225.3206588 | AB111: 124.0516286
B112: Speed | C112: Hz | D112: 838 | F112: 899.0323655 | G112: 518.3649656 | H112: 886.3167585 | I112: 798.4158766 | J112: 840.546807 | K112: 834.5493001 | L112: 829.7298134 | M112: 810.255188 | N112: 785.4481545 | O112: 775.3731054 | P112: 760.0888102 | Q112: 734.1309445 | R112: 707.518922 | S112: 680.1836862 | T112: 652.0353987 | U112: 622.9499241 | V112: 592.7421933 | W112: 561.1124841 | X112: 527.5373582 | Y112: 491.0493013 | Z112: 449.7744273 | AA112: 399.7611854 | AB112: 327.6431633
F113: =(F111/$D111*$D116/F116)^(1/3)*$D112 -> 899.0323651 | G113: 518.3649656 | H113: 886.3167584 | I113: 798.4158765 | J113: 840.5468072 | K113: 834.5493002 | L113: =(L111/$D111*$D116/L116)^(1/3)*$D112 -> 829.7298135 | M113: 810.2551882 | N113: 785.4481545 | O113: 775.3731054 | P113: 760.0888102 | Q113: =(Q111/$D111*$D116/Q116)^(1/3)*$D112 -> 734.1309445 | R113: 707.518922 | S113: 680.1836862 | T113: 652.0353991 | U113: =(U111/$D111*$D116/U116)^(1/3)*$D112 -> 622.949924 | V113: 592.7421931 | W113: 561.1124841 | X113: 527.5373581 | Y113: 491.0493013 | Z113: 449.7744273 | AA113: 399.7611854 | AB113: 327.6431633
F114: =(F112-F113)^2 -> 1.608214879e-13 | G114: =(G112-G113)^2 -> 1.92743499e-16 | H114: 2.436531355e-15 | I114: 1.284525509e-14 | J114: 2.175555508e-14 | K114: 1.437656742e-14 | L114: 9.035850228e-15 | M114: 3.375202708e-14 | N114: 1.784726958e-17 | O114: 1.754797467e-15 | P114: 1.091424401e-15 | Q114: 1.609621223e-19 | R114: 4.777125203e-16 | S114: 9.327424245e-18 | T114: 1.759257882e-13 | U114: 9.864960154e-15 | V114: 2.192932093e-14 | W114: 6.09845736e-18 | X114: 1.433733603e-14 | Y114: 1.203268315e-16 | Z114: 3.86026744e-15 | AA114: 6.610973341e-16 | AB114: 9.007996871e-20
F115: =[2]!MinimizeNonnegative(F114,F105,100) -> <<Minimize F114 by changing F105 (nonnegative)>> | G115: =[2]!MinimizeNonnegative(G114,G105,100) -> <<Minimize G114 by changing G105 (nonnegative)>> | H115: =[2]!MinimizeNonnegative(H114,H105,100) -> <<Minimize H114 by changing H105 (nonnegative)>> | I115: =[2]!MinimizeNonnegative(I114,I105,100) -> <<Minimize I114 by changing I105 (nonnegative)>> | J115: =[2]!MinimizeNonnegative(J114,J105,100) -> <<Minimize J114 by changing J105 (nonnegative)>> | K115: =[2]!MinimizeNonnegative(K114,K105,100) -> <<Minimize K114 by changing K105 (nonnegative)>> | L115: =[2]!MinimizeNonnegative(L114,L105,100) -> <<Minimize L114 by changing L105 (nonnegative)>> | M115: =[2]!MinimizeNonnegative(M114,M105,100) -> <<Minimize M114 by changing M105 (nonnegative)>> | N115: =[2]!MinimizeNonnegative(N114,N105,100) -> <<Minimize N114 by changing N105 (nonnegative)>> | O115: =[2]!MinimizeNonnegative(O114,O105,100) -> <<Minimize O114 by changing O105 (nonnegative)>> | P115: =[2]!MinimizeNonnegative(P114,P105,100) -> <<Minimize P114 by changing P105 (nonnegative)>> | Q115: =[2]!MinimizeNonnegative(Q114,Q105,100) -> <<Minimize Q114 by changing Q105 (nonnegative)>> | R115: =[2]!MinimizeNonnegative(R114,R105,100) -> <<Minimize R114 by changing R105 (nonnegative)>> | S115: =[2]!MinimizeNonnegative(S114,S105,100) -> <<Minimize S114 by changing S105 (nonnegative)>> | T115: =[2]!MinimizeNonnegative(T114,T105,100) -> <<Minimize T114 by changing T105 (nonnegative)>> | U115: =[2]!MinimizeNonnegative(U114,U105,100) -> <<Minimize U114 by changing U105 (nonnegative)>> | V115: =[2]!MinimizeNonnegative(V114,V105,100) -> <<Minimize V114 by changing V105 (nonnegative)>> | W115: =[2]!MinimizeNonnegative(W114,W105,100) -> <<Minimize W114 by changing W105 (nonnegative)>> | X115: =[2]!MinimizeNonnegative(X114,X105,100) -> <<Minimize X114 by changing X105 (nonnegative)>> | Y115: =[2]!MinimizeNonnegative(Y114,Y105,100) -> <<Minimize Y114 by changing Y105 (nonnegative)>> | Z115: =[2]!MinimizeNonnegative(Z114,Z105,100) -> <<Minimize Z114 by changing Z105 (nonnegative)>> | AA115: =[2]!MinimizeNonnegative(AA114,AA105,100) -> <<Minimize AA114 by changing AA105 (nonnegative)>> | AB115: =[2]!MinimizeNonnegative(AB114,AB105,100) -> <<Minimize AB114 by changing AB105 (nonnegative)>>
B116: Brake Pressure | D116: 10.1 | F116: =($D116-$D108)+F108 -> 10.1 | G116: 10.4 | H116: 10.1 | I116: 10.4 | J116: 10.1 | K116: 10.1 | L116: =($D116-$D108)+L108 -> 10.1 | M116: 10.1 | N116: 10.1 | O116: 10.1 | P116: 10.1 | Q116: =($D116-$D108)+Q108 -> 10.1 | R116: 10.1 | S116: 10.1 | T116: 10.1 | U116: =($D116-$D108)+U108 -> 10.1 | V116: 10.1 | W116: 10.1 | X116: 10.1 | Y116: 10.1 | Z116: 10.1 | AA116: 10.1 | AB116: 10.1
B117: Rho (brake) | D117: =[2]!rho_(11,D116,330) -> 1.467334205 | F117: =[2]!rho_(11,F116,330) -> 1.467334205 | G117: =[2]!rho_(11,G116,330) -> 1.510733122 | H117: =[2]!rho_(11,H116,330) -> 1.467334205 | I117: =[2]!rho_(11,I116,330) -> 1.510733122 | J117: =[2]!rho_(11,J116,330) -> 1.467334205 | K117: =[2]!rho_(11,K116,330) -> 1.467334205 | L117: =[2]!rho_(11,L116,330) -> 1.467334205 | M117: =[2]!rho_(11,M116,330) -> 1.467334205 | N117: =[2]!rho_(11,N116,330) -> 1.467334205 | O117: =[2]!rho_(11,O116,330) -> 1.467334205 | P117: =[2]!rho_(11,P116,330) -> 1.467334205 | Q117: =[2]!rho_(11,Q116,330) -> 1.467334205 | R117: =[2]!rho_(11,R116,330) -> 1.467334205 | S117: =[2]!rho_(11,S116,330) -> 1.467334205 | T117: =[2]!rho_(11,T116,330) -> 1.467334205 | U117: =[2]!rho_(11,U116,330) -> 1.467334205 | V117: =[2]!rho_(11,V116,330) -> 1.467334205 | W117: =[2]!rho_(11,W116,330) -> 1.467334205 | X117: =[2]!rho_(11,X116,330) -> 1.467334205 | Y117: =[2]!rho_(11,Y116,330) -> 1.467334205 | Z117: =[2]!rho_(11,Z116,330) -> 1.467334205 | AA117: =[2]!rho_(11,AA116,330) -> 1.467334205 | AB117: =[2]!rho_(11,AB116,330) -> 1.467334205
B118: Wheel | C118: mm | D118: 29.5 | F118: =$D$118 -> 29.5 | G118: 29.5 | H118: 29.5 | I118: 29.5 | J118: 29.5 | K118: 29.5 | L118: =$D$118 -> 29.5 | M118: 29.5 | N118: 29.5 | O118: 29.5 | P118: 29.5 | Q118: 29.5 | R118: 29.5 | S118: 29.5 | T118: 29.5 | U118: 29.5 | V118: 29.5 | W118: 29.5 | X118: 29.5 | Y118: 29.5 | Z118: 29.5 | AA118: 29.5 | AB118: 29.5
B119: a = mÖT/P | D119: =D105*D107^0.5/D106 -> 82.60199418 | F119: =$D$119 -> 82.60199418 | G119: =$D$119 -> 82.60199418 | H119: 82.60199418 | I119: 82.60199418 | J119: =$D$119 -> 82.60199418 | K119: =$D$119 -> 82.60199418 | L119: =$D$119 -> 82.60199418 | M119: 82.60199418 | N119: 82.60199418 | O119: 82.60199418 | P119: 82.60199418 | Q119: 82.60199418 | R119: 82.60199418 | S119: 82.60199418 | T119: 82.60199418 | U119: 82.60199418 | V119: 82.60199418 | W119: 82.60199418 | X119: 82.60199418 | Y119: 82.60199418 | Z119: 82.60199418 | AA119: 82.60199418 | AB119: 82.60199418
B120: Rho (in) | C120: kg/m3 | D120: =[2]!rho_(11,D106,D107) -> 122.041385 | F120: =[2]!rho_(11,F106,F107) -> 92.04202254 | G120: =[2]!rho_(11,G106,G107) -> 70.6496495 | H120: =[2]!rho_(11,H106,H107) -> 97.31015975 | I120: =[2]!rho_(11,I106,I107) -> 58.78998557 | J120: =[2]!rho_(11,J106,J107) -> 122.2625446 | K120: =[2]!rho_(11,K106,K107) -> 121.8254128 | L120: =[2]!rho_(11,L106,L107) -> 121.4704899 | M120: =[2]!rho_(11,M106,M107) -> 120.0015845 | N120: =[2]!rho_(11,N106,N107) -> 118.043234 | O120: =[2]!rho_(11,O106,O107) -> 117.2174039 | P120: =[2]!rho_(11,P106,P107) -> 115.9280725 | Q120: =[2]!rho_(11,Q106,Q107) -> 113.6283127 | R120: =[2]!rho_(11,R106,R107) -> 111.1090057 | S120: =[2]!rho_(11,S106,S107) -> 108.3259257 | T120: =[2]!rho_(11,T106,T107) -> 105.2230497 | U120: =[2]!rho_(11,U106,U107) -> 101.7300643 | V120: =[2]!rho_(11,V106,V107) -> 97.76122979 | W120: =[2]!rho_(11,W106,W107) -> 93.21874636 | X120: =[2]!rho_(11,X106,X107) -> 88.00609082 | Y120: =[2]!rho_(11,Y106,Y107) -> 82.05609149 | Z120: =[2]!rho_(11,Z106,Z107) -> 75.36830641 | AA120: =[2]!rho_(11,AA106,AA107) -> 68.03621188 | AB120: =[2]!rho_(11,AB106,AB107) -> 60.25606767
B121: Sound Speed | D121: =[2]!Sound_speed(11,D106,D107) -> 249.0567129 | F121: =[2]!Sound_speed(11,F106,F107) -> 219.0353462 | G121: =[2]!Sound_speed(11,G106,G107) -> 170.7864441 | H121: =[2]!Sound_speed(11,H106,H107) -> 221.8649954 | I121: =[2]!Sound_speed(11,I106,I107) -> 204.2669237 | J121: =[2]!Sound_speed(11,J106,J107) -> 249.6648035 | K121: =[2]!Sound_speed(11,K106,K107) -> 248.379925 | L121: =[2]!Sound_speed(11,L106,L107) -> 247.3421552 | M121: =[2]!Sound_speed(11,M106,M107) -> 243.1002378 | N121: =[2]!Sound_speed(11,N106,N107) -> 237.581766 | O121: =[2]!Sound_speed(11,O106,O107) -> 235.3030379 | P121: =[2]!Sound_speed(11,P106,P107) -> 231.8044394 | Q121: =[2]!Sound_speed(11,Q106,Q107) -> 225.7481479 | R121: =[2]!Sound_speed(11,R106,R107) -> 219.3945943 | S121: =[2]!Sound_speed(11,S106,S107) -> 212.7308077 | T121: =[2]!Sound_speed(11,T106,T107) -> 205.7554615 | U121: =[2]!Sound_speed(11,U106,U107) -> 198.4897055 | V121: =[2]!Sound_speed(11,V106,V107) -> 190.994269 | W121: =[2]!Sound_speed(11,W106,W107) -> 183.3923611 | X121: =[2]!Sound_speed(11,X106,X107) -> 175.889713 | Y121: =[2]!Sound_speed(11,Y106,Y107) -> 168.7679982 | Z121: =[2]!Sound_speed(11,Z106,Z107) -> 162.3265086 | AA121: =[2]!Sound_speed(11,AA106,AA107) -> 156.8004965 | AB121: =[2]!Sound_speed(11,AB106,AB107) -> 152.3494648
B122: S=Q/(rho*V) = cte | D122: =D105/(D120*D121) -> 0.01315338131 | F122: 0.01769367554 | G122: 0.01793463677 | H122: 0.01683014992 | I122: 0.02219341773 | J122: =J105/(J120*J121) -> 0.01315453062 | K122: 0.01314364209 | L122: =L105/(L120*L121) -> 0.01313552861 | M122: 0.01310884463 | N122: 0.01309042682 | O122: 0.0130884777 | P122: 0.01309224817 | Q122: =Q105/(Q120*Q121) -> 0.0131192406 | R122: 0.01317773832 | S122: 0.01327589975 | T122: 0.01342419057 | U122: =U105/(U120*U121) -> 0.0136358419 | V122: 0.01392703535 | W122: 0.01431634681 | X122: 0.01482295397 | Y122: 0.01546406185 | Z122: 0.01625406223 | AA122: 0.01720633893 | AB122: 0.01832937847
B123: Hin | D123: =[2]!H_(11,D106,D107) -> 28.15088458 | F123: =[2]!H_(11,F106,F107) -> 40.89014045 | G123: =[2]!H_(11,G106,G107) -> 36.81164396 | H123: =[2]!H_(11,H106,H107) -> 38.39568816 | I123: =[2]!H_(11,I106,I107) -> 54.05983231 | J123: =[2]!H_(11,J106,J107) -> 28.14464519 | K123: =[2]!H_(11,K106,K107) -> 28.13311798 | L123: =[2]!H_(11,L106,L107) -> 28.12480257 | M123: =[2]!H_(11,M106,M107) -> 28.10016525 | N123: =[2]!H_(11,N106,N107) -> 28.091095 | O123: =[2]!H_(11,O106,O107) -> 28.09513853 | P123: =[2]!H_(11,P106,P107) -> 28.11047075 | Q123: =[2]!H_(11,Q106,Q107) -> 28.16409435 | R123: =[2]!H_(11,R106,R107) -> 28.25942746 | S123: =[2]!H_(11,S106,S107) -> 28.40616451 | T123: =[2]!H_(11,T106,T107) -> 28.61698913 | U123: =[2]!H_(11,U106,U107) -> 28.90850144 | V123: =[2]!H_(11,V106,V107) -> 29.30216214 | W123: =[2]!H_(11,W106,W107) -> 29.82476846 | X123: =[2]!H_(11,X106,X107) -> 30.50745846 | Y123: =[2]!H_(11,Y106,Y107) -> 31.38210065 | Z123: =[2]!H_(11,Z106,Z107) -> 32.47542568 | AA123: =[2]!H_(11,AA106,AA107) -> 33.80343278 | AB123: =[2]!H_(11,AB106,AB107) -> 35.36504856
B124: Hout | D124: =[2]!H_(11,D108,D109) -> 22.9594378 | F124: =[2]!H_(11,F108,F109) -> 33.70547247 | G124: =[2]!H_(11,G108,G109) -> 34.47408789 | H124: =[2]!H_(11,H108,H109) -> 31.63748776 | I124: =[2]!H_(11,I108,I109) -> 47.12440845 | J124: =[2]!H_(11,J108,J109) -> 22.92839109 | K124: =[2]!H_(11,K108,K109) -> 22.97863602 | L124: =[2]!H_(11,L108,L109) -> 23.01983783 | M124: =[2]!H_(11,M108,M109) -> 23.19416212 | N124: =[2]!H_(11,N108,N109) -> 23.43583762 | O124: =[2]!H_(11,O108,O109) -> 23.54082875 | P124: =[2]!H_(11,P108,P109) -> 23.70829311 | Q124: =[2]!H_(11,Q108,Q109) -> 24.01741666 | R124: =[2]!H_(11,R108,R109) -> 24.37079181 | S124: =[2]!H_(11,S108,S109) -> 24.77830039 | T124: =[2]!H_(11,T108,T109) -> 25.25294025 | U124: =[2]!H_(11,U108,U109) -> 25.81187164 | V124: =[2]!H_(11,V108,V109) -> 26.47760089 | W124: =[2]!H_(11,W108,W109) -> 27.27892191 | X124: =[2]!H_(11,X108,X109) -> 28.25077384 | Y124: =[2]!H_(11,Y108,Y109) -> 29.43203187 | Z124: =[2]!H_(11,Z108,Z109) -> 30.86164952 | AA124: =[2]!H_(11,AA108,AA109) -> 32.57592295 | AB124: =[2]!H_(11,AB108,AB109) -> 34.62780156
B125: Sin = Sout | D125: =[2]!S_(11,D106,D107) -> 5.060004669 | F125: =[2]!S_(11,F106,F107) -> 6.606972814 | G125: =[2]!S_(11,G106,G107) -> 6.945830207 | H125: =[2]!S_(11,H106,H107) -> 6.329612817 | I125: =[2]!S_(11,I106,I107) -> 8.300020451 | J125: =[2]!S_(11,J106,J107) -> 5.052973367 | K125: =[2]!S_(11,K106,K107) -> 5.065441747 | L125: =[2]!S_(11,L106,L107) -> 5.075577387 | M125: =[2]!S_(11,M106,M107) -> 5.117641788 | N125: =[2]!S_(11,N106,N107) -> 5.174018415 | O125: =[2]!S_(11,O106,O107) -> 5.197895686 | P125: =[2]!S_(11,P106,P107) -> 5.235299437 | Q125: =[2]!S_(11,Q106,Q107) -> 5.302404719 | R125: =[2]!S_(11,R106,R107) -> 5.376511244 | S125: =[2]!S_(11,S106,S107) -> 5.459141872 | T125: =[2]!S_(11,T106,T107) -> 5.552283922 | U125: =[2]!S_(11,U106,U107) -> 5.658537972 | V125: =[2]!S_(11,V106,V107) -> 5.781279079 | W125: =[2]!S_(11,W106,W107) -> 5.924768117 | X125: =[2]!S_(11,X106,X107) -> 6.094079702 | Y125: =[2]!S_(11,Y106,Y107) -> 6.294692674 | Z125: =[2]!S_(11,Z106,Z107) -> 6.531792269 | AA125: =[2]!S_(11,AA106,AA107) -> 6.809636678 | AB125: =[2]!S_(11,AB106,AB107) -> 7.130860838
B126: Tout(iso) | D126: =[1]!HeCalc(2,0,1,D108*10^5,8,D125*1000,1) -> 5.935138784 | F126: =[1]!HeCalc(2,0,1,F108*10^5,8,F125*1000,1) -> 6.699995029 | G126: =[1]!HeCalc(2,0,1,G108*10^5,8,G125*1000,1) -> 7.024181985 | H126: =[1]!HeCalc(2,0,1,H108*10^5,8,H125*1000,1) -> 6.561982995 | I126: =[1]!HeCalc(2,0,1,I108*10^5,8,I125*1000,1) -> 8.048894673 | J126: =[1]!HeCalc(2,0,1,J108*10^5,8,J125*1000,1) -> 5.930905392 | K126: =[1]!HeCalc(2,0,1,K108*10^5,8,K125*1000,1) -> 5.938401007 | L126: =[1]!HeCalc(2,0,1,L108*10^5,8,L125*1000,1) -> 5.944456168 | M126: =[1]!HeCalc(2,0,1,M108*10^5,8,M125*1000,1) -> 5.969228596 | N126: =[1]!HeCalc(2,0,1,N108*10^5,8,N125*1000,1) -> 6.001560455 | O126: =[1]!HeCalc(2,0,1,O108*10^5,8,O125*1000,1) -> 6.014967851 | P126: =[1]!HeCalc(2,0,1,P108*10^5,8,P125*1000,1) -> 6.035645285 | Q126: =[1]!HeCalc(2,0,1,Q108*10^5,8,Q125*1000,1) -> 6.071807126 | R126: =[1]!HeCalc(2,0,1,R108*10^5,8,R125*1000,1) -> 6.11047678 | S126: =[1]!HeCalc(2,0,1,S108*10^5,8,S125*1000,1) -> 6.152238618 | T126: =[1]!HeCalc(2,0,1,T108*10^5,8,T125*1000,1) -> 6.197900655 | U126: =[1]!HeCalc(2,0,1,U108*10^5,8,U125*1000,1) -> 6.248597973 | V126: =[1]!HeCalc(2,0,1,V108*10^5,8,V125*1000,1) -> 6.305939581 | W126: =[1]!HeCalc(2,0,1,W108*10^5,8,W125*1000,1) -> 6.372200427 | X126: =[1]!HeCalc(2,0,1,X108*10^5,8,X125*1000,1) -> 6.450537159 | Y126: =[1]!HeCalc(2,0,1,Y108*10^5,8,Y125*1000,1) -> 6.545188261 | Z126: =[1]!HeCalc(2,0,1,Z108*10^5,8,Z125*1000,1) -> 6.661684082 | AA126: =[1]!HeCalc(2,0,1,AA108*10^5,8,AA125*1000,1) -> 6.807243307 | AB126: =[1]!HeCalc(2,0,1,AB108*10^5,8,AB125*1000,1) -> 6.991302408
B127: Hout(iso) | D127: =[2]!H_(11,D108,D126) -> 20.94054184 | F127: =[2]!H_(11,F108,F126) -> 30.72751844 | G127: =[2]!H_(11,G108,G126) -> 33.5175038 | H127: =[2]!H_(11,H108,H126) -> 28.88855271 | I127: =[2]!H_(11,I108,I126) -> 43.67178554 | J127: =[2]!H_(11,J108,J126) -> 20.89882496 | K127: =[2]!H_(11,K108,K126) -> 20.97282045 | L127: =[2]!H_(11,L108,L126) -> 21.03304069 | M127: =[2]!H_(11,M108,M126) -> 21.28361375 | N127: =[2]!H_(11,N108,N126) -> 21.62105464 | O127: =[2]!H_(11,O108,O126) -> 21.76451602 | P127: =[2]!H_(11,P108,P126) -> 21.98988623 | Q127: =[2]!H_(11,Q108,Q126) -> 22.39612968 | R127: =[2]!H_(11,R108,R126) -> 22.84753074 | S127: =[2]!H_(11,S108,S126) -> 23.35417769 | T127: =[2]!H_(11,T108,T126) -> 23.9293467 | U127: =[2]!H_(11,U108,U126) -> 24.59060321 | V127: =[2]!H_(11,V108,V126) -> 25.36109214 | W127: =[2]!H_(11,W108,W126) -> 26.27068369 | X127: =[2]!H_(11,X108,X126) -> 27.35619174 | Y127: =[2]!H_(11,Y108,Y126) -> 28.65970088 | Z127: =[2]!H_(11,Z108,Z126) -> 30.22525389 | AA127: =[2]!H_(11,AA108,AA126) -> 32.09612961 | AB127: =[2]!H_(11,AB108,AB126) -> 34.31183852
B128: ΔHs | D128: =D123-D127 -> 7.210342742 | F128: 10.16262202 | G128: 3.294140164 | H128: 9.507135448 | I128: 10.38804677 | J128: =J123-J127 -> 7.245820234 | K128: 7.160297529 | L128: =L123-L127 -> 7.091761882 | M128: 6.816551497 | N128: 6.47004036 | O128: 6.330622509 | P128: 6.12058452 | Q128: =Q123-Q127 -> 5.76796467 | R128: 5.411896722 | S128: 5.051986818 | T128: 4.687642432 | U128: =U123-U127 -> 4.317898226 | V128: 3.941070005 | W128: 3.554084773 | X128: 3.15126672 | Y128: 2.722399764 | Z128: 2.250171787 | AA128: 1.707303172 | AB128: 1.053210045
B129: u1 | C129: m/s | D129: =(2*52.7%*D128*1000*D110)^0.5 -> 73.97151411 | F129: =PI()*$D$130*F112 -> 79.35893235 | G129: =PI()*$D$130*G112 -> 45.75685127 | H129: 78.23650669 | I129: 70.4773643 | J129: =PI()*$D$130*J112 -> 74.19632458 | K129: =PI()*$D$130*K112 -> 73.66691566 | L129: =PI()*$D$130*L112 -> 73.24149236 | M129: 71.52243804 | N129: 69.33268406 | O129: 68.4433444 | P129: 67.09417678 | Q129: =PI()*$D$130*Q112 -> 64.80283713 | R129: 62.45375408 | S129: 60.04083191 | T129: 57.55614044 | U129: =PI()*$D$130*U112 -> 54.98872208 | V129: 52.32224047 | W129: 49.53023871 | X129: 46.5665121 | Y129: 43.34565671 | Z129: 39.70226181 | AA129: 35.2875181 | AB129: 28.92155236
B130: D1 | D130: =D129/PI()/D112 -> 0.02809769002
B131: Co = (2*ΔHs)^0,5 | D131: =(2000*D128)^0.5 -> 120.0861586 | F131: 142.5666302 | G131: 81.1682224 | H131: 137.8922438 | I131: 144.1391464 | J131: =(2000*J128)^0.5 -> 120.3812297 | K131: 119.6686887 | L131: =(2000*L128)^0.5 -> 119.0946001 | M131: 116.7608796 | N131: 113.7544756 | O131: 112.5221979 | P131: 110.6398167 | Q131: =(2000*Q128)^0.5 -> 107.4054437 | R131: 104.0374617 | S131: 100.5185238 | T131: 96.82605468 | U131: =(2000*U128)^0.5 -> 92.92898607 | V131: 88.78141703 | W131: 84.30996113 | X131: 79.3884969 | Y131: 73.78888485 | Z131: 67.08460013 | AA131: 58.43463309 | AB131: 45.89575242
B132: u1/Co | D132: =D129/D131 -> 0.6159870129 | F132: 0.5566445125 | G132: 0.5637286356 | H132: 0.5673742376 | I132: 0.4889536677 | J132: =J129/J131 -> 0.6163446307 | K132: 0.6155905647 | L132: =L129/L131 -> 0.6149858375 | M132: 0.612554807 | N132: 0.6094941205 | O132: 0.6082652639 | P132: 0.6064198115 | Q132: =Q129/Q131 -> 0.6033477903 | R132: 0.6003006325 | S132: 0.5973111185 | T132: 0.5944282315 | U132: =U129/U131 -> 0.5917284198 | V132: 0.589337749 | W132: 0.5874778976 | X132: 0.58656498 | Y132: 0.5874279954 | Z132: 0.5918237827 | AA132: 0.6038802032 | AB132: 0.6301574946
B133: U1/C0 off de / U1/C0 nom | D133: =D132/$D$50 -> 0.9607689228 | F133: =F132/$D132 -> 0.9036627412 | G133: 0.9151631834 | H133: 0.9210814932 | I133: 0.7937726892 | J133: 1.000580561 | K133: 0.9993564018 | L133: =L132/$D132 -> 0.9983746811 | M133: 0.9944281197 | N133: 0.9894593682 | O133: 0.987464429 | P133: 0.9844685014 | Q133: =Q132/$D132 -> 0.979481349 | R133: 0.9745345599 | S133: 0.9696813505 | T133: 0.9650012404 | U133: =U132/$D132 -> 0.9606183368 | V133: 0.956737296 | W133: 0.9537179929 | X133: 0.9522359527 | Y133: 0.9536369812 | Z133: 0.96077315 | AA133: 0.9803456738 | AB133: 1.023004514
B134: Rdt | D134: =(0.321*D133^4-1.6098*D133^3+1.316*D133^2+0.9448*D133)*($D110/0.97215493) -> 0.7171786088 | F134: =(0.321*F133^4-1.6098*F133^3+1.316*F133^2+0.9448*F133)*($D110/0.97215493) -> 0.7069699109 | G134: 0.7096103841 | H134: 0.7108555918 | I134: 0.6676350281 | J134: 0.7198983603 | K134: 0.7198698012 | L134: =(0.321*L133^4-1.6098*L133^3+1.316*L133^2+0.9448*L133)*($D110/0.97215493) -> 0.719844353 | M134: 0.7197192206 | N134: 0.7195097905 | O134: 0.7194094703 | P134: 0.7192413771 | Q134: =(0.321*Q133^4-1.6098*Q133^3+1.316*Q133^2+0.9448*Q133)*($D110/0.97215493) -> 0.7189152369 | R134: 0.7185347221 | S134: 0.7181064092 | T134: 0.7176419541 | U134: =(0.321*U133^4-1.6098*U133^3+1.316*U133^2+0.9448*U133)*($D110/0.97215493) -> 0.7171613664 | V134: 0.7166990825 | W134: 0.7163156521 | X134: 0.7161198412 | Y134: 0.7163050779 | Z134: 0.7171790921 | AA134: 0.7189759002 | AB134: 0.7197951964
B136: CV220A
B137: flow | D137: =$D$105-D105 -> 0 | F137: =$D$105-F105 -> 43.08742792 | G137: 183.4006295 | H137: 36.44180689 | I137: 133.2825866 | J137: -1.737497976 | K137: 2.086706367 | L137: 5.146027832 | M137: 17.38336092 | N137: 32.68002706 | O137: 38.79869631 | P137: 47.97670379 | Q137: =$D$105-Q105 -> 63.27335914 | R137: 78.57002553 | S137: 93.86669224 | T137: 109.163359 | U137: =$D$105-U105 -> 124.4600283 | V137: 139.7566992 | W137: 155.0533757 | X137: 170.3500695 | Y137: 185.6468317 | Z137: 200.9433484 | AA137: 216.2408526 | AB137: 231.5366785
B138: Pin | C138: Bara | D138: 13.5 | F138: 13.5 | G138: 13.5 | H138: 13.5 | I138: 13.5 | J138: 13.5 | K138: 13.5 | L138: 13.5 | M138: 13.5 | N138: 13.5 | O138: 13.5 | P138: 13.5 | Q138: 13.5 | R138: 13.5 | S138: 13.5 | T138: 13.5 | U138: 13.5 | V138: 13.5 | W138: 13.5 | X138: 13.5 | Y138: 13.5 | Z138: 13.5 | AA138: 13.5 | AB138: 13.5
B139: Tin | C139: K | D139: 100 | F139: 100 | G139: 100 | H139: 100 | I139: 100 | J139: 100 | K139: 100 | L139: 100 | M139: 100 | N139: 100 | O139: 100 | P139: 100 | Q139: 100 | R139: 100 | S139: 100 | T139: 100 | U139: 100 | V139: 100 | W139: 100 | X139: 100 | Y139: 100 | Z139: 100 | AA139: 100 | AB139: 100
B140: Rho | D140: =[2]!rho_(11,D138,D139) -> 6.373331124 | F140: =[2]!rho_(11,F138,F139) -> 6.373331124 | G140: =[2]!rho_(11,G138,G139) -> 6.373331124 | H140: =[2]!rho_(11,H138,H139) -> 6.373331124 | I140: =[2]!rho_(11,I138,I139) -> 6.373331124 | J140: =[2]!rho_(11,J138,J139) -> 6.373331124 | K140: =[2]!rho_(11,K138,K139) -> 6.373331124 | L140: =[2]!rho_(11,L138,L139) -> 6.373331124 | M140: =[2]!rho_(11,M138,M139) -> 6.373331124 | N140: =[2]!rho_(11,N138,N139) -> 6.373331124 | O140: =[2]!rho_(11,O138,O139) -> 6.373331124 | P140: =[2]!rho_(11,P138,P139) -> 6.373331124 | Q140: =[2]!rho_(11,Q138,Q139) -> 6.373331124 | R140: =[2]!rho_(11,R138,R139) -> 6.373331124 | S140: =[2]!rho_(11,S138,S139) -> 6.373331124 | T140: =[2]!rho_(11,T138,T139) -> 6.373331124 | U140: =[2]!rho_(11,U138,U139) -> 6.373331124 | V140: =[2]!rho_(11,V138,V139) -> 6.373331124 | W140: =[2]!rho_(11,W138,W139) -> 6.373331124 | X140: =[2]!rho_(11,X138,X139) -> 6.373331124 | Y140: =[2]!rho_(11,Y138,Y139) -> 6.373331124 | Z140: =[2]!rho_(11,Z138,Z139) -> 6.373331124 | AA140: =[2]!rho_(11,AA138,AA139) -> 6.373331124 | AB140: =[2]!rho_(11,AB138,AB139) -> 6.373331124
B141: Pout | D141: =1.15 -> 1.15 | F141: =1.15 -> 1.15 | G141: 1.15 | H141: 1.15 | I141: 1.15 | J141: 1.15 | K141: 1.15 | L141: 1.15 | M141: 1.15 | N141: 1.15 | O141: 1.15 | P141: 1.15 | Q141: 1.15 | R141: 1.15 | S141: 1.15 | T141: 1.15 | U141: 1.15 | V141: 1.15 | W141: 1.15 | X141: 1.15 | Y141: 1.15 | Z141: 1.15 | AA141: 1.15 | AB141: 1.15
B142: Cvs | D142: 35 | F142: 35 | G142: 35 | H142: 35 | I142: 35 | J142: 35 | K142: 35 | L142: 35 | M142: 35 | N142: 35 | O142: 35 | P142: 35 | Q142: 35 | R142: 35 | S142: 35 | T142: 35 | U142: 35 | V142: 35 | W142: 35 | X142: 35 | Y142: 35 | Z142: 35 | AA142: 35 | AB142: 35
B143: Range | D143: 100 | F143: 100 | G143: 100 | H143: 100 | I143: 100 | J143: 100 | K143: 100 | L143: 100 | M143: 100 | N143: 100 | O143: 100 | P143: 100 | Q143: 100 | R143: 100 | S143: 100 | T143: 100 | U143: 100 | V143: 100 | W143: 100 | X143: 100 | Y143: 100 | Z143: 100 | AA143: 100 | AB143: 100
B144: Flow | D144: =IF(D138/2>D141,"S","SS") -> S | F144: =IF(F138/2>F141,"S","SS") -> S | G144: S | H144: S | I144: S | J144: S | K144: S | L144: S | M144: S | N144: S | O144: S | P144: S | Q144: =IF(Q138/2>Q141,"S","SS") -> S | R144: S | S144: S | T144: S | U144: =IF(U138/2>U141,"S","SS") -> S | V144: S | W144: S | X144: S | Y144: S | Z144: S | AA144: S | AB144: S
B145: Cv | D145: =[2]!Cv_Simple(D139,D138,D141/1000,D140,D137,D144) -> 0 | E145: =[2]!Cv_Simple(E139,E138,E141/1000,E140,E137,E144) -> 0 | F145: =[2]!Cv_Simple(F139,F138,F141/1000,F140,F137,F144) -> 0.9856745514 | G145: =[2]!Cv_Simple(G139,G138,G141/1000,G140,G137,G144) -> 4.195500682 | H145: =[2]!Cv_Simple(H139,H138,H141/1000,H140,H137,H144) -> 0.8336483145 | I145: =[2]!Cv_Simple(I139,I138,I141/1000,I140,I137,I144) -> 3.048992714 | J145: =[2]!Cv_Simple(J139,J138,J141/1000,J140,J137,J144) -> -0.03974726785 | K145: =[2]!Cv_Simple(K139,K138,K141/1000,K140,K137,K144) -> 0.04773581208 | L145: =[2]!Cv_Simple(L139,L138,L141/1000,L140,L137,L144) -> 0.117721315 | M145: =[2]!Cv_Simple(M139,M138,M141/1000,M140,M137,M144) -> 0.3976644072 | N145: =[2]!Cv_Simple(N139,N138,N141/1000,N140,N137,N144) -> 0.7475932672 | O145: =[2]!Cv_Simple(O139,O138,O141/1000,O140,O137,O144) -> 0.8875648752 | P145: =[2]!Cv_Simple(P139,P138,P141/1000,P140,P137,P144) -> 1.09752237 | Q145: =[2]!Cv_Simple(Q139,Q138,Q141/1000,Q140,Q137,Q144) -> 1.447450983 | R145: =[2]!Cv_Simple(R139,R138,R141/1000,R140,R137,R144) -> 1.797379849 | S145: =[2]!Cv_Simple(S139,S138,S141/1000,S140,S137,S144) -> 2.147308722 | T145: =[2]!Cv_Simple(T139,T138,T141/1000,T140,T137,T144) -> 2.497237597 | U145: =[2]!Cv_Simple(U139,U138,U141/1000,U140,U137,U144) -> 2.847166528 | V145: =[2]!Cv_Simple(V139,V138,V141/1000,V140,V137,V144) -> 3.197095499 | W145: =[2]!Cv_Simple(W139,W138,W141/1000,W140,W137,W144) -> 3.547024594 | X145: =[2]!Cv_Simple(X139,X138,X141/1000,X140,X137,X144) -> 3.896954088 | Y145: =[2]!Cv_Simple(Y139,Y138,Y141/1000,Y140,Y137,Y144) -> 4.246885145 | Z145: =[2]!Cv_Simple(Z139,Z138,Z141/1000,Z140,Z137,Z144) -> 4.596810587 | AA145: =[2]!Cv_Simple(AA139,AA138,AA141/1000,AA140,AA137,AA144) -> 4.946758618 | AB145: =[2]!Cv_Simple(AB139,AB138,AB141/1000,AB140,AB137,AB144) -> 5.296668258
B146: Trim | D146: =IF(D145=0,0,[2]!Trim_From_Cv(D145/D142,D143)) -> 0 | F146: =IF(F145=0,0,[2]!Trim_From_Cv(F145/F142,F143)) -> 0.2248327498 | G146: =IF(G145=0,0,[2]!Trim_From_Cv(G145/G142,G143)) -> 0.5393578758 | H146: =IF(H145=0,0,[2]!Trim_From_Cv(H145/H142,H143)) -> 0.188457416 | I146: =IF(I145=0,0,[2]!Trim_From_Cv(I145/I142,I143)) -> 0.4700441711 | J146: =IF(J145<0.00001,0,[2]!Trim_From_Cv(J145/J142,J143)) -> 0 | K146: =IF(K145=0,0,[2]!Trim_From_Cv(K145/K142,K143)) -> 0.008605503208 | L146: =IF(L145=0,0,[2]!Trim_From_Cv(L145/L142,L143)) -> 0.02122203666 | M146: =IF(M145=0,0,[2]!Trim_From_Cv(M145/M142,M143)) -> 0.07168836525 | N146: =IF(N145=0,0,[2]!Trim_From_Cv(N145/N142,N143)) -> 0.1647986686 | O146: =IF(O145=0,0,[2]!Trim_From_Cv(O145/O142,O143)) -> 0.2020660313 | P146: =IF(P145=0,0,[2]!Trim_From_Cv(P145/P142,P143)) -> 0.2481726682 | Q146: =IF(Q145=0,0,[2]!Trim_From_Cv(Q145/Q142,Q143)) -> 0.3082679106 | R146: =IF(R145=0,0,[2]!Trim_From_Cv(R145/R142,R143)) -> 0.355285912 | S146: =IF(S145=0,0,[2]!Trim_From_Cv(S145/S142,S143)) -> 0.3939132219 | T146: =IF(T145=0,0,[2]!Trim_From_Cv(T145/T142,T143)) -> 0.4266959102 | U146: =IF(U145=0,0,[2]!Trim_From_Cv(U145/U142,U143)) -> 0.4551724125 | V146: =IF(V145=0,0,[2]!Trim_From_Cv(V145/V142,V143)) -> 0.4803437823 | W146: =IF(W145=0,0,[2]!Trim_From_Cv(W145/W142,W143)) -> 0.5028980777 | X146: =IF(X145=0,0,[2]!Trim_From_Cv(X145/X142,X143)) -> 0.5233286224 | Y146: =IF(Y145=0,0,[2]!Trim_From_Cv(Y145/Y142,Y143)) -> 0.5420012358 | Z146: =IF(Z145=0,0,[2]!Trim_From_Cv(Z145/Z142,Z143)) -> 0.5591942823 | AA146: =IF(AA145=0,0,[2]!Trim_From_Cv(AA145/AA142,AA143)) -> 0.5751263373 | AB146: =IF(AB145=0,0,[2]!Trim_From_Cv(AB145/AB142,AB143)) -> 0.5899673643
B147: Tout | D147: =[2]!T_P_H_(11,D95,[2]!H_(11,D138,D139)) -> 99.10840613 | F147: =[2]!T_P_H_(11,F95,[2]!H_(11,F138,F139)) -> 99.10840613 | G147: =[2]!T_P_H_(11,G95,[2]!H_(11,G138,G139)) -> 99.10840613 | H147: =[2]!T_P_H_(11,H95,[2]!H_(11,H138,H139)) -> 99.10840613 | I147: =[2]!T_P_H_(11,I95,[2]!H_(11,I138,I139)) -> 99.10840613 | J147: =[2]!T_P_H_(11,J95,[2]!H_(11,J138,J139)) -> 99.10840613 | K147: =[2]!T_P_H_(11,K95,[2]!H_(11,K138,K139)) -> 99.10840613 | L147: =[2]!T_P_H_(11,L95,[2]!H_(11,L138,L139)) -> 99.10840613 | M147: =[2]!T_P_H_(11,M95,[2]!H_(11,M138,M139)) -> 99.10840613 | N147: =[2]!T_P_H_(11,N95,[2]!H_(11,N138,N139)) -> 99.10840613 | O147: =[2]!T_P_H_(11,O95,[2]!H_(11,O138,O139)) -> 99.10840613 | P147: =[2]!T_P_H_(11,P95,[2]!H_(11,P138,P139)) -> 99.10840613 | Q147: =[2]!T_P_H_(11,Q95,[2]!H_(11,Q138,Q139)) -> 99.10840613 | R147: =[2]!T_P_H_(11,R95,[2]!H_(11,R138,R139)) -> 99.10840613 | S147: =[2]!T_P_H_(11,S95,[2]!H_(11,S138,S139)) -> 99.10840613 | T147: =[2]!T_P_H_(11,T95,[2]!H_(11,T138,T139)) -> 99.10840613 | U147: =[2]!T_P_H_(11,U95,[2]!H_(11,U138,U139)) -> 99.10840613 | V147: =[2]!T_P_H_(11,V95,[2]!H_(11,V138,V139)) -> 99.10840613 | W147: =[2]!T_P_H_(11,W95,[2]!H_(11,W138,W139)) -> 99.10840613 | X147: =[2]!T_P_H_(11,X95,[2]!H_(11,X138,X139)) -> 99.10840613 | Y147: =[2]!T_P_H_(11,Y95,[2]!H_(11,Y138,Y139)) -> 99.10840613 | Z147: =[2]!T_P_H_(11,Z95,[2]!H_(11,Z138,Z139)) -> 99.10840613 | AA147: =[2]!T_P_H_(11,AA95,[2]!H_(11,AA138,AA139)) -> 99.10840613 | AB147: =[2]!T_P_H_(11,AB95,[2]!H_(11,AB138,AB139)) -> 99.10840613
B148: delta T | D148: =D147-D95 -> 69.10840613 | F148: =F147-F95 -> 69.10840613 | G148: =G147-G95 -> 69.10840613 | H148: =H147-H95 -> 69.10840613 | I148: =I147-I95 -> 69.10840613 | J148: =J147-J95 -> 69.10840613 | K148: =K147-K95 -> 69.10840613 | L148: =L147-L95 -> 69.10840613 | M148: =M147-M95 -> 69.10840613 | N148: =N147-N95 -> 69.10840613 | O148: =O147-O95 -> 69.10840613 | P148: =P147-P95 -> 69.10840613 | Q148: 69.10840613 | R148: 69.10840613 | S148: 69.10840613 | T148: 69.10840613 | U148: =U147-U95 -> 69.10840613 | V148: 69.10840613 | W148: 69.10840613 | X148: 69.10840613 | Y148: 69.10840613 | Z148: 69.10840613 | AA148: 69.10840613 | AB148: 69.10840613
B149: CV335
B150: Pin | C150: Bara | D150: =D91 -> 13.15 | F150: =F91 -> 13.15 | G150: 13.25 | H150: 13.5 | I150: 12.25 | J150: =J91 -> 13.15 | K150: 13.15 | L150: =L91 -> 13.15 | M150: 13.15 | N150: 13.15 | O150: 13.15 | P150: 13.15 | Q150: =Q91 -> 13.15 | R150: 13.15 | S150: 13.15 | T150: 13.15 | U150: =U91 -> 13.15 | V150: 13.15 | W150: 13.15 | X150: 13.15 | Y150: 13.15 | Z150: 13.15 | AA150: 13.15 | AB150: 13.15
B151: Tin | C151: K | D151: =D92 -> 7.290663568 | F151: =F92 -> 9.166149668 | G151: 8.622314625 | H151: 8.828 | I151: 10.79564053 | J151: =J92 -> 7.289570189 | K151: 7.287549476 | L151: =L92 -> 7.286091223 | M151: 7.281767836 | N151: 7.280175123 | O151: 7.280885227 | P151: 7.283576767 | Q151: =Q92 -> 7.292977542 | R151: 7.309641747 | S151: 7.335170768 | T151: 7.371597533 | U151: 7.421486544 | V151: 7.488001 | W151: 7.574845196 | X151: 7.685926083 | Y151: 7.824616101 | Z151: =Z92 -> 7.992825409 | AA151: 8.190438153 | AB151: 8.414996515
B152: Rho | D152: =[2]!rho_(11,D150,D151) -> 122.3393338 | F152: =[2]!rho_(11,F150,F151) -> 92.38543687 | G152: =[2]!rho_(11,G150,G151) -> 101.5881159 | H152: =[2]!rho_(11,H150,H151) -> 99.5385923 | I152: =[2]!rho_(11,I150,I151) -> 66.47696107 | J152: =[2]!rho_(11,J150,J151) -> 122.3554603 | K152: =[2]!rho_(11,K150,K151) -> 122.3852561 | L152: =[2]!rho_(11,L150,L151) -> 122.4067517 | M152: =[2]!rho_(11,M150,M151) -> 122.4704488 | N152: =[2]!rho_(11,N150,N151) -> 122.4939023 | O152: =[2]!rho_(11,O150,O151) -> 122.4834465 | P152: =[2]!rho_(11,P150,P151) -> 122.4438034 | Q152: =[2]!rho_(11,Q150,Q151) -> 122.3051943 | R152: =[2]!rho_(11,R150,R151) -> 122.0589282 | S152: =[2]!rho_(11,S150,S151) -> 121.6802709 | T152: =[2]!rho_(11,T150,T151) -> 121.1370961 | U152: =[2]!rho_(11,U150,U151) -> 120.3877662 | V152: =[2]!rho_(11,V150,V151) -> 119.3792007 | W152: =[2]!rho_(11,W150,W151) -> 118.0465516 | X152: =[2]!rho_(11,X150,X151) -> 116.3172901 | Y152: =[2]!rho_(11,Y150,Y151) -> 114.12278 | Z152: =[2]!rho_(11,Z150,Z151) -> 111.4162419 | AA152: =[2]!rho_(11,AA150,AA151) -> 108.1899242 | AB152: =[2]!rho_(11,AB150,AB151) -> 104.4920853
B153: dP | D153: =(D150-D108)*1000 -> 8270 | F153: =(F150-F108)*1000 -> 8270 | G153: 8070 | H153: 8620 | I153: 7070 | J153: =(J150-J108)*1000 -> 8270 | K153: 8270 | L153: =(L150-L108)*1000 -> 8270 | M153: 8270 | N153: 8270 | O153: 8270 | P153: 8270 | Q153: =(Q150-Q108)*1000 -> 8270 | R153: 8270 | S153: 8270 | T153: 8270 | U153: 8270 | V153: 8270 | W153: 8270 | X153: 8270 | Y153: 8270 | Z153: =(Z150-Z108)*1000 -> 8270 | AA153: 8270 | AB153: 8270
B154: Cvs | D154: 5 | F154: =$D$154 -> 5 | G154: =$D$154 -> 5 | H154: 5 | I154: 5 | J154: 5 | K154: 5 | L154: 5 | M154: 5 | N154: 5 | O154: 5 | P154: 5 | Q154: 5 | R154: 5 | S154: 5 | T154: 5 | U154: 5 | V154: 5 | W154: 5 | X154: 5 | Y154: 5 | Z154: 5 | AA154: 5 | AB154: 5
B155: Range | D155: 250 | F155: =$D$155 -> 250 | G155: =$D$155 -> 250 | H155: 250 | I155: 250 | J155: 250 | K155: 250 | L155: 250 | M155: 250 | N155: 250 | O155: 250 | P155: 250 | Q155: 250 | R155: 250 | S155: 250 | T155: 250 | U155: 250 | V155: 250 | W155: 250 | X155: 250 | Y155: 250 | Z155: 250 | AA155: 250 | AB155: 250
B156: Flow | D156: =IF(D150/2>D108,"S","SS") -> S | F156: =IF(F150/2>F108,"S","SS") -> S | G156: S | H156: S | I156: S | J156: =IF(J150/2>J108,"S","SS") -> S | K156: S | L156: =IF(L150/2>L108,"S","SS") -> S | M156: S | N156: S | O156: S | P156: S | Q156: =IF(Q150/2>Q108,"S","SS") -> S | R156: S | S156: S | T156: S | U156: S | V156: S | W156: S | X156: S | Y156: S | Z156: =IF(Z150/2>Z108,"S","SS") -> S | AA156: S | AB156: S
B157: Cv | D157: =[2]!Cv_Simple(D151,D150,D153/1000,D152,D105,D156) -> 2.115095383 | F157: =[2]!Cv_Simple(F151,F150,F153/1000,F152,F105,F156) -> 2.171635241 | G157: =[2]!Cv_Simple(G151,G150,G153/1000,G152,G105,G156) -> 1.25158313 | H157: =[2]!Cv_Simple(H151,H150,H153/1000,H152,H105,H156) -> 2.103320358 | I157: =[2]!Cv_Simple(I151,I150,I153/1000,I152,I105,I156) -> 1.981778288 | J157: =[2]!Cv_Simple(J151,J150,J153/1000,J152,J105,J156) -> 2.124147419 | K157: =[2]!Cv_Simple(K151,K150,K153/1000,K152,K105,K156) -> 2.10366112 | L157: =[2]!Cv_Simple(L151,L150,L153/1000,L152,L105,L156) -> 2.087295876 | M157: =[2]!Cv_Simple(M151,M150,M153/1000,M152,M105,M156) -> 2.022047479 | N157: =[2]!Cv_Simple(N151,N150,N153/1000,N152,N105,N156) -> 1.940979734 | O157: =[2]!Cv_Simple(O151,O150,O153/1000,O152,O105,O156) -> 1.908711519 | P157: =[2]!Cv_Simple(P151,P150,P153/1000,P152,P105,P156) -> 1.860486018 | Q157: =[2]!Cv_Simple(Q151,Q150,Q153/1000,Q152,Q105,Q156) -> 1.7806035 | R157: =[2]!Cv_Simple(R151,R150,R153/1000,R152,R105,R156) -> 1.701380732 | S157: =[2]!Cv_Simple(S151,S150,S153/1000,S152,S105,S156) -> 1.622881844 | T157: =[2]!Cv_Simple(T151,T150,T153/1000,T152,T105,T156) -> 1.545190429 | U157: =[2]!Cv_Simple(U151,U150,U153/1000,U152,U105,U156) -> 1.468413297 | V157: =[2]!Cv_Simple(V151,V150,V153/1000,V152,V105,V156) -> 1.392680709 | W157: =[2]!Cv_Simple(W151,W150,W153/1000,W152,W105,W156) -> 1.318136182 | X157: =[2]!Cv_Simple(X151,X150,X153/1000,X152,X105,X156) -> 1.24490444 | Y157: =[2]!Cv_Simple(Y151,Y150,Y153/1000,Y152,Y105,Y156) -> 1.173028479 | Z157: =[2]!Cv_Simple(Z151,Z150,Z153/1000,Z152,Z105,Z156) -> 1.102392101 | AA157: =[2]!Cv_Simple(AA151,AA150,AA153/1000,AA152,AA105,AA156) -> 1.032649281 | AB157: =[2]!Cv_Simple(AB151,AB150,AB153/1000,AB152,AB105,AB156) -> 0.9632033459
B158: Trim | D158: =[2]!Trim_From_Cv(D157/D154,D155) -> 0.8441829046 | F158: =[2]!Trim_From_Cv(F157/F154,F155) -> 0.8489607237 | G158: =[2]!Trim_From_Cv(G157/G154,G155) -> 0.7491553995 | H158: =[2]!Trim_From_Cv(H157/H154,H155) -> 0.8431718151 | I158: =[2]!Trim_From_Cv(I157/I154,I155) -> 0.8323915791 | J158: =[2]!Trim_From_Cv(J157/J154,J155) -> 0.8449563589 | K158: =[2]!Trim_From_Cv(K157/K154,K155) -> 0.8432011549 | L158: =[2]!Trim_From_Cv(L157/L154,L155) -> 0.8417867053 | M158: =[2]!Trim_From_Cv(M157/M154,M155) -> 0.836034824 | N158: =[2]!Trim_From_Cv(N157/N154,N155) -> 0.8286241516 | O158: =[2]!Trim_From_Cv(O157/O154,O155) -> 0.8255879178 | P158: =[2]!Trim_From_Cv(P157/P154,P155) -> 0.8209531547 | Q158: =[2]!Trim_From_Cv(Q157/Q154,Q155) -> 0.8130050043 | R158: =[2]!Trim_From_Cv(R157/R154,R155) -> 0.8047622157 | S158: =[2]!Trim_From_Cv(S157/S154,S155) -> 0.796207119 | T158: =[2]!Trim_From_Cv(T157/T154,T155) -> 0.7873224547 | U158: =[2]!Trim_From_Cv(U157/U154,U155) -> 0.7780921566 | V158: =[2]!Trim_From_Cv(V157/V154,V155) -> 0.7685019465 | W158: =[2]!Trim_From_Cv(W157/W154,W155) -> 0.7585386953 | X158: =[2]!Trim_From_Cv(X157/X154,X155) -> 0.7481863657 | Y158: =[2]!Trim_From_Cv(Y157/Y154,Y155) -> 0.7374156793 | Z158: =[2]!Trim_From_Cv(Z157/Z154,Z155) -> 0.7261674983 | AA158: =[2]!Trim_From_Cv(AA157/AA154,AA155) -> 0.7143309862 | AB158: =[2]!Trim_From_Cv(AB157/AB154,AB155) -> 0.7017223036
B159: Tout | D159: =[2]!T_P_H_(11,D108,[2]!H_(11,D150,D151)) -> 6.508068711 | F159: =[2]!T_P_H_(11,F108,[2]!H_(11,F150,F151)) -> 7.630998962 | G159: =[2]!T_P_H_(11,G108,[2]!H_(11,G150,G151)) -> 7.321964339 | H159: =[2]!T_P_H_(11,H108,[2]!H_(11,H150,H151)) -> 7.351906498 | I159: =[2]!T_P_H_(11,I108,[2]!H_(11,I150,I151)) -> 9.403837193 | J159: =[2]!T_P_H_(11,J108,[2]!H_(11,J150,J151)) -> 6.507615187 | K159: =[2]!T_P_H_(11,K108,[2]!H_(11,K150,K151)) -> 6.506777398 | L159: =[2]!T_P_H_(11,L108,[2]!H_(11,L150,L151)) -> 6.506173116 | M159: =[2]!T_P_H_(11,M108,[2]!H_(11,M150,M151)) -> 6.504383087 | N159: =[2]!T_P_H_(11,N108,[2]!H_(11,N150,N151)) -> 6.503724223 | O159: =[2]!T_P_H_(11,O108,[2]!H_(11,O150,O151)) -> 6.504017937 | P159: =[2]!T_P_H_(11,P108,[2]!H_(11,P150,P151)) -> 6.505131768 | Q159: =[2]!T_P_H_(11,Q108,[2]!H_(11,Q150,Q151)) -> 6.509029015 | R159: =[2]!T_P_H_(11,R108,[2]!H_(11,R150,R151)) -> 6.515964314 | S159: =[2]!T_P_H_(11,S108,[2]!H_(11,S150,S151)) -> 6.526657011 | T159: =[2]!T_P_H_(11,T108,[2]!H_(11,T150,T151)) -> 6.542061119 | U159: =[2]!T_P_H_(11,U108,[2]!H_(11,U150,U151)) -> 6.563450243 | V159: =[2]!T_P_H_(11,V108,[2]!H_(11,V150,V151)) -> 6.592520765 | W159: =[2]!T_P_H_(11,W108,[2]!H_(11,W150,W151)) -> 6.631491716 | X159: =[2]!T_P_H_(11,X108,[2]!H_(11,X150,X151)) -> 6.683145961 | Y159: =[2]!T_P_H_(11,Y108,[2]!H_(11,Y150,Y151)) -> 6.750739301 | Z159: =[2]!T_P_H_(11,Z108,[2]!H_(11,Z150,Z151)) -> 6.837783017 | AA159: =[2]!T_P_H_(11,AA108,[2]!H_(11,AA150,AA151)) -> 6.947817721 | AB159: =[2]!T_P_H_(11,AB108,[2]!H_(11,AB150,AB151)) -> 7.083937254
B160: delta T | D160: =D159-D108 -> 1.628068711 | F160: =F159-F108 -> 2.750998962 | G160: 2.141964339 | H160: 2.471906498 | I160: 4.223837193 | J160: 1.627615187 | K160: 1.626777398 | L160: =L159-L108 -> 1.626173116 | M160: =M159-M108 -> 1.624383087 | N160: =N159-N108 -> 1.623724223 | O160: =O159-O108 -> 1.624017937 | P160: =P159-P108 -> 1.625131768 | Q160: 1.629029015 | R160: 1.635964314 | S160: 1.646657011 | T160: 1.662061119 | U160: 1.683450243 | V160: 1.712520765 | W160: 1.751491716 | X160: 1.803145961 | Y160: 1.870739301 | Z160: =Z159-Z108 -> 1.957783017 | AA160: 2.067817721 | AB160: 2.203937254
W162: Ratio Cv | X162: 0.5
X163: =[2]!Trim_From_Cv(X162,X155) -> 0.8744630831
M165: =M48 -> T1 | N165: =M170 -> T3 | O165: T1+T2
B166: Courbe de rendement TC3 | L166: =L171 -> MAX | M166: =M49 -> 192g/s @ 14,77 b ; 40K | N166: =M171 -> 357g/s @ 13,07 b ; 9,16K | O166: =F105+F59 -> 548.2843711
L167: =L172 -> MIN | M167: =M50 -> 159g/s @ 12,39 b ; 40,73K | N167: =M172 -> 216g/s @ 7,369 b ; 7,912K | O167: =G105+G59 -> 375.6551417
L168: =L173 -> STS | M168: =M51 -> 104g/s @ 10,3 b ; 66K | N168: =M173 -> 363g/s @ 13,07 b ; 8,828K | O168: =H105+H59 -> 444.4394401
L169: =L174 -> BAKING | M169: =M52 -> 125g/s @ 9,25 b ; 37,12K | N169: =M174 -> 267g/s @ 10,48 b ; 10,55K | O169: =I105+I59 -> 391.0602712
E170: d : mm | M170: T3
E171: N : Hz | L171: MAX | M171: =ROUND(F105,0)&"g/s @ "&F106&" b ; "&F107&"K" -> 357g/s @ 13,07 b ; 9,16K
E172: H : J/kG | L172: MIN | M172: =ROUND(G105,0)&"g/s @ "&G106&" b ; "&G107&"K" -> 216g/s @ 7,369 b ; 7,912K
L173: STS | M173: =ROUND(H105,0)&"g/s @ "&H106&" b ; "&H107&"K" -> 363g/s @ 13,07 b ; 8,828K
L174: BAKING | M174: =ROUND(I105,0)&"g/s @ "&I106&" b ; "&I107&"K" -> 267g/s @ 10,48 b ; 10,55K
B178: rendement=(0,321*rap^4 - 1,6098*rap^3 + 1,316*rap^2 + 0,9448*rap)*(ETAgar/0,97) | I178: U1/CO _nom | J178: 0.64
I179: Eta_gar | J179: 0.8
B180: U1/C0 | C180: =D29 -> 0.78 | D180: =D64 -> 0.76 | E180: =D110 -> 0.72
B181: 0 | C181: =(0.321*B181^4-1.6098*B181^3+1.316*B181^2+0.9448*B181)*$D$29/0.97215493 -> 0
B182: =B181+0.05 -> 0.05 | C182: =(0.321*$B182^4-1.6098*$B182^3+1.316*$B182^2+0.9448*$B182)*$C$180/0.97215493 -> 0.04038246185 | D182: =(0.321*$B182^4-1.6098*$B182^3+1.316*$B182^2+0.9448*$B182)*$D$180/0.97215493 -> 0.03934701411 | E182: =(0.321*$B182^4-1.6098*$B182^3+1.316*$B182^2+0.9448*$B182)*$E$180/0.97215493 -> 0.03727611863
B183: 0.1 | C183: =(0.321*$B183^4-1.6098*$B183^3+1.316*$B183^2+0.9448*$B183)*$C$180/0.97215493 -> 0.08509815817 | D183: =(0.321*$B183^4-1.6098*$B183^3+1.316*$B183^2+0.9448*$B183)*$D$180/0.97215493 -> 0.08291615412 | E183: =(0.321*$B183^4-1.6098*$B183^3+1.316*$B183^2+0.9448*$B183)*$E$180/0.97215493 -> 0.078552146
B184: 0.15 | C184: 0.1332363313 | D184: 0.1298200152 | E184: 0.1229873828
B185: 0.2 | C185: 0.1839248565 | D185: 0.1792088345 | E185: 0.1697767906
B186: 0.25 | C186: 0.2363302415 | D186: 0.2302704917 | E186: 0.2181509921
B187: 0.3 | C187: 0.2896576269 | D187: 0.2822305083 | E187: 0.267376271
B188: 0.35 | C188: 0.343150786 | D188: 0.3343520479 | E188: 0.3167545717
B189: 0.4 | C189: 0.3960921249 | D189: 0.3859359166 | E189: 0.3656234999
B190: 0.45 | C190: 0.4478026824 | D190: 0.4363205624 | E190: 0.4133563222
B191: 0.5 | C191: 0.4976421299 | D191: 0.4848820753 | E191: 0.4593619661
B192: 0.55 | C192: 0.5450087718 | D192: 0.5310341879 | E192: 0.5030850201
B193: 0.6 | C193: 0.5893395449 | D193: 0.5742282745 | E193: 0.5440057337
B194: 0.65 | C194: 0.630110019 | D194: 0.6139533518 | E194: 0.5816400175
B195: 0.7 | C195: 0.6668343964 | D195: 0.6497360786 | E195: 0.6155394429
B196: 0.75 | C196: 0.6990655125 | D196: 0.6811407558 | E196: 0.6452912423
B197: 0.8 | C197: 0.726394835 | D197: 0.7077693264 | E197: 0.6705183093
B198: 0.85 | C198: 0.7484524646 | D198: 0.7292613758 | E198: 0.6908791981
B199: 0.9 | C199: 0.7649071347 | D199: 0.7452941313 | E199: 0.7060681243
B200: 0.95 | C200: 0.7754662113 | D200: 0.7555824623 | E200: 0.7158149643
B201: 1 | C201: 0.7798756933 | D201: 0.7598788806 | E201: 0.7198852553
B202: 1.05 | C202: 0.7779202121 | D202: 0.75797354 | E202: 0.7180801958
B203: 1.1 | C203: 0.7694230322 | D203: 0.7496942365 | E203: 0.7102366451
B204: 1.15 | C204: 0.7542460504 | D204: 0.7349064081 | E204: 0.6962271235
B205: 1.2 | C205: 0.7322897966 | D205: 0.7135131352 | E205: 0.6759598123 | G205: F Let u be the peripheral speed of the wheel : u = p . Æ . N / 60 (in m/s)
B206: 1.25 | C206: 0.7034934333 | D206: 0.6854551401 | E206: 0.6493785538 | G206: F Let n, be the speed ratio of the turbine : n = u / [ 2 . (H1 - H2S ) ] 0.5 (dimensionless number)
B207: 1.3 | C207: 0.6678347555 | D207: 0.6507107874 | E207: 0.6164628512 | H207: N = speed of rotation of the turbine (in rpm)
B208: 1.35 | C208: 0.6253301913 | D208: 0.6092960839 | E208: 0.5772278689 | H208: Æ = diameter of the wheel of the turbine (in m)
B209: 1.4 | C209: 0.5760348014 | D209: 0.5612646783 | E209: 0.531724432
B210: 1.45 | C210: 0.520042279 | D210: 0.5067078616 | E210: 0.4800390268
B211: 1.5 | C211: 0.4574849505 | D211: 0.4457545671 | E211: 0.4222938004

Sheet Turbines_JT60SA_serial_indep
E5: Vitesse de la roue ajustée en fonction de la puissance du frein | L5: =D65*0.3 -> 448.8
A7: 1 | B7: 2 | C7: 3 | D7: 4 | E7: 5 | F7: 6 | G7: 7 | H7: 8 | I7: 9 | J7: 10 | K7: 11 | L7: 12 | M7: 13 | N7: 14 | O7: 15 | P7: 16 | Q7: 17 | R7: 18 | S7: 19 | T7: 20 | U7: 21 | V7: 22 | W7: 23 | X7: 24 | Y7: 25 | Z7: 26 | AA7: 27 | AB7: 28 | AC7: 29 | AD7: 30 | AE7: 31 | AF7: 32 | AG7: 33
B8: Relation entre la puissance et la vitesse de rotation | M8: ²
B10: Cvs | D10: 30 | H10: 30
B11: Range | D11: 100 | H11: 100
B12: Trim | D12: 0.85 | H12: 0.85
B13: Cv | D13: =[2]!Cv_From_Trim(D12,D11)*D10 -> 15.03561701 | H13: =[2]!Cv_From_Trim(H12,H11)*H10 -> 15.03561701
B14: Pin | C14: Bara | D14: 15 | H14: 15
B15: Tin | C15: K | D15: 40.03 | H15: =H25 -> 80
B16: Rho | D16: =[2]!rho_(11,D14,D15) -> 17.343207 | H16: =[2]!rho_(11,H14,H15) -> 8.791512513
B17: Flow | D17: =IF(D14/2>D24,"S","SS") -> SS | H17: =IF(H14/2>H24,"S","SS") -> SS
B18: m | C18: g/s | D18: =[2]!q_gs(D15,D14,(D14-D24),D16,D13,D17) -> 226.4083326 | H18: =[2]!q_gs(H15,H14,(H14-H24),H16,H13,H17) -> 425.3617266
B19: TURBINE 1
J20: 14D | L20: 16D
D21: DESIGN | H21: start-up | I21: start-up | J21: start-up | K21: start-up | L21: start-up | M21: start-up | N21: start-up | O21: start-up | P21: start-up | Q21: start-up
B23: m | C23: g/s | D23: 191.5 | H23: =H36*H24/H25^0.5 -> 121.1477458 | I23: =I36*I24/I25^0.5 -> 124.9328896 | J23: 129.1084311 | K23: 133.7444771 | L23: 138.9297401 | M23: 144.7783268 | N23: 151.439801 | O23: 159.1145629 | P23: 168.0782154 | Q23: 178.7218671 | R23: 180.1964547 | S23: 181.707309 | T23: 183.2558967 | U23: 184.8437678 | V23: 186.4725622 | W23: 188.1440161 | X23: 189.8599699 | Y23: 191.6223754
B24: Pin | C24: Bara | D24: 14.77 | H24: 13.20928325 | I24: 13.27707789 | J24: 13.35487336 | K24: 13.44464178 | L24: 13.54890296 | M24: 13.67093128 | N24: 13.81506605 | O24: 13.98719159 | P24: 14.19550898 | Q24: 14.45183362 | R24: 14.48804521 | S24: 14.52531457 | T24: 14.56368728 | U24: 14.60321165 | V24: 14.64393891 | W24: 14.68592346 | X24: 14.72922313 | Y24: 14.77389939
B25: Tin | C25: K | D25: 40.03 | H25: 80 | I25: =H25-4 -> 76 | J25: =I25-4 -> 72 | K25: 68 | L25: 64 | M25: 60 | N25: 56 | O25: 52 | P25: 48 | Q25: 44 | R25: =Q25-0.5 -> 43.5 | S25: =R25-0.5 -> 43 | T25: 42.5 | U25: 42 | V25: 41.5 | W25: 41 | X25: 40.5 | Y25: 40
B26: Pout | C26: Bara | D26: 6.36 | H26: 6.36 | I26: 6.36 | J26: 6.36 | K26: 6.36 | L26: 6.36 | M26: 6.36 | N26: 6.36 | O26: 6.36 | P26: 6.36 | Q26: 6.36 | R26: 6.36 | S26: 6.36 | T26: 6.36 | U26: 6.36 | V26: 6.36 | W26: 6.36 | X26: 6.36 | Y26: 6.36
B27: Tout | C27: K | D27: =[2]!T2_turb(11,D24,D25,D26,D28) -> 31.09458691 | H27: =[2]!T2_turb(11,H24,H25,H26,H28) -> 65.88134842 | I27: =[2]!T2_turb(11,I24,I25,I26,I28) -> 62.31655452 | J27: =[2]!T2_turb(11,J24,J25,J26,J28) -> 58.76629612 | K27: =[2]!T2_turb(11,K24,K25,K26,K28) -> 55.23178912 | L27: =[2]!T2_turb(11,L24,L25,L26,L28) -> 51.7144008 | M27: =[2]!T2_turb(11,M24,M25,M26,M28) -> 48.21567116 | N27: =[2]!T2_turb(11,N24,N25,N26,N28) -> 44.7373347 | O27: =[2]!T2_turb(11,O24,O25,O26,O28) -> 41.2813401 | P27: =[2]!T2_turb(11,P24,P25,P26,P28) -> 37.84986044 | Q27: =[2]!T2_turb(11,Q24,Q25,Q26,Q28) -> 34.44527837 | R27: =[2]!T2_turb(11,R24,R25,R26,R28) -> 34.02172177 | S27: =[2]!T2_turb(11,S24,S25,S26,S28) -> 33.59862982 | T27: =[2]!T2_turb(11,T24,T25,T26,T28) -> 33.17600748 | U27: =[2]!T2_turb(11,U24,U25,U26,U28) -> 32.75385972 | V27: =[2]!T2_turb(11,V24,V25,V26,V28) -> 32.33219142 | W27: =[2]!T2_turb(11,W24,W25,W26,W28) -> 31.91100744 | X27: =[2]!T2_turb(11,X24,X25,X26,X28) -> 31.49031254 | Y27: =[2]!T2_turb(11,Y24,Y25,Y26,Y28) -> 31.07011142
B28: Efficacity | C28: % | D28: 0.78 | H28: =(0.321*H50^4-1.6098*H50^3+1.316*H50^2+0.9448*H50)*($D$28/0.97215493) -> 0.7016603404 | I28: =(0.321*I50^4-1.6098*I50^3+1.316*I50^2+0.9448*I50)*($D$28/0.97215493) -> 0.7113559179 | J28: 0.7210622264 | K28: 0.7306998526 | L28: 0.7401614802 | M28: 0.7493017824 | N28: 0.7579229527 | O28: 0.7657535489 | P28: 0.772416747 | Q28: 0.7773811805 | R28: 0.7778474806 | S28: 0.7782739233 | T28: 0.7786586033 | U28: 0.7789995185 | V28: 0.7792945642 | W28: 0.7795415264 | X28: 0.7797380749 | Y28: 0.7798817559
B29: Power | C29: W | D29: =+D23*(D40-D41) -> 9122.443616 | H29: =+H23*(H40-H41) -> 9122.443613 | I29: 9122.443627 | J29: 9122.443621 | K29: 9122.443606 | L29: 9122.443614 | M29: 9122.443612 | N29: 9122.443614 | O29: 9122.443624 | P29: 9122.443609 | Q29: 9122.443614 | R29: 9122.443615 | S29: 9122.443615 | T29: 9122.443625 | U29: 9122.44362 | V29: 9122.443617 | W29: 9122.443605 | X29: 9122.443615 | Y29: 9122.443616
B30: Speed | C30: Hz | D30: 1995 | H30: 1995 | I30: 1995 | J30: 1995 | K30: 1995 | L30: 1995 | M30: 1995 | N30: 1995 | O30: 1995 | P30: 1995 | Q30: 1995 | R30: 1995 | S30: 1995 | T30: 1995 | U30: 1995 | V30: 1995 | W30: 1995 | X30: 1995 | Y30: 1995
B31: Speed calculated from P=K.rho.N^3 | H31: =(H29/$D29*$D33/H33)^(1/3)*$D30 -> 1995 | I31: =(I29/$D29*$D33/I33)^(1/3)*$D30 -> 1995.000001 | J31: 1995 | K31: 1994.999999 | L31: 1995 | M31: 1995 | N31: 1995 | O31: 1995.000001 | P31: 1994.999999 | Q31: 1995 | R31: 1995 | S31: 1995 | T31: 1995.000001 | U31: 1995 | V31: 1995 | W31: 1994.999999 | X31: 1995 | Y31: 1995
B32: Delta Speed Frein & Turbine | D32: =D26-D33 -> 1.16 | H32: =H30-H31 -> 2.221886461e-07 | I32: =I30-I31 -> -7.984235708e-07 | J32: -3.944408036e-07 | K32: 7.035826002e-07 | L32: 1.705052455e-07 | M32: 2.71107865e-07 | N32: 1.702110239e-07 | O32: -5.41625468e-07 | P32: 5.149977369e-07 | Q32: 1.687535587e-07 | R32: 1.010844244e-07 | S32: 5.122114999e-08 | T32: -6.56435077e-07 | U32: -2.561225756e-07 | V32: -7.007179192e-08 | W32: 7.791645658e-07 | X32: 4.669777809e-08 | Y32: -2.098886398e-09
B33: Brake Pressure | D33: 5.2 | H33: =($D33-$D26)+H26 -> 5.2 | I33: =($D33-$D26)+I26 -> 5.2 | J33: 5.2 | K33: 5.2 | L33: 5.2 | M33: 5.2 | N33: 5.2 | O33: 5.2 | P33: 5.2 | Q33: 5.2 | R33: 5.2 | S33: 5.2 | T33: 5.2 | U33: 5.2 | V33: 5.2 | W33: 5.2 | X33: 5.2 | Y33: 5.2
B34: Rho (brake) | D34: =[2]!rho_(11,D33,330) -> 0.7569746494 | H34: =[2]!rho_(11,H33,330) -> 0.7569746494 | I34: =[2]!rho_(11,I33,330) -> 0.7569746494 | J34: =[2]!rho_(11,J33,330) -> 0.7569746494 | K34: =[2]!rho_(11,K33,330) -> 0.7569746494 | L34: =[2]!rho_(11,L33,330) -> 0.7569746494 | M34: =[2]!rho_(11,M33,330) -> 0.7569746494 | N34: =[2]!rho_(11,N33,330) -> 0.7569746494 | O34: =[2]!rho_(11,O33,330) -> 0.7569746494 | P34: =[2]!rho_(11,P33,330) -> 0.7569746494 | Q34: =[2]!rho_(11,Q33,330) -> 0.7569746494 | R34: =[2]!rho_(11,R33,330) -> 0.7569746494 | S34: =[2]!rho_(11,S33,330) -> 0.7569746494 | T34: =[2]!rho_(11,T33,330) -> 0.7569746494 | U34: =[2]!rho_(11,U33,330) -> 0.7569746494 | V34: =[2]!rho_(11,V33,330) -> 0.7569746494 | W34: =[2]!rho_(11,W33,330) -> 0.7569746494 | X34: =[2]!rho_(11,X33,330) -> 0.7569746494 | Y34: =[2]!rho_(11,Y33,330) -> 0.7569746494
B35: Wheel | C35: mm | D35: 35.8 | H35: =$D$35 -> 35.8 | I35: =$D$35 -> 35.8 | J35: 35.8 | K35: 35.8 | L35: 35.8 | M35: 35.8 | N35: 35.8 | O35: 35.8 | P35: 35.8 | Q35: 35.8 | R35: 35.8 | S35: 35.8 | T35: 35.8 | U35: 35.8 | V35: 35.8 | W35: 35.8 | X35: 35.8 | Y35: 35.8
B36: a = mÖT/P | D36: =D23*D25^0.5/D24 -> 82.03158029 | H36: =+$D$36 -> 82.03158029 | I36: =+$D$36 -> 82.03158029 | J36: 82.03158029 | K36: 82.03158029 | L36: 82.03158029 | M36: 82.03158029 | N36: 82.03158029 | O36: 82.03158029 | P36: 82.03158029 | Q36: 82.03158029 | R36: 82.03158029 | S36: 82.03158029 | T36: 82.03158029 | U36: 82.03158029 | V36: 82.03158029 | W36: 82.03158029 | X36: 82.03158029 | Y36: 82.03158029 | AK36: T1 out | AL36: 63 | AM36: 31 | AN36: x
B37: Rho (in) | C37: kg/m3 | D37: =[2]!rho_(11,D24,D25) -> 17.08767254 | H37: =[2]!rho_(11,H24,H25) -> 7.766060551 | I37: =[2]!rho_(11,I24,I25) -> 8.207557682 | J37: =[2]!rho_(11,J24,J25) -> 8.703741691 | K37: =[2]!rho_(11,K24,K25) -> 9.265512052 | L37: =[2]!rho_(11,L24,L25) -> 9.906885661 | M37: =[2]!rho_(11,M24,M25) -> 10.64620465 | N37: =[2]!rho_(11,N24,N25) -> 11.50795776 | O37: =[2]!rho_(11,O24,O25) -> 12.52561569 | P37: =[2]!rho_(11,P24,P25) -> 13.7462135 | Q37: =[2]!rho_(11,Q24,Q25) -> 15.23809529 | R37: =[2]!rho_(11,R24,R25) -> 15.44828606 | S37: =[2]!rho_(11,S24,S25) -> 15.66451001 | T37: =[2]!rho_(11,T24,T25) -> 15.88703449 | U37: =[2]!rho_(11,U24,U25) -> 16.11614302 | V37: =[2]!rho_(11,V24,V25) -> 16.3521367 | W37: =[2]!rho_(11,W24,W25) -> 16.59533549 | X37: =[2]!rho_(11,X24,X25) -> 16.8460798 | Y37: =[2]!rho_(11,Y24,Y25) -> 17.10473212 | AK37: T2 in | AL37: 62 | AM37: 18 | AN37: y
B38: Sound Speed @inlet | D38: =[2]!Sound_speed(11,D24,D25) -> 391.2334217 | H38: =[2]!Sound_speed(11,H24,H25) -> 538.9147617 | I38: =[2]!Sound_speed(11,I24,I25) -> 525.9913549 | J38: =[2]!Sound_speed(11,J24,J25) -> 512.7453384 | K38: =[2]!Sound_speed(11,K24,K25) -> 499.1510863 | L38: =[2]!Sound_speed(11,L24,L25) -> 485.1793657 | M38: =[2]!Sound_speed(11,M24,M25) -> 470.7965985 | N38: =[2]!Sound_speed(11,N24,N25) -> 455.9639364 | O38: =[2]!Sound_speed(11,O24,O25) -> 440.6361149 | P38: =[2]!Sound_speed(11,P24,P25) -> 424.7600747 | Q38: =[2]!Sound_speed(11,Q24,Q25) -> 408.2734552 | R38: =[2]!Sound_speed(11,R24,R25) -> 406.166186 | S38: =[2]!Sound_speed(11,S24,S25) -> 404.048098 | T38: =[2]!Sound_speed(11,T24,T25) -> 401.9190346 | U38: =[2]!Sound_speed(11,U24,U25) -> 399.7788367 | V38: =[2]!Sound_speed(11,V24,V25) -> 397.6273432 | W38: =[2]!Sound_speed(11,W24,W25) -> 395.4643906 | X38: =[2]!Sound_speed(11,X24,X25) -> 393.2898137 | Y38: =[2]!Sound_speed(11,Y24,Y25) -> 391.1034458 | AK38: slope | AL38: =SLOPE(AL37:AM37,AL36:AM36) -> 1.375
B39: S=Q/(rho*V) = cte | D39: =D23/(D37*D38) -> 0.02864507195 | H39: =H23/(H37*H38) -> 0.0289463951 | I39: =I23/(I37*I38) -> 0.02893904766 | J39: 0.02892989714 | K39: 0.02891841002 | L39: 0.02890385369 | M39: 0.02888520317 | N39: 0.02886099348 | O39: 0.02882907832 | P39: 0.02878622096 | Q39: 0.0287273697 | R39: 0.02871852791 | S39: 0.02870929417 | T39: 0.02869964635 | U39: 0.02868956079 | V39: 0.02867901213 | W39: 0.02866797321 | X39: 0.02865641485 | Y39: 0.02864430571 | AK39: intercept | AL39: =INTERCEPT(AL37:AM37,AL36:AM36) -> -24.625
B40: Hin | D40: =[2]!H_(11,D24,D25) -> 223.5710661 | H40: =[2]!H_(11,H24,H25) -> 434.0074384 | I40: =[2]!H_(11,I24,I25) -> 413.118502 | J40: =[2]!H_(11,J24,J25) -> 392.211036 | K40: =[2]!H_(11,K24,K25) -> 371.2811154 | L40: =[2]!H_(11,L24,L25) -> 350.3236939 | M40: =[2]!H_(11,M24,M25) -> 329.332185 | N40: =[2]!H_(11,N24,N25) -> 308.2978417 | O40: =[2]!H_(11,O24,O25) -> 287.2088131 | P40: =[2]!H_(11,P24,P25) -> 266.0486638 | Q40: =[2]!H_(11,Q24,Q25) -> 244.793959 | R40: =[2]!H_(11,R24,R25) -> 242.128913 | S40: =[2]!H_(11,S24,S25) -> 239.4617892 | T40: =[2]!H_(11,T24,T25) -> 236.7925001 | U40: =[2]!H_(11,U24,U25) -> 234.120953 | V40: =[2]!H_(11,V24,V25) -> 231.4470502 | W40: =[2]!H_(11,W24,W25) -> 228.7706881 | X40: =[2]!H_(11,X24,X25) -> 226.0917575 | Y40: =[2]!H_(11,Y24,Y25) -> 223.4101423 | AK40: x | AL40: y
B41: Hout | D41: =[2]!H_(11,D26,D27) -> 175.9342849 | H41: =[2]!H_(11,H26,H27) -> 358.7072869 | I41: =[2]!H_(11,I26,I27) -> 340.0997504 | J41: =[2]!H_(11,J26,J27) -> 321.5538098 | K41: =[2]!H_(11,K26,K27) -> 303.0731131 | L41: =[2]!H_(11,L26,L27) -> 284.6614131 | M41: =[2]!H_(11,M26,M27) -> 266.3224527 | N41: =[2]!H_(11,N26,N27) -> 248.0597566 | O41: =[2]!H_(11,O26,O27) -> 229.8762631 | P41: =[2]!H_(11,P26,P27) -> 211.773673 | Q41: =[2]!H_(11,Q26,Q27) -> 193.7512759 | R41: =[2]!H_(11,R26,R27) -> 191.5039235 | S41: =[2]!H_(11,S26,S27) -> 189.2577349 | T41: =[2]!H_(11,T26,T27) -> 187.0126906 | U41: =[2]!H_(11,U26,U27) -> 184.7687691 | V41: =[2]!H_(11,V26,V27) -> 182.5259461 | W41: =[2]!H_(11,W26,W27) -> 180.2841947 | X41: =[2]!H_(11,X26,X27) -> 178.0434847 | Y41: =[2]!H_(11,Y26,Y27) -> 175.8037831 | AK41: 277 | AL41: =m*AK41+p -> 356.25
B42: Sin = Sout | D42: =[2]!S_(11,D24,D25) -> 15.48824406 | H42: =[2]!S_(11,H24,H25) -> 19.37861866 | I42: =[2]!S_(11,I24,I25) -> 19.09986189 | J42: =[2]!S_(11,J24,J25) -> 18.80481557 | K42: =[2]!S_(11,K24,K25) -> 18.4914474 | L42: =[2]!S_(11,L24,L25) -> 18.15731518 | M42: =[2]!S_(11,M24,M25) -> 17.79944679 | N42: =[2]!S_(11,N24,N25) -> 17.4141721 | O42: =[2]!S_(11,O24,O25) -> 16.99688094 | P42: =[2]!S_(11,P24,P25) -> 16.5416638 | Q42: =[2]!S_(11,Q24,Q25) -> 16.04075779 | R42: =[2]!S_(11,R24,R25) -> 15.97444699 | S42: =[2]!S_(11,S24,S25) -> 15.90723911 | T42: =[2]!S_(11,T24,T25) -> 15.83910881 | U42: =[2]!S_(11,U24,U25) -> 15.77002966 | V42: =[2]!S_(11,V24,V25) -> 15.69997403 | W42: =[2]!S_(11,W24,W25) -> 15.62891302 | X42: =[2]!S_(11,X24,X25) -> 15.55681639 | Y42: =[2]!S_(11,Y24,Y25) -> 15.48365247 | AK42: 31 | AL42: =m*AK42+p -> 18
B43: Tout(iso) | D43: =[1]!HeCalc(2,0,1,D26*10^5,8,D42*1000,1) -> 28.58076886 | H43: =[1]!HeCalc(2,0,1,H26*10^5,8,H42*1000,1) -> 59.74928202 | I43: =[1]!HeCalc(2,0,1,I26*10^5,8,I42*1000,1) -> 56.64627533 | J43: =[1]!HeCalc(2,0,1,J26*10^5,8,J42*1000,1) -> 53.54005283 | K43: =[1]!HeCalc(2,0,1,K26*10^5,8,K42*1000,1) -> 50.43051964 | L43: =[1]!HeCalc(2,0,1,L26*10^5,8,L42*1000,1) -> 47.31756698 | M43: =[1]!HeCalc(2,0,1,M26*10^5,8,M42*1000,1) -> 44.20106403 | N43: =[1]!HeCalc(2,0,1,N26*10^5,8,N42*1000,1) -> 41.08084407 | O43: =[1]!HeCalc(2,0,1,O26*10^5,8,O42*1000,1) -> 37.95668112 | P43: =[1]!HeCalc(2,0,1,P26*10^5,8,P42*1000,1) -> 34.82824953 | Q43: =[1]!HeCalc(2,0,1,Q26*10^5,8,Q42*1000,1) -> 31.69505243 | R43: =[1]!HeCalc(2,0,1,R26*10^5,8,R42*1000,1) -> 31.30303258 | S43: =[1]!HeCalc(2,0,1,S26*10^5,8,S42*1000,1) -> 30.91092448 | T43: =[1]!HeCalc(2,0,1,T26*10^5,8,T42*1000,1) -> 30.51872597 | U43: =[1]!HeCalc(2,0,1,U26*10^5,8,U42*1000,1) -> 30.12643482 | V43: =[1]!HeCalc(2,0,1,V26*10^5,8,V42*1000,1) -> 29.73404857 | W43: =[1]!HeCalc(2,0,1,W26*10^5,8,W42*1000,1) -> 29.34156463 | X43: =[1]!HeCalc(2,0,1,X26*10^5,8,X42*1000,1) -> 28.94898021 | Y43: =[1]!HeCalc(2,0,1,Y26*10^5,8,Y42*1000,1) -> 28.55629235 | AK43: 31 | AL43: =m*AK43+p -> 18
B44: Hout(iso) | D44: =[2]!H_(11,D26,D43) -> 162.4982696 | H44: =[2]!H_(11,H26,H43) -> 326.6903404 | I44: =[2]!H_(11,I26,I43) -> 310.4712199 | J44: =[2]!H_(11,J26,J43) -> 294.2205664 | K44: =[2]!H_(11,K26,K43) -> 277.9349869 | L44: =[2]!H_(11,L26,L43) -> 261.6102407 | M44: =[2]!H_(11,M26,M43) -> 245.2409233 | N44: =[2]!H_(11,N26,N43) -> 228.8199939 | O44: =[2]!H_(11,O26,O43) -> 212.3380534 | P44: =[2]!H_(11,P26,P43) -> 195.7822033 | Q44: =[2]!H_(11,Q26,Q43) -> 179.1341716 | R44: =[2]!H_(11,R26,R43) -> 177.0454735 | S44: =[2]!H_(11,S26,S43) -> 174.9548684 | T44: =[2]!H_(11,T26,T43) -> 172.8622882 | U44: =[2]!H_(11,U26,U43) -> 170.7676611 | V44: =[2]!H_(11,V26,V43) -> 168.670911 | W44: =[2]!H_(11,W26,W43) -> 166.5719574 | X44: =[2]!H_(11,X26,X43) -> 164.4707154 | Y44: =[2]!H_(11,Y26,Y43) -> 162.3670947
B45: ΔHs | D45: =D40-D44 -> 61.07279652 | H45: 107.317098 | I45: 102.6472821 | J45: 97.99046961 | K45: 93.34612853 | L45: 88.71345324 | M45: 84.09126172 | N45: 79.47784778 | O45: 74.8707597 | P45: 70.26646057 | Q45: 65.65978739 | R45: 65.08343949 | S45: 64.50692082 | T45: 63.93021187 | U45: 63.35329191 | V45: 62.77613921 | W45: 62.19873069 | X45: 61.6210421 | Y45: 61.04304755
B46: u1 | C46: m/s | D46: =(2*52.7%*D45*1000*D28)^0.5 -> 224.0740223 | H46: =PI()*$D$47*H30 -> 224.0740223 | I46: =PI()*$D$47*I30 -> 224.0740223 | J46: 224.0740223 | K46: 224.0740223 | L46: 224.0740223 | M46: 224.0740223 | N46: 224.0740223 | O46: 224.0740223 | P46: 224.0740223 | Q46: 224.0740223 | R46: 224.0740223 | S46: 224.0740223 | T46: 224.0740223 | U46: 224.0740223 | V46: 224.0740223 | W46: 224.0740223 | X46: 224.0740223 | Y46: 224.0740223
B47: D1 | D47: =D46/PI()/D30 -> 0.03575186794
B48: Co = (2*ΔHs)^0,5 | D48: =(2000*D45)^0.5 -> 349.4933376 | H48: 463.2863002 | I48: 453.0944319 | J48: 442.6973449 | K48: 432.078994 | L48: 421.2207337 | M48: 410.100626 | N48: 398.6924825 | O48: 386.9644937 | P48: 374.8772081 | Q48: 362.3804283 | R48: 360.7864728 | S48: 359.1849686 | T48: 357.5757594 | U48: 355.9586827 | V48: 354.3335694 | W48: 352.7002429 | X48: 351.0585196 | Y48: 349.408207
B49: u1/Co | D49: =D46/D48 -> 0.6411396104 | H49: 0.4836620945 | I49: 0.4945415493 | J49: 0.5061562371 | K49: 0.518595038 | L49: 0.5319634206 | M49: 0.5463879061 | N49: 0.5620221905 | O49: 0.5790557685 | P49: 0.5977264488 | Q49: 0.618339195 | R49: 0.621071019 | S49: 0.6238401991 | T49: 0.6266476862 | U49: 0.6294944699 | V49: 0.6323815795 | W49: 0.6353100878 | X49: 0.6382811121 | Y49: 0.6412958191
B50: U1/C0 off de / U1/C0 nom | D50: =D49/$D$49 -> 1 | H50: =H49/$D49 -> 0.7543787448 | I50: =I49/$D49 -> 0.7713476773 | J50: 0.7894633695 | K50: 0.8088644495 | L50: 0.8297154192 | M50: 0.8522136165 | N50: 0.8765987647 | O50: 0.903166423 | P50: 0.9322875067 | Q50: 0.9644376748 | R50: 0.9686985625 | S50: 0.9730177157 | T50: 0.977396617 | U50: 0.9818368102 | V50: 0.9863399005 | W50: 0.9909075613 | X50: 0.9955415354 | Y50: 1.000243642
B51: Rdt | D51: =(0.321*D50^4-1.6098*D50^3+1.316*D50^2+0.9448*D50)*($D28/0.97215493) -> 0.7798756933 | H51: =(0.321*H50^4-1.6098*H50^3+1.316*H50^2+0.9448*H50)*($D28/0.97) -> 0.7032191331 | I51: 0.7129362501 | J51: 0.7226641219 | K51: 0.7323231589 | L51: 0.7418058062 | M51: 0.7509664142 | N51: 0.7596067371 | O51: 0.7674547296 | P51: 0.7741327305 | Q51: 0.7791081929 | R51: 0.7795755289 | S51: 0.780002919 | T51: 0.7803884536 | U51: 0.7807301262 | V51: 0.7810258273 | W51: 0.7812733382 | X51: 0.7814703233 | Y51: 0.7816143235
B54: TURBINE 2
H55: 5
D56: DESIGN | H56: =H21 -> start-up | I56: =I21 -> start-up | J56: start-up | K56: start-up | L56: start-up | M56: start-up | N56: start-up | O56: start-up | P56: start-up | Q56: start-up | R56: 0 | S56: 0 | T56: 0 | U56: 0 | V56: 0 | W56: 0 | X56: 0 | Y56: 0
B57: Delta Debit | H57: =H58-H23 -> -43.70561896 | I57: =I58-I23 -> -44.30079477 | J57: -44.81943038 | K57: -45.20499415 | L57: -45.36608242 | M57: -45.15045909 | N57: -44.294141 | O57: -42.31347226 | P57: -38.25104375 | Q57: -29.97970045 | R57: -28.44137062 | S57: -26.74408896 | T57: -24.86734748 | U57: -22.78704887 | V57: -20.47466718 | W57: -17.89615163 | X57: -15.01047527 | Y57: -11.76768006
B58: m | C58: g/s | D58: 191.2 | H58: =H71*H59/H60^0.5 -> 77.44212685 | I58: 80.63209479 | J58: 84.28900077 | K58: 88.5394829 | L58: 93.56365766 | M58: 99.6278677 | N58: 107.14566 | O58: 116.8010906 | P58: 129.8271716 | Q58: 148.7421666 | R58: 151.7550841 | S58: 154.96322 | T58: 158.3885492 | U58: 162.0567189 | V58: 165.997895 | W58: 170.2478645 | X58: 174.8494946 | Y58: 179.8546953
B59: Pin | C59: Bara | D59: 6.307 | H59: 4.861873661 | I59: 4.870429332 | J59: 4.883560278 | K59: 4.902920113 | L59: 4.930954228 | M59: 4.971421905 | N59: 5.030394273 | O59: 5.118332215 | P59: 5.254941335 | Q59: 5.482556501 | R59: 5.521509168 | S59: 5.563717131 | T59: 5.609585429 | U59: 5.659591429 | V59: 5.714302344 | W59: 5.774398267 | X59: 5.840702945 | Y59: 5.914225539
B60: Tin | C60: K | D60: 18.21 | H60: =m*H27+p -> 65.96185408 | I60: =m*I27+p -> 61.06026247 | J60: 56.17865717 | K60: 51.31871004 | L60: 46.4823011 | M60: 41.67154784 | N60: 36.88883521 | O60: 32.13684264 | P60: 27.4185581 | Q60: =m*Q27+p -> 22.73725775 | R60: 22.15486743 | S60: 21.573116 | T60: 20.99201029 | U60: 20.41155712 | V60: 19.83176321 | W60: 19.25263523 | X60: 18.67417974 | Y60: 18.0964032
B61: Pout | C61: Bara | D61: 1.35 | H61: 1.15 | I61: 1.15 | J61: 1.15 | K61: 1.15 | L61: 1.15 | M61: 1.15 | N61: 1.15 | O61: 1.15 | P61: 1.15 | Q61: 1.15 | R61: 1.15 | S61: 1.15 | T61: 1.15 | U61: 1.15 | V61: 1.15 | W61: 1.15 | X61: 1.15 | Y61: 1.15
B62: Tout | C62: K | D62: =[2]!T2_turb(11,D59,D60,D61,D63) -> 11.61835748 | H62: =[2]!T2_turb(11,H59,H60,H61,H63) -> 51.22974239 | I62: =[2]!T2_turb(11,I59,I60,I61,I63) -> 46.90577154 | J62: =[2]!T2_turb(11,J59,J60,J61,J63) -> 42.63076813 | K62: =[2]!T2_turb(11,K59,K60,K61,K63) -> 38.41058605 | L62: =[2]!T2_turb(11,L59,L60,L61,L63) -> 34.25229646 | M62: =[2]!T2_turb(11,M59,M60,M61,M63) -> 30.16456112 | N62: =[2]!T2_turb(11,N59,N60,N61,N63) -> 26.15815236 | O62: =[2]!T2_turb(11,O59,O60,O61,O63) -> 22.24667164 | P62: =[2]!T2_turb(11,P59,P60,P61,P63) -> 18.4474735 | Q62: =[2]!T2_turb(11,Q59,Q60,Q61,Q63) -> 14.78242633 | R62: =[2]!T2_turb(11,R59,R60,R61,R63) -> 14.33496556 | S62: =[2]!T2_turb(11,S59,S60,S61,S63) -> 13.89003703 | T62: =[2]!T2_turb(11,T59,T60,T61,T63) -> 13.44768291 | U62: =[2]!T2_turb(11,U59,U60,U61,U63) -> 13.00794005 | V62: =[2]!T2_turb(11,V59,V60,V61,V63) -> 12.57083756 | W62: =[2]!T2_turb(11,W59,W60,W61,W63) -> 12.13639374 | X62: =[2]!T2_turb(11,X59,X60,X61,X63) -> 11.70461172 | Y62: =[2]!T2_turb(11,Y59,Y60,Y61,Y63) -> 11.27547342
B63: Efficacity | C63: % | D63: 0.76 | H63: =(0.321*H85^4-1.6098*H85^3+1.316*H85^2+0.9448*H85)*($D$63/0.97215493) -> 0.511993324 | I63: =(0.321*I85^4-1.6098*I85^3+1.316*I85^2+0.9448*I85)*($D$63/0.97215493) -> 0.5306103036 | J63: 0.5508296372 | K63: 0.5728203529 | L63: 0.5967443772 | M63: 0.6227232253 | N63: 0.6507637727 | O63: 0.6805896555 | P63: 0.71123727 | Q63: 0.7399887068 | R63: 0.7431635626 | S63: 0.7461804199 | T63: 0.7490111969 | U63: 0.7516232101 | V63: 0.7539782304 | W63: 0.7560312835 | X63: 0.7577291056 | Y63: 0.7590081229
B64: Power | C64: W | D64: =+D58*(D75-D76) -> 6144.650346 | H64: 5991.034087 | I64: 5991.034087 | J64: 5991.034087 | K64: 5991.034087 | L64: 5991.034087 | M64: 5991.034087 | N64: 5991.034087 | O64: 5991.034087 | P64: 5991.034087 | Q64: 5991.034087 | R64: 5991.034087 | S64: 5991.034087 | T64: 5991.034087 | U64: 5991.034087 | V64: 5991.034087 | W64: 5991.034087 | X64: 5991.034087 | Y64: 5991.034087
B65: Speed | C65: Hz | D65: 1496 | H65: 1496 | I65: 1496 | J65: 1496 | K65: 1496 | L65: 1496 | M65: 1496 | N65: 1496 | O65: 1496 | P65: 1496 | Q65: 1496 | R65: 1496 | S65: 1496 | T65: 1496 | U65: 1496 | V65: 1496 | W65: 1496 | X65: 1496 | Y65: 1496
H66: =(H64/$D64*$D68/H68)^(1/3)*$D65 -> 1496 | I66: =(I64/$D64*$D68/I68)^(1/3)*$D65 -> 1496 | J66: 1496 | K66: 1496 | L66: 1496 | M66: 1496 | N66: 1496 | O66: 1496 | P66: 1496 | Q66: 1496 | R66: 1496 | S66: 1496 | T66: 1496 | U66: 1496 | V66: 1496 | W66: 1496 | X66: 1496 | Y66: 1496
B67: Delta Speed Frein & Turbine | H67: =H65-H66 -> -3.985860531e-10 | I67: =I65-I66 -> 2.65390554e-09 | J67: 2.07114681e-09 | K67: -5.408764991e-09 | L67: -1.841272024e-09 | M67: -4.012463251e-09 | N67: -3.393097359e-09 | O67: 1.429680196e-08 | P67: -1.732610144e-08 | Q67: =Q65-Q66 -> -6.184109225e-09 | R67: =R65-R66 -> -3.611830834e-09 | S67: -1.751914169e-09 | T67: 2.092087925e-08 | U67: 7.294602256e-09 | V67: 1.658690962e-09 | W67: -1.317516762e-08 | X67: -3.503828339e-10 | Y67: -1.159605745e-11
B68: Brake Pressure | D68: 8 | H68: =($D68-$D61)+H61 -> 7.8 | I68: =($D68-$D61)+I61 -> 7.8 | J68: 7.8 | K68: 7.8 | L68: 7.8 | M68: 7.8 | N68: 7.8 | O68: 7.8 | P68: 7.8 | Q68: 7.8 | R68: 7.8 | S68: 7.8 | T68: 7.8 | U68: 7.8 | V68: 7.8 | W68: 7.8 | X68: 7.8 | Y68: 7.8
B69: Rho (brake) | D69: =[2]!rho_(11,D68,330) -> 1.16324325 | H69: =[2]!rho_(11,H68,330) -> 1.134254938 | I69: =[2]!rho_(11,I68,330) -> 1.134254938 | J69: =[2]!rho_(11,J68,330) -> 1.134254938 | K69: =[2]!rho_(11,K68,330) -> 1.134254938 | L69: =[2]!rho_(11,L68,330) -> 1.134254938 | M69: =[2]!rho_(11,M68,330) -> 1.134254938 | N69: =[2]!rho_(11,N68,330) -> 1.134254938 | O69: =[2]!rho_(11,O68,330) -> 1.134254938 | P69: =[2]!rho_(11,P68,330) -> 1.134254938 | Q69: =[2]!rho_(11,Q68,330) -> 1.134254938 | R69: =[2]!rho_(11,R68,330) -> 1.134254938 | S69: =[2]!rho_(11,S68,330) -> 1.134254938 | T69: =[2]!rho_(11,T68,330) -> 1.134254938 | U69: =[2]!rho_(11,U68,330) -> 1.134254938 | V69: =[2]!rho_(11,V68,330) -> 1.134254938 | W69: =[2]!rho_(11,W68,330) -> 1.134254938 | X69: =[2]!rho_(11,X68,330) -> 1.134254938 | Y69: =[2]!rho_(11,Y68,330) -> 1.134254938
B70: Wheel | C70: mm | D70: 39.5 | H70: =$D$35 -> 35.8 | I70: =$D$35 -> 35.8 | J70: 35.8 | K70: 35.8 | L70: 35.8 | M70: 35.8 | N70: 35.8 | O70: 35.8 | P70: 35.8 | Q70: 35.8 | R70: 35.8 | S70: 35.8 | T70: 35.8 | U70: 35.8 | V70: 35.8 | W70: 35.8 | X70: 35.8 | Y70: 35.8
B71: a = mÖT/P | D71: =D58*D60^0.5/D59 -> 129.3659642 | H71: =$D$71 -> 129.3659642 | I71: 129.3659642 | J71: 129.3659642 | K71: 129.3659642 | L71: 129.3659642 | M71: 129.3659642 | N71: 129.3659642 | O71: 129.3659642 | P71: 129.3659642 | Q71: 129.3659642 | R71: 129.3659642 | S71: 129.3659642 | T71: 129.3659642 | U71: 129.3659642 | V71: 129.3659642 | W71: 129.3659642 | X71: 129.3659642 | Y71: 129.3659642
B72: Rho (in) | C72: kg/m3 | D72: =[2]!rho_(11,D59,D60) -> 16.81725024 | H72: =[2]!rho_(11,H59,H60) -> 3.512891091 | I72: =[2]!rho_(11,I59,I60) -> 3.799396071 | J72: =[2]!rho_(11,J59,J60) -> 4.138190323 | K72: =[2]!rho_(11,K59,K60) -> 4.545251093 | L72: =[2]!rho_(11,L59,L60) -> 5.043886521 | M72: =[2]!rho_(11,M59,M60) -> 5.669539629 | N72: =[2]!rho_(11,N59,N60) -> 6.478995422 | O72: =[2]!rho_(11,O59,O60) -> 7.569632696 | P72: =[2]!rho_(11,P59,P60) -> 9.124668089 | Q72: =[2]!rho_(11,Q59,Q60) -> 11.5388189 | R72: =[2]!rho_(11,R59,R60) -> 11.93939519 | S72: =[2]!rho_(11,S59,S60) -> 12.37059109 | T72: =[2]!rho_(11,T59,T60) -> 12.83622346 | U72: =[2]!rho_(11,U59,U60) -> 13.34079633 | V72: =[2]!rho_(11,V59,V60) -> 13.88966812 | W72: =[2]!rho_(11,W59,W60) -> 14.4892716 | X72: =[2]!rho_(11,X59,X60) -> 15.14740768 | Y72: =[2]!rho_(11,Y59,Y60) -> 15.87364417
B73: Sound Speed | D73: =[2]!Sound_speed(11,D59,D60) -> 258.3914638 | H73: =[2]!Sound_speed(11,H59,H60) -> 482.9973613 | I73: =[2]!Sound_speed(11,I59,I60) -> 465.0919693 | J73: =[2]!Sound_speed(11,J59,J60) -> 446.5384457 | K73: =[2]!Sound_speed(11,K59,K60) -> 427.2558616 | L73: =[2]!Sound_speed(11,L59,L60) -> 407.1435595 | M73: =[2]!Sound_speed(11,M59,M60) -> 386.0732238 | N73: =[2]!Sound_speed(11,N59,N60) -> 363.8761048 | O73: =[2]!Sound_speed(11,O59,O60) -> 340.3211055 | P73: =[2]!Sound_speed(11,P59,P60) -> 315.074057 | Q73: =[2]!Sound_speed(11,Q59,Q60) -> 287.613973 | R73: =[2]!Sound_speed(11,R59,R60) -> 283.9874195 | S73: =[2]!Sound_speed(11,S59,S60) -> 280.3108538 | T73: =[2]!Sound_speed(11,T59,T60) -> 276.5817193 | U73: =[2]!Sound_speed(11,U59,U60) -> 272.7972358 | V73: =[2]!Sound_speed(11,V59,V60) -> 268.954378 | W73: =[2]!Sound_speed(11,W59,W60) -> 265.0498549 | X73: =[2]!Sound_speed(11,X59,X60) -> 261.0800931 | Y73: =[2]!Sound_speed(11,Y59,Y60) -> 257.0412303
B74: S=Q/(rho*V) = cte | D74: =D58/(D72*D73) -> 0.04400020898 | H74: 0.04564233224 | I74: 0.045630427 | J74: 0.04561436025 | K74: 0.04559225487 | L74: 0.04556111196 | M74: 0.04551592342 | N74: 0.04544785327 | O74: 0.04534017666 | P74: 0.04515812223 | Q74: 0.04481906216 | R74: 0.0447570878 | S74: 0.0446887561 | T74: 0.04461316555 | U74: 0.04452924404 | V74: 0.04443570696 | W74: 0.04433100214 | X74: 0.04421323658 | Y74: 0.04408007738
B75: Hin | D75: =[2]!H_(11,D59,D60) -> 105.9022075 | H75: =[2]!H_(11,H59,H60) -> 358.8181564 | I75: =[2]!H_(11,I59,I60) -> 333.2624076 | J75: =[2]!H_(11,J59,J60) -> 307.7889039 | K75: =[2]!H_(11,K59,K60) -> 282.3996268 | L75: =[2]!H_(11,L59,L60) -> 257.0946363 | M75: =[2]!H_(11,M59,M60) -> 231.8703374 | N75: =[2]!H_(11,N59,N60) -> 206.7161146 | O75: =[2]!H_(11,O59,O60) -> 181.6073385 | P75: =[2]!H_(11,P59,P60) -> 156.4893313 | Q75: =[2]!H_(11,Q59,Q60) -> 131.2347363 | R75: =[2]!H_(11,R59,R60) -> 128.05572 | S75: =[2]!H_(11,S59,S60) -> 124.8689512 | T75: =[2]!H_(11,T59,T60) -> 121.6732012 | U75: =[2]!H_(11,U59,U60) -> 118.4670308 | V75: =[2]!H_(11,V59,V60) -> 115.2487413 | W75: =[2]!H_(11,W59,W60) -> 112.0163119 | X75: =[2]!H_(11,X59,X60) -> 108.7673175 | Y75: =[2]!H_(11,Y59,Y60) -> 105.4988175
B76: Hout | D76: =[2]!H_(11,D61,D62) -> 73.76491485 | H76: =[2]!H_(11,H61,H62) -> 281.4567211 | I76: =[2]!H_(11,I61,I62) -> 258.9615464 | J76: =[2]!H_(11,J61,J62) -> 236.7116099 | K76: =[2]!H_(11,K61,K62) -> 214.7345141 | L76: =[2]!H_(11,L61,L62) -> 193.0630001 | M76: =[2]!H_(11,M61,M62) -> 171.736218 | N76: =[2]!H_(11,N61,N62) -> 150.8012591 | O76: =[2]!H_(11,O61,O62) -> 130.3147173 | P76: =[2]!H_(11,P61,P62) -> 110.3431047 | Q76: =[2]!H_(11,Q61,Q62) -> 90.9567558 | R76: =[2]!H_(11,R61,R62) -> 88.57741113 | S76: =[2]!H_(11,S61,S62) -> 86.20794449 | T76: =[2]!H_(11,T61,T62) -> 83.84828198 | U76: =[2]!H_(11,U61,U62) -> 81.49828232 | V76: =[2]!H_(11,V61,V62) -> 79.15771682 | W76: =[2]!H_(11,W61,W62) -> 76.826243 | X76: =[2]!H_(11,X61,X62) -> 74.50336896 | Y76: =[2]!H_(11,Y61,Y62) -> 72.18840502
B77: Sin = Sout | D77: =[2]!S_(11,D59,D60) -> 13.04156759 | H77: =[2]!S_(11,H59,H60) -> 20.45482723 | I77: =[2]!S_(11,I59,I60) -> 20.04855254 | J77: =[2]!S_(11,J59,J60) -> 19.60808679 | K77: =[2]!S_(11,K59,K60) -> 19.12707585 | L77: =[2]!S_(11,L59,L60) -> 18.59717852 | M77: =[2]!S_(11,M59,M60) -> 18.00712239 | N77: =[2]!S_(11,N59,N60) -> 17.34110798 | O77: =[2]!S_(11,O59,O60) -> 16.57591561 | P77: =[2]!S_(11,P59,P60) -> 15.67514042 | Q77: =[2]!S_(11,Q59,Q60) -> 14.57601635 | R77: =[2]!S_(11,R59,R60) -> 14.41959182 | S77: =[2]!S_(11,S59,S60) -> 14.25794166 | T77: =[2]!S_(11,T59,T60) -> 14.09066802 | U77: =[2]!S_(11,U59,U60) -> 13.91732132 | V77: =[2]!S_(11,V59,V60) -> 13.73739014 | W77: =[2]!S_(11,W59,W60) -> 13.55028832 | X77: =[2]!S_(11,X59,X60) -> 13.35533828 | Y77: =[2]!S_(11,Y59,Y60) -> 13.15174923
B78: Tout(iso) | D78: =[1]!HeCalc(2,0,1,D61*10^5,8,D77*1000,1) -> 9.763910711 | H78: =[1]!HeCalc(2,0,1,H61*10^5,8,H77*1000,1) -> 37.06418163 | I78: =[1]!HeCalc(2,0,1,I61*10^5,8,I77*1000,1) -> 34.28496722 | J78: =[1]!HeCalc(2,0,1,J61*10^5,8,J77*1000,1) -> 31.5087182 | K78: =[1]!HeCalc(2,0,1,K61*10^5,8,K77*1000,1) -> 28.73552808 | L78: =[1]!HeCalc(2,0,1,L61*10^5,8,L77*1000,1) -> 25.96540591 | M78: =[1]!HeCalc(2,0,1,M61*10^5,8,M77*1000,1) -> 23.1981943 | N78: =[1]!HeCalc(2,0,1,N61*10^5,8,N77*1000,1) -> 20.43340639 | O78: =[1]!HeCalc(2,0,1,O61*10^5,8,O77*1000,1) -> 17.66987855 | P78: =[1]!HeCalc(2,0,1,P61*10^5,8,P77*1000,1) -> 14.90495571 | Q78: =[1]!HeCalc(2,0,1,Q61*10^5,8,Q77*1000,1) -> 12.1322916 | R78: =[1]!HeCalc(2,0,1,R61*10^5,8,R77*1000,1) -> 11.78452786 | S78: =[1]!HeCalc(2,0,1,S61*10^5,8,S77*1000,1) -> 11.43635823 | T78: =[1]!HeCalc(2,0,1,T61*10^5,8,T77*1000,1) -> 11.08772017 | U78: =[1]!HeCalc(2,0,1,U61*10^5,8,U77*1000,1) -> 10.7385405 | V78: =[1]!HeCalc(2,0,1,V61*10^5,8,V77*1000,1) -> 10.388733 | W78: =[1]!HeCalc(2,0,1,W61*10^5,8,W77*1000,1) -> 10.03819541 | X78: =[1]!HeCalc(2,0,1,X61*10^5,8,X77*1000,1) -> 9.686805475 | Y78: =[1]!HeCalc(2,0,1,Y61*10^5,8,Y77*1000,1) -> 9.334415781
B79: Hout(iso) | D79: =[2]!H_(11,D61,D78) -> 63.61629614 | H79: =[2]!H_(11,H61,H78) -> 207.7196329 | I79: =[2]!H_(11,I61,I78) -> 193.2333491 | J79: =[2]!H_(11,J61,J78) -> 178.7521034 | K79: =[2]!H_(11,K61,K78) -> 164.27339 | L79: =[2]!H_(11,L61,L78) -> 149.79302 | M79: =[2]!H_(11,M61,M78) -> 135.3039706 | N79: =[2]!H_(11,N61,N78) -> 120.7942213 | O79: =[2]!H_(11,O61,O78) -> 106.2423653 | P79: =[2]!H_(11,P61,P78) -> 91.60771081 | Q79: =[2]!H_(11,Q61,Q78) -> 76.80420225 | R79: =[2]!H_(11,R61,R78) -> 74.93375484 | S79: =[2]!H_(11,S61,S78) -> 73.05707612 | T79: =[2]!H_(11,T61,T78) -> 71.1733964 | U79: =[2]!H_(11,U61,U78) -> 69.28181673 | V79: =[2]!H_(11,V61,V78) -> 67.38127906 | W79: =[2]!H_(11,W61,W78) -> 65.47052778 | X79: =[2]!H_(11,X61,X78) -> 63.54805868 | Y79: =[2]!H_(11,Y61,Y78) -> 61.61205071
B80: ΔHs | D80: =D75-D79 -> 42.28591132 | H80: 151.0985235 | I80: 140.0290585 | J80: 129.0368005 | K80: 118.1262368 | L80: 107.3016163 | M80: 96.56636675 | N80: 85.92189328 | O80: 75.36497316 | P80: 64.88162051 | Q80: 54.43053404 | R80: 53.1219652 | S80: 51.81187507 | T80: 50.49980483 | U80: 49.18521411 | V80: 47.86746221 | W80: 46.54578416 | X80: 45.21925883 | Y80: 43.88676678
B81: u1 | C81: m/s | D81: =(2*52.7%*D80*1000*D63)^0.5 -> 184.0453922 | H81: =PI()*$D$82*H65 -> 184.0453922 | I81: 184.0453922 | J81: 184.0453922 | K81: 184.0453922 | L81: 184.0453922 | M81: 184.0453922 | N81: 184.0453922 | O81: 184.0453922 | P81: 184.0453922 | Q81: =PI()*$D$82*Q65 -> 184.0453922 | R81: =PI()*$D$82*R65 -> 184.0453922 | S81: 184.0453922 | T81: 184.0453922 | U81: 184.0453922 | V81: 184.0453922 | W81: 184.0453922 | X81: 184.0453922 | Y81: 184.0453922
B82: D1 | D82: =D81/PI()/D65 -> 0.0391600721
B83: Co = (2*ΔHs)^0,5 | D83: =(2000*D80)^0.5 -> 290.8123495 | H83: 549.7245192 | I83: 529.2051748 | J83: 508.0094496 | K83: 486.058097 | L83: 463.2528819 | M83: 439.4686946 | N83: 414.5404523 | O83: 388.2395476 | P83: 360.2266523 | Q83: 329.941007 | R83: 325.9508098 | S83: 321.9064307 | T83: 317.8043575 | U83: 313.6406036 | V83: 309.4106081 | W83: 305.1091089 | X83: 300.7299746 | Y83: 296.2659845
B84: u1/Co | D84: =D81/D83 -> 0.6328664946 | H84: 0.3347956764 | I84: 0.3477770079 | J84: 0.3622873401 | K84: 0.3786489586 | L84: 0.3972892548 | M84: 0.4187906773 | N84: 0.4439745054 | O84: 0.4740511197 | P84: 0.5109155335 | Q84: 0.5578130282 | R84: 0.5646416168 | S84: 0.5717356805 | T84: 0.579115383 | U84: 0.5868034627 | V84: 0.5948257345 | W84: 0.6032117262 | X84: 0.6119955035 | Y84: 0.6212167507
B85: U1/C0 off de / U1/C0 nom | D85: =D84/$D$49 -> 0.9870962336 | H85: =H84/$D84 -> 0.5290146962 | I85: =I84/$D84 -> 0.5495266551 | J85: 0.5724546064 | K85: 0.5983077976 | L85: 0.6277615551 | M85: 0.6617362127 | N85: 0.7015294839 | O85: 0.7490539059 | P85: 0.8073038119 | Q85: 0.8814071103 | R85: 0.8921970457 | S85: 0.9034064616 | T85: 0.9150672187 | U85: 0.9272152464 | V85: 0.939891335 | W85: 0.9531421418 | X85: 0.9670214945 | Y85: 0.9815920988
B86: Rdt | D86: =(0.321*D85^4-1.6098*D85^3+1.316*D85^2+0.9448*D85)*($D63/0.97215493) -> 0.7593560473 | H86: =(0.321*H85^4-1.6098*H85^3+1.316*H85^2+0.9448*H85)*($D63/0.97215493) -> 0.511993324 | I86: =(0.321*I85^4-1.6098*I85^3+1.316*I85^2+0.9448*I85)*($D63/0.97215493) -> 0.5306103036 | J86: 0.5508296372 | K86: 0.5728203529 | L86: 0.5967443772 | M86: 0.6227232253 | N86: 0.6507637727 | O86: 0.6805896555 | P86: 0.71123727 | Q86: 0.7399887068 | R86: 0.7431635626 | S86: 0.7461804199 | T86: 0.7490111969 | U86: 0.7516232101 | V86: 0.7539782304 | W86: 0.7560312835 | X86: 0.7577291056 | Y86: 0.7590081229
B88: TURBINE 3
D90: DESIGN | F90: =F56 -> 0 | G90: =G56 -> 0 | H90: =H56 -> start-up | I90: =I56 -> start-up
B92: m | C92: g/s | D92: 399.8 | F92: =F105/(F95*F94)^0.5*F93 -> 161.4761819 | G92: =G105/(G95*G94)^0.5*G93 -> 95.0804152 | I92: 117.1010273
B93: Pin | C93: Bara | D93: 13.07 | F93: 13.07 | G93: 7.369 | I93: 10.48
B94: Tin | C94: K | D94: 7.292 | F94: 9.16 | G94: 7.912 | I94: 10.55
B95: Pout | C95: Bara | D95: 4.88 | F95: 4.88 | G95: 5.18 | I95: 5.18
B96: Tout | C96: K | D96: =[2]!T2_turb(11,D93,D94,D95,D97) -> 6.11984088 | F96: =[2]!T2_turb(11,F93,F94,F95,F97) -> 7.049446306 | G96: =[2]!T2_turb(11,G93,G94,G95,G97) -> 7.14472539 | H96: =[2]!T2_turb(11,H93,H94,H95,H97) ->  | I96: =[2]!T2_turb(11,I93,I94,I95,I97) -> 8.690381514
B97: Efficacity | C97: % | D97: 0.72 | F97: =(0.321*F119^4-1.6098*F119^3+1.316*F119^2+0.9448*F119)*($D$97/0.97215493) -> 0.5817973136 | G97: =(0.321*G119^4-1.6098*G119^3+1.316*G119^2+0.9448*G119)*($D$97/0.97215493) -> 0.5827244835 | H97: =(0.321*H119^4-1.6098*H119^3+1.316*H119^2+0.9448*H119)*($D$97/0.97215493) ->  | I97: =(0.321*I119^4-1.6098*I119^3+1.316*I119^2+0.9448*I119)*($D$97/0.97215493) -> 0.5020164146
B98: Power | C98: W | D98: =+D92*(D109-D110) -> 2075.54042 | F98: 954.7418418 | G98: 182.514095 | I98: 610.6783435
B99: Speed | C99: Hz | D99: 2076 | F99: 1602.55252 | G99: 914.2081865 | H99: 862.6625785 | I99: 1367.362934
F100: =(F98/$D98*$D102/F102)^(1/3)*$D99 -> 1602.552512 | G100: =(G98/$D98*$D102/G102)^(1/3)*$D99 -> 914.2081711 | H100: =(H98/$D98*$D102/H102)^(1/3)*$D99 ->  | I100: =(I98/$D98*$D102/I102)^(1/3)*$D99 -> 1367.36293
F101: =F99-F100 -> 7.275503322e-06 | G101: =G99-G100 -> 1.541953168e-05 | H101: =H99-H100 ->  | I101: =I99-I100 -> 4.300091632e-06
B102: Brake Pressure | D102: 10.1 | F102: =($D102-$D95)+F95 -> 10.1 | G102: =($D102-$D95)+G95 -> 10.4 | H102: =($D102-$D95)+H95 -> 5.22 | I102: =($D102-$D95)+I95 -> 10.4
B103: Rho (brake) | D103: =[2]!rho_(11,D102,330) -> 1.467334205 | F103: =[2]!rho_(11,F102,330) -> 1.467334205 | G103: =[2]!rho_(11,G102,330) -> 1.510733122 | H103: =[2]!rho_(11,H102,330) -> 0.7598798717 | I103: =[2]!rho_(11,I102,330) -> 1.510733122
B104: Wheel | C104: mm | D104: 29.5 | F104: =$D$104 -> 29.5 | G104: =$D$104 -> 29.5 | H104: =$D$104 -> 29.5 | I104: =$D$104 -> 29.5
B105: a = mÖT/P | D105: =D92*D94^0.5/D93 -> 82.60199418 | F105: =$D$105 -> 82.60199418 | G105: =$D$105 -> 82.60199418 | H105: 82.60199418 | I105: 82.60199418
B106: Rho (in) | C106: kg/m3 | D106: =[2]!rho_(11,D93,D94) -> 122.041385 | F106: =[2]!rho_(11,F93,F94) -> 92.04202254 | G106: =[2]!rho_(11,G93,G94) -> 70.6496495 | H106: =[2]!rho_(11,H93,H94) -> NUM | I106: =[2]!rho_(11,I93,I94) -> 58.78998557
B107: Sound Speed | D107: =[2]!Sound_speed(11,D93,D94) -> 249.0567129 | F107: =[2]!Sound_speed(11,F93,F94) -> 219.0353462 | G107: =[2]!Sound_speed(11,G93,G94) -> 170.7864441 | H107: =[2]!Sound_speed(11,H93,H94) -> NUM | I107: =[2]!Sound_speed(11,I93,I94) -> 204.2669237
B108: S=Q/(rho*V) = cte | D108: =D92/(D106*D107) -> 0.01315338131 | F108: 0.008009549968 | G108: 0.007880026204 | I108: 0.009751227821
B109: Hin | D109: =[2]!H_(11,D93,D94) -> 28.15088458 | F109: =[2]!H_(11,F93,F94) -> 40.89014045 | G109: =[2]!H_(11,G93,G94) -> 36.81164396 | H109: =[2]!H_(11,H93,H94) ->  | I109: =[2]!H_(11,I93,I94) -> 54.05983231
B110: Hout | D110: =[2]!H_(11,D95,D96) -> 22.9594378 | F110: =[2]!H_(11,F95,F96) -> 34.97755427 | G110: =[2]!H_(11,G95,G96) -> 34.89206784 | H110: =[2]!H_(11,H95,H96) ->  | I110: =[2]!H_(11,I95,I96) -> 48.84486232
B111: Sin = Sout | D111: =[2]!S_(11,D93,D94) -> 5.060004669 | F111: =[2]!S_(11,F93,F94) -> 6.606972814 | G111: =[2]!S_(11,G93,G94) -> 6.945830207 | H111: =[2]!S_(11,H93,H94) ->  | I111: =[2]!S_(11,I93,I94) -> 8.300020451
B112: Tout(iso) | D112: =[1]!HeCalc(2,0,1,D95*10^5,8,D111*1000,1) -> 5.935138784 | F112: =[1]!HeCalc(2,0,1,F95*10^5,8,F111*1000,1) -> 6.699995029 | G112: =[1]!HeCalc(2,0,1,G95*10^5,8,G111*1000,1) -> 7.024181985 | H112: =[1]!HeCalc(2,0,1,H95*10^5,8,H111*1000,1) ->  | I112: =[1]!HeCalc(2,0,1,I95*10^5,8,I111*1000,1) -> 8.048894673
B113: Hout(iso) | D113: =[2]!H_(11,D95,D112) -> 20.94054184 | F113: =[2]!H_(11,F95,F112) -> 30.72751844 | G113: =[2]!H_(11,G95,G112) -> 33.5175038 | H113: =[2]!H_(11,H95,H112) ->  | I113: =[2]!H_(11,I95,I112) -> 43.67178554
B114: ΔHs | D114: =D109-D113 -> 7.210342742 | F114: 10.16262202 | G114: 3.294140164 | I114: 10.38804677
B115: u1 | C115: m/s | D115: =(2*52.7%*D114*1000*D97)^0.5 -> 73.97151411 | F115: =PI()*$D$116*F99 -> 57.1017516 | G115: =PI()*$D$116*G99 -> 32.57483804 | H115: 30.73817779 | I115: 48.72153497
B116: D1 | D116: =D115/PI()/D99 -> 0.01134193846 | M116: T3
B117: Co = (2*ΔHs)^0,5 | D117: =(2000*D114)^0.5 -> 120.0861586 | F117: 142.5666302 | G117: 81.1682224 | I117: 144.1391464 | L117: MAX | M117: =ROUND(F92,0)&"g/s @ "&F93&" b ; "&F94&"K" -> 161g/s @ 13,07 b ; 9,16K
B118: u1/Co | D118: =D115/D117 -> 0.6159870129 | F118: 0.400526768 | G118: 0.4013250146 | I118: 0.3380173685 | L118: MIN | M118: =ROUND(G92,0)&"g/s @ "&G93&" b ; "&G94&"K" -> 95g/s @ 7,369 b ; 7,912K
B119: U1/C0 off de / U1/C0 nom | D119: =D118/$D$49 -> 0.9607689228 | F119: =F118/$D118 -> 0.6502195008 | G119: =G118/$D118 -> 0.6515153829 | H119: =H118/$D118 ->  | I119: =I118/$D118 -> 0.5487410634 | L119: STS | M119: =ROUND(H92,0)&"g/s @ "&H93&" b ; "&H94&"K" -> 
B120: Rdt | D120: =(0.321*D119^4-1.6098*D119^3+1.316*D119^2+0.9448*D119)*($D97/0.97215493) -> 0.7171786088 | F120: =(0.321*F119^4-1.6098*F119^3+1.316*F119^2+0.9448*F119)*($D97/0.97215493) -> 0.5817973136 | G120: =(0.321*G119^4-1.6098*G119^3+1.316*G119^2+0.9448*G119)*($D97/0.97215493) -> 0.5827244835 | H120: =(0.321*H119^4-1.6098*H119^3+1.316*H119^2+0.9448*H119)*($D97/0.97215493) ->  | I120: =(0.321*I119^4-1.6098*I119^3+1.316*I119^2+0.9448*I119)*($D97/0.97215493) -> 0.5020164146 | L120: BAKING | M120: =ROUND(I92,0)&"g/s @ "&I93&" b ; "&I94&"K" -> 117g/s @ 10,48 b ; 10,55K
M122: =M47 -> 0 | N122: =M116 -> T3 | O122: T1+T2
B123: Courbe de rendement TC3 | L123: =L117 -> MAX | M123: =M48 -> 410.100626 | N123: =M117 -> 161g/s @ 13,07 b ; 9,16K | O123: =F92+F58 -> 161.4761819
L124: =L118 -> MIN | M124: =M49 -> 0.5463879061 | N124: =M118 -> 95g/s @ 7,369 b ; 7,912K | O124: =G92+G58 -> 95.0804152
L125: =L119 -> STS | M125: =M50 -> 0.8522136165 | N125: =M119 ->  | O125: =H92+H58 -> 
L126: =L120 -> BAKING | M126: =M51 -> 0.7509664142 | N126: =M120 -> 117g/s @ 10,48 b ; 10,55K | O126: =I92+I58 -> 197.7331221
E127: d : mm
E128: N : Hz
E129: H : J/kG
B135: rendement=(0,321*rap^4 - 1,6098*rap^3 + 1,316*rap^2 + 0,9448*rap)*(ETAgar/0,97) | I135: U1/CO _nom | J135: 0.64
I136: Eta_gar | J136: 0.8
B137: U1/C0 | C137: =D28 -> 0.78 | D137: =D63 -> 0.76 | E137: =D97 -> 0.72
B138: 0 | C138: =(0.321*B138^4-1.6098*B138^3+1.316*B138^2+0.9448*B138)*$D$28/0.97215493 -> 0
B139: =B138+0.05 -> 0.05 | C139: =(0.321*$B139^4-1.6098*$B139^3+1.316*$B139^2+0.9448*$B139)*$C$137/0.97215493 -> 0.04038246185 | D139: =(0.321*$B139^4-1.6098*$B139^3+1.316*$B139^2+0.9448*$B139)*$D$137/0.97215493 -> 0.03934701411 | E139: =(0.321*$B139^4-1.6098*$B139^3+1.316*$B139^2+0.9448*$B139)*$E$137/0.97215493 -> 0.03727611863
B140: 0.1 | C140: =(0.321*$B140^4-1.6098*$B140^3+1.316*$B140^2+0.9448*$B140)*$C$137/0.97215493 -> 0.08509815817 | D140: =(0.321*$B140^4-1.6098*$B140^3+1.316*$B140^2+0.9448*$B140)*$D$137/0.97215493 -> 0.08291615412 | E140: =(0.321*$B140^4-1.6098*$B140^3+1.316*$B140^2+0.9448*$B140)*$E$137/0.97215493 -> 0.078552146
B141: 0.15 | C141: 0.1332363313 | D141: 0.1298200152 | E141: 0.1229873828
B142: 0.2 | C142: 0.1839248565 | D142: 0.1792088345 | E142: 0.1697767906
B143: 0.25 | C143: 0.2363302415 | D143: 0.2302704917 | E143: 0.2181509921
B144: 0.3 | C144: 0.2896576269 | D144: 0.2822305083 | E144: 0.267376271
B145: 0.35 | C145: 0.343150786 | D145: 0.3343520479 | E145: 0.3167545717
B146: 0.4 | C146: 0.3960921249 | D146: 0.3859359166 | E146: 0.3656234999
B147: 0.45 | C147: 0.4478026824 | D147: 0.4363205624 | E147: 0.4133563222
B148: 0.5 | C148: 0.4976421299 | D148: 0.4848820753 | E148: 0.4593619661
B149: 0.55 | C149: 0.5450087718 | D149: 0.5310341879 | E149: 0.5030850201
B150: 0.6 | C150: 0.5893395449 | D150: 0.5742282745 | E150: 0.5440057337
B151: 0.65 | C151: 0.630110019 | D151: 0.6139533518 | E151: 0.5816400175
B152: 0.7 | C152: 0.6668343964 | D152: 0.6497360786 | E152: 0.6155394429
B153: 0.75 | C153: 0.6990655125 | D153: 0.6811407558 | E153: 0.6452912423
B154: 0.8 | C154: 0.726394835 | D154: 0.7077693264 | E154: 0.6705183093
B155: 0.85 | C155: 0.7484524646 | D155: 0.7292613758 | E155: 0.6908791981
B156: 0.9 | C156: 0.7649071347 | D156: 0.7452941313 | E156: 0.7060681243
B157: 0.95 | C157: 0.7754662113 | D157: 0.7555824623 | E157: 0.7158149643
B158: 1 | C158: 0.7798756933 | D158: 0.7598788806 | E158: 0.7198852553
B159: 1.05 | C159: 0.7779202121 | D159: 0.75797354 | E159: 0.7180801958
B160: 1.1 | C160: 0.7694230322 | D160: 0.7496942365 | E160: 0.7102366451
B161: 1.15 | C161: 0.7542460504 | D161: 0.7349064081 | E161: 0.6962271235
B162: 1.2 | C162: 0.7322897966 | D162: 0.7135131352 | E162: 0.6759598123 | G162: F Let u be the peripheral speed of the wheel : u = p . Æ . N / 60 (in m/s)
B163: 1.25 | C163: 0.7034934333 | D163: 0.6854551401 | E163: 0.6493785538 | G163: F Let n, be the speed ratio of the turbine : n = u / [ 2 . (H1 - H2S ) ] 0.5 (dimensionless number)
B164: 1.3 | C164: 0.6678347555 | D164: 0.6507107874 | E164: 0.6164628512 | H164: N = speed of rotation of the turbine (in rpm)
B165: 1.35 | C165: 0.6253301913 | D165: 0.6092960839 | E165: 0.5772278689 | H165: Æ = diameter of the wheel of the turbine (in m)
B166: 1.4 | C166: 0.5760348014 | D166: 0.5612646783 | E166: 0.531724432
B167: 1.45 | C167: 0.520042279 | D167: 0.5067078616 | E167: 0.4800390268
B168: 1.5 | C168: 0.4574849505 | D168: 0.4457545671 | E168: 0.4222938004

Sheet Turbines_JT60SA_serial
E5: Vitesse de la roue ajustée en fonction de la puissance du frein | L5: =D70*0.3 -> 448.8
A7: 1 | B7: 2 | C7: 3 | D7: 4 | E7: 5 | F7: 6 | G7: 7 | H7: 8 | I7: 9 | J7: 10 | K7: 11 | L7: 12 | M7: 13 | N7: 14 | O7: 15 | P7: 16 | Q7: 17 | R7: 18 | S7: 19 | T7: 20 | U7: 21 | V7: 22 | W7: 23 | X7: 24 | Y7: 25 | Z7: 26 | AA7: 27 | AB7: 28 | AC7: 29 | AD7: 30 | AE7: 31 | AF7: 32 | AG7: 33
B8: Relation entre la puissance et la vitesse de rotation | M8: ²
B10: CV330
B11: Pin | C11: Bara | D11: 15 | H11: 15 | I11: 15 | J11: 15 | K11: 15 | L11: 15 | M11: 15 | N11: 15 | O11: 15 | P11: 15 | Q11: 15 | R11: 15 | S11: 15 | T11: 15 | U11: 15 | V11: 15 | W11: 15 | X11: 15 | Y11: 15
B12: Tin | C12: K | D12: =[2]!T_P_H_(11,D11,[2]!H_(11,D29,D30)) -> 40.02813956 | H12: =[2]!T_P_H_(11,H11,[2]!H_(11,H29,H30)) -> 79.74905181 | I12: =[2]!T_P_H_(11,I11,[2]!H_(11,I29,I30)) -> 75.76249621 | J12: =[2]!T_P_H_(11,J11,[2]!H_(11,J29,J30)) -> 71.77783088 | K12: =[2]!T_P_H_(11,K11,[2]!H_(11,K29,K30)) -> 65.80497253 | L12: =[2]!T_P_H_(11,L11,[2]!H_(11,L29,L30)) -> 61.82626359 | M12: =[2]!T_P_H_(11,M11,[2]!H_(11,M29,M30)) -> 57.8504643 | N12: =[2]!T_P_H_(11,N11,[2]!H_(11,N29,N30)) -> 53.87780999 | O12: =[2]!T_P_H_(11,O11,[2]!H_(11,O29,O30)) -> 49.90831492 | P12: =[2]!T_P_H_(11,P11,[2]!H_(11,P29,P30)) -> 45.94137046 | Q12: =[2]!T_P_H_(11,Q11,[2]!H_(11,Q29,Q30)) -> 41.97457379 | R12: =[2]!T_P_H_(11,R11,[2]!H_(11,R29,R30)) -> 41.47844546 | S12: =[2]!T_P_H_(11,S11,[2]!H_(11,S29,S30)) -> 40.98218345 | T12: =[2]!T_P_H_(11,T11,[2]!H_(11,T29,T30)) -> 40.48575467 | U12: =[2]!T_P_H_(11,U11,[2]!H_(11,U29,U30)) -> 39.98911945 | V12: =[2]!T_P_H_(11,V11,[2]!H_(11,V29,V30)) -> 39.49222979 | W12: =[2]!T_P_H_(11,W11,[2]!H_(11,W29,W30)) -> 38.99502717 | X12: =[2]!T_P_H_(11,X11,[2]!H_(11,X29,X30)) -> 38.49743947 | Y12: =[2]!T_P_H_(11,Y11,[2]!H_(11,Y29,Y30)) -> 37.99937675
B13: Rho | D13: =[2]!rho_(11,D11,D12) -> 17.34400697 | H13: =[2]!rho_(11,H11,H12) -> 8.818570096 | I13: =[2]!rho_(11,I11,I12) -> 9.272113716 | J13: =[2]!rho_(11,J11,J12) -> 9.775110994 | K13: =[2]!rho_(11,K11,K12) -> 10.64179204 | L13: =[2]!rho_(11,L11,L12) -> 11.31112194 | M13: =[2]!rho_(11,M11,M12) -> 12.07128902 | N13: =[2]!rho_(11,N11,N12) -> 12.9425111 | O13: =[2]!rho_(11,O11,O12) -> 13.95170321 | P13: =[2]!rho_(11,P11,P12) -> 15.13570118 | Q13: =[2]!rho_(11,Q11,Q12) -> 16.54687326 | R13: =[2]!rho_(11,R11,R12) -> 16.74276623 | S13: =[2]!rho_(11,S11,S12) -> 16.94357786 | T13: =[2]!rho_(11,T11,T12) -> 17.1495159 | U13: =[2]!rho_(11,U11,U12) -> 17.36080297 | V13: =[2]!rho_(11,V11,V12) -> 17.57767863 | W13: =[2]!rho_(11,W11,W12) -> 17.8004018 | X13: =[2]!rho_(11,X11,X12) -> 18.02925409 | Y13: =[2]!rho_(11,Y11,Y12) -> 18.26454393
B14: dP | D14: =(D11-D29)*1000 -> 230 | H14: =(H11-H29)*1000 -> 5269.659651 | I14: =(I11-I29)*1000 -> 5197.115883 | J14: 5106.250638 | K14: 4922.868474 | L14: 4756.288108 | M14: 4537.695058 | N14: 4242.938204 | O14: 3829.597732 | P14: 3214.388887 | Q14: 2202.600579 | R14: 2027.476241 | S14: 1836.397418 | T14: 1626.905 | U14: 1395.964878 | V14: 1139.778804 | W14: 853.5119539 | X14: 530.8886802 | Y14: 163.5731128
B15: Cvs | D15: 30 | H15: 30 | I15: 30 | J15: 30 | K15: 30 | L15: 30 | M15: 30 | N15: 30 | O15: 30 | P15: 30 | Q15: 30 | R15: 30 | S15: 30 | T15: 30 | U15: 30 | V15: 30 | W15: 30 | X15: 30 | Y15: 30
B16: Range | D16: 250 | H16: 250 | I16: 250 | J16: 250 | K16: 250 | L16: 250 | M16: 250 | N16: 250 | O16: 250 | P16: 250 | Q16: 250 | R16: 250 | S16: 250 | T16: 250 | U16: 250 | V16: 250 | W16: 250 | X16: 250 | Y16: 250
B17: Flow | D17: =IF(D11/2>D29,"S","SS") -> SS | H17: =IF(H11/2>H29,"S","SS") -> SS | I17: =IF(I11/2>I29,"S","SS") -> SS | J17: SS | K17: SS | L17: SS | M17: SS | N17: SS | O17: SS | P17: SS | Q17: SS | R17: SS | S17: SS | T17: SS | U17: SS | V17: SS | W17: SS | X17: SS | Y17: SS
B18: Cv | D18: =[2]!Cv_Simple(D12,D11,D11-D29,D13,D28,D17) -> 12.71708607 | H18: =[2]!Cv_Simple(H12,H11,H11-H29,H13,H28,H17) -> 2.139229846 | I18: =[2]!Cv_Simple(I12,I11,I11-I29,I13,I28,I17) -> 2.163357827 | J18: =[2]!Cv_Simple(J12,J11,J11-J29,J13,J28,J17) -> 2.193972032 | K18: =[2]!Cv_Simple(K12,K11,K11-K29,K13,K28,K17) -> 2.257401407 | L18: =[2]!Cv_Simple(L12,L11,L11-L29,L13,L28,L17) -> 2.317259705 | M18: =[2]!Cv_Simple(M12,M11,M11-M29,M13,M28,M17) -> 2.399573232 | N18: =[2]!Cv_Simple(N12,N11,N11-N29,N13,N28,N17) -> 2.518466169 | O18: =[2]!Cv_Simple(O12,O11,O11-O29,O13,O28,O17) -> 2.703883697 | P18: =[2]!Cv_Simple(P12,P11,P11-P29,P13,P28,P17) -> 3.034418321 | Q18: =[2]!Cv_Simple(Q12,Q11,Q11-Q29,Q13,Q28,Q17) -> 3.823306969 | R18: =[2]!Cv_Simple(R12,R11,R11-R29,R13,R28,R17) -> 4.012596513 | S18: =[2]!Cv_Simple(S12,S11,S11-S29,S13,S28,S17) -> 4.24754854 | T18: =[2]!Cv_Simple(T12,T11,T11-T29,T13,T28,T17) -> 4.548940116 | U18: =[2]!Cv_Simple(U12,U11,U11-U29,U13,U28,U17) -> 4.953481238 | V18: =[2]!Cv_Simple(V12,V11,V11-V29,V13,V28,V17) -> 5.533810469 | W18: =[2]!Cv_Simple(W12,W11,W11-W29,W13,W28,W17) -> 6.461020278 | X18: =[2]!Cv_Simple(X12,X11,X11-X29,X13,X28,X17) -> 8.285691282 | Y18: =[2]!Cv_Simple(Y12,Y11,Y11-Y29,Y13,Y28,Y17) -> 15.11615312
B19: Cv | D19: =[2]!cv_gaz(11,D28,D11,D29,D12,0.87) -> 12.689489 | H19: =[2]!cv_gaz(11,H28,H11,H29,H12,0.87) -> 1.943699211 | I19: =[2]!cv_gaz(11,I28,I11,I29,I12,0.87) -> 1.969344013 | J19: =[2]!cv_gaz(11,J28,J11,J29,J12,0.87) -> 2.001892477 | K19: =[2]!cv_gaz(11,K28,K11,K29,K12,0.87) -> 2.069318534 | L19: =[2]!cv_gaz(11,L28,L11,L29,L12,0.87) -> 2.132898488 | M19: =[2]!cv_gaz(11,M28,M11,M29,M12,0.87) -> 2.220212872 | N19: =[2]!cv_gaz(11,N28,N11,N29,N12,0.87) -> 2.346047073 | O19: =[2]!cv_gaz(11,O28,O11,O29,O12,0.87) -> 2.541575046 | P19: =[2]!cv_gaz(11,P28,P11,P29,P12,0.87) -> 2.888020499 | Q19: =[2]!cv_gaz(11,Q28,Q11,Q29,Q12,0.87) -> 3.705914942 | R19: =[2]!cv_gaz(11,R28,R11,R29,R12,0.87) -> 3.900712521 | S19: =[2]!cv_gaz(11,S28,S11,S29,S12,0.87) -> 4.141897248 | T19: =[2]!cv_gaz(11,T28,T11,T29,T12,0.87) -> 4.450437728 | U19: =[2]!cv_gaz(11,U28,U11,U29,U12,0.87) -> 4.863330111 | V19: =[2]!cv_gaz(11,V28,V11,V29,V12,0.87) -> 5.453676967 | W19: =[2]!cv_gaz(11,W28,W11,W29,W12,0.87) -> 6.393426357 | X19: =[2]!cv_gaz(11,X28,X11,X29,X12,0.87) -> 8.235152395 | Y19: =[2]!cv_gaz(11,Y28,Y11,Y29,Y12,0.87) -> 15.09589047
B20: Trim | D20: =[2]!Trim_From_Cv(D18/D15,D16) -> 0.844560897 | H20: =[2]!Trim_From_Cv(H18/H15,H16) -> 0.5217295673 | I20: =[2]!Trim_From_Cv(I18/I15,I16) -> 0.5237608566 | J20: =[2]!Trim_From_Cv(J18/J15,J16) -> 0.5263058444 | K20: =[2]!Trim_From_Cv(K18/K15,K16) -> 0.5314676517 | L20: =[2]!Trim_From_Cv(L18/L15,L16) -> 0.5362075194 | M20: =[2]!Trim_From_Cv(M18/M15,M16) -> 0.5425293201 | N20: =[2]!Trim_From_Cv(N18/N15,N16) -> 0.551287718 | O20: =[2]!Trim_From_Cv(O18/O15,O16) -> 0.5641537137 | P20: =[2]!Trim_From_Cv(P18/P15,P16) -> 0.5850414109 | Q20: =[2]!Trim_From_Cv(Q18/Q15,Q16) -> 0.6268955507 | R20: =[2]!Trim_From_Cv(R18/R15,R16) -> 0.6356473639 | S20: =[2]!Trim_From_Cv(S18/S15,S16) -> 0.6459532344 | T20: =[2]!Trim_From_Cv(T18/T15,T16) -> 0.6583688365 | U20: =[2]!Trim_From_Cv(U18/U15,U16) -> 0.6737988734 | V20: =[2]!Trim_From_Cv(V18/V15,V16) -> 0.6938634947 | W20: =[2]!Trim_From_Cv(W18/W15,W16) -> 0.7219195859 | X20: =[2]!Trim_From_Cv(X18/X15,X16) -> 0.766969772 | Y20: =[2]!Trim_From_Cv(Y18/Y15,Y16) -> 0.8758601253
B24: TURBINE 1
D26: DESIGN | H26: start-up | I26: start-up | J26: start-up | K26: start-up | L26: start-up | M26: start-up | N26: start-up | O26: start-up | P26: start-up | Q26: start-up
B28: m | C28: g/s | D28: 191.5 | H28: =H41*H29/H30^0.5 -> 89.24093583 | I28: 92.24188102 | J28: 95.64796491 | K28: 101.7527223 | L28: 106.7192068 | M28: 112.6923552 | N28: 120.0819859 | O28: 129.5880304 | P28: 142.5457485 | Q28: 161.9862523 | R28: 165.1891447 | S28: 168.6412885 | T28: 172.3794522 | U28: 176.4488478 | V28: 180.9058835 | W28: 185.8221204 | X28: 191.2901339 | Y28: 197.4324798
B29: Pin | C29: Bara | D29: 14.77 | H29: 9.730340349 | I29: 9.802884117 | J29: 9.893749362 | K29: 10.07713153 | L29: 10.24371189 | M29: 10.46230494 | N29: 10.7570618 | O29: 11.17040227 | P29: 11.78561111 | Q29: 12.79739942 | R29: 12.97252376 | S29: 13.16360258 | T29: 13.373095 | U29: 13.60403512 | V29: 13.8602212 | W29: 14.14648805 | X29: 14.46911132 | Y29: 14.83642689
B30: Tin | C30: K | D30: 40.03 | H30: 80 | I30: =H30-4 -> 76 | J30: =I30-4 -> 72 | K30: 66 | L30: 62 | M30: 58 | N30: 54 | O30: 50 | P30: 46 | Q30: 42 | R30: =Q30-0.5 -> 41.5 | S30: =R30-0.5 -> 41 | T30: 40.5 | U30: 40 | V30: 39.5 | W30: 39 | X30: 38.5 | Y30: 38
B31: Pout | C31: Bara | D31: 6.36 | H31: =H64 -> 4.861180379 | I31: 4.869351439 | J31: 4.881990177 | K31: 4.913063769 | L31: 4.945777711 | M31: 4.993264153 | N31: 5.063300166 | O31: 5.169919005 | P31: 5.341419273 | Q31: 5.645749135 | R31: =R64 -> 5.700504758 | S31: 5.760822461 | T31: 5.827592161 | U31: 5.901915348 | V31: =V64 -> 5.985175368 | W31: 6.07913884 | X31: 6.186106459 | Y31: 6.309144592
B32: Tout | C32: K | D32: =[2]!T2_turb(11,D29,D30,D31,D33) -> 31.09458691 | H32: =[2]!T2_turb(11,H29,H30,H31,H33) -> 66.26207257 | I32: =[2]!T2_turb(11,I29,I30,I31,I33) -> 62.68594953 | J32: =[2]!T2_turb(11,J29,J30,J31,J33) -> 59.12271242 | K32: =[2]!T2_turb(11,K29,K30,K31,K33) -> 53.8038199 | L32: =[2]!T2_turb(11,L29,L30,L31,L33) -> 50.27639744 | M32: =[2]!T2_turb(11,M29,M30,M31,M33) -> 46.76463275 | N32: =[2]!T2_turb(11,N29,N30,N31,N33) -> 43.26897711 | O32: =[2]!T2_turb(11,O29,O30,O31,O33) -> 39.78924802 | P32: =[2]!T2_turb(11,P29,P30,P31,P33) -> 36.32376395 | Q32: =[2]!T2_turb(11,Q29,Q30,Q31,Q33) -> 32.86698589 | R32: =[2]!T2_turb(11,R29,R30,R31,R33) -> 32.43488052 | S32: =[2]!T2_turb(11,S29,S30,S31,S33) -> 32.00262518 | T32: =[2]!T2_turb(11,T29,T30,T31,T33) -> 31.57015285 | U32: =[2]!T2_turb(11,U29,U30,U31,U33) -> 31.13738356 | V32: =[2]!T2_turb(11,V29,V30,V31,V33) -> 30.70422115 | W32: =[2]!T2_turb(11,W29,W30,W31,W33) -> 30.2705487 | X32: =[2]!T2_turb(11,X29,X30,X31,X33) -> 29.83622237 | Y32: =[2]!T2_turb(11,Y29,Y30,Y31,Y33) -> 29.40106257
B33: Efficacity | C33: % | D33: 0.78 | H33: =(0.321*H55^4-1.6098*H55^3+1.316*H55^2+0.9448*H55)*($D$33/0.97215493) -> 0.7124430631 | I33: =(0.321*I55^4-1.6098*I55^3+1.316*I55^2+0.9448*I55)*($D$33/0.97215493) -> 0.7215065237 | J33: 0.7304755833 | K33: 0.7435461569 | L33: 0.7518206569 | M33: 0.7595473828 | N33: 0.7665023925 | O33: 0.7723981782 | P33: 0.7768721658 | Q33: 0.7794923007 | R33: =(0.321*R55^4-1.6098*R55^3+1.316*R55^2+0.9448*R55)*($D$33/0.97215493) -> 0.7796672451 | S33: 0.7798058049 | T33: 0.7799074789 | U33: 0.7799719334 | V33: =(0.321*V55^4-1.6098*V55^3+1.316*V55^2+0.9448*V55)*($D$33/0.97215493) -> 0.7799990591 | W33: 0.7799890492 | X33: 0.7799425084 | Y33: 0.779860608
B34: Power | C34: W | D34: =+D28*(D45-D46) -> 9122.443616 | H34: =+H28*(H45-H46) -> 6493.040253 | I34: 6507.374875 | J34: 6529.547217 | K34: 6584.06012 | L34: 6641.450714 | M34: 6724.756943 | N34: 6847.622249 | O34: 7034.665391 | P34: 7335.53107 | Q34: 7869.421841 | R34: 7965.480506 | S34: 8071.29682 | T34: 8188.431976 | U34: 8318.818346 | V34: 8464.882749 | W34: 8629.724379 | X34: 8817.379386 | Y34: 9033.22716
B35: Speed | C35: Hz | D35: 1995 | H35: 1995 | I35: 1995 | J35: 1995 | K35: 1995 | L35: 1995 | M35: 1995 | N35: 1995 | O35: 1995 | P35: 1995 | Q35: 1995 | R35: 1995 | S35: 1995 | T35: 1995 | U35: 1995 | V35: 1995 | W35: 1995 | X35: 1995 | Y35: 1995
B36: Speed calculated from P=K.rho.N^3 | H36: =(H34/$D34*$D38/H38)^(1/3)*$D35 -> 1995 | I36: 1995 | J36: 1995 | K36: 1995 | L36: 1995 | M36: 1995 | N36: 1995 | O36: 1995 | P36: 1995 | Q36: 1995 | R36: 1995 | S36: 1995 | T36: 1994.999999 | U36: 1995 | V36: 1995.000001 | W36: 1995.000001 | X36: 1995 | Y36: 1995
B37: Delta Speed Frein & Turbine | D37: =D31-D38 -> 1.16 | H37: =H35-H36 -> 1.898729352e-08 | I37: =I35-I36 -> 2.031652002e-08 | J37: 2.503929863e-08 | K37: -1.439248081e-07 | L37: -2.415617928e-09 | M37: -8.525921658e-08 | N37: -2.411759397e-07 | O37: -1.649325441e-07 | P37: -2.748547558e-07 | Q37: -2.073709311e-07 | R37: =R35-R36 -> 2.205358669e-07 | S37: 4.207415714e-07 | T37: 5.993122159e-07 | U37: -1.128817075e-07 | V37: =V35-V36 -> -9.525615496e-07 | W37: -8.872718809e-07 | X37: -4.157534477e-07 | Y37: -3.200302672e-07
B38: Brake Pressure | D38: 5.2 | H38: =($D38-$D31)+H31 -> 3.701180379 | I38: 3.709351439 | J38: 3.721990177 | K38: 3.753063769 | L38: 3.785777711 | M38: 3.833264153 | N38: 3.903300166 | O38: 4.009919005 | P38: 4.181419273 | Q38: 4.485749135 | R38: 4.540504758 | S38: 4.600822461 | T38: 4.667592161 | U38: 4.741915348 | V38: 4.825175368 | W38: 4.91913884 | X38: 5.026106459 | Y38: 5.149144592
B39: Rho (brake) | D39: =[2]!rho_(11,D38,330) -> 0.7569746494 | H39: =[2]!rho_(11,H38,330) -> 0.5391189976 | I39: =[2]!rho_(11,I38,330) -> 0.5403073982 | J39: =[2]!rho_(11,J38,330) -> 0.5421455634 | K39: =[2]!rho_(11,K38,330) -> 0.5466647938 | L39: =[2]!rho_(11,L38,330) -> 0.5514224666 | M39: =[2]!rho_(11,M38,330) -> 0.5583283151 | N39: =[2]!rho_(11,N38,330) -> 0.5685130082 | O39: =[2]!rho_(11,O38,330) -> 0.5840164833 | P39: =[2]!rho_(11,P38,330) -> 0.6089515456 | Q39: =[2]!rho_(11,Q38,330) -> 0.6531905773 | R39: =[2]!rho_(11,R38,330) -> 0.6611489801 | S39: =[2]!rho_(11,S38,330) -> 0.669915385 | T39: =[2]!rho_(11,T38,330) -> 0.679619 | U39: =[2]!rho_(11,U38,330) -> 0.6904197363 | V39: =[2]!rho_(11,V38,330) -> 0.7025184037 | W39: =[2]!rho_(11,W38,330) -> 0.7161714187 | X39: =[2]!rho_(11,X38,330) -> 0.7317126746 | Y39: =[2]!rho_(11,Y38,330) -> 0.7495871219
B40: Wheel | C40: mm | D40: 35.8 | H40: =$D$40 -> 35.8 | I40: =$D$40 -> 35.8 | J40: 35.8 | K40: 35.8 | L40: 35.8 | M40: 35.8 | N40: 35.8 | O40: 35.8 | P40: 35.8 | Q40: 35.8 | R40: 35.8 | S40: 35.8 | T40: 35.8 | U40: 35.8 | V40: 35.8 | W40: 35.8 | X40: 35.8 | Y40: 35.8
B41: a = mÖT/P | D41: =D28*D30^0.5/D29 -> 82.03158029 | H41: =+$D$41 -> 82.03158029 | I41: =+$D$41 -> 82.03158029 | J41: 82.03158029 | K41: 82.03158029 | L41: 82.03158029 | M41: 82.03158029 | N41: 82.03158029 | O41: 82.03158029 | P41: 82.03158029 | Q41: 82.03158029 | R41: 82.03158029 | S41: 82.03158029 | T41: 82.03158029 | U41: 82.03158029 | V41: 82.03158029 | W41: 82.03158029 | X41: 82.03158029 | Y41: 82.03158029 | AK41: T1 out | AL41: 63 | AM41: 31 | AN41: x
B42: Rho (in) | C42: kg/m3 | D42: =[2]!rho_(11,D29,D30) -> 17.08767254 | H42: =[2]!rho_(11,H29,H30) -> 5.755516862 | I42: =[2]!rho_(11,I29,I30) -> 6.098291753 | J42: =[2]!rho_(11,J29,J30) -> 6.490497572 | K42: =[2]!rho_(11,K29,K30) -> 7.199852596 | L42: =[2]!rho_(11,L29,L30) -> 7.781096677 | M42: =[2]!rho_(11,M29,M30) -> 8.482822907 | N42: =[2]!rho_(11,N29,N30) -> 9.351990589 | O42: =[2]!rho_(11,O29,O30) -> 10.46701104 | P42: =[2]!rho_(11,P29,P30) -> 11.97332592 | Q42: =[2]!rho_(11,Q29,Q30) -> 14.18969178 | R42: =[2]!rho_(11,R29,R30) -> 14.54909589 | S42: =[2]!rho_(11,S29,S30) -> 14.9345716 | T42: =[2]!rho_(11,T29,T30) -> 15.34975389 | U42: =[2]!rho_(11,U29,U30) -> 15.79908441 | V42: =[2]!rho_(11,V29,V30) -> 16.28806868 | W42: =[2]!rho_(11,W29,W30) -> 16.82364416 | X42: =[2]!rho_(11,X29,X30) -> 17.41472278 | Y42: =[2]!rho_(11,Y29,Y30) -> 18.07301637 | AK42: T2 in | AL42: 62 | AM42: 18 | AN42: y
B43: Sound Speed @inlet | D43: =[2]!Sound_speed(11,D29,D30) -> 391.2334217 | H43: =[2]!Sound_speed(11,H29,H30) -> 535.5902869 | I43: =[2]!Sound_speed(11,I29,I30) -> 522.5833137 | J43: =[2]!Sound_speed(11,J29,J30) -> 509.2570795 | K43: =[2]!Sound_speed(11,K29,K30) -> 488.6213772 | L43: =[2]!Sound_speed(11,L29,L30) -> 474.3999516 | M43: =[2]!Sound_speed(11,M29,M30) -> 459.781172 | N43: =[2]!Sound_speed(11,N29,N30) -> 444.7480792 | O43: =[2]!Sound_speed(11,O29,O30) -> 429.2992598 | P43: =[2]!Sound_speed(11,P29,P30) -> 413.4778312 | Q43: =[2]!Sound_speed(11,Q29,Q30) -> 397.4682085 | R43: =[2]!Sound_speed(11,R29,R30) -> 395.4779978 | S43: =[2]!Sound_speed(11,S29,S30) -> 393.496812 | T43: =[2]!Sound_speed(11,T29,T30) -> 391.5279383 | U43: =[2]!Sound_speed(11,U29,U30) -> 389.5754954 | V43: =[2]!Sound_speed(11,V29,V30) -> 387.6447127 | W43: =[2]!Sound_speed(11,W29,W30) -> 385.7423325 | X43: =[2]!Sound_speed(11,X29,X30) -> 383.877208 | Y43: =[2]!Sound_speed(11,Y29,Y30) -> 382.0612231 | AK43: slope | AL43: =SLOPE(AL42:AM42,AL41:AM41) -> 1.375
B44: S=Q/(rho*V) = cte | D44: =D28/(D42*D43) -> 0.02864507195 | H44: =H28/(H42*H43) -> 0.02894990167 | I44: 0.02894439087 | J44: 0.02893747726 | K44: 0.02892344162 | L44: 0.02891060242 | M44: 0.02889368089 | N44: 0.02887085991 | O44: 0.02883912417 | P44: 0.02879302106 | Q44: 0.02872121436 | R44: 0.02870933754 | S44: 0.02869656564 | T44: 0.0286827853 | U44: 0.02866786006 | V44: 0.02865162345 | W44: 0.0286338691 | X44: 0.02861433639 | Y44: 0.02859268875 | AK44: intercept | AL44: =INTERCEPT(AL42:AM42,AL41:AM41) -> -24.625
B45: Hin | D45: =[2]!H_(11,D29,D30) -> 223.5710661 | H45: =[2]!H_(11,H29,H30) -> 433.1413081 | I45: =[2]!H_(11,I29,I30) -> 412.2878084 | J45: =[2]!H_(11,J29,J30) -> 391.4224022 | K45: =[2]!H_(11,K29,K30) -> 360.0959716 | L45: =[2]!H_(11,L29,L30) -> 339.1872758 | M45: =[2]!H_(11,M29,M30) -> 318.2527442 | N45: =[2]!H_(11,N29,N30) -> 297.2843484 | O45: =[2]!H_(11,O29,O30) -> 276.2700155 | P45: =[2]!H_(11,P29,P30) -> 255.1902674 | Q45: =[2]!H_(11,Q29,Q30) -> 234.0099926 | R45: =[2]!H_(11,R29,R30) -> 231.3523989 | S45: =[2]!H_(11,S29,S30) -> 228.6919538 | T45: =[2]!H_(11,T29,T30) -> 226.0284002 | U45: =[2]!H_(11,U29,U30) -> 223.3614408 | V45: =[2]!H_(11,V29,V30) -> 220.6907289 | W45: =[2]!H_(11,W29,W30) -> 218.0158557 | X45: =[2]!H_(11,X29,X30) -> 215.3363329 | Y45: =[2]!H_(11,Y29,Y30) -> 212.6515693 | AK45: x | AL45: y
B46: Hout | D46: =[2]!H_(11,D31,D32) -> 175.9342849 | H46: =[2]!H_(11,H31,H32) -> 360.3827675 | I46: =[2]!H_(11,I31,I32) -> 341.7409504 | J46: =[2]!H_(11,J31,J32) -> 323.1559501 | K46: =[2]!H_(11,K31,K32) -> 295.3894953 | L46: =[2]!H_(11,L31,L32) -> 276.954329 | M46: =[2]!H_(11,M31,M32) -> 258.5791582 | N46: =[2]!H_(11,N31,N32) -> 240.2597897 | O46: =[2]!H_(11,O31,O32) -> 221.9851763 | P46: =[2]!H_(11,P31,P32) -> 203.7293775 | Q46: =[2]!H_(11,Q31,Q32) -> 185.4291919 | R46: =[2]!H_(11,R31,R32) -> 183.132036 | S46: =[2]!H_(11,S31,S32) -> 180.8312141 | T46: =[2]!H_(11,T31,T32) -> 178.5260333 | U46: =[2]!H_(11,U31,U32) -> 176.215662 | V46: =[2]!H_(11,V31,V32) -> 173.8990902 | W46: =[2]!H_(11,W31,W32) -> 171.5750748 | X46: =[2]!H_(11,X31,X32) -> 169.2420613 | Y46: =[2]!H_(11,Y31,Y32) -> 166.8980683 | AK46: 277 | AL46: =m*AK46+p -> 356.25
B47: Sin = Sout | D47: =[2]!S_(11,D29,D30) -> 15.48824406 | H47: =[2]!S_(11,H29,H30) -> 20.01562118 | I47: =[2]!S_(11,I29,I30) -> 19.73250562 | J47: =[2]!S_(11,J29,J30) -> 19.43094649 | K47: =[2]!S_(11,K29,K30) -> 18.93773433 | L47: =[2]!S_(11,L29,L30) -> 18.5761361 | M47: =[2]!S_(11,M29,M30) -> 18.18222746 | N47: =[2]!S_(11,N29,N30) -> 17.74849607 | O47: =[2]!S_(11,O29,O30) -> 17.26376998 | P47: =[2]!S_(11,P29,P30) -> 16.70976526 | Q47: =[2]!S_(11,Q29,Q30) -> 16.05148614 | R47: =[2]!S_(11,R29,R30) -> 15.95863661 | S47: =[2]!S_(11,S29,S30) -> 15.86271488 | T47: =[2]!S_(11,T29,T30) -> 15.7633962 | U47: =[2]!S_(11,U29,U30) -> 15.66029113 | V47: =[2]!S_(11,V29,V30) -> 15.55292612 | W47: =[2]!S_(11,W29,W30) -> 15.44071614 | X47: =[2]!S_(11,X29,X30) -> 15.32292477 | Y47: =[2]!S_(11,Y29,Y30) -> 15.1986045 | AK47: 31 | AL47: =m*AK47+p -> 18
B48: Tout(iso) | D48: =[1]!HeCalc(2,0,1,D31*10^5,8,D47*1000,1) -> 28.58076886 | H48: =[1]!HeCalc(2,0,1,H31*10^5,8,H47*1000,1) -> 60.62992636 | I48: =[1]!HeCalc(2,0,1,I31*10^5,8,I47*1000,1) -> 57.46662848 | J48: =[1]!HeCalc(2,0,1,J31*10^5,8,J47*1000,1) -> 54.29818007 | K48: =[1]!HeCalc(2,0,1,K31*10^5,8,K47*1000,1) -> 49.53492524 | L48: =[1]!HeCalc(2,0,1,L31*10^5,8,L47*1000,1) -> 46.35152104 | M48: =[1]!HeCalc(2,0,1,M31*10^5,8,M47*1000,1) -> 43.16081152 | N48: =[1]!HeCalc(2,0,1,N31*10^5,8,N47*1000,1) -> 39.96148381 | O48: =[1]!HeCalc(2,0,1,O31*10^5,8,O47*1000,1) -> 36.75142528 | P48: =[1]!HeCalc(2,0,1,P31*10^5,8,P47*1000,1) -> 33.52690394 | Q48: =[1]!HeCalc(2,0,1,Q31*10^5,8,Q47*1000,1) -> 30.28038921 | R48: =[1]!HeCalc(2,0,1,R31*10^5,8,R47*1000,1) -> 29.87232743 | S48: =[1]!HeCalc(2,0,1,S31*10^5,8,S47*1000,1) -> 29.46361214 | T48: =[1]!HeCalc(2,0,1,T31*10^5,8,T47*1000,1) -> 29.05417622 | U48: =[1]!HeCalc(2,0,1,U31*10^5,8,U47*1000,1) -> 28.64394065 | V48: =[1]!HeCalc(2,0,1,V31*10^5,8,V47*1000,1) -> 28.23281142 | W48: =[1]!HeCalc(2,0,1,W31*10^5,8,W47*1000,1) -> 27.82067544 | X48: =[1]!HeCalc(2,0,1,X31*10^5,8,X47*1000,1) -> 27.40739479 | Y48: =[1]!HeCalc(2,0,1,Y31*10^5,8,Y47*1000,1) -> 26.99279865 | AK48: 31 | AL48: =m*AK48+p -> 18
B49: Hout(iso) | D49: =[2]!H_(11,D31,D48) -> 162.4982696 | H49: =[2]!H_(11,H31,H48) -> 331.0158971 | I49: =[2]!H_(11,I31,I48) -> 314.5106496 | J49: =[2]!H_(11,J31,J48) -> 297.9675987 | K49: =[2]!H_(11,K31,K48) -> 273.0718162 | L49: =[2]!H_(11,L31,L48) -> 256.4109565 | M49: =[2]!H_(11,M31,M48) -> 239.6880788 | N49: =[2]!H_(11,N31,N48) -> 222.8885484 | O49: =[2]!H_(11,O31,O48) -> 205.9891154 | P49: =[2]!H_(11,P31,P48) -> 188.9491377 | Q49: =[2]!H_(11,Q31,Q48) -> 171.6863486 | R49: =[2]!H_(11,R31,R48) -> 169.5050362 | S49: =[2]!H_(11,S31,S48) -> 167.3167506 | T49: =[2]!H_(11,T31,T48) -> 165.1207052 | U49: =[2]!H_(11,U31,U48) -> 162.9159596 | V49: =[2]!H_(11,V31,V48) -> 160.7013761 | W49: =[2]!H_(11,W31,W48) -> 158.4755571 | X49: =[2]!H_(11,X31,X48) -> 156.2367569 | Y49: =[2]!H_(11,Y31,Y48) -> 153.9827501
B50: ΔHs | D50: =D45-D49 -> 61.07279652 | H50: 102.125411 | I50: =I45-I49 -> 97.77715877 | J50: 93.45480353 | K50: 87.02415546 | L50: 82.77631931 | M50: 78.56466535 | N50: 74.39579995 | O50: 70.28090009 | P50: 66.2411297 | Q50: 62.32364407 | R50: =R45-R49 -> 61.84736272 | S50: 61.37520321 | T50: 60.907695 | U50: 60.44548113 | V50: =V45-V49 -> 59.98935281 | W50: 59.5402986 | X50: 59.09957605 | Y50: 58.66881916
B51: u1 | C51: m/s | D51: =(2*52.7%*D50*1000*D33)^0.5 -> 224.0740223 | H51: =PI()*$D$52*H35 -> 224.0740223 | I51: =PI()*$D$52*I35 -> 224.0740223 | J51: 224.0740223 | K51: 224.0740223 | L51: 224.0740223 | M51: 224.0740223 | N51: 224.0740223 | O51: 224.0740223 | P51: 224.0740223 | Q51: 224.0740223 | R51: =PI()*$D$52*R35 -> 224.0740223 | S51: 224.0740223 | T51: 224.0740223 | U51: 224.0740223 | V51: =PI()*$D$52*V35 -> 224.0740223 | W51: 224.0740223 | X51: 224.0740223 | Y51: 224.0740223
B52: D1 | D52: =D51/PI()/D35 -> 0.03575186794
B53: Co = (2*ΔHs)^0,5 | D53: =(2000*D50)^0.5 -> 349.4933376 | H53: 451.9411709 | I53: =(2000*I50)^0.5 -> 442.2152389 | J53: 432.3304373 | K53: 417.1909766 | L53: 406.8816027 | M53: 396.3954221 | N53: 385.7351422 | O53: 374.9157241 | P53: 363.9811251 | Q53: 353.0542283 | R53: =(2000*R50)^0.5 -> 351.7026094 | S53: 350.3575408 | T53: 349.0206154 | U53: 347.6937766 | V53: =(2000*V50)^0.5 -> 346.3794244 | W53: 345.0805662 | X53: 343.8010356 | Y53: 342.5458193
B54: u1/Co | D54: =D51/D53 -> 0.6411396104 | H54: 0.4958035177 | I54: =I51/I53 -> 0.5067080521 | J54: 0.5182934232 | K54: 0.5371017949 | L54: 0.5507106264 | M54: 0.5652790365 | N54: 0.5809012398 | O54: 0.5976650428 | P54: 0.6156198959 | Q54: 0.6346731021 | R54: =R51/R53 -> 0.6371121974 | S54: 0.6395581547 | T54: 0.6420079858 | U54: 0.644457961 | V54: =V51/V53 -> 0.6469033856 | W54: 0.6493382828 | X54: 0.651754937 | Y54: 0.6541432114
B55: U1/C0 off de / U1/C0 nom | D55: =D54/$D$54 -> 1 | H55: =H54/$D54 -> 0.7733159981 | I55: =I54/$D54 -> 0.7903240478 | J55: 0.808394014 | K55: 0.8377298582 | L55: 0.8589558616 | M55: 0.8816785414 | N55: 0.9060448463 | O55: 0.9321917304 | P55: 0.9601963221 | Q55: 0.9899140404 | R55: =R54/$D54 -> 0.9937183526 | S55: 0.9975333677 | T55: 1.001354425 | U55: 1.005175707 | V55: =V54/$D54 -> 1.008989891 | W55: 1.012787655 | X55: 1.016556966 | Y55: 1.020282012
B56: Rdt | D56: =(0.321*D55^4-1.6098*D55^3+1.316*D55^2+0.9448*D55)*($D33/0.97215493) -> 0.7798756933 | H56: =(0.321*H55^4-1.6098*H55^3+1.316*H55^2+0.9448*H55)*($D33/0.97) -> 0.7140258105 | I56: 0.7231094062 | J56: 0.7320983913 | K56: 0.7451980022 | L56: 0.7534908846 | M56: 0.7612347761 | N56: 0.7682052369 | O56: 0.7741141205 | P56: 0.7785980474 | Q56: 0.7812240031 | R56: 0.7813993362 | S56: 0.7815382038 | T56: 0.7816401037 | U56: 0.7817047013 | V56: 0.7817318873 | W56: 0.7817218552 | X56: 0.781675211 | Y56: 0.7815931286
B59: TURBINE 2
H60: 5
D61: DESIGN | H61: =H26 -> start-up | I61: =I26 -> start-up | J61: start-up | K61: start-up | L61: start-up | M61: start-up | N61: start-up | O61: start-up | P61: start-up | Q61: start-up | R61: =R26 -> 0 | S61: 0 | T61: 0 | U61: 0 | V61: =V26 -> 0 | W61: 0 | X61: 0 | Y61: 0
B62: Delta Debit | H62: =H63-H28 -> -12.11529472 | I62: -11.96084098 | J62: -11.7512042 | K62: -11.2824823 | L62: -10.81227589 | M62: -10.14166078 | N62: -9.157172999 | O62: -7.653361887 | P62: -5.222729205 | Q62: -0.9383703812 | R62: -0.1784401663 | S62: 0.6533537313 | T62: 1.567010308 | U62: 2.574535124 | V62: 3.690507161 | W62: 4.932865336 | X62: 6.324029149 | Y62: 7.892546964
B63: m | C63: g/s | D63: 191.2 | H63: =H76*H64/H65^0.5 -> 77.12564111 | I63: =I76*I64/I65^0.5 -> 80.28104004 | J63: 83.89676071 | K63: 90.47024001 | L63: 95.90693089 | M63: 102.5506944 | N63: 110.9248129 | O63: 121.9346685 | P63: 137.3230193 | Q63: 161.0478819 | R63: =R76*R64/R65^0.5 -> 165.0107045 | S63: =S76*S64/S65^0.5 -> 169.2946423 | T63: =T76*T64/T65^0.5 -> 173.9464625 | U63: =U76*U64/U65^0.5 -> 179.023383 | V63: =V76*V64/V65^0.5 -> 184.5963907 | W63: =W76*W64/W65^0.5 -> 190.7549857 | X63: =X76*X64/X65^0.5 -> 197.6141631 | Y63: =Y76*Y64/Y65^0.5 -> 205.3250268
B64: Pin | C64: Bara | D64: 6.307 | H64: 4.861180379 | I64: 4.869351439 | J64: 4.881990177 | K64: 4.913063769 | L64: 4.945777711 | M64: 4.993264153 | N64: 5.063300166 | O64: 5.169919005 | P64: 5.341419273 | Q64: 5.645749135 | R64: 5.700504758 | S64: 5.760822461 | T64: 5.827592161 | U64: 5.901915348 | V64: 5.985175368 | W64: 6.07913884 | X64: 6.186106459 | Y64: 6.309144592
B65: Tin | C65: K | D65: 18.21 | H65: =m*H32+p -> 66.48534979 | I65: =m*I32+p -> 61.5681806 | J65: 56.66872957 | K65: 49.35525236 | L65: 44.50504648 | M65: 39.67637004 | N65: 34.86984352 | O65: 30.08521602 | P65: 25.32017544 | Q65: =m*Q32+p -> 20.5671056 | R65: 19.97296071 | S65: 19.37860962 | T65: 18.78396016 | U65: 18.1889024 | V65: 17.59330408 | W65: 16.99700446 | X65: 16.39980576 | Y65: 15.80146103
B66: Pout | C66: Bara | D66: 1.35 | H66: 1.15 | I66: 1.15 | J66: 1.15 | K66: 1.15 | L66: 1.15 | M66: 1.15 | N66: 1.15 | O66: 1.15 | P66: 1.15 | Q66: 1.15 | R66: 1.15 | S66: 1.15 | T66: 1.15 | U66: 1.15 | V66: 1.15 | W66: 1.15 | X66: 1.15 | Y66: 1.15
B67: Tout | C67: K | D67: =[2]!T2_turb(11,D64,D65,D66,D68) -> 11.61835748 | H67: =[2]!T2_turb(11,H64,H65,H66,H68) -> 51.6932404 | I67: =[2]!T2_turb(11,I64,I65,I66,I68) -> 47.35244435 | J67: =[2]!T2_turb(11,J64,J65,J66,J68) -> 43.05840097 | K67: =[2]!T2_turb(11,K64,K65,K66,K68) -> 36.7170566 | L67: =[2]!T2_turb(11,L64,L65,L66,L68) -> 32.56586081 | M67: =[2]!T2_turb(11,M64,M65,M66,M68) -> 28.48561828 | N67: =[2]!T2_turb(11,N64,N65,N66,N68) -> 24.48699447 | O67: =[2]!T2_turb(11,O64,O65,O66,O68) -> 20.58320294 | P67: =[2]!T2_turb(11,P64,P65,P66,P68) -> 16.79031803 | Q67: =[2]!T2_turb(11,Q64,Q65,Q66,Q68) -> 13.1255721 | R67: =[2]!T2_turb(11,R64,R65,R66,R68) -> 12.67708693 | S67: =[2]!T2_turb(11,S64,S65,S66,S68) -> 12.23071182 | T67: =[2]!T2_turb(11,T64,T65,T66,T68) -> 11.78639076 | U67: =[2]!T2_turb(11,U64,U65,U66,U68) -> 11.3440342 | V67: =[2]!T2_turb(11,V64,V65,V66,V68) -> 10.90350647 | W67: =[2]!T2_turb(11,W64,W65,W66,W68) -> 10.46460759 | X67: =[2]!T2_turb(11,X64,X65,X66,X68) -> 10.02704633 | Y67: =[2]!T2_turb(11,Y64,Y65,Y66,Y68) -> 9.590399304
B68: Efficacity | C68: % | D68: 0.76 | H68: =(0.321*H90^4-1.6098*H90^3+1.316*H90^2+0.9448*H90)*($D$68/0.97215493) -> 0.510096929 | I68: =(0.321*I90^4-1.6098*I90^3+1.316*I90^2+0.9448*I90)*($D$68/0.97215493) -> 0.5286060459 | J68: 0.5487185388 | K68: 0.5822769819 | L68: 0.6071516323 | M68: 0.6341560141 | N68: 0.6632265374 | O68: 0.6938865659 | P68: 0.7246105275 | Q68: 0.7509464767 | R68: =(0.321*R90^4-1.6098*R90^3+1.316*R90^2+0.9448*R90)*($D$68/0.97215493) -> 0.7534304419 | S68: 0.7556127502 | T68: 0.757436847 | U68: 0.7588344064 | V68: =(0.321*V90^4-1.6098*V90^3+1.316*V90^2+0.9448*V90)*($D$68/0.97215493) -> 0.7597219955 | W68: 0.7599964341 | X68: 0.7595281568 | Y68: 0.7581514117
B69: Power | C69: W | D69: =+D63*(D80-D81) -> 6144.650346 | H69: 5991.034088 | I69: =+I63*(I80-I81) -> 5991.034088 | J69: 5991.034088 | K69: 5991.034082 | L69: 5991.034087 | M69: 5991.034087 | N69: 5991.034087 | O69: 5991.034087 | P69: 5991.034087 | Q69: 5991.034087 | R69: =+R63*(R80-R81) -> 5991.034091 | S69: 5991.034094 | T69: 5991.034097 | U69: 5991.034087 | V69: =+V63*(V80-V81) -> 5991.034087 | W69: 5991.034087 | X69: 5991.034087 | Y69: 5991.034087
B70: Speed | C70: Hz | D70: 1496 | H70: 1496 | I70: 1496 | J70: 1496 | K70: 1496 | L70: 1496 | M70: 1496 | N70: 1496 | O70: 1496 | P70: 1496 | Q70: 1496 | R70: 1496 | S70: 1496 | T70: 1496 | U70: 1496 | V70: 1496 | W70: 1496 | X70: 1496 | Y70: 1496
H71: =(H69/$D69*$D73/H73)^(1/3)*$D70 -> 1496 | I71: =(I69/$D69*$D73/I73)^(1/3)*$D70 -> 1496 | J71: 1496 | K71: 1496 | L71: 1496 | M71: 1496 | N71: 1496 | O71: 1496 | P71: 1496 | Q71: 1496 | R71: =(R69/$D69*$D73/R73)^(1/3)*$D70 -> 1496 | S71: 1496.000001 | T71: 1496.000001 | U71: 1496 | V71: =(V69/$D69*$D73/V73)^(1/3)*$D70 -> 1496 | W71: 1496 | X71: 1496 | Y71: 1496
B72: Delta Speed Frein & Turbine | H72: =H70-H71 -> -4.541857379e-08 | I72: =I70-I71 -> -4.301477929e-08 | J72: -4.988123692e-08 | K72: 4.631315278e-07 | L72: 7.368271326e-09 | M72: 1.242597136e-09 | N72: 4.629782779e-09 | O72: 4.057483238e-09 | P72: 9.178847904e-09 | Q72: =Q70-Q71 -> 8.123379303e-09 | R72: =R70-R71 -> -3.093118721e-07 | S72: -5.945703379e-07 | T72: -8.516590242e-07 | U72: 3.995637599e-09 | V72: =V70-V71 -> 3.075388122e-08 | W72: =W70-W71 -> 2.471688276e-08 | X72: =X70-X71 -> 9.252062227e-09 | Y72: =Y70-Y71 -> 3.983814167e-09
B73: Brake Pressure | D73: 8 | H73: =($D73-$D66)+H66 -> 7.8 | I73: =($D73-$D66)+I66 -> 7.8 | J73: 7.8 | K73: 7.8 | L73: 7.8 | M73: 7.8 | N73: 7.8 | O73: 7.8 | P73: 7.8 | Q73: 7.8 | R73: =($D73-$D66)+R66 -> 7.8 | S73: 7.8 | T73: 7.8 | U73: 7.8 | V73: =($D73-$D66)+V66 -> 7.8 | W73: 7.8 | X73: 7.8 | Y73: 7.8
B74: Rho (brake) | D74: =[2]!rho_(11,D73,330) -> 1.16324325 | H74: =[2]!rho_(11,H73,330) -> 1.134254938 | I74: =[2]!rho_(11,I73,330) -> 1.134254938 | J74: =[2]!rho_(11,J73,330) -> 1.134254938 | K74: =[2]!rho_(11,K73,330) -> 1.134254938 | L74: =[2]!rho_(11,L73,330) -> 1.134254938 | M74: =[2]!rho_(11,M73,330) -> 1.134254938 | N74: =[2]!rho_(11,N73,330) -> 1.134254938 | O74: =[2]!rho_(11,O73,330) -> 1.134254938 | P74: =[2]!rho_(11,P73,330) -> 1.134254938 | Q74: =[2]!rho_(11,Q73,330) -> 1.134254938 | R74: =[2]!rho_(11,R73,330) -> 1.134254938 | S74: =[2]!rho_(11,S73,330) -> 1.134254938 | T74: =[2]!rho_(11,T73,330) -> 1.134254938 | U74: =[2]!rho_(11,U73,330) -> 1.134254938 | V74: =[2]!rho_(11,V73,330) -> 1.134254938 | W74: =[2]!rho_(11,W73,330) -> 1.134254938 | X74: =[2]!rho_(11,X73,330) -> 1.134254938 | Y74: =[2]!rho_(11,Y73,330) -> 1.134254938
B75: Wheel | C75: mm | D75: 39.5 | H75: =$D$40 -> 35.8 | I75: =$D$40 -> 35.8 | J75: 35.8 | K75: 35.8 | L75: 35.8 | M75: 35.8 | N75: 35.8 | O75: 35.8 | P75: 35.8 | Q75: 35.8 | R75: 35.8 | S75: 35.8 | T75: 35.8 | U75: 35.8 | V75: 35.8 | W75: 35.8 | X75: 35.8 | Y75: 35.8
B76: a = mÖT/P | D76: =D63*D65^0.5/D64 -> 129.3659642 | H76: =$D$76 -> 129.3659642 | I76: 129.3659642 | J76: 129.3659642 | K76: 129.3659642 | L76: 129.3659642 | M76: 129.3659642 | N76: 129.3659642 | O76: 129.3659642 | P76: 129.3659642 | Q76: 129.3659642 | R76: 129.3659642 | S76: 129.3659642 | T76: 129.3659642 | U76: 129.3659642 | V76: 129.3659642 | W76: 129.3659642 | X76: 129.3659642 | Y76: 129.3659642
B77: Rho (in) | C77: kg/m3 | D77: =[2]!rho_(11,D64,D65) -> 16.81725024 | H77: =[2]!rho_(11,H64,H65) -> 3.484938868 | I77: =[2]!rho_(11,I64,I65) -> 3.767447369 | J77: =[2]!rho_(11,J64,J65) -> 4.101335879 | K77: =[2]!rho_(11,K64,K65) -> 4.734686666 | L77: =[2]!rho_(11,L64,L65) -> 5.282642684 | M77: =[2]!rho_(11,M64,M65) -> 5.979930032 | N77: =[2]!rho_(11,N64,N65) -> 6.899268718 | O77: =[2]!rho_(11,O64,O65) -> 8.171418215 | P77: =[2]!rho_(11,P64,P65) -> 10.06011686 | Q77: =[2]!rho_(11,Q64,Q65) -> 13.20141947 | R77: =[2]!rho_(11,R64,R65) -> 13.75153504 | S77: =[2]!rho_(11,S64,S65) -> 14.35409491 | T77: =[2]!rho_(11,T64,T65) -> 15.01752853 | U77: =[2]!rho_(11,U64,U65) -> 15.75228119 | V77: =[2]!rho_(11,V64,V65) -> 16.5714842 | W77: =[2]!rho_(11,W64,W65) -> 17.49192176 | X77: =[2]!rho_(11,X64,X65) -> 18.53546598 | Y77: =[2]!rho_(11,Y64,Y65) -> 19.73127592
B78: Sound Speed | D78: =[2]!Sound_speed(11,D64,D65) -> 258.3914638 | H78: =[2]!Sound_speed(11,H64,H65) -> 484.870247 | I78: =[2]!Sound_speed(11,I64,I65) -> 466.9795878 | J78: =[2]!Sound_speed(11,J64,J65) -> 448.4361774 | K78: =[2]!Sound_speed(11,K64,K65) -> 419.2095671 | L78: =[2]!Sound_speed(11,L64,L65) -> 398.6220635 | M78: =[2]!Sound_speed(11,M64,M65) -> 376.9782978 | N78: =[2]!Sound_speed(11,N64,N65) -> 354.0698486 | O78: =[2]!Sound_speed(11,O64,O65) -> 329.5989265 | P78: =[2]!Sound_speed(11,P64,P65) -> 303.1082176 | Q78: =[2]!Sound_speed(11,Q64,Q65) -> 273.8174097 | R78: =[2]!Sound_speed(11,R64,R65) -> 269.8961875 | S78: =[2]!Sound_speed(11,S64,S65) -> 265.9049938 | T78: =[2]!Sound_speed(11,T64,T65) -> 261.8390322 | U78: =[2]!Sound_speed(11,U64,U65) -> 257.6929689 | V78: =[2]!Sound_speed(11,V64,V65) -> 253.4608828 | W78: =[2]!Sound_speed(11,W64,W65) -> 249.1362376 | X78: =[2]!Sound_speed(11,X64,X65) -> 244.7119106 | Y78: =[2]!Sound_speed(11,Y64,Y65) -> 240.180357
B79: S=Q/(rho*V) = cte | D79: =D63/(D77*D78) -> 0.04400020898 | H79: 0.04564341048 | I79: =I63/(I77*I78) -> 0.04563183134 | J79: 0.04561621151 | K79: 0.04558094382 | L79: 0.0455446558 | M79: 0.04549107019 | N79: 0.04540845223 | O79: 0.04527349008 | P79: 0.04503421611 | Q79: 0.04455262824 | R79: =R63/(R77*R78) -> 0.04445946056 | S79: 0.04435482877 | T79: 0.04423670271 | U79: 0.04410255344 | V79: =V63/(V77*V78) -> 0.04394918795 | W79: 0.04377251198 | X79: 0.04356718011 | Y79: 0.04332606354
B80: Hin | D80: =[2]!H_(11,D64,D65) -> 105.9022075 | H80: =[2]!H_(11,H64,H65) -> 361.5464579 | I80: =[2]!H_(11,I64,I65) -> 335.9114999 | J80: =[2]!H_(11,J64,J65) -> 310.3474022 | K80: =[2]!H_(11,K64,K65) -> 272.1318265 | L80: =[2]!H_(11,L64,L65) -> 246.7348488 | M80: =[2]!H_(11,M64,M65) -> 221.3880475 | N80: =[2]!H_(11,N64,N65) -> 196.0654403 | O80: =[2]!H_(11,O64,O65) -> 170.7145841 | P80: =[2]!H_(11,P64,P65) -> 145.2241361 | Q80: =[2]!H_(11,Q64,Q65) -> 119.327682 | R80: =[2]!H_(11,R64,R65) -> 116.0340517 | S80: =[2]!H_(11,S64,S65) -> 112.7210814 | T80: =[2]!H_(11,T64,T65) -> 109.3856126 | U80: =[2]!H_(11,U64,U65) -> 106.0237997 | V80: =[2]!H_(11,V64,V65) -> 102.6308998 | W80: =[2]!H_(11,W64,W65) -> 99.20097658 | X80: =[2]!H_(11,X64,X65) -> 95.72646944 | Y80: =[2]!H_(11,Y64,Y65) -> 92.19755119
B81: Hout | D81: =[2]!H_(11,D66,D67) -> 73.76491485 | H81: =[2]!H_(11,H66,H67) -> 283.8675692 | I81: =[2]!H_(11,I66,I67) -> 261.2857342 | J81: =[2]!H_(11,J66,J67) -> 238.9378026 | K81: =[2]!H_(11,K66,K67) -> 205.9107788 | L81: =[2]!H_(11,L66,L67) -> 184.2676837 | M81: =[2]!H_(11,M66,M67) -> 162.9678279 | N81: =[2]!H_(11,N66,N67) -> 142.055576 | O81: =[2]!H_(11,O66,O67) -> 121.5814363 | P81: =[2]!H_(11,P66,P67) -> 101.596825 | Q81: =[2]!H_(11,Q66,Q67) -> 82.12735362 | R81: =[2]!H_(11,R66,R67) -> 79.7271096 | S81: =[2]!H_(11,S66,S67) -> 77.33287293 | T81: =[2]!H_(11,T66,T67) -> 74.94378487 | U81: =[2]!H_(11,U66,U67) -> 72.55870706 | V81: =[2]!H_(11,V66,V67) -> 70.1761261 | W81: =[2]!H_(11,W66,W67) -> 67.79401721 | X81: =[2]!H_(11,X66,X67) -> 65.409644 | Y81: =[2]!H_(11,Y66,Y67) -> 63.01925676
B82: Sin = Sout | D82: =[2]!S_(11,D64,D65) -> 13.04156759 | H82: =[2]!S_(11,H64,H65) -> 20.49632498 | I82: =[2]!S_(11,I64,I65) -> 20.09222264 | J82: =[2]!S_(11,J64,J65) -> 19.65410694 | K82: =[2]!S_(11,K64,K65) -> 18.91872353 | L82: =[2]!S_(11,L64,L65) -> 18.36310873 | M82: =[2]!S_(11,M64,M65) -> 17.7401287 | N82: =[2]!S_(11,N64,N65) -> 17.03045666 | O82: =[2]!S_(11,O64,O65) -> 16.20456166 | P82: =[2]!S_(11,P64,P65) -> 15.21343142 | Q82: =[2]!S_(11,Q64,Q65) -> 13.96441716 | R82: =[2]!S_(11,R64,R65) -> 13.78186475 | S82: =[2]!S_(11,S64,S65) -> 13.59164907 | T82: =[2]!S_(11,T64,T65) -> 13.39299235 | U82: =[2]!S_(11,U64,U65) -> 13.18497663 | V82: =[2]!S_(11,V64,V65) -> 12.96650484 | W82: =[2]!S_(11,W64,W65) -> 12.73624656 | X82: =[2]!S_(11,X64,X65) -> 12.49256045 | Y82: =[2]!S_(11,Y64,Y65) -> 12.23337962
B83: Tout(iso) | D83: =[1]!HeCalc(2,0,1,D66*10^5,8,D82*1000,1) -> 9.763910711 | H83: =[1]!HeCalc(2,0,1,H66*10^5,8,H82*1000,1) -> 37.36054211 | I83: =[1]!HeCalc(2,0,1,I66*10^5,8,I82*1000,1) -> 34.57333406 | J83: =[1]!HeCalc(2,0,1,J66*10^5,8,J82*1000,1) -> 31.78783363 | K83: =[1]!HeCalc(2,0,1,K66*10^5,8,K82*1000,1) -> 27.61225394 | L83: =[1]!HeCalc(2,0,1,L66*10^5,8,L82*1000,1) -> 24.82958707 | M83: =[1]!HeCalc(2,0,1,M66*10^5,8,M82*1000,1) -> 22.04662866 | N83: =[1]!HeCalc(2,0,1,N66*10^5,8,N82*1000,1) -> 19.26148912 | O83: =[1]!HeCalc(2,0,1,O66*10^5,8,O82*1000,1) -> 16.47057484 | P83: =[1]!HeCalc(2,0,1,P66*10^5,8,P82*1000,1) -> 13.66652906 | Q83: =[1]!HeCalc(2,0,1,Q66*10^5,8,Q82*1000,1) -> 10.83220936 | R83: =[1]!HeCalc(2,0,1,R66*10^5,8,R82*1000,1) -> 10.47402173 | S83: =[1]!HeCalc(2,0,1,S66*10^5,8,S82*1000,1) -> 10.11454835 | T83: =[1]!HeCalc(2,0,1,T66*10^5,8,T82*1000,1) -> 9.753596549 | U83: =[1]!HeCalc(2,0,1,U66*10^5,8,U82*1000,1) -> 9.390933866 | V83: =[1]!HeCalc(2,0,1,V66*10^5,8,V82*1000,1) -> 9.026276653 | W83: =[1]!HeCalc(2,0,1,W66*10^5,8,W82*1000,1) -> 8.659274299 | X83: =[1]!HeCalc(2,0,1,X66*10^5,8,X82*1000,1) -> 8.289486832 | Y83: =[1]!HeCalc(2,0,1,Y66*10^5,8,Y82*1000,1) -> 7.916352396
B84: Hout(iso) | D84: =[2]!H_(11,D66,D83) -> 63.61629614 | H84: =[2]!H_(11,H66,H83) -> 209.2638539 | I84: =[2]!H_(11,I66,I83) -> 194.7368646 | J84: =[2]!H_(11,J66,J83) -> 180.2085522 | K84: =[2]!H_(11,K66,K83) -> 158.4040821 | L84: =[2]!H_(11,L66,L83) -> 143.8492403 | M84: =[2]!H_(11,M66,M83) -> 129.2652602 | N84: =[2]!H_(11,N66,N83) -> 114.6304234 | O84: =[2]!H_(11,O66,O83) -> 99.90596756 | P84: =[2]!H_(11,P66,P83) -> 85.01619063 | Q84: =[2]!H_(11,Q66,Q83) -> 69.78975949 | R84: =[2]!H_(11,R66,R83) -> 67.84520762 | S84: =[2]!H_(11,S66,S83) -> 65.88729192 | T84: =[2]!H_(11,T66,T83) -> 63.91406225 | U84: =[2]!H_(11,U66,U83) -> 61.92314698 | V84: =[2]!H_(11,V66,V83) -> 59.91162367 | W84: =[2]!H_(11,W66,W83) -> 57.87583612 | X84: =[2]!H_(11,X66,X83) -> 55.81112835 | Y84: =[2]!H_(11,Y66,Y83) -> 53.71144672
B85: ΔHs | D85: =D80-D84 -> 42.28591132 | H85: 152.282604 | I85: =I80-I84 -> 141.1746353 | J85: 130.1388499 | K85: 113.7277443 | L85: 102.8856085 | M85: 92.12278729 | N85: 81.43501685 | O85: 70.80861656 | P85: 60.20794545 | Q85: 49.53792247 | R85: =R80-R84 -> 48.18884406 | S85: 46.83378948 | T85: 45.47155037 | U85: 44.10065268 | V85: =V80-V84 -> 42.71927613 | W85: 41.32514046 | X85: 39.91534109 | Y85: 38.48610447
B86: u1 | C86: m/s | D86: =(2*52.7%*D85*1000*D68)^0.5 -> 184.0453922 | H86: =PI()*$D$87*H70 -> 184.0453922 | I86: =PI()*$D$87*I70 -> 184.0453922 | J86: 184.0453922 | K86: 184.0453922 | L86: 184.0453922 | M86: 184.0453922 | N86: 184.0453922 | O86: 184.0453922 | P86: 184.0453922 | Q86: =PI()*$D$87*Q70 -> 184.0453922 | R86: =PI()*$D$87*R70 -> 184.0453922 | S86: 184.0453922 | T86: 184.0453922 | U86: 184.0453922 | V86: =PI()*$D$87*V70 -> 184.0453922 | W86: 184.0453922 | X86: 184.0453922 | Y86: 184.0453922
B87: D1 | D87: =D86/PI()/D70 -> 0.0391600721
B88: Co = (2*ΔHs)^0,5 | D88: =(2000*D85)^0.5 -> 290.8123495 | H88: 551.8742683 | I88: =(2000*I85)^0.5 -> 531.3654774 | J88: 510.1741858 | K88: 476.9229379 | L88: 453.620124 | M88: 429.2383657 | N88: 403.5715968 | O88: 376.320652 | P88: 347.0099291 | Q88: 314.7631569 | R88: =(2000*R85)^0.5 -> 310.447561 | S88: 306.0515953 | T88: 301.5677382 | U88: 296.9870458 | V88: =(2000*V85)^0.5 -> 292.298738 | W88: 287.4896188 | X88: 282.5432395 | Y88: 277.438658
B89: u1/Co | D89: =D86/D88 -> 0.6328664946 | H89: 0.3334915266 | I89: =I86/I88 -> 0.3463630967 | J89: 0.3607501072 | K89: 0.3859017414 | L89: 0.40572581 | M89: 0.4287719993 | N89: 0.4560414898 | O89: 0.4890653523 | P89: 0.5303750031 | Q89: 0.5847107204 | R89: =R86/R88 -> 0.5928389054 | S89: 0.6013541347 | T89: 0.6102953629 | U89: 0.6197084851 | V89: =V86/V88 -> 0.6296482615 | W89: 0.640181002 | X89: 0.6513884125 | Y89: 0.6633732789
B90: U1/C0 off de / U1/C0 nom | D90: =D89/$D$54 -> 0.9870962336 | H90: =H89/$D89 -> 0.5269539934 | I90: =I89/$D89 -> 0.5472925169 | J90: 0.5700256062 | K90: 0.6097680075 | L90: 0.6410922579 | M90: 0.6775078203 | N90: 0.720596672 | O90: 0.7727780763 | P90: 0.8380519551 | Q90: 0.923908479 | R90: =R89/$D89 -> 0.9367519223 | S90: 0.950206939 | T90: 0.9643350819 | U90: 0.9792088702 | V90: =V89/$D89 -> 0.9949148309 | W90: 1.011557742 | X90: 1.029266706 | Y90: 1.048204139
B91: Rdt | D91: =(0.321*D90^4-1.6098*D90^3+1.316*D90^2+0.9448*D90)*($D68/0.97215493) -> 0.7593560473 | H91: =(0.321*H90^4-1.6098*H90^3+1.316*H90^2+0.9448*H90)*($D68/0.97215493) -> 0.510096929 | I91: =(0.321*I90^4-1.6098*I90^3+1.316*I90^2+0.9448*I90)*($D68/0.97215493) -> 0.5286060459 | J91: 0.5487185388 | K91: 0.5822769819 | L91: 0.6071516323 | M91: 0.6341560141 | N91: 0.6632265374 | O91: 0.6938865659 | P91: 0.7246105275 | Q91: 0.7509464767 | R91: =(0.321*R90^4-1.6098*R90^3+1.316*R90^2+0.9448*R90)*($D68/0.97215493) -> 0.7534304419 | S91: 0.7556127502 | T91: 0.757436847 | U91: 0.7588344064 | V91: =(0.321*V90^4-1.6098*V90^3+1.316*V90^2+0.9448*V90)*($D68/0.97215493) -> 0.7597219955 | W91: 0.7599964341 | X91: 0.7595281568 | Y91: 0.7581514117
B93: TURBINE 3
D95: DESIGN | F95: =F61 -> 0 | G95: =G61 -> 0 | H95: =H61 -> start-up | I95: =I61 -> start-up
B97: m | C97: g/s | D97: 399.8 | F97: =F110/(F100*F99)^0.5*F98 -> 161.4761819 | G97: =G110/(G100*G99)^0.5*G98 -> 95.0804152 | I97: 117.1010273
B98: Pin | C98: Bara | D98: 13.07 | F98: 13.07 | G98: 7.369 | I98: 10.48
B99: Tin | C99: K | D99: 7.292 | F99: 9.16 | G99: 7.912 | I99: 10.55
B100: Pout | C100: Bara | D100: 4.88 | F100: 4.88 | G100: 5.18 | I100: 5.18
B101: Tout | C101: K | D101: =[2]!T2_turb(11,D98,D99,D100,D102) -> 6.11984088 | F101: =[2]!T2_turb(11,F98,F99,F100,F102) -> 7.049446306 | G101: =[2]!T2_turb(11,G98,G99,G100,G102) -> 7.14472539 | H101: =[2]!T2_turb(11,H98,H99,H100,H102) ->  | I101: =[2]!T2_turb(11,I98,I99,I100,I102) -> 8.690381514
B102: Efficacity | C102: % | D102: 0.72 | F102: =(0.321*F124^4-1.6098*F124^3+1.316*F124^2+0.9448*F124)*($D$102/0.97215493) -> 0.5817973136 | G102: =(0.321*G124^4-1.6098*G124^3+1.316*G124^2+0.9448*G124)*($D$102/0.97215493) -> 0.5827244835 | H102: =(0.321*H124^4-1.6098*H124^3+1.316*H124^2+0.9448*H124)*($D$102/0.97215493) ->  | I102: =(0.321*I124^4-1.6098*I124^3+1.316*I124^2+0.9448*I124)*($D$102/0.97215493) -> 0.5020164146
B103: Power | C103: W | D103: =+D97*(D114-D115) -> 2075.54042 | F103: 954.7418418 | G103: 182.514095 | I103: 610.6783435
B104: Speed | C104: Hz | D104: 2076 | F104: 1602.55252 | G104: 914.2081865 | H104: 862.6625785 | I104: 1367.362934
F105: =(F103/$D103*$D107/F107)^(1/3)*$D104 -> 1602.552512 | G105: =(G103/$D103*$D107/G107)^(1/3)*$D104 -> 914.2081711 | H105: =(H103/$D103*$D107/H107)^(1/3)*$D104 ->  | I105: =(I103/$D103*$D107/I107)^(1/3)*$D104 -> 1367.36293
F106: =F104-F105 -> 7.275503322e-06 | G106: =G104-G105 -> 1.541953168e-05 | H106: =H104-H105 ->  | I106: =I104-I105 -> 4.300091632e-06
B107: Brake Pressure | D107: 10.1 | F107: =($D107-$D100)+F100 -> 10.1 | G107: =($D107-$D100)+G100 -> 10.4 | H107: =($D107-$D100)+H100 -> 5.22 | I107: =($D107-$D100)+I100 -> 10.4
B108: Rho (brake) | D108: =[2]!rho_(11,D107,330) -> 1.467334205 | F108: =[2]!rho_(11,F107,330) -> 1.467334205 | G108: =[2]!rho_(11,G107,330) -> 1.510733122 | H108: =[2]!rho_(11,H107,330) -> 0.7598798717 | I108: =[2]!rho_(11,I107,330) -> 1.510733122
B109: Wheel | C109: mm | D109: 29.5 | F109: =$D$109 -> 29.5 | G109: =$D$109 -> 29.5 | H109: =$D$109 -> 29.5 | I109: =$D$109 -> 29.5
B110: a = mÖT/P | D110: =D97*D99^0.5/D98 -> 82.60199418 | F110: =$D$110 -> 82.60199418 | G110: =$D$110 -> 82.60199418 | H110: 82.60199418 | I110: 82.60199418
B111: Rho (in) | C111: kg/m3 | D111: =[2]!rho_(11,D98,D99) -> 122.041385 | F111: =[2]!rho_(11,F98,F99) -> 92.04202254 | G111: =[2]!rho_(11,G98,G99) -> 70.6496495 | H111: =[2]!rho_(11,H98,H99) -> NUM | I111: =[2]!rho_(11,I98,I99) -> 58.78998557
B112: Sound Speed | D112: =[2]!Sound_speed(11,D98,D99) -> 249.0567129 | F112: =[2]!Sound_speed(11,F98,F99) -> 219.0353462 | G112: =[2]!Sound_speed(11,G98,G99) -> 170.7864441 | H112: =[2]!Sound_speed(11,H98,H99) -> NUM | I112: =[2]!Sound_speed(11,I98,I99) -> 204.2669237
B113: S=Q/(rho*V) = cte | D113: =D97/(D111*D112) -> 0.01315338131 | F113: 0.008009549968 | G113: 0.007880026204 | I113: 0.009751227821
B114: Hin | D114: =[2]!H_(11,D98,D99) -> 28.15088458 | F114: =[2]!H_(11,F98,F99) -> 40.89014045 | G114: =[2]!H_(11,G98,G99) -> 36.81164396 | H114: =[2]!H_(11,H98,H99) ->  | I114: =[2]!H_(11,I98,I99) -> 54.05983231
B115: Hout | D115: =[2]!H_(11,D100,D101) -> 22.9594378 | F115: =[2]!H_(11,F100,F101) -> 34.97755427 | G115: =[2]!H_(11,G100,G101) -> 34.89206784 | H115: =[2]!H_(11,H100,H101) ->  | I115: =[2]!H_(11,I100,I101) -> 48.84486232
B116: Sin = Sout | D116: =[2]!S_(11,D98,D99) -> 5.060004669 | F116: =[2]!S_(11,F98,F99) -> 6.606972814 | G116: =[2]!S_(11,G98,G99) -> 6.945830207 | H116: =[2]!S_(11,H98,H99) ->  | I116: =[2]!S_(11,I98,I99) -> 8.300020451
B117: Tout(iso) | D117: =[1]!HeCalc(2,0,1,D100*10^5,8,D116*1000,1) -> 5.935138784 | F117: =[1]!HeCalc(2,0,1,F100*10^5,8,F116*1000,1) -> 6.699995029 | G117: =[1]!HeCalc(2,0,1,G100*10^5,8,G116*1000,1) -> 7.024181985 | H117: =[1]!HeCalc(2,0,1,H100*10^5,8,H116*1000,1) ->  | I117: =[1]!HeCalc(2,0,1,I100*10^5,8,I116*1000,1) -> 8.048894673
B118: Hout(iso) | D118: =[2]!H_(11,D100,D117) -> 20.94054184 | F118: =[2]!H_(11,F100,F117) -> 30.72751844 | G118: =[2]!H_(11,G100,G117) -> 33.5175038 | H118: =[2]!H_(11,H100,H117) ->  | I118: =[2]!H_(11,I100,I117) -> 43.67178554
B119: ΔHs | D119: =D114-D118 -> 7.210342742 | F119: 10.16262202 | G119: 3.294140164 | I119: 10.38804677
B120: u1 | C120: m/s | D120: =(2*52.7%*D119*1000*D102)^0.5 -> 73.97151411 | F120: =PI()*$D$121*F104 -> 57.1017516 | G120: =PI()*$D$121*G104 -> 32.57483804 | H120: 30.73817779 | I120: 48.72153497
B121: D1 | D121: =D120/PI()/D104 -> 0.01134193846 | M121: T3
B122: Co = (2*ΔHs)^0,5 | D122: =(2000*D119)^0.5 -> 120.0861586 | F122: 142.5666302 | G122: 81.1682224 | I122: 144.1391464 | L122: MAX | M122: =ROUND(F97,0)&"g/s @ "&F98&" b ; "&F99&"K" -> 161g/s @ 13,07 b ; 9,16K
B123: u1/Co | D123: =D120/D122 -> 0.6159870129 | F123: 0.400526768 | G123: 0.4013250146 | I123: 0.3380173685 | L123: MIN | M123: =ROUND(G97,0)&"g/s @ "&G98&" b ; "&G99&"K" -> 95g/s @ 7,369 b ; 7,912K
B124: U1/C0 off de / U1/C0 nom | D124: =D123/$D$54 -> 0.9607689228 | F124: =F123/$D123 -> 0.6502195008 | G124: =G123/$D123 -> 0.6515153829 | H124: =H123/$D123 ->  | I124: =I123/$D123 -> 0.5487410634 | L124: STS | M124: =ROUND(H97,0)&"g/s @ "&H98&" b ; "&H99&"K" -> 
B125: Rdt | D125: =(0.321*D124^4-1.6098*D124^3+1.316*D124^2+0.9448*D124)*($D102/0.97215493) -> 0.7171786088 | F125: =(0.321*F124^4-1.6098*F124^3+1.316*F124^2+0.9448*F124)*($D102/0.97215493) -> 0.5817973136 | G125: =(0.321*G124^4-1.6098*G124^3+1.316*G124^2+0.9448*G124)*($D102/0.97215493) -> 0.5827244835 | H125: =(0.321*H124^4-1.6098*H124^3+1.316*H124^2+0.9448*H124)*($D102/0.97215493) ->  | I125: =(0.321*I124^4-1.6098*I124^3+1.316*I124^2+0.9448*I124)*($D102/0.97215493) -> 0.5020164146 | L125: BAKING | M125: =ROUND(I97,0)&"g/s @ "&I98&" b ; "&I99&"K" -> 117g/s @ 10,48 b ; 10,55K
M127: =M52 -> 0 | N127: =M121 -> T3 | O127: T1+T2
B128: Courbe de rendement TC3 | L128: =L122 -> MAX | M128: =M53 -> 396.3954221 | N128: =M122 -> 161g/s @ 13,07 b ; 9,16K | O128: =F97+F63 -> 161.4761819
L129: =L123 -> MIN | M129: =M54 -> 0.5652790365 | N129: =M123 -> 95g/s @ 7,369 b ; 7,912K | O129: =G97+G63 -> 95.0804152
L130: =L124 -> STS | M130: =M55 -> 0.8816785414 | N130: =M124 ->  | O130: =H97+H63 -> 
L131: =L125 -> BAKING | M131: =M56 -> 0.7612347761 | N131: =M125 -> 117g/s @ 10,48 b ; 10,55K | O131: =I97+I63 -> 197.3820674
E132: d : mm
E133: N : Hz
E134: H : J/kG
B140: rendement=(0,321*rap^4 - 1,6098*rap^3 + 1,316*rap^2 + 0,9448*rap)*(ETAgar/0,97) | I140: U1/CO _nom | J140: 0.64
I141: Eta_gar | J141: 0.8
B142: U1/C0 | C142: =D33 -> 0.78 | D142: =D68 -> 0.76 | E142: =D102 -> 0.72
B143: 0 | C143: =(0.321*B143^4-1.6098*B143^3+1.316*B143^2+0.9448*B143)*$D$33/0.97215493 -> 0
B144: =B143+0.05 -> 0.05 | C144: =(0.321*$B144^4-1.6098*$B144^3+1.316*$B144^2+0.9448*$B144)*$C$142/0.97215493 -> 0.04038246185 | D144: =(0.321*$B144^4-1.6098*$B144^3+1.316*$B144^2+0.9448*$B144)*$D$142/0.97215493 -> 0.03934701411 | E144: =(0.321*$B144^4-1.6098*$B144^3+1.316*$B144^2+0.9448*$B144)*$E$142/0.97215493 -> 0.03727611863
B145: 0.1 | C145: =(0.321*$B145^4-1.6098*$B145^3+1.316*$B145^2+0.9448*$B145)*$C$142/0.97215493 -> 0.08509815817 | D145: =(0.321*$B145^4-1.6098*$B145^3+1.316*$B145^2+0.9448*$B145)*$D$142/0.97215493 -> 0.08291615412 | E145: =(0.321*$B145^4-1.6098*$B145^3+1.316*$B145^2+0.9448*$B145)*$E$142/0.97215493 -> 0.078552146
B146: 0.15 | C146: 0.1332363313 | D146: 0.1298200152 | E146: 0.1229873828
B147: 0.2 | C147: 0.1839248565 | D147: 0.1792088345 | E147: 0.1697767906
B148: 0.25 | C148: 0.2363302415 | D148: 0.2302704917 | E148: 0.2181509921
B149: 0.3 | C149: 0.2896576269 | D149: 0.2822305083 | E149: 0.267376271
B150: 0.35 | C150: 0.343150786 | D150: 0.3343520479 | E150: 0.3167545717
B151: 0.4 | C151: 0.3960921249 | D151: 0.3859359166 | E151: 0.3656234999
B152: 0.45 | C152: 0.4478026824 | D152: 0.4363205624 | E152: 0.4133563222
B153: 0.5 | C153: 0.4976421299 | D153: 0.4848820753 | E153: 0.4593619661
B154: 0.55 | C154: 0.5450087718 | D154: 0.5310341879 | E154: 0.5030850201
B155: 0.6 | C155: 0.5893395449 | D155: 0.5742282745 | E155: 0.5440057337
B156: 0.65 | C156: 0.630110019 | D156: 0.6139533518 | E156: 0.5816400175
B157: 0.7 | C157: 0.6668343964 | D157: 0.6497360786 | E157: 0.6155394429
B158: 0.75 | C158: 0.6990655125 | D158: 0.6811407558 | E158: 0.6452912423
B159: 0.8 | C159: 0.726394835 | D159: 0.7077693264 | E159: 0.6705183093
B160: 0.85 | C160: 0.7484524646 | D160: 0.7292613758 | E160: 0.6908791981
B161: 0.9 | C161: 0.7649071347 | D161: 0.7452941313 | E161: 0.7060681243
B162: 0.95 | C162: 0.7754662113 | D162: 0.7555824623 | E162: 0.7158149643
B163: 1 | C163: 0.7798756933 | D163: 0.7598788806 | E163: 0.7198852553
B164: 1.05 | C164: 0.7779202121 | D164: 0.75797354 | E164: 0.7180801958
B165: 1.1 | C165: 0.7694230322 | D165: 0.7496942365 | E165: 0.7102366451
B166: 1.15 | C166: 0.7542460504 | D166: 0.7349064081 | E166: 0.6962271235
B167: 1.2 | C167: 0.7322897966 | D167: 0.7135131352 | E167: 0.6759598123 | G167: F Let u be the peripheral speed of the wheel : u = p . Æ . N / 60 (in m/s)
B168: 1.25 | C168: 0.7034934333 | D168: 0.6854551401 | E168: 0.6493785538 | G168: F Let n, be the speed ratio of the turbine : n = u / [ 2 . (H1 - H2S ) ] 0.5 (dimensionless number)
B169: 1.3 | C169: 0.6678347555 | D169: 0.6507107874 | E169: 0.6164628512 | H169: N = speed of rotation of the turbine (in rpm)
B170: 1.35 | C170: 0.6253301913 | D170: 0.6092960839 | E170: 0.5772278689 | H170: Æ = diameter of the wheel of the turbine (in m)
B171: 1.4 | C171: 0.5760348014 | D171: 0.5612646783 | E171: 0.531724432
B172: 1.45 | C172: 0.520042279 | D172: 0.5067078616 | E172: 0.4800390268
B173: 1.5 | C173: 0.4574849505 | D173: 0.4457545671 | E173: 0.4222938004

Sheet Turbines_JT60SA_serial_Frein T1
E5: Vitesse de la roue ajustée en fonction de la puissance du frein | L5: =D65*0.3 -> 448.8
A7: 1 | B7: 2 | C7: 3 | D7: 4 | E7: 5 | F7: 6 | G7: 7 | H7: 8 | I7: 9 | J7: 10 | K7: 11 | L7: 12 | M7: 13 | N7: 14 | O7: 15 | P7: 16 | Q7: 17 | R7: 18 | S7: 19 | T7: 20 | U7: 21 | V7: 22 | W7: 23 | X7: 24 | Y7: 25 | Z7: 26 | AA7: 27 | AB7: 28 | AC7: 29 | AD7: 30 | AE7: 31 | AF7: 32 | AG7: 33
B8: Relation entre la puissance et la vitesse de rotation | M8: ²
B10: Cvs | D10: 30 | H10: 30
B11: Range | D11: 100 | H11: 100
B12: Trim | D12: 0.85 | H12: 0.85
B13: Cv | D13: =[2]!Cv_From_Trim(D12,D11)*D10 -> 15.03561701 | H13: =[2]!Cv_From_Trim(H12,H11)*H10 -> 15.03561701
B14: Pin | C14: Bara | D14: 15 | H14: 15
B15: Tin | C15: K | D15: 40.03 | H15: =H25 -> 80
B16: Rho | D16: =[2]!rho_(11,D14,D15) -> 17.343207 | H16: =[2]!rho_(11,H14,H15) -> 8.791512513
B17: Flow | D17: =IF(D14/2>D24,"S","SS") -> SS | H17: =IF(H14/2>H24,"S","SS") -> SS
B18: m | C18: g/s | D18: =[2]!q_gs(D15,D14,(D14-D24),D16,D13,D17) -> 226.4083326 | H18: =[2]!q_gs(H15,H14,(H14-H24),H16,H13,H17) -> 551.0587669
B19: TURBINE 1
D21: DESIGN | H21: start-up | I21: start-up | J21: start-up | K21: start-up | L21: start-up | M21: start-up | N21: start-up | O21: start-up | P21: start-up | Q21: start-up
B23: m | C23: g/s | D23: 191.5 | H23: =H36*H24/H25^0.5 -> 106.096967 | I23: =I36*I24/I25^0.5 -> 109.4163208 | J23: 113.1192307 | K23: 119.5833746 | L23: 124.6789551 | M23: 130.6149189 | N23: 137.672006 | O23: 146.2948707 | P23: 157.249799 | Q23: 172.0273388 | R23: 174.2767347 | S23: 176.6436142 | T23: 179.1397323 | U23: 181.7786111 | V23: 184.5758929 | W23: 187.5497849 | X23: 190.7216171 | Y23: 194.1165551
B24: Pin | C24: Bara | D24: 14.77 | H24: 11.56822919 | I24: 11.62807503 | J24: 11.70096319 | K24: 11.84299906 | L24: 11.96762358 | M24: 12.12622728 | N24: 12.33279301 | O24: 12.61052082 | P24: 13.00133464 | Q24: 13.59067535 | R24: 13.68618432 | S24: 13.78823867 | T24: 13.8975535 | U24: 14.01495471 | V24: 14.14140134 | W24: 14.27801375 | X24: 14.42610893 | Y24: 14.58724562
B25: Tin | C25: K | D25: 40.03 | H25: 80 | I25: =H25-4 -> 76 | J25: =I25-4 -> 72 | K25: 66 | L25: 62 | M25: 58 | N25: 54 | O25: 50 | P25: 46 | Q25: 42 | R25: =Q25-0.5 -> 41.5 | S25: =R25-0.5 -> 41 | T25: 40.5 | U25: 40 | V25: 39.5 | W25: 39 | X25: 38.5 | Y25: 38
B26: Pout | C26: Bara | D26: 6.36 | H26: =H59 -> 4.864844283 | I26: 4.874947037 | J26: 4.890058268 | K26: 4.926261723 | L26: 4.963731 | M26: 5.017471047 | N26: 5.095708833 | O26: 5.212754147 | P26: 5.395680865 | Q26: 5.702092133 | R26: 5.754534186 | S26: 5.811309113 | T26: 5.872924698 | U26: 5.939969364 | V26: 6.013128605 | W26: 6.093205584 | X26: 6.181147091 | Y26: 6.278076616
B27: Tout | C27: K | D27: =[2]!T2_turb(11,D24,D25,D26,D28) -> 31.09458691 | H27: =[2]!T2_turb(11,H24,H25,H26,H28) -> 64.44728626 | I27: =[2]!T2_turb(11,I24,I25,I26,I28) -> 60.92489198 | J27: =[2]!T2_turb(11,J24,J25,J26,J28) -> 57.42392949 | K27: =[2]!T2_turb(11,K24,K25,K26,K28) -> 52.2194231 | L27: =[2]!T2_turb(11,L24,L25,L26,L28) -> 48.78701879 | M27: =[2]!T2_turb(11,M24,M25,M26,M28) -> 45.39103317 | N27: =[2]!T2_turb(11,N24,N25,N26,N28) -> 42.03970437 | O27: =[2]!T2_turb(11,O24,O25,O26,O28) -> 38.74533794 | P27: =[2]!T2_turb(11,P24,P25,P26,P28) -> 35.52782818 | Q27: =[2]!T2_turb(11,Q24,Q25,Q26,Q28) -> 32.42294556 | R27: =[2]!T2_turb(11,R24,R25,R26,R28) -> 32.0457374 | S27: =[2]!T2_turb(11,S24,S25,S26,S28) -> 31.67154231 | T27: =[2]!T2_turb(11,T24,T25,T26,T28) -> 31.30059555 | U27: =[2]!T2_turb(11,U24,U25,U26,U28) -> 30.93316148 | V27: =[2]!T2_turb(11,V24,V25,V26,V28) -> 30.56953834 | W27: =[2]!T2_turb(11,W24,W25,W26,W28) -> 30.21006382 | X27: =[2]!T2_turb(11,X24,X25,X26,X28) -> 29.85512186 | Y27: =[2]!T2_turb(11,Y24,Y25,Y26,Y28) -> 29.50515074
B28: Efficacity | C28: % | D28: 0.78 | H28: =(0.321*H50^4-1.6098*H50^3+1.316*H50^2+0.9448*H50)*($D$28/0.97215493) -> 0.6688324145 | I28: =(0.321*I50^4-1.6098*I50^3+1.316*I50^2+0.9448*I50)*($D$28/0.97215493) -> 0.6801910388 | J28: 0.6918808821 | K28: 0.7099612053 | L28: 0.7222834076 | M28: 0.7346841244 | N28: 0.746955043 | O28: 0.7587342006 | P28: 0.7693535327 | Q28: 0.777442959 | R28: 0.7781496381 | S28: 0.7787614208 | T28: 0.7792667712 | U28: 0.7796523502 | V28: 0.7799026479 | W28: 0.779999522 | X28: 0.7799216174 | Y28: 0.7796436276
B29: Power | C29: W | D29: =+D23*(D40-D41) -> 9122.443616 | H29: =+H23*(H40-H41) -> 8771.580403 | I29: 8771.580403 | J29: 8771.580404 | K29: 8771.580404 | L29: 8771.580403 | M29: 8771.580403 | N29: 8771.580409 | O29: 8771.580403 | P29: 8771.580407 | Q29: 8771.580408 | R29: 8771.580402 | S29: 8771.580411 | T29: 8771.580401 | U29: 8771.58041 | V29: 8771.580402 | W29: 8771.580405 | X29: 8771.5804 | Y29: 8771.580401
B30: Speed | C30: Hz | D30: 1995 | H30: 1995 | I30: 1995 | J30: 1995 | K30: 1995 | L30: 1995 | M30: 1995 | N30: 1995 | O30: 1995 | P30: 1995 | Q30: 1995 | R30: 1995 | S30: 1995 | T30: 1995 | U30: 1995 | V30: 1995 | W30: 1995 | X30: 1995 | Y30: 1995
B31: Speed calculated from P=K.rho.N^3 | H31: =(H29/$D29*$D33/H33)^(1/3)*$D30 -> 1995 | I31: =(I29/$D29*$D33/I33)^(1/3)*$D30 -> 1995 | J31: 1995 | K31: 1995 | L31: 1995 | M31: 1995 | N31: 1995.000001 | O31: 1995 | P31: 1995.000001 | Q31: 1995.000001 | R31: 1995 | S31: 1995.000001 | T31: 1995 | U31: 1995.000001 | V31: 1995 | W31: 1995 | X31: 1995 | Y31: 1995
B32: Delta Speed Frein & Turbine | D32: =D61-D33 -> -3.85 | H32: =H30-H31 -> -2.064848559e-07 | I32: =I30-I31 -> -2.363931344e-07 | J32: -2.615220183e-07 | K32: -2.726353614e-07 | L32: -2.483604931e-07 | M32: -1.917346708e-07 | N32: -6.760449196e-07 | O32: -2.401397978e-07 | P32: -5.132053502e-07 | Q32: -6.363552529e-07 | R32: -1.773701115e-07 | S32: -8.536537734e-07 | T32: -6.730169844e-08 | U32: -7.253431704e-07 | V32: -1.522682851e-07 | W32: -3.816512617e-07 | X32: 4.784396879e-09 | Y32: -7.224980436e-08
B33: Brake Pressure | D33: 5.2 | H33: =($D33-$D61)+H61 -> 5 | I33: =($D33-$D61)+I61 -> 5 | J33: =($D33-$D61)+J61 -> 5 | K33: 5 | L33: 5 | M33: 5 | N33: 5 | O33: 5 | P33: 5 | Q33: 5 | R33: 5 | S33: 5 | T33: 5 | U33: 5 | V33: 5 | W33: 5 | X33: 5 | Y33: 5
B34: Rho (brake) | D34: =[2]!rho_(11,D33,330) -> 0.7569746494 | H34: =[2]!rho_(11,H33,330) -> 0.7279198097 | I34: =[2]!rho_(11,I33,330) -> 0.7279198097 | J34: =[2]!rho_(11,J33,330) -> 0.7279198097 | K34: =[2]!rho_(11,K33,330) -> 0.7279198097 | L34: =[2]!rho_(11,L33,330) -> 0.7279198097 | M34: =[2]!rho_(11,M33,330) -> 0.7279198097 | N34: =[2]!rho_(11,N33,330) -> 0.7279198097 | O34: =[2]!rho_(11,O33,330) -> 0.7279198097 | P34: =[2]!rho_(11,P33,330) -> 0.7279198097 | Q34: =[2]!rho_(11,Q33,330) -> 0.7279198097 | R34: =[2]!rho_(11,R33,330) -> 0.7279198097 | S34: =[2]!rho_(11,S33,330) -> 0.7279198097 | T34: =[2]!rho_(11,T33,330) -> 0.7279198097 | U34: =[2]!rho_(11,U33,330) -> 0.7279198097 | V34: =[2]!rho_(11,V33,330) -> 0.7279198097 | W34: =[2]!rho_(11,W33,330) -> 0.7279198097 | X34: =[2]!rho_(11,X33,330) -> 0.7279198097 | Y34: =[2]!rho_(11,Y33,330) -> 0.7279198097
B35: Wheel | C35: mm | D35: 35.8 | H35: =$D$35 -> 35.8 | I35: =$D$35 -> 35.8 | J35: 35.8 | K35: 35.8 | L35: 35.8 | M35: 35.8 | N35: 35.8 | O35: 35.8 | P35: 35.8 | Q35: 35.8 | R35: 35.8 | S35: 35.8 | T35: 35.8 | U35: 35.8 | V35: 35.8 | W35: 35.8 | X35: 35.8 | Y35: 35.8
B36: a = mÖT/P | D36: =D23*D25^0.5/D24 -> 82.03158029 | H36: =+$D$36 -> 82.03158029 | I36: =+$D$36 -> 82.03158029 | J36: 82.03158029 | K36: 82.03158029 | L36: 82.03158029 | M36: 82.03158029 | N36: 82.03158029 | O36: 82.03158029 | P36: 82.03158029 | Q36: 82.03158029 | R36: 82.03158029 | S36: 82.03158029 | T36: 82.03158029 | U36: 82.03158029 | V36: 82.03158029 | W36: 82.03158029 | X36: 82.03158029 | Y36: 82.03158029 | AK36: T1 out | AL36: 63 | AM36: 31 | AN36: x
B37: Rho (in) | C37: kg/m3 | D37: =[2]!rho_(11,D24,D25) -> 17.08767254 | H37: =[2]!rho_(11,H24,H25) -> 6.820700609 | I37: =[2]!rho_(11,I24,I25) -> 7.209725894 | J37: =[2]!rho_(11,J24,J25) -> 7.649756505 | K37: =[2]!rho_(11,K24,K25) -> 8.431286672 | L37: =[2]!rho_(11,L24,L25) -> 9.057451381 | M37: =[2]!rho_(11,M24,M25) -> 9.795805932 | N37: =[2]!rho_(11,N24,N25) -> 10.68294963 | O37: =[2]!rho_(11,O24,O25) -> 11.77552806 | P37: =[2]!rho_(11,P24,P25) -> 13.16823114 | Q37: =[2]!rho_(11,Q24,Q25) -> 15.03824289 | R37: =[2]!rho_(11,R24,R25) -> 15.32093117 | S37: =[2]!rho_(11,S24,S25) -> 15.61766023 | T37: =[2]!rho_(11,T24,T25) -> 15.9297349 | U37: =[2]!rho_(11,U24,U25) -> 16.25864701 | V37: =[2]!rho_(11,V24,V25) -> 16.60611181 | W37: =[2]!rho_(11,W24,W25) -> 16.97411355 | X37: =[2]!rho_(11,X24,X25) -> 17.36496269 | Y37: =[2]!rho_(11,Y24,Y25) -> 17.78136853 | AK37: T2 in | AL37: 62 | AM37: 18 | AN37: y
B38: Sound Speed @inlet | D38: =[2]!Sound_speed(11,D24,D25) -> 391.2334217 | H38: =[2]!Sound_speed(11,H24,H25) -> 537.3469672 | I38: =[2]!Sound_speed(11,I24,I25) -> 524.374137 | J38: =[2]!Sound_speed(11,J24,J25) -> 511.0788105 | K38: =[2]!Sound_speed(11,K24,K25) -> 490.4780707 | L38: =[2]!Sound_speed(11,L24,L25) -> 476.266359 | M38: =[2]!Sound_speed(11,M24,M25) -> 461.6379898 | N38: =[2]!Sound_speed(11,N24,N25) -> 446.5625213 | O38: =[2]!Sound_speed(11,O24,O25) -> 431.0126175 | P38: =[2]!Sound_speed(11,P24,P25) -> 414.974839 | Q38: =[2]!Sound_speed(11,Q24,Q25) -> 398.4820934 | R38: =[2]!Sound_speed(11,R24,R25) -> 396.3946789 | S38: =[2]!Sound_speed(11,S24,S25) -> 394.30323 | T38: =[2]!Sound_speed(11,T24,T25) -> 392.2085528 | U38: =[2]!Sound_speed(11,U24,U25) -> 390.111615 | V38: =[2]!Sound_speed(11,V24,V25) -> 388.0135809 | W38: =[2]!Sound_speed(11,W24,W25) -> 385.9158555 | X38: =[2]!Sound_speed(11,X24,X25) -> 383.8201402 | Y38: =[2]!Sound_speed(11,Y24,Y25) -> 381.7285047 | AK38: slope | AL38: =SLOPE(AL37:AM37,AL36:AM36) -> 1.375
B39: S=Q/(rho*V) = cte | D39: =D23/(D37*D38) -> 0.02864507195 | H39: =H23/(H37*H38) -> 0.02894804107 | I39: 0.02894157025 | J39: 0.02893349893 | K39: 0.02891727427 | L39: 0.02890262155 | M39: 0.02888358333 | N39: 0.02885839602 | O39: 0.028824297 | P39: 0.02877669359 | Q39: 0.02870724831 | R39: 0.0286963352 | S39: 0.0286847875 | T39: 0.02867254959 | U39: 0.02865955862 | V39: 0.02864574318 | W39: 0.02863102164 | X39: 0.02861530018 | Y39: 0.02859847012 | AK39: intercept | AL39: =INTERCEPT(AL37:AM37,AL36:AM36) -> -24.625
B40: Hin | D40: =[2]!H_(11,D24,D25) -> 223.5710661 | H40: =[2]!H_(11,H24,H25) -> 433.598856 | I40: =[2]!H_(11,I24,I25) -> 412.7241315 | J40: =[2]!H_(11,J24,J25) -> 391.8340104 | K40: =[2]!H_(11,K24,K25) -> 360.4625977 | L40: =[2]!H_(11,L24,L25) -> 339.5175491 | M40: =[2]!H_(11,M24,M25) -> 318.5405637 | N40: =[2]!H_(11,N24,N25) -> 297.5227022 | O40: =[2]!H_(11,O24,O25) -> 276.4511793 | P40: =[2]!H_(11,P24,P25) -> 255.3067386 | Q40: =[2]!H_(11,Q24,Q25) -> 234.0580041 | R40: =[2]!H_(11,R24,R25) -> 231.3921641 | S40: =[2]!H_(11,S24,S25) -> 228.7237054 | T40: =[2]!H_(11,T24,T25) -> 226.0524531 | U40: =[2]!H_(11,U24,U25) -> 223.3782125 | V40: =[2]!H_(11,V24,V25) -> 220.7007662 | W40: =[2]!H_(11,W24,W25) -> 218.0198694 | X40: =[2]!H_(11,X24,X25) -> 215.3352455 | Y40: =[2]!H_(11,Y24,Y25) -> 212.6465795 | AK40: x | AL40: y
B41: Hout | D41: =[2]!H_(11,D26,D27) -> 175.9342849 | H41: =[2]!H_(11,H26,H27) -> 350.9237274 | I41: =[2]!H_(11,I26,I27) -> 332.5571113 | J41: =[2]!H_(11,J26,J27) -> 314.2912235 | K41: =[2]!H_(11,K26,K27) -> 287.111428 | L41: =[2]!H_(11,L26,L27) -> 269.1642133 | M41: =[2]!H_(11,M26,M27) -> 251.3845261 | N41: =[2]!H_(11,N26,N27) -> 233.8090928 | O41: =[2]!H_(11,O26,O27) -> 216.4929568 | P41: =[2]!H_(11,P26,P27) -> 199.5255518 | Q41: =[2]!H_(11,Q26,Q27) -> 183.0685482 | R41: =[2]!H_(11,R26,R27) -> 181.0608309 | S41: =[2]!H_(11,S26,S27) -> 179.0667708 | T41: =[2]!H_(11,T26,T27) -> 177.0874341 | U41: =[2]!H_(11,U26,U27) -> 175.1240183 | V41: =[2]!H_(11,V26,V27) -> 173.1778732 | W41: =[2]!H_(11,W26,W27) -> 171.2505254 | X41: =[2]!H_(11,X26,X27) -> 169.343708 | Y41: =[2]!H_(11,Y26,Y27) -> 167.459396 | AK41: 277 | AL41: =m*AK41+p -> 356.25
B42: Sin = Sout | D42: =[2]!S_(11,D24,D25) -> 15.48824406 | H42: =[2]!S_(11,H24,H25) -> 19.65514623 | I42: =[2]!S_(11,I24,I25) -> 19.37651722 | J42: =[2]!S_(11,J24,J25) -> 19.08088053 | K42: =[2]!S_(11,K24,K25) -> 18.60027392 | L42: =[2]!S_(11,L24,L25) -> 18.25060453 | M42: =[2]!S_(11,M24,M25) -> 17.87277602 | N42: =[2]!S_(11,N24,N25) -> 17.46121084 | O42: =[2]!S_(11,O24,O25) -> 17.00812708 | P42: =[2]!S_(11,P24,P25) -> 16.50190928 | Q42: =[2]!S_(11,Q24,Q25) -> 15.92335263 | R42: =[2]!S_(11,R24,R25) -> 15.84442794 | S42: =[2]!S_(11,S24,S25) -> 15.76374291 | T42: =[2]!S_(11,T24,T25) -> 15.68118207 | U42: =[2]!S_(11,U24,U25) -> 15.59661581 | V42: =[2]!S_(11,V24,V25) -> 15.50989787 | W42: =[2]!S_(11,W24,W25) -> 15.42086226 | X42: =[2]!S_(11,X24,X25) -> 15.3293195 | Y42: =[2]!S_(11,Y24,Y25) -> 15.23505189 | AK42: 31 | AL42: =m*AK42+p -> 18
B43: Tout(iso) | D43: =[1]!HeCalc(2,0,1,D26*10^5,8,D42*1000,1) -> 28.58076886 | H43: =[1]!HeCalc(2,0,1,H26*10^5,8,H42*1000,1) -> 56.60037235 | I43: =[1]!HeCalc(2,0,1,I26*10^5,8,I42*1000,1) -> 53.70441051 | J43: =[1]!HeCalc(2,0,1,J26*10^5,8,J42*1000,1) -> 50.81394003 | K43: =[1]!HeCalc(2,0,1,K26*10^5,8,K42*1000,1) -> 46.49208337 | L43: =[1]!HeCalc(2,0,1,L26*10^5,8,L42*1000,1) -> 43.62350946 | M43: =[1]!HeCalc(2,0,1,M26*10^5,8,M42*1000,1) -> 40.76919902 | N43: =[1]!HeCalc(2,0,1,N26*10^5,8,N42*1000,1) -> 37.93474126 | O43: =[1]!HeCalc(2,0,1,O26*10^5,8,O42*1000,1) -> 35.12906825 | P43: =[1]!HeCalc(2,0,1,P26*10^5,8,P42*1000,1) -> 32.36746642 | Q43: =[1]!HeCalc(2,0,1,Q26*10^5,8,Q42*1000,1) -> 29.67854262 | R43: =[1]!HeCalc(2,0,1,R26*10^5,8,R42*1000,1) -> 29.34995914 | S43: =[1]!HeCalc(2,0,1,S26*10^5,8,S42*1000,1) -> 29.02352951 | T43: =[1]!HeCalc(2,0,1,T26*10^5,8,T42*1000,1) -> 28.69944433 | U43: =[1]!HeCalc(2,0,1,U26*10^5,8,U42*1000,1) -> 28.37791711 | V43: =[1]!HeCalc(2,0,1,V26*10^5,8,V42*1000,1) -> 28.05918785 | W43: =[1]!HeCalc(2,0,1,W26*10^5,8,W42*1000,1) -> 27.74352703 | X43: =[1]!HeCalc(2,0,1,X26*10^5,8,X42*1000,1) -> 27.43124053 | Y43: =[1]!HeCalc(2,0,1,Y26*10^5,8,Y42*1000,1) -> 27.1226753 | AK43: 31 | AL43: =m*AK43+p -> 18
B44: Hout(iso) | D44: =[2]!H_(11,D26,D43) -> 162.4982696 | H44: =[2]!H_(11,H26,H43) -> 309.9877288 | I44: =[2]!H_(11,I26,I43) -> 294.8645662 | J44: =[2]!H_(11,J26,J43) -> 279.7586678 | K44: =[2]!H_(11,K26,K43) -> 257.1454458 | L44: =[2]!H_(11,L26,L43) -> 242.1134899 | M44: =[2]!H_(11,M26,M43) -> 227.1325213 | N44: =[2]!H_(11,N26,N43) -> 212.2249189 | O44: =[2]!H_(11,O26,O43) -> 197.4271648 | P44: =[2]!H_(11,P26,P43) -> 182.8027669 | Q44: =[2]!H_(11,Q26,Q43) -> 168.4718986 | R44: =[2]!H_(11,R26,R43) -> 166.7113743 | S44: =[2]!H_(11,S26,S43) -> 164.9597164 | T44: =[2]!H_(11,T26,T43) -> 163.2177207 | U44: =[2]!H_(11,U26,U43) -> 161.4862754 | V44: =[2]!H_(11,V26,V43) -> 159.7663751 | W44: =[2]!H_(11,W26,W43) -> 158.0591353 | X44: =[2]!H_(11,X26,X43) -> 156.3658101 | Y44: =[2]!H_(11,Y26,Y43) -> 154.6878123
B45: ΔHs | D45: =D40-D44 -> 61.07279652 | H45: 123.6111272 | I45: 117.8595654 | J45: 112.0753426 | K45: 103.3171519 | L45: 97.40405927 | M45: 91.40804238 | N45: 85.29778324 | O45: 79.02401449 | P45: 72.50397171 | Q45: 65.58610547 | R45: 64.68078984 | S45: 63.763989 | T45: 62.83473238 | U45: 61.89193712 | V45: 60.93439108 | W45: 59.96073416 | X45: 58.96943546 | Y45: 57.95876722
B46: u1 | C46: m/s | D46: =(2*52.7%*D45*1000*D28)^0.5 -> 224.0740223 | H46: =PI()*$D$47*H30 -> 224.0740223 | I46: =PI()*$D$47*I30 -> 224.0740223 | J46: 224.0740223 | K46: 224.0740223 | L46: 224.0740223 | M46: 224.0740223 | N46: 224.0740223 | O46: 224.0740223 | P46: 224.0740223 | Q46: 224.0740223 | R46: 224.0740223 | S46: 224.0740223 | T46: 224.0740223 | U46: 224.0740223 | V46: 224.0740223 | W46: 224.0740223 | X46: 224.0740223 | Y46: 224.0740223
B47: D1 | D47: =D46/PI()/D30 -> 0.03575186794
B48: Co = (2*ΔHs)^0,5 | D48: =(2000*D45)^0.5 -> 349.4933376 | H48: 497.2144954 | I48: 485.5091459 | J48: 473.4455462 | K48: 454.5704608 | L48: 441.3707269 | M48: 427.5699764 | N48: 413.0321616 | O48: 397.5525487 | P48: 380.7990854 | Q48: 362.1770437 | R48: 359.6687082 | S48: 357.1105963 | T48: 354.4988925 | U48: 351.8293254 | V48: 349.0970956 | W48: 346.2967923 | X48: 343.4222924 | Y48: 340.4666422
B49: u1/Co | D49: =D46/D48 -> 0.6411396104 | H49: 0.4506586682 | I49: 0.4615237925 | J49: 0.4732836207 | K49: 0.4929357309 | L49: 0.5076775796 | M49: 0.524063977 | N49: 0.5425098652 | O49: 0.563633721 | P49: 0.5884310938 | Q49: 0.6186864304 | R49: 0.6230011596 | S49: 0.6274639415 | T49: 0.6320866639 | U49: 0.6368827329 | V49: 0.6418673347 | W49: 0.6470577474 | X49: 0.6524737248 | Y49: 0.6581379628
B50: U1/C0 off de / U1/C0 nom | D50: =D49/$D$49 -> 1 | H50: =H49/$D49 -> 0.7029025518 | I50: =I49/$D49 -> 0.7198491328 | J50: 0.7381912036 | K50: 0.7688430459 | L50: 0.7918362418 | M50: 0.8173944778 | N50: 0.8461649483 | O50: 0.8791123054 | P50: 0.9177893305 | Q50: 0.9649792656 | R50: 0.9717090467 | S50: 0.9786697489 | T50: 0.985879914 | U50: 0.9933604516 | V50: 1.001135048 | W50: 1.009230653 | X50: 1.017678076 | Y50: 1.026512716
B51: Rdt | D51: =(0.321*D50^4-1.6098*D50^3+1.316*D50^2+0.9448*D50)*($D28/0.97215493) -> 0.7798756933 | H51: =(0.321*H50^4-1.6098*H50^3+1.316*H50^2+0.9448*H50)*($D28/0.97) -> 0.6703182774 | I51: 0.6817021358 | J51: 0.6934179489 | K51: 0.711538439 | L51: 0.723888016 | M51: 0.736316282 | N51: 0.7486144614 | O51: 0.7604197872 | P51: 0.7710627111 | Q51: 0.7791701087 | R51: 0.7798783577 | S51: 0.7804914995 | T51: 0.7809979726 | U51: 0.7813844082 | V51: 0.7816352619 | W51: 0.7817323513 | X51: 0.7816542736 | Y51: 0.7813756662
B54: TURBINE 2
H55: 5
D56: DESIGN | H56: =H21 -> start-up | I56: =I21 -> start-up | J56: start-up | K56: start-up | L56: start-up | M56: start-up | N56: start-up | O56: start-up | P56: start-up | Q56: start-up | R56: 0 | S56: 0 | T56: 0 | U56: 0 | V56: 0 | W56: 0 | X56: 0 | Y56: 0
B57: Delta Debit | H57: =H58-H23 -> -27.42267287 | I57: =I58-I23 -> -27.41429626 | J57: =J58-J23 -> -27.2964447 | K57: -26.79924445 | L57: -26.1298139 | M57: -25.02320371 | N57: -23.22904025 | O57: -20.30774316 | P57: -15.4330433 | Q57: -6.902834775 | R57: -5.424949611 | S57: -3.823312707 | T57: -2.084638743 | U57: -0.1938013275 | V57: 1.866490394 | W57: 4.116083447 | X57: 6.577863339 | Y57: 9.278349285
B58: m | C58: g/s | D58: 191.2 | H58: =H71*H59/H60^0.5 -> 78.67429416 | I58: =I71*I59/I60^0.5 -> 82.00202458 | J58: 85.82278602 | K58: 92.78413017 | L58: 98.54914125 | M58: 105.5917152 | N58: 114.4429658 | O58: 125.9871276 | P58: 141.8167557 | Q58: 165.124504 | R58: 168.851785 | S58: 172.8203015 | T58: 177.0550936 | U58: 181.5848098 | V58: 186.4423833 | W58: 191.6658684 | X58: 197.2994804 | Y58: 203.3949044
B59: Pin | C59: Bara | D59: 6.307 | H59: 4.864844283 | I59: 4.874947037 | J59: 4.890058268 | K59: 4.926261723 | L59: 4.963731 | M59: 5.017471047 | N59: 5.095708833 | O59: 5.212754147 | P59: 5.395680865 | Q59: 5.702092133 | R59: 5.754534186 | S59: 5.811309113 | T59: 5.872924698 | U59: 5.939969364 | V59: 6.013128605 | W59: 6.093205584 | X59: 6.181147091 | Y59: 6.278076616
B60: Tin | C60: K | D60: 18.21 | H60: =m*H27+p -> 63.99001861 | I60: =m*I27+p -> 59.14672648 | J60: 54.33290304 | K60: 47.17670676 | L60: 42.45715084 | M60: 37.78767061 | N60: 33.17959351 | O60: 28.64983967 | P60: 24.22576375 | Q60: =m*Q27+p -> 19.95655015 | R60: 19.43788892 | S60: 18.92337067 | T60: 18.41331887 | U60: 17.90809703 | V60: 17.40811522 | W60: 16.91383775 | X60: 16.42579255 | Y60: 15.94458227
B61: Pout | C61: Bara | D61: 1.35 | H61: 1.15 | I61: 1.15 | J61: 1.15 | K61: 1.15 | L61: 1.15 | M61: 1.15 | N61: 1.15 | O61: 1.15 | P61: 1.15 | Q61: 1.15 | R61: 1.15 | S61: 1.15 | T61: 1.15 | U61: 1.15 | V61: 1.15 | W61: 1.15 | X61: 1.15 | Y61: 1.15
B62: Tout | C62: K | D62: =[2]!T2_turb(11,D59,D60,D61,D63) -> 11.61835748 | H62: =[2]!T2_turb(11,H59,H60,H61,H63) -> 49.48675425 | I62: =[2]!T2_turb(11,I59,I60,I61,I63) -> 45.22604627 | J62: =[2]!T2_turb(11,J59,J60,J61,J63) -> 41.02348199 | K62: =[2]!T2_turb(11,K59,K60,K61,K63) -> 34.84652997 | L62: =[2]!T2_turb(11,L59,L60,L61,L63) -> 30.82841793 | M62: =[2]!T2_turb(11,M59,M60,M61,M63) -> 26.90618934 | N62: =[2]!T2_turb(11,N59,N60,N61,N63) -> 23.09831429 | O62: =[2]!T2_turb(11,O59,O60,O61,O63) -> 19.4296869 | P62: =[2]!T2_turb(11,P59,P60,P61,P63) -> 15.93503285 | Q62: =[2]!T2_turb(11,Q59,Q60,Q61,Q63) -> 12.66473161 | R62: =[2]!T2_turb(11,R59,R60,R61,R63) -> 12.27513014 | S62: =[2]!T2_turb(11,S59,S60,S61,S63) -> 11.89035374 | T62: =[2]!T2_turb(11,T59,T60,T61,T63) -> 11.51059711 | U62: =[2]!T2_turb(11,U59,U60,U61,U63) -> 11.13606568 | V62: =[2]!T2_turb(11,V59,V60,V61,V63) -> 10.76697614 | W62: =[2]!T2_turb(11,W59,W60,W61,W63) -> 10.40355681 | X62: =[2]!T2_turb(11,X59,X60,X61,X63) -> 10.04604793 | Y62: =[2]!T2_turb(11,Y59,Y60,Y61,Y63) -> 9.694701812
B63: Efficacity | C63: % | D63: 0.76 | H63: =(0.321*H85^4-1.6098*H85^3+1.316*H85^2+0.9448*H85)*($D$63/0.97215493) -> 0.5192919371 | I63: =(0.321*I85^4-1.6098*I85^3+1.316*I85^2+0.9448*I85)*($D$63/0.97215493) -> 0.5383257056 | J63: 0.5589518364 | K63: 0.593177357 | L63: 0.6183276937 | M63: 0.6453298794 | N63: 0.6739067709 | O63: 0.7032409616 | P63: 0.7313321605 | Q63: 0.7534949963 | R63: 0.7554102004 | S63: 0.7570448323 | T63: 0.7583624875 | U63: 0.7593223107 | V63: 0.7598783896 | W63: 0.7599790527 | X63: 0.7595660536 | Y63: 0.7585736178
B64: Power | C64: W | D64: =+D58*(D75-D76) -> 6144.650346 | H64: 5991.034087 | I64: 5991.034087 | J64: 5991.034087 | K64: 5991.034087 | L64: 5991.034087 | M64: 5991.034087 | N64: 5991.034087 | O64: 5991.034087 | P64: 5991.034087 | Q64: 5991.034087 | R64: 5991.034087 | S64: 5991.034087 | T64: 5991.034087 | U64: 5991.034087 | V64: 5991.034087 | W64: 5991.034087 | X64: 5991.034087 | Y64: 5991.034087
B65: Speed | C65: Hz | D65: 1496 | H65: 1496 | I65: 1496 | J65: 1496 | K65: 1496 | L65: 1496 | M65: 1496 | N65: 1496 | O65: 1496 | P65: 1496 | Q65: 1496 | R65: 1496 | S65: 1496 | T65: 1496 | U65: 1496 | V65: 1496 | W65: 1496 | X65: 1496 | Y65: 1496
H66: =(H64/$D64*$D68/H68)^(1/3)*$D65 -> 1496 | I66: =(I64/$D64*$D68/I68)^(1/3)*$D65 -> 1496 | J66: 1496 | K66: 1496 | L66: 1496 | M66: 1496 | N66: 1496 | O66: 1496 | P66: 1496 | Q66: 1496 | R66: 1496 | S66: 1496 | T66: 1496 | U66: 1496 | V66: 1496 | W66: 1496 | X66: 1496 | Y66: 1496
B67: Delta Speed Frein & Turbine | H67: =H65-H66 -> 3.681179805e-10 | I67: =I65-I66 -> 8.062670531e-10 | J67: 1.425860319e-09 | K67: 2.615934136e-09 | L67: 3.314653441e-09 | M67: 3.489958544e-09 | N67: 1.656371751e-08 | O67: 7.808921509e-09 | P67: 2.145952749e-08 | Q67: =Q65-Q66 -> 3.023433237e-08 | R67: =R65-R66 -> 8.349161362e-09 | S67: 3.933041626e-08 | T67: 2.984052117e-09 | U67: 3.023183126e-08 | V67: 5.750280252e-09 | W67: 1.229932423e-08 | X67: -1.168700692e-10 | Y67: 1.00158104e-09
B68: Brake Pressure | D68: 8 | H68: =($D68-$D61)+H61 -> 7.8 | I68: =($D68-$D61)+I61 -> 7.8 | J68: 7.8 | K68: 7.8 | L68: 7.8 | M68: 7.8 | N68: 7.8 | O68: 7.8 | P68: 7.8 | Q68: 7.8 | R68: 7.8 | S68: 7.8 | T68: 7.8 | U68: 7.8 | V68: 7.8 | W68: 7.8 | X68: 7.8 | Y68: 7.8
B69: Rho (brake) | D69: =[2]!rho_(11,D68,330) -> 1.16324325 | H69: =[2]!rho_(11,H68,330) -> 1.134254938 | I69: =[2]!rho_(11,I68,330) -> 1.134254938 | J69: =[2]!rho_(11,J68,330) -> 1.134254938 | K69: =[2]!rho_(11,K68,330) -> 1.134254938 | L69: =[2]!rho_(11,L68,330) -> 1.134254938 | M69: =[2]!rho_(11,M68,330) -> 1.134254938 | N69: =[2]!rho_(11,N68,330) -> 1.134254938 | O69: =[2]!rho_(11,O68,330) -> 1.134254938 | P69: =[2]!rho_(11,P68,330) -> 1.134254938 | Q69: =[2]!rho_(11,Q68,330) -> 1.134254938 | R69: =[2]!rho_(11,R68,330) -> 1.134254938 | S69: =[2]!rho_(11,S68,330) -> 1.134254938 | T69: =[2]!rho_(11,T68,330) -> 1.134254938 | U69: =[2]!rho_(11,U68,330) -> 1.134254938 | V69: =[2]!rho_(11,V68,330) -> 1.134254938 | W69: =[2]!rho_(11,W68,330) -> 1.134254938 | X69: =[2]!rho_(11,X68,330) -> 1.134254938 | Y69: =[2]!rho_(11,Y68,330) -> 1.134254938
B70: Wheel | C70: mm | D70: 39.5 | H70: =$D$35 -> 35.8 | I70: =$D$35 -> 35.8 | J70: 35.8 | K70: 35.8 | L70: 35.8 | M70: 35.8 | N70: 35.8 | O70: 35.8 | P70: 35.8 | Q70: 35.8 | R70: 35.8 | S70: 35.8 | T70: 35.8 | U70: 35.8 | V70: 35.8 | W70: 35.8 | X70: 35.8 | Y70: 35.8
B71: a = mÖT/P | D71: =D58*D60^0.5/D59 -> 129.3659642 | H71: =$D$71 -> 129.3659642 | I71: 129.3659642 | J71: 129.3659642 | K71: 129.3659642 | L71: 129.3659642 | M71: 129.3659642 | N71: 129.3659642 | O71: 129.3659642 | P71: 129.3659642 | Q71: 129.3659642 | R71: 129.3659642 | S71: 129.3659642 | T71: 129.3659642 | U71: 129.3659642 | V71: 129.3659642 | W71: 129.3659642 | X71: 129.3659642 | Y71: 129.3659642
B72: Rho (in) | C72: kg/m3 | D72: =[2]!rho_(11,D59,D60) -> 16.81725024 | H72: =[2]!rho_(11,H59,H60) -> 3.622536498 | I72: =[2]!rho_(11,I59,I60) -> 3.925042551 | J72: =[2]!rho_(11,J59,J60) -> 4.283466897 | K72: =[2]!rho_(11,K59,K60) -> 4.965319763 | L72: =[2]!rho_(11,L59,L60) -> 5.556411183 | M72: =[2]!rho_(11,M59,M60) -> 6.308729717 | N72: =[2]!rho_(11,N59,N60) -> 7.298201447 | O72: =[2]!rho_(11,O59,O60) -> 8.656713552 | P72: =[2]!rho_(11,P59,P60) -> 10.63445155 | Q72: =[2]!rho_(11,Q59,Q60) -> 13.76743638 | R72: =[2]!rho_(11,R59,R60) -> 14.29142897 | S72: =[2]!rho_(11,S59,S60) -> 14.85605274 | T72: =[2]!rho_(11,T59,T60) -> 15.46610808 | U72: =[2]!rho_(11,U59,U60) -> 16.12716507 | V72: =[2]!rho_(11,V59,V60) -> 16.84572029 | W72: =[2]!rho_(11,W59,W60) -> 17.629393 | X72: =[2]!rho_(11,X59,X60) -> 18.48717143 | Y72: =[2]!rho_(11,Y59,Y60) -> 19.42972474
B73: Sound Speed | D73: =[2]!Sound_speed(11,D59,D60) -> 258.3914638 | H73: =[2]!Sound_speed(11,H59,H60) -> 475.8760705 | I73: =[2]!Sound_speed(11,I59,I60) -> 457.9098758 | J73: =[2]!Sound_speed(11,J59,J60) -> 439.3163978 | K73: =[2]!Sound_speed(11,K59,K60) -> 410.0932418 | L73: =[2]!Sound_speed(11,L59,L60) -> 389.5941853 | M73: =[2]!Sound_speed(11,M59,M60) -> 368.1539321 | N73: =[2]!Sound_speed(11,N59,N60) -> 345.635089 | O73: =[2]!Sound_speed(11,O59,O60) -> 321.8689665 | P73: =[2]!Sound_speed(11,P59,P60) -> 296.6543708 | Q73: =[2]!Sound_speed(11,Q59,Q60) -> 269.7869263 | R73: =[2]!Sound_speed(11,R59,R60) -> 266.3062612 | S73: =[2]!Sound_speed(11,S59,S60) -> 262.7990227 | T73: =[2]!Sound_speed(11,T59,T60) -> 259.2659713 | U73: =[2]!Sound_speed(11,U59,U60) -> 255.7082372 | V73: =[2]!Sound_speed(11,V59,V60) -> 252.1274343 | W73: =[2]!Sound_speed(11,W59,W60) -> 248.5258094 | X73: =[2]!Sound_speed(11,X59,X60) -> 244.9064454 | Y73: =[2]!Sound_speed(11,Y59,Y60) -> 241.2735363
B74: S=Q/(rho*V) = cte | D74: =D58/(D72*D73) -> 0.04400020898 | H74: 0.04563795951 | I74: 0.04562471825 | J74: 0.04560681877 | K74: 0.04556631062 | L74: 0.04552458559 | M74: 0.04546304075 | N74: 0.0453686056 | O74: 0.0452161959 | P74: 0.04495331229 | Q74: 0.04445673333 | R74: 0.04436583131 | S74: 0.04426572485 | T74: 0.0441552009 | U74: 0.04403284698 | V74: 0.04389701169 | W74: 0.04374575587 | X74: 0.04357679228 | Y74: 0.0433874105
B75: Hin | D75: =[2]!H_(11,D59,D60) -> 105.9022075 | H75: =[2]!H_(11,H59,H60) -> 348.539766 | I75: =[2]!H_(11,I59,I60) -> 323.2800192 | J75: =[2]!H_(11,J59,J60) -> 298.1501891 | K75: =[2]!H_(11,K59,K60) -> 260.7307791 | L75: =[2]!H_(11,L59,L60) -> 235.9940165 | M75: =[2]!H_(11,M59,M60) -> 211.4508609 | N75: =[2]!H_(11,N59,N60) -> 187.1299653 | O75: =[2]!H_(11,O59,O60) -> 163.0684105 | P75: =[2]!H_(11,P59,P60) -> 139.3160681 | Q75: =[2]!H_(11,Q59,Q60) -> 115.9428329 | R75: =[2]!H_(11,R59,R60) -> 113.0523976 | S75: =[2]!H_(11,S59,S60) -> 110.1696129 | T75: =[2]!H_(11,T59,T60) -> 107.2947108 | U75: =[2]!H_(11,U59,U60) -> 104.4279257 | V75: =[2]!H_(11,V59,V60) -> 101.569492 | W75: =[2]!H_(11,W59,W60) -> 98.71963885 | X75: =[2]!H_(11,X59,X60) -> 95.87858435 | Y75: =[2]!H_(11,Y59,Y60) -> 93.04652699
B76: Hout | D76: =[2]!H_(11,D61,D62) -> 73.76491485 | H76: =[2]!H_(11,H61,H62) -> 272.3899365 | I76: =[2]!H_(11,I61,I62) -> 250.2204318 | J76: =[2]!H_(11,J61,J62) -> 228.3431557 | K76: =[2]!H_(11,K61,K62) -> 196.16118 | L76: =[2]!H_(11,L61,L62) -> 175.2016645 | M76: =[2]!H_(11,M61,M62) -> 154.7131322 | N76: =[2]!H_(11,N61,N62) -> 134.7804474 | O76: =[2]!H_(11,O61,O62) -> 115.5156628 | P76: =[2]!H_(11,P61,P62) -> 97.07117214 | Q76: =[2]!H_(11,Q61,Q62) -> 79.66091264 | R76: =[2]!H_(11,R61,R62) -> 77.57137447 | S76: =[2]!H_(11,S61,S62) -> 75.50334954 | T76: =[2]!H_(11,T61,T62) -> 73.45759283 | U76: =[2]!H_(11,U61,U62) -> 71.43489016 | V76: =[2]!H_(11,V61,V62) -> 69.43605765 | W76: =[2]!H_(11,W61,W62) -> 67.46193951 | X76: =[2]!H_(11,X61,X62) -> 65.51340511 | Y76: =[2]!H_(11,Y61,Y62) -> 63.5913442
B77: Sin = Sout | D77: =[2]!S_(11,D59,D60) -> 13.04156759 | H77: =[2]!S_(11,H59,H60) -> 20.29534557 | I77: =[2]!S_(11,I59,I60) -> 19.88050501 | J77: =[2]!S_(11,J59,J60) -> 19.43083865 | K77: =[2]!S_(11,K59,K60) -> 18.67682873 | L77: =[2]!S_(11,L59,L60) -> 18.10841565 | M77: =[2]!S_(11,M59,M60) -> 17.47333524 | N77: =[2]!S_(11,N59,N60) -> 16.7543557 | O77: =[2]!S_(11,O59,O60) -> 15.92679744 | P77: =[2]!S_(11,P59,P60) -> 14.95371845 | Q77: =[2]!S_(11,Q59,Q60) -> 13.77671791 | R77: =[2]!S_(11,R59,R60) -> 13.61098213 | S77: =[2]!S_(11,S59,S60) -> 13.44035821 | T77: =[2]!S_(11,T59,T60) -> 13.26457128 | U77: =[2]!S_(11,U59,U60) -> 13.0833241 | V77: =[2]!S_(11,V59,V60) -> 12.8962947 | W77: =[2]!S_(11,W59,W60) -> 12.70313363 | X77: =[2]!S_(11,X59,X60) -> 12.50346084 | Y77: =[2]!S_(11,Y59,Y60) -> 12.29686207
B78: Tout(iso) | D78: =[1]!HeCalc(2,0,1,D61*10^5,8,D77*1000,1) -> 9.763910711 | H78: =[1]!HeCalc(2,0,1,H61*10^5,8,H77*1000,1) -> 35.94710344 | I78: =[1]!HeCalc(2,0,1,I61*10^5,8,I77*1000,1) -> 33.19775224 | J78: =[1]!HeCalc(2,0,1,J61*10^5,8,J77*1000,1) -> 30.45663827 | K78: =[1]!HeCalc(2,0,1,K61*10^5,8,K77*1000,1) -> 26.36382615 | L78: =[1]!HeCalc(2,0,1,L61*10^5,8,L77*1000,1) -> 23.65096501 | M78: =[1]!HeCalc(2,0,1,M61*10^5,8,M77*1000,1) -> 20.95416797 | N78: =[1]!HeCalc(2,0,1,N61*10^5,8,N77*1000,1) -> 18.27790261 | O78: =[1]!HeCalc(2,0,1,O61*10^5,8,O77*1000,1) -> 15.62888884 | P78: =[1]!HeCalc(2,0,1,P61*10^5,8,P77*1000,1) -> 13.01793766 | Q78: =[1]!HeCalc(2,0,1,Q61*10^5,8,Q77*1000,1) -> 10.46411251 | R78: =[1]!HeCalc(2,0,1,R61*10^5,8,R77*1000,1) -> 10.15045726 | S78: =[1]!HeCalc(2,0,1,S61*10^5,8,S77*1000,1) -> 9.838343245 | T78: =[1]!HeCalc(2,0,1,T61*10^5,8,T77*1000,1) -> 9.527889934 | U78: =[1]!HeCalc(2,0,1,U61*10^5,8,U77*1000,1) -> 9.219231135 | V78: =[1]!HeCalc(2,0,1,V61*10^5,8,V77*1000,1) -> 8.912517428 | W78: =[1]!HeCalc(2,0,1,W61*10^5,8,W77*1000,1) -> 8.607919032 | X78: =[1]!HeCalc(2,0,1,X61*10^5,8,X77*1000,1) -> 8.305629436 | Y78: =[1]!HeCalc(2,0,1,Y61*10^5,8,Y77*1000,1) -> 8.005869849
B79: Hout(iso) | D79: =[2]!H_(11,D61,D78) -> 63.61629614 | H79: =[2]!H_(11,H61,H78) -> 201.8981102 | I79: =[2]!H_(11,I61,I78) -> 187.5636923 | J79: =[2]!H_(11,J61,J78) -> 173.2610147 | K79: =[2]!H_(11,K61,K78) -> 151.8769964 | L79: =[2]!H_(11,L61,L78) -> 137.6766475 | M79: =[2]!H_(11,M61,M78) -> 123.5303562 | N79: =[2]!H_(11,N61,N78) -> 109.4493125 | O79: =[2]!H_(11,O61,O78) -> 95.44898801 | P79: =[2]!H_(11,P61,P78) -> 81.55176039 | Q79: =[2]!H_(11,Q61,Q78) -> 67.79132502 | R79: =[2]!H_(11,R61,R78) -> 66.08318391 | S79: =[2]!H_(11,S61,S78) -> 64.37805356 | T79: =[2]!H_(11,T61,T78) -> 62.67605082 | U79: =[2]!H_(11,U61,U78) -> 60.97729205 | V79: =[2]!H_(11,V61,V78) -> 59.28189072 | W79: =[2]!H_(11,W61,W78) -> 57.58995344 | X79: =[2]!H_(11,X61,X78) -> 55.90157498 | Y79: =[2]!H_(11,Y61,Y78) -> 54.21683123
B80: ΔHs | D80: =D75-D79 -> 42.28591132 | H80: 146.6416558 | I80: 135.7163269 | J80: 124.8891744 | K80: 108.8537827 | L80: 98.31736902 | M80: 87.92050468 | N80: 77.68065285 | O80: 67.61942247 | P80: 57.7643077 | Q80: 48.15150787 | R80: 46.96921367 | S80: 45.79155934 | T80: 44.61865997 | U80: 43.45063367 | V80: 42.28760129 | W80: 41.12968541 | X80: 39.97700937 | Y80: 38.82969576
B81: u1 | C81: m/s | D81: =(2*52.7%*D80*1000*D63)^0.5 -> 184.0453922 | H81: =PI()*$D$82*H65 -> 184.0453922 | I81: 184.0453922 | J81: 184.0453922 | K81: 184.0453922 | L81: 184.0453922 | M81: 184.0453922 | N81: 184.0453922 | O81: 184.0453922 | P81: 184.0453922 | Q81: =PI()*$D$82*Q65 -> 184.0453922 | R81: =PI()*$D$82*R65 -> 184.0453922 | S81: 184.0453922 | T81: 184.0453922 | U81: 184.0453922 | V81: 184.0453922 | W81: 184.0453922 | X81: 184.0453922 | Y81: 184.0453922
B82: D1 | D82: =D81/PI()/D65 -> 0.0391600721
B83: Co = (2*ΔHs)^0,5 | D83: =(2000*D80)^0.5 -> 290.8123495 | H83: 541.556379 | I83: 520.9919902 | J83: 499.7782996 | K83: 466.5914329 | L83: 443.4351565 | M83: 419.3340069 | N83: 394.1589853 | O83: 367.7483446 | P83: 339.8950064 | Q83: 310.327272 | R83: 306.4937639 | S83: 302.627029 | T83: 298.7261621 | U83: 294.790209 | V83: 290.8181607 | W83: 286.8089448 | X83: 282.7614166 | Y83: 278.6743467
B84: u1/Co | D84: =D81/D83 -> 0.6328664946 | H84: 0.339845304 | I84: 0.3532595427 | J84: 0.3682540686 | K84: 0.3944465741 | L84: 0.4150446566 | M84: 0.4388992765 | N84: 0.4669318704 | O84: 0.50046559 | P84: 0.5414771878 | Q84: 0.5930687015 | R84: 0.6004865805 | S84: 0.6081591352 | T84: 0.6161006821 | U84: 0.6243266791 | V84: 0.6328538486 | W84: 0.641700322 | X84: 0.6508858048 | Y84: 0.6604317706
B85: U1/C0 off de / U1/C0 nom | D85: =D84/$D$49 -> 0.9870962336 | H85: =H84/$D84 -> 0.5369936738 | I85: =I84/$D84 -> 0.5581896747 | J85: 0.5818827063 | K85: 0.6232698009 | L85: 0.65581708 | M85: 0.6935100534 | N85: 0.737804694 | O85: 0.7907917298 | P85: 0.8555946514 | Q85: 0.9371150259 | R85: 0.9488361062 | S85: 0.9609596026 | T85: 0.9735081369 | U85: 0.9865061343 | V85: 0.9999800179 | W85: 1.013958437 | X85: 1.02847253 | Y85: 1.043556226
B86: Rdt | D86: =(0.321*D85^4-1.6098*D85^3+1.316*D85^2+0.9448*D85)*($D63/0.97215493) -> 0.7593560473 | H86: =(0.321*H85^4-1.6098*H85^3+1.316*H85^2+0.9448*H85)*($D63/0.97215493) -> 0.5192919371 | I86: =(0.321*I85^4-1.6098*I85^3+1.316*I85^2+0.9448*I85)*($D63/0.97215493) -> 0.5383257056 | J86: 0.5589518364 | K86: 0.593177357 | L86: 0.6183276937 | M86: 0.6453298794 | N86: 0.6739067709 | O86: 0.7032409616 | P86: 0.7313321605 | Q86: 0.7534949963 | R86: 0.7554102004 | S86: 0.7570448323 | T86: 0.7583624875 | U86: 0.7593223107 | V86: 0.7598783896 | W86: 0.7599790527 | X86: 0.7595660536 | Y86: 0.7585736178
B88: TURBINE 3
D90: DESIGN | F90: =F56 -> 0 | G90: =G56 -> 0 | H90: =H56 -> start-up | I90: =I56 -> start-up
B92: m | C92: g/s | D92: 399.8 | F92: =F105/(F95*F94)^0.5*F93 -> 161.4761819 | G92: =G105/(G95*G94)^0.5*G93 -> 95.0804152 | I92: 117.1010273
B93: Pin | C93: Bara | D93: 13.07 | F93: 13.07 | G93: 7.369 | I93: 10.48
B94: Tin | C94: K | D94: 7.292 | F94: 9.16 | G94: 7.912 | I94: 10.55
B95: Pout | C95: Bara | D95: 4.88 | F95: 4.88 | G95: 5.18 | I95: 5.18
B96: Tout | C96: K | D96: =[2]!T2_turb(11,D93,D94,D95,D97) -> 6.11984088 | F96: =[2]!T2_turb(11,F93,F94,F95,F97) -> 7.049446306 | G96: =[2]!T2_turb(11,G93,G94,G95,G97) -> 7.14472539 | H96: =[2]!T2_turb(11,H93,H94,H95,H97) ->  | I96: =[2]!T2_turb(11,I93,I94,I95,I97) -> 8.690381514
B97: Efficacity | C97: % | D97: 0.72 | F97: =(0.321*F119^4-1.6098*F119^3+1.316*F119^2+0.9448*F119)*($D$97/0.97215493) -> 0.5817973136 | G97: =(0.321*G119^4-1.6098*G119^3+1.316*G119^2+0.9448*G119)*($D$97/0.97215493) -> 0.5827244835 | H97: =(0.321*H119^4-1.6098*H119^3+1.316*H119^2+0.9448*H119)*($D$97/0.97215493) ->  | I97: =(0.321*I119^4-1.6098*I119^3+1.316*I119^2+0.9448*I119)*($D$97/0.97215493) -> 0.5020164146
B98: Power | C98: W | D98: =+D92*(D109-D110) -> 2075.54042 | F98: 954.7418418 | G98: 182.514095 | I98: 610.6783435
B99: Speed | C99: Hz | D99: 2076 | F99: 1602.55252 | G99: 914.2081865 | H99: 862.6625785 | I99: 1367.362934
F100: =(F98/$D98*$D102/F102)^(1/3)*$D99 -> 1602.552512 | G100: =(G98/$D98*$D102/G102)^(1/3)*$D99 -> 914.2081711 | H100: =(H98/$D98*$D102/H102)^(1/3)*$D99 ->  | I100: =(I98/$D98*$D102/I102)^(1/3)*$D99 -> 1367.36293
F101: =F99-F100 -> 7.275503322e-06 | G101: =G99-G100 -> 1.541953168e-05 | H101: =H99-H100 ->  | I101: =I99-I100 -> 4.300091632e-06
B102: Brake Pressure | D102: 10.1 | F102: =($D102-$D95)+F95 -> 10.1 | G102: =($D102-$D95)+G95 -> 10.4 | H102: =($D102-$D95)+H95 -> 5.22 | I102: =($D102-$D95)+I95 -> 10.4
B103: Rho (brake) | D103: =[2]!rho_(11,D102,330) -> 1.467334205 | F103: =[2]!rho_(11,F102,330) -> 1.467334205 | G103: =[2]!rho_(11,G102,330) -> 1.510733122 | H103: =[2]!rho_(11,H102,330) -> 0.7598798717 | I103: =[2]!rho_(11,I102,330) -> 1.510733122
B104: Wheel | C104: mm | D104: 29.5 | F104: =$D$104 -> 29.5 | G104: =$D$104 -> 29.5 | H104: =$D$104 -> 29.5 | I104: =$D$104 -> 29.5
B105: a = mÖT/P | D105: =D92*D94^0.5/D93 -> 82.60199418 | F105: =$D$105 -> 82.60199418 | G105: =$D$105 -> 82.60199418 | H105: 82.60199418 | I105: 82.60199418
B106: Rho (in) | C106: kg/m3 | D106: =[2]!rho_(11,D93,D94) -> 122.041385 | F106: =[2]!rho_(11,F93,F94) -> 92.04202254 | G106: =[2]!rho_(11,G93,G94) -> 70.6496495 | H106: =[2]!rho_(11,H93,H94) -> NUM | I106: =[2]!rho_(11,I93,I94) -> 58.78998557
B107: Sound Speed | D107: =[2]!Sound_speed(11,D93,D94) -> 249.0567129 | F107: =[2]!Sound_speed(11,F93,F94) -> 219.0353462 | G107: =[2]!Sound_speed(11,G93,G94) -> 170.7864441 | H107: =[2]!Sound_speed(11,H93,H94) -> NUM | I107: =[2]!Sound_speed(11,I93,I94) -> 204.2669237
B108: S=Q/(rho*V) = cte | D108: =D92/(D106*D107) -> 0.01315338131 | F108: 0.008009549968 | G108: 0.007880026204 | I108: 0.009751227821
B109: Hin | D109: =[2]!H_(11,D93,D94) -> 28.15088458 | F109: =[2]!H_(11,F93,F94) -> 40.89014045 | G109: =[2]!H_(11,G93,G94) -> 36.81164396 | H109: =[2]!H_(11,H93,H94) ->  | I109: =[2]!H_(11,I93,I94) -> 54.05983231
B110: Hout | D110: =[2]!H_(11,D95,D96) -> 22.9594378 | F110: =[2]!H_(11,F95,F96) -> 34.97755427 | G110: =[2]!H_(11,G95,G96) -> 34.89206784 | H110: =[2]!H_(11,H95,H96) ->  | I110: =[2]!H_(11,I95,I96) -> 48.84486232
B111: Sin = Sout | D111: =[2]!S_(11,D93,D94) -> 5.060004669 | F111: =[2]!S_(11,F93,F94) -> 6.606972814 | G111: =[2]!S_(11,G93,G94) -> 6.945830207 | H111: =[2]!S_(11,H93,H94) ->  | I111: =[2]!S_(11,I93,I94) -> 8.300020451
B112: Tout(iso) | D112: =[1]!HeCalc(2,0,1,D95*10^5,8,D111*1000,1) -> 5.935138784 | F112: =[1]!HeCalc(2,0,1,F95*10^5,8,F111*1000,1) -> 6.699995029 | G112: =[1]!HeCalc(2,0,1,G95*10^5,8,G111*1000,1) -> 7.024181985 | H112: =[1]!HeCalc(2,0,1,H95*10^5,8,H111*1000,1) ->  | I112: =[1]!HeCalc(2,0,1,I95*10^5,8,I111*1000,1) -> 8.048894673
B113: Hout(iso) | D113: =[2]!H_(11,D95,D112) -> 20.94054184 | F113: =[2]!H_(11,F95,F112) -> 30.72751844 | G113: =[2]!H_(11,G95,G112) -> 33.5175038 | H113: =[2]!H_(11,H95,H112) ->  | I113: =[2]!H_(11,I95,I112) -> 43.67178554
B114: ΔHs | D114: =D109-D113 -> 7.210342742 | F114: 10.16262202 | G114: 3.294140164 | I114: 10.38804677
B115: u1 | C115: m/s | D115: =(2*52.7%*D114*1000*D97)^0.5 -> 73.97151411 | F115: =PI()*$D$116*F99 -> 57.1017516 | G115: =PI()*$D$116*G99 -> 32.57483804 | H115: 30.73817779 | I115: 48.72153497
B116: D1 | D116: =D115/PI()/D99 -> 0.01134193846 | M116: T3
B117: Co = (2*ΔHs)^0,5 | D117: =(2000*D114)^0.5 -> 120.0861586 | F117: 142.5666302 | G117: 81.1682224 | I117: 144.1391464 | L117: MAX | M117: =ROUND(F92,0)&"g/s @ "&F93&" b ; "&F94&"K" -> 161g/s @ 13,07 b ; 9,16K
B118: u1/Co | D118: =D115/D117 -> 0.6159870129 | F118: 0.400526768 | G118: 0.4013250146 | I118: 0.3380173685 | L118: MIN | M118: =ROUND(G92,0)&"g/s @ "&G93&" b ; "&G94&"K" -> 95g/s @ 7,369 b ; 7,912K
B119: U1/C0 off de / U1/C0 nom | D119: =D118/$D$49 -> 0.9607689228 | F119: =F118/$D118 -> 0.6502195008 | G119: =G118/$D118 -> 0.6515153829 | H119: =H118/$D118 ->  | I119: =I118/$D118 -> 0.5487410634 | L119: STS | M119: =ROUND(H92,0)&"g/s @ "&H93&" b ; "&H94&"K" -> 
B120: Rdt | D120: =(0.321*D119^4-1.6098*D119^3+1.316*D119^2+0.9448*D119)*($D97/0.97215493) -> 0.7171786088 | F120: =(0.321*F119^4-1.6098*F119^3+1.316*F119^2+0.9448*F119)*($D97/0.97215493) -> 0.5817973136 | G120: =(0.321*G119^4-1.6098*G119^3+1.316*G119^2+0.9448*G119)*($D97/0.97215493) -> 0.5827244835 | H120: =(0.321*H119^4-1.6098*H119^3+1.316*H119^2+0.9448*H119)*($D97/0.97215493) ->  | I120: =(0.321*I119^4-1.6098*I119^3+1.316*I119^2+0.9448*I119)*($D97/0.97215493) -> 0.5020164146 | L120: BAKING | M120: =ROUND(I92,0)&"g/s @ "&I93&" b ; "&I94&"K" -> 117g/s @ 10,48 b ; 10,55K
M122: =M47 -> 0 | N122: =M116 -> T3 | O122: T1+T2
B123: Courbe de rendement TC3 | L123: =L117 -> MAX | M123: =M48 -> 427.5699764 | N123: =M117 -> 161g/s @ 13,07 b ; 9,16K | O123: =F92+F58 -> 161.4761819
L124: =L118 -> MIN | M124: =M49 -> 0.524063977 | N124: =M118 -> 95g/s @ 7,369 b ; 7,912K | O124: =G92+G58 -> 95.0804152
L125: =L119 -> STS | M125: =M50 -> 0.8173944778 | N125: =M119 ->  | O125: =H92+H58 -> 
L126: =L120 -> BAKING | M126: =M51 -> 0.736316282 | N126: =M120 -> 117g/s @ 10,48 b ; 10,55K | O126: =I92+I58 -> 199.1030519
E127: d : mm
E128: N : Hz
E129: H : J/kG
B135: rendement=(0,321*rap^4 - 1,6098*rap^3 + 1,316*rap^2 + 0,9448*rap)*(ETAgar/0,97) | I135: U1/CO _nom | J135: 0.64
I136: Eta_gar | J136: 0.8
B137: U1/C0 | C137: =D28 -> 0.78 | D137: =D63 -> 0.76 | E137: =D97 -> 0.72
B138: 0 | C138: =(0.321*B138^4-1.6098*B138^3+1.316*B138^2+0.9448*B138)*$D$28/0.97215493 -> 0
B139: =B138+0.05 -> 0.05 | C139: =(0.321*$B139^4-1.6098*$B139^3+1.316*$B139^2+0.9448*$B139)*$C$137/0.97215493 -> 0.04038246185 | D139: =(0.321*$B139^4-1.6098*$B139^3+1.316*$B139^2+0.9448*$B139)*$D$137/0.97215493 -> 0.03934701411 | E139: =(0.321*$B139^4-1.6098*$B139^3+1.316*$B139^2+0.9448*$B139)*$E$137/0.97215493 -> 0.03727611863
B140: 0.1 | C140: =(0.321*$B140^4-1.6098*$B140^3+1.316*$B140^2+0.9448*$B140)*$C$137/0.97215493 -> 0.08509815817 | D140: =(0.321*$B140^4-1.6098*$B140^3+1.316*$B140^2+0.9448*$B140)*$D$137/0.97215493 -> 0.08291615412 | E140: =(0.321*$B140^4-1.6098*$B140^3+1.316*$B140^2+0.9448*$B140)*$E$137/0.97215493 -> 0.078552146
B141: 0.15 | C141: 0.1332363313 | D141: 0.1298200152 | E141: 0.1229873828
B142: 0.2 | C142: 0.1839248565 | D142: 0.1792088345 | E142: 0.1697767906
B143: 0.25 | C143: 0.2363302415 | D143: 0.2302704917 | E143: 0.2181509921
B144: 0.3 | C144: 0.2896576269 | D144: 0.2822305083 | E144: 0.267376271
B145: 0.35 | C145: 0.343150786 | D145: 0.3343520479 | E145: 0.3167545717
B146: 0.4 | C146: 0.3960921249 | D146: 0.3859359166 | E146: 0.3656234999
B147: 0.45 | C147: 0.4478026824 | D147: 0.4363205624 | E147: 0.4133563222
B148: 0.5 | C148: 0.4976421299 | D148: 0.4848820753 | E148: 0.4593619661
B149: 0.55 | C149: 0.5450087718 | D149: 0.5310341879 | E149: 0.5030850201
B150: 0.6 | C150: 0.5893395449 | D150: 0.5742282745 | E150: 0.5440057337
B151: 0.65 | C151: 0.630110019 | D151: 0.6139533518 | E151: 0.5816400175
B152: 0.7 | C152: 0.6668343964 | D152: 0.6497360786 | E152: 0.6155394429
B153: 0.75 | C153: 0.6990655125 | D153: 0.6811407558 | E153: 0.6452912423
B154: 0.8 | C154: 0.726394835 | D154: 0.7077693264 | E154: 0.6705183093
B155: 0.85 | C155: 0.7484524646 | D155: 0.7292613758 | E155: 0.6908791981
B156: 0.9 | C156: 0.7649071347 | D156: 0.7452941313 | E156: 0.7060681243
B157: 0.95 | C157: 0.7754662113 | D157: 0.7555824623 | E157: 0.7158149643
B158: 1 | C158: 0.7798756933 | D158: 0.7598788806 | E158: 0.7198852553
B159: 1.05 | C159: 0.7779202121 | D159: 0.75797354 | E159: 0.7180801958
B160: 1.1 | C160: 0.7694230322 | D160: 0.7496942365 | E160: 0.7102366451
B161: 1.15 | C161: 0.7542460504 | D161: 0.7349064081 | E161: 0.6962271235
B162: 1.2 | C162: 0.7322897966 | D162: 0.7135131352 | E162: 0.6759598123 | G162: F Let u be the peripheral speed of the wheel : u = p . Æ . N / 60 (in m/s)
B163: 1.25 | C163: 0.7034934333 | D163: 0.6854551401 | E163: 0.6493785538 | G163: F Let n, be the speed ratio of the turbine : n = u / [ 2 . (H1 - H2S ) ] 0.5 (dimensionless number)
B164: 1.3 | C164: 0.6678347555 | D164: 0.6507107874 | E164: 0.6164628512 | H164: N = speed of rotation of the turbine (in rpm)
B165: 1.35 | C165: 0.6253301913 | D165: 0.6092960839 | E165: 0.5772278689 | H165: Æ = diameter of the wheel of the turbine (in m)
B166: 1.4 | C166: 0.5760348014 | D166: 0.5612646783 | E166: 0.531724432
B167: 1.45 | C167: 0.520042279 | D167: 0.5067078616 | E167: 0.4800390268
B168: 1.5 | C168: 0.4574849505 | D168: 0.4457545671 | E168: 0.4222938004

Sheet Turbines_JT60SA (2)
E5: Vitesse de la roue ajustée en fonction de la puissance du frein | L5: =D56*0.3 -> 448.8
B8: Relation entre la puissance et la vitesse de rotation | M8: ²
B10: TURBINE 1
D12: DESIGN | F12: D3 | G12: STS | H12: test | I12: =L42 -> BAKING
B14: m | C14: g/s | D14: 191.5 | F14: =F27/(F17*F16)^0.5*F15 -> 67.34541209 | G14: =G27/(G17*G16)^0.5*G15 -> 69.5579335 | H14: 76.15928112 | I14: 61.80958252
B15: Pin | C15: Bara | D15: 14.77 | F15: 14.77 | G15: 12.39 | H15: 8 | I15: 9.25
B16: Tin | C16: K | D16: 40.03 | F16: 50.44 | G16: 40.73 | H16: 55 | I16: 37.12
B17: Pout | C17: Bara | D17: 6.36 | F17: 6.417 | G17: 5.242 | H17: 1.35 | I17: 4.06
B18: Tout | C18: K | D18: =[2]!T2_turb(11,D15,D16,D17,D19) -> 31.09458691 | F18: =[2]!T2_turb(11,F15,F16,F17,F19) -> 41.79259899 | G18: =[2]!T2_turb(11,G15,G16,G17,G19) -> 32.51483936 | H18: =[2]!T2_turb(11,H15,H16,H17,H19) -> 46.31503646 | I18: =[2]!T2_turb(11,I15,I16,I17,I19) -> 29.37225064
B19: Efficacity | C19: % | D19: 0.78 | F19: =(0.321*F41^4-1.6098*F41^3+1.316*F41^2+0.9448*F41)*($D$19/0.97215493) -> 0.6096211737 | G19: =(0.321*G41^4-1.6098*G41^3+1.316*G41^2+0.9448*G41)*($D$19/0.97215493) -> 0.6928554088 | H19: =(0.321*H41^4-1.6098*H41^3+1.316*H41^2+0.9448*H41)*($D$19/0.97215493) -> 0.3144279735 | I19: =(0.321*I41^4-1.6098*I41^3+1.316*I41^2+0.9448*I41)*($D$19/0.97215493) -> 0.7420422726
B20: Power | C20: W | D20: =+D14*(D31-D32) -> 9122.443616 | F20: 3130.684431 | G20: 3033.744342 | H20: 3519.248023 | I20: 2521.103291
B21: Speed | C21: Hz | D21: 1995 | F21: 1391.684328 | G21: 1498.335087 | H21: 1000 | I21: 1578.717779
B22: Speed calculated from P=K.rho.N^3 | F22: =(F20/$D20*$D24/F24)^(1/3)*$D21 -> 1391.684288 | G22: =(G20/$D20*$D24/G24)^(1/3)*$D21 -> 1498.335071 | H22: =(H20/$D20*$D24/H24)^(1/3)*$D21 -> 4376.622044 | I22: =(I20/$D20*$D24/I24)^(1/3)*$D21 -> 1578.717776
F23: =F21-F22 -> 3.964689358e-05 | G23: =G21-G22 -> 1.613439053e-05 | H23: =H21-H22 -> -3376.622044 | I23: =I21-I22 -> 2.84238763e-06
B24: Brake Pressure | D24: 5.2 | F24: =($D24-$D17)+F17 -> 5.257 | G24: =($D24-$D17)+G17 -> 4.082 | H24: =($D24-$D17)+H17 -> 0.19 | I24: =($D24-$D17)+I17 -> 2.9
B25: Rho (brake) | D25: =[2]!rho_(11,D24,330) -> 0.7569746494 | F25: =[2]!rho_(11,F24,330) -> 0.7652544075 | G25: =[2]!rho_(11,G24,330) -> 0.5944970341 | H25: =[2]!rho_(11,H24,330) -> 0.0277154773 | I25: =[2]!rho_(11,I24,330) -> 0.4225565264
B26: Wheel | C26: mm | D26: 35.8 | F26: =$D$26 -> 35.8 | G26: =$D$26 -> 35.8 | H26: =$D$26 -> 35.8 | I26: =$D$26 -> 35.8
B27: a = mÖT/P | D27: =D14*D16^0.5/D15 -> 82.03158029 | F27: =+$D$27 -> 82.03158029 | G27: =+$D$27 -> 82.03158029 | H27: =+$D$27 -> 82.03158029 | I27: =+$D$27 -> 82.03158029
B28: Rho (in) | C28: kg/m3 | D28: =[2]!rho_(11,D15,D16) -> 17.08767254 | F28: =[2]!rho_(11,F15,F16) -> 13.60304093 | G28: =[2]!rho_(11,G15,G16) -> 14.1781416 | H28: =[2]!rho_(11,H15,H16) -> 6.87370835 | I28: =[2]!rho_(11,I15,I16) -> 11.70816291
B29: Sound Speed @inlet | D29: =[2]!Sound_speed(11,D15,D16) -> 391.2334217 | F29: =[2]!Sound_speed(11,F15,F16) -> 435.3518859 | G29: =[2]!Sound_speed(11,G15,G16) -> 391.2891989 | H29: =[2]!Sound_speed(11,H15,H16) -> 445.4922939 | I29: =[2]!Sound_speed(11,I15,I16) -> 370.5157737
B30: S=Q/(rho*V) = cte | D30: =D14/(D28*D29) -> 0.02864507195 | F30: 0.01137186197 | G30: 0.01253803569 | H30: 0.02487090215 | I30: 0.01424821146
B31: Hin | D31: =[2]!H_(11,D15,D16) -> 223.5710661 | F31: =[2]!H_(11,F15,F16) -> 279.0586177 | G31: =[2]!H_(11,G15,G16) -> 227.2127422 | H31: =[2]!H_(11,H15,H16) -> 302.113785 | I31: =[2]!H_(11,I15,I16) -> 207.8908573
B32: Hout | D32: =[2]!H_(11,D17,D18) -> 175.9342849 | F32: =[2]!H_(11,F17,F18) -> 232.5716435 | G32: =[2]!H_(11,G17,G18) -> 183.5981006 | H32: =[2]!H_(11,H17,H18) -> 255.9047351 | I32: =[2]!H_(11,I17,I18) -> 167.1026302
B33: Sin = Sout | D33: =[2]!S_(11,D15,D16) -> 15.48824406 | F33: =[2]!S_(11,F15,F16) -> 16.72066444 | G33: =[2]!S_(11,G15,G16) -> 15.95659187 | H33: =[2]!S_(11,H15,H16) -> 18.46569448 | I33: =[2]!S_(11,I15,I16) -> 16.08435866
B34: Tout(iso) | D34: =[1]!HeCalc(2,0,1,D17*10^5,8,D33*1000,1) -> 28.58076886 | F34: =[1]!HeCalc(2,0,1,F17*10^5,8,F33*1000,1) -> 36.15386889 | G34: =[1]!HeCalc(2,0,1,G17*10^5,8,G33*1000,1) -> 28.87508647 | H34: =[1]!HeCalc(2,0,1,H17*10^5,8,H33*1000,1) -> 26.99929172 | I34: =[1]!HeCalc(2,0,1,I17*10^5,8,I33*1000,1) -> 26.69973777
B35: Hout(iso) | D35: =[2]!H_(11,D17,D34) -> 162.4982696 | F35: =[2]!H_(11,F17,F34) -> 202.8031066 | G35: =[2]!H_(11,G17,G34) -> 164.2636174 | H35: =[2]!H_(11,H17,H34) -> 155.1515113 | I35: =[2]!H_(11,I17,I34) -> 152.9233323
B36: ΔHs | D36: =D31-D35 -> 61.07279652 | F36: 76.25551105 | G36: 62.94912484 | H36: 146.9622737 | I36: 54.96752496
B37: u1 | C37: m/s | D37: =(2*52.7%*D36*1000*D19)^0.5 -> 224.0740223 | F37: =PI()*$D$38*F21 -> 156.3109299 | G37: =PI()*$D$38*G21 -> 168.2897091 | H37: =PI()*$D$38*H21 -> 112.3178057 | I37: =PI()*$D$38*I21 -> 177.3181167
B38: D1 | D38: =D37/PI()/D21 -> 0.03575186794 | M38: T1
B39: Co = (2*ΔHs)^0,5 | D39: =(2000*D36)^0.5 -> 349.4933376 | F39: 390.5265959 | G39: 354.8214335 | H39: 542.1480863 | I39: 331.5645487 | L39: MAX | M39: =ROUND(F14,0)&"g/s @ "&F15&" b ; "&F16&"K" -> 67g/s @ 14,77 b ; 50,44K
B40: u1/Co | D40: =D37/D39 -> 0.6411396104 | F40: 0.400256811 | G40: 0.4742940906 | H40: 0.2071718198 | I40: 0.5347921466 | L40: MIN | M40: =ROUND(G14,0)&"g/s @ "&G15&" b ; "&G16&"K" -> 70g/s @ 12,39 b ; 40,73K
B41: U1/C0 off de / U1/C0 nom | D41: =D40/$D$40 -> 1 | F41: =F40/$D40 -> 0.6242896313 | G41: =G40/$D40 -> 0.7397672565 | H41: =H40/$D40 -> 0.3231305889 | I41: =I40/$D40 -> 0.8341274474 | L41: STS | M41: =ROUND(H14,0)&"g/s @ "&H15&" b ; "&H16&"K" -> 76g/s @ 8 b ; 55K
B42: Rdt | D42: =(0.321*D41^4-1.6098*D41^3+1.316*D41^2+0.9448*D41)*($D19/0.97215493) -> 0.7798756933 | F42: =(0.321*F41^4-1.6098*F41^3+1.316*F41^2+0.9448*F41)*($D19/0.97215493) -> 0.6096211737 | G42: =(0.321*G41^4-1.6098*G41^3+1.316*G41^2+0.9448*G41)*($D19/0.97215493) -> 0.6928554088 | H42: =(0.321*H41^4-1.6098*H41^3+1.316*H41^2+0.9448*H41)*($D19/0.97) -> 0.3151264996 | I42: =(0.321*I41^4-1.6098*I41^3+1.316*I41^2+0.9448*I41)*($D19/0.97215493) -> 0.7420422726 | L42: BAKING | M42: =ROUND(I14,0)&"g/s @ "&I15&" b ; "&I16&"K" -> 62g/s @ 9,25 b ; 37,12K
B45: TURBINE 2
D47: DESIGN | F47: =F12 -> D3 | G47: =G12 -> STS | H47: =H12 -> test | I47: =I12 -> BAKING
B49: m | C49: g/s | D49: 191.2 | F49: =F62/(F52*F51)^0.5*F50 -> 149.2374701 | G49: =G62/(G52*G51)^0.5*G50 -> 141.7173467 | H49: =H62/(H52*H51)^0.5*H50 -> 27.96542957 | I49: =I62/(I52*I51)^0.5*I50 -> 109.0922833
B50: Pin | C50: Bara | D50: 6.307 | F50: 6.417 | G50: 5.242 | H50: 1.35 | I50: 4.06
B51: Tin | C51: K | D51: 18.21 | F51: 22.92 | G51: 17.75 | H51: 30 | I51: 17.17
B52: Pout | C52: Bara | D52: 1.35 | F52: 1.35 | G52: 1.29 | H52: 1.3 | I52: 1.35
B53: Tout | C53: K | D53: =[2]!T2_turb(11,D50,D51,D52,D54) -> 11.61835748 | F53: =[2]!T2_turb(11,F50,F51,F52,F54) -> 14.93439442 | G53: =[2]!T2_turb(11,G50,G51,G52,G54) -> 11.85507099 | H53: =[2]!T2_turb(11,H50,H51,H52,H54) -> 29.77588982 | I53: =[2]!T2_turb(11,I50,I51,I52,I54) -> 12.5509376
B54: Efficacity | C54: % | D54: 0.76 | F54: =(0.321*F76^4-1.6098*F76^3+1.316*F76^2+0.9448*F76)*($D$54/0.97215493) -> 0.7361744071 | G54: =(0.321*G76^4-1.6098*G76^3+1.316*G76^2+0.9448*G76)*($D$54/0.97215493) -> 0.7484073575 | H54: =(0.321*H76^4-1.6098*H76^3+1.316*H76^2+0.9448*H76)*($D$54/0.97215493) -> 0.4967078603 | I54: =(0.321*I76^4-1.6098*I76^3+1.316*I76^2+0.9448*I76)*($D$54/0.97215493) -> 0.7314887076
B55: Power | C55: W | D55: =+D49*(D66-D67) -> 6144.650346 | F55: 6016.544004 | G55: 4088.798529 | H55: 32.52272344 | I55: 2480.884595
B56: Speed | C56: Hz | D56: 1496 | F56: 1480.263657 | G56: 1303.371892 | H56: 1320.03449 | I56: 1098.051709
F57: =(F55/$D55*$D59/F59)^(1/3)*$D56 -> 1485.530482 | G57: =(G55/$D55*$D59/G59)^(1/3)*$D56 -> 1309.345522 | H57: =(H55/$D55*$D59/H59)^(1/3)*$D56 -> 261.2577145 | I57: =(I55/$D55*$D59/I59)^(1/3)*$D56 -> 1105.693414
F58: =F56-F57 -> -5.266825431 | G58: =G56-G57 -> -5.973629941 | H58: =H56-H57 -> 1058.776776 | I58: =I56-I57 -> -7.641704387
B59: Brake Pressure | D59: 8 | F59: =($D59-$D52)+F52 -> 8 | G59: =($D59-$D52)+G52 -> 7.94 | H59: =($D59-$D52)+H52 -> 7.95 | I59: =($D59-$D52)+I52 -> 8
B60: Rho (brake) | D60: =[2]!rho_(11,D59,330) -> 1.16324325 | F60: =[2]!rho_(11,F59,330) -> 1.16324325 | G60: =[2]!rho_(11,G59,330) -> 1.154547255 | H60: =[2]!rho_(11,H59,330) -> 1.155996617 | I60: =[2]!rho_(11,I59,330) -> 1.16324325
B61: Wheel | C61: mm | D61: 39.5 | F61: =$D$26 -> 35.8 | G61: =$D$26 -> 35.8 | H61: =$D$26 -> 35.8 | I61: =$D$26 -> 35.8
B62: a = mÖT/P | D62: =D49*D51^0.5/D50 -> 129.3659642 | F62: =$D$62 -> 129.3659642 | G62: =$D$62 -> 129.3659642 | H62: 129.3659642 | I62: 129.3659642
B63: Rho (in) | C63: kg/m3 | D63: =[2]!rho_(11,D50,D51) -> 16.81725024 | F63: =[2]!rho_(11,F50,F51) -> 13.37529115 | G63: =[2]!rho_(11,G50,G51) -> 14.35919148 | H63: =[2]!rho_(11,H50,H51) -> 2.159549884 | I63: =[2]!rho_(11,I50,I51) -> 11.50593305
B64: Sound Speed | D64: =[2]!Sound_speed(11,D50,D51) -> 258.3914638 | F64: =[2]!Sound_speed(11,F50,F51) -> 290.0482302 | G64: =[2]!Sound_speed(11,G50,G51) -> 253.6442594 | H64: =[2]!Sound_speed(11,H50,H51) -> 324.0440915 | I64: =[2]!Sound_speed(11,I50,I51) -> 247.9282305
B65: S=Q/(rho*V) = cte | D65: =D49/(D63*D64) -> 0.04400020898 | F65: 0.03846842574 | G65: 0.03891060543 | H65: 0.03996263785 | I65: 0.03824249409
B66: Hin | D66: =[2]!H_(11,D50,D51) -> 105.9022075 | F66: =[2]!H_(11,F50,F51) -> 131.8953521 | G66: =[2]!H_(11,G50,G51) -> 103.9794583 | H66: =[2]!H_(11,H50,H51) -> 170.8449104 | I66: =[2]!H_(11,I50,I51) -> 101.5489242
B67: Hout | D67: =[2]!H_(11,D52,D53) -> 73.76491485 | F67: =[2]!H_(11,F52,F53) -> 91.58011495 | G67: =[2]!H_(11,G52,G53) -> 75.1276725 | H67: =[2]!H_(11,H52,H53) -> 169.6819487 | I67: =[2]!H_(11,I52,I53) -> 78.80776854
B68: Sin = Sout | D68: =[2]!S_(11,D50,D51) -> 13.04156759 | F68: =[2]!S_(11,F50,F51) -> 14.27581398 | G68: =[2]!S_(11,G50,G51) -> 13.31525539 | H68: =[2]!S_(11,H50,H51) -> 19.0168641 | I68: =[2]!S_(11,I50,I51) -> 13.70131075
B69: Tout(iso) | D69: =[1]!HeCalc(2,0,1,D52*10^5,8,D68*1000,1) -> 9.763910711 | F69: =[1]!HeCalc(2,0,1,F52*10^5,8,F68*1000,1) -> 12.24042356 | G69: =[1]!HeCalc(2,0,1,G52*10^5,8,G68*1000,1) -> 10.07386184 | H69: =[1]!HeCalc(2,0,1,H52*10^5,8,H68*1000,1) -> 29.55038662 | I69: =[1]!HeCalc(2,0,1,I52*10^5,8,I68*1000,1) -> 11.01071411
B70: Hout(iso) | D70: =[2]!H_(11,D52,D69) -> 63.61629614 | F70: =[2]!H_(11,F52,F69) -> 77.13219168 | G70: =[2]!H_(11,G52,G69) -> 65.42854681 | H70: =[2]!H_(11,H52,H69) -> 168.503571 | I70: =[2]!H_(11,I52,I69) -> 70.46005649
B71: ΔHs | D71: =D66-D70 -> 42.28591132 | F71: 54.76316045 | G71: 38.55091148 | H71: 2.341339428 | I71: 31.0888677
B72: u1 | C72: m/s | D72: =(2*52.7%*D71*1000*D54)^0.5 -> 184.0453922 | F72: =PI()*$D$73*F56 -> 182.1094287 | G72: =PI()*$D$73*G56 -> 160.3473203 | H72: 162.3972363 | I72: 135.0878059
B73: D1 | D73: =D72/PI()/D56 -> 0.0391600721 | M73: T2
B74: Co = (2*ΔHs)^0,5 | D74: =(2000*D71)^0.5 -> 290.8123495 | F74: 330.9476105 | G74: 277.6721501 | H74: 68.43010197 | I74: 249.3546378 | L74: MAX | M74: =ROUND(F49,0)&"g/s @ "&F50&" b ; "&F51&"K" -> 149g/s @ 6,417 b ; 22,92K
B75: u1/Co | D75: =D72/D74 -> 0.6328664946 | F75: 0.5502666371 | G75: 0.5774699415 | H75: 2.373184193 | I75: 0.5417497226 | L75: MIN | M75: =ROUND(G49,0)&"g/s @ "&G50&" b ; "&G51&"K" -> 142g/s @ 5,242 b ; 17,75K
B76: U1/C0 off de / U1/C0 nom | D76: =D75/$D$40 -> 0.9870962336 | F76: =F75/$D75 -> 0.8694829664 | G76: =G75/$D75 -> 0.9124672366 | H76: =H75/$D75 -> 3.749897037 | I76: =I75/$D75 -> 0.8560252868 | L76: STS | M76: =ROUND(H49,0)&"g/s @ "&H50&" b ; "&H51&"K" -> 28g/s @ 1,35 b ; 30K
B77: Rdt | D77: =(0.321*D76^4-1.6098*D76^3+1.316*D76^2+0.9448*D76)*($D54/0.97215493) -> 0.7593560473 | F77: =(0.321*F76^4-1.6098*F76^3+1.316*F76^2+0.9448*F76)*($D54/0.97215493) -> 0.7361744071 | G77: =(0.321*G76^4-1.6098*G76^3+1.316*G76^2+0.9448*G76)*($D54/0.97215493) -> 0.7484073575 | H77: =(0.321*H76^4-1.6098*H76^3+1.316*H76^2+0.9448*H76)*($D54/0.97215493) -> 0.4967078603 | I77: =(0.321*I76^4-1.6098*I76^3+1.316*I76^2+0.9448*I76)*($D54/0.97215493) -> 0.7314887076 | L77: BAKING | M77: =ROUND(I49,0)&"g/s @ "&I50&" b ; "&I51&"K" -> 109g/s @ 4,06 b ; 17,17K
B79: TURBINE 3
D81: DESIGN | F81: =F47 -> D3 | G81: =G47 -> STS | H81: =H47 -> test | I81: =I47 -> BAKING
B83: m | C83: g/s | D83: 399.8 | F83: =F96/(F86*F85)^0.5*F84 -> 161.4761819 | G83: =G96/(G86*G85)^0.5*G84 -> 95.0804152 | I83: 117.1010273
B84: Pin | C84: Bara | D84: 13.07 | F84: 13.07 | G84: 7.369 | I84: 10.48
B85: Tin | C85: K | D85: 7.292 | F85: 9.16 | G85: 7.912 | I85: 10.55
B86: Pout | C86: Bara | D86: 4.88 | F86: 4.88 | G86: 5.18 | I86: 5.18
B87: Tout | C87: K | D87: =[2]!T2_turb(11,D84,D85,D86,D88) -> 6.11984088 | F87: =[2]!T2_turb(11,F84,F85,F86,F88) -> 7.049446306 | G87: =[2]!T2_turb(11,G84,G85,G86,G88) -> 7.14472539 | H87: =[2]!T2_turb(11,H84,H85,H86,H88) ->  | I87: =[2]!T2_turb(11,I84,I85,I86,I88) -> 8.690381514
B88: Efficacity | C88: % | D88: 0.72 | F88: =(0.321*F110^4-1.6098*F110^3+1.316*F110^2+0.9448*F110)*($D$88/0.97215493) -> 0.5817973136 | G88: =(0.321*G110^4-1.6098*G110^3+1.316*G110^2+0.9448*G110)*($D$88/0.97215493) -> 0.5827244835 | H88: =(0.321*H110^4-1.6098*H110^3+1.316*H110^2+0.9448*H110)*($D$88/0.97215493) ->  | I88: =(0.321*I110^4-1.6098*I110^3+1.316*I110^2+0.9448*I110)*($D$88/0.97215493) -> 0.5020164146
B89: Power | C89: W | D89: =+D83*(D100-D101) -> 2075.54042 | F89: 954.7418418 | G89: 182.514095 | I89: 610.6783435
B90: Speed | C90: Hz | D90: 2076 | F90: 1602.55252 | G90: 914.2081865 | H90: 862.6625785 | I90: 1367.362934
F91: =(F89/$D89*$D93/F93)^(1/3)*$D90 -> 1602.552512 | G91: =(G89/$D89*$D93/G93)^(1/3)*$D90 -> 914.2081711 | H91: =(H89/$D89*$D93/H93)^(1/3)*$D90 ->  | I91: =(I89/$D89*$D93/I93)^(1/3)*$D90 -> 1367.36293
F92: =F90-F91 -> 7.275503322e-06 | G92: =G90-G91 -> 1.541953168e-05 | H92: =H90-H91 ->  | I92: =I90-I91 -> 4.300091632e-06
B93: Brake Pressure | D93: 10.1 | F93: =($D93-$D86)+F86 -> 10.1 | G93: =($D93-$D86)+G86 -> 10.4 | H93: =($D93-$D86)+H86 -> 5.22 | I93: =($D93-$D86)+I86 -> 10.4
B94: Rho (brake) | D94: =[2]!rho_(11,D93,330) -> 1.467334205 | F94: =[2]!rho_(11,F93,330) -> 1.467334205 | G94: =[2]!rho_(11,G93,330) -> 1.510733122 | H94: =[2]!rho_(11,H93,330) -> 0.7598798717 | I94: =[2]!rho_(11,I93,330) -> 1.510733122
B95: Wheel | C95: mm | D95: 29.5 | F95: =$D$95 -> 29.5 | G95: =$D$95 -> 29.5 | H95: =$D$95 -> 29.5 | I95: =$D$95 -> 29.5
B96: a = mÖT/P | D96: =D83*D85^0.5/D84 -> 82.60199418 | F96: =$D$96 -> 82.60199418 | G96: =$D$96 -> 82.60199418 | H96: 82.60199418 | I96: 82.60199418
B97: Rho (in) | C97: kg/m3 | D97: =[2]!rho_(11,D84,D85) -> 122.041385 | F97: =[2]!rho_(11,F84,F85) -> 92.04202254 | G97: =[2]!rho_(11,G84,G85) -> 70.6496495 | H97: =[2]!rho_(11,H84,H85) -> NUM | I97: =[2]!rho_(11,I84,I85) -> 58.78998557
B98: Sound Speed | D98: =[2]!Sound_speed(11,D84,D85) -> 249.0567129 | F98: =[2]!Sound_speed(11,F84,F85) -> 219.0353462 | G98: =[2]!Sound_speed(11,G84,G85) -> 170.7864441 | H98: =[2]!Sound_speed(11,H84,H85) -> NUM | I98: =[2]!Sound_speed(11,I84,I85) -> 204.2669237
B99: S=Q/(rho*V) = cte | D99: =D83/(D97*D98) -> 0.01315338131 | F99: 0.008009549968 | G99: 0.007880026204 | I99: 0.009751227821
B100: Hin | D100: =[2]!H_(11,D84,D85) -> 28.15088458 | F100: =[2]!H_(11,F84,F85) -> 40.89014045 | G100: =[2]!H_(11,G84,G85) -> 36.81164396 | H100: =[2]!H_(11,H84,H85) ->  | I100: =[2]!H_(11,I84,I85) -> 54.05983231
B101: Hout | D101: =[2]!H_(11,D86,D87) -> 22.9594378 | F101: =[2]!H_(11,F86,F87) -> 34.97755427 | G101: =[2]!H_(11,G86,G87) -> 34.89206784 | H101: =[2]!H_(11,H86,H87) ->  | I101: =[2]!H_(11,I86,I87) -> 48.84486232
B102: Sin = Sout | D102: =[2]!S_(11,D84,D85) -> 5.060004669 | F102: =[2]!S_(11,F84,F85) -> 6.606972814 | G102: =[2]!S_(11,G84,G85) -> 6.945830207 | H102: =[2]!S_(11,H84,H85) ->  | I102: =[2]!S_(11,I84,I85) -> 8.300020451
B103: Tout(iso) | D103: =[1]!HeCalc(2,0,1,D86*10^5,8,D102*1000,1) -> 5.935138784 | F103: =[1]!HeCalc(2,0,1,F86*10^5,8,F102*1000,1) -> 6.699995029 | G103: =[1]!HeCalc(2,0,1,G86*10^5,8,G102*1000,1) -> 7.024181985 | H103: =[1]!HeCalc(2,0,1,H86*10^5,8,H102*1000,1) ->  | I103: =[1]!HeCalc(2,0,1,I86*10^5,8,I102*1000,1) -> 8.048894673
B104: Hout(iso) | D104: =[2]!H_(11,D86,D103) -> 20.94054184 | F104: =[2]!H_(11,F86,F103) -> 30.72751844 | G104: =[2]!H_(11,G86,G103) -> 33.5175038 | H104: =[2]!H_(11,H86,H103) ->  | I104: =[2]!H_(11,I86,I103) -> 43.67178554
B105: ΔHs | D105: =D100-D104 -> 7.210342742 | F105: 10.16262202 | G105: 3.294140164 | I105: 10.38804677
B106: u1 | C106: m/s | D106: =(2*52.7%*D105*1000*D88)^0.5 -> 73.97151411 | F106: =PI()*$D$107*F90 -> 57.1017516 | G106: =PI()*$D$107*G90 -> 32.57483804 | H106: 30.73817779 | I106: 48.72153497
B107: D1 | D107: =D106/PI()/D90 -> 0.01134193846 | M107: T3
B108: Co = (2*ΔHs)^0,5 | D108: =(2000*D105)^0.5 -> 120.0861586 | F108: 142.5666302 | G108: 81.1682224 | I108: 144.1391464 | L108: MAX | M108: =ROUND(F83,0)&"g/s @ "&F84&" b ; "&F85&"K" -> 161g/s @ 13,07 b ; 9,16K
B109: u1/Co | D109: =D106/D108 -> 0.6159870129 | F109: 0.400526768 | G109: 0.4013250146 | I109: 0.3380173685 | L109: MIN | M109: =ROUND(G83,0)&"g/s @ "&G84&" b ; "&G85&"K" -> 95g/s @ 7,369 b ; 7,912K
B110: U1/C0 off de / U1/C0 nom | D110: =D109/$D$40 -> 0.9607689228 | F110: =F109/$D109 -> 0.6502195008 | G110: =G109/$D109 -> 0.6515153829 | H110: =H109/$D109 ->  | I110: =I109/$D109 -> 0.5487410634 | L110: STS | M110: =ROUND(H83,0)&"g/s @ "&H84&" b ; "&H85&"K" -> 
B111: Rdt | D111: =(0.321*D110^4-1.6098*D110^3+1.316*D110^2+0.9448*D110)*($D88/0.97215493) -> 0.7171786088 | F111: =(0.321*F110^4-1.6098*F110^3+1.316*F110^2+0.9448*F110)*($D88/0.97215493) -> 0.5817973136 | G111: =(0.321*G110^4-1.6098*G110^3+1.316*G110^2+0.9448*G110)*($D88/0.97215493) -> 0.5827244835 | H111: =(0.321*H110^4-1.6098*H110^3+1.316*H110^2+0.9448*H110)*($D88/0.97215493) ->  | I111: =(0.321*I110^4-1.6098*I110^3+1.316*I110^2+0.9448*I110)*($D88/0.97215493) -> 0.5020164146 | L111: BAKING | M111: =ROUND(I83,0)&"g/s @ "&I84&" b ; "&I85&"K" -> 117g/s @ 10,48 b ; 10,55K
M113: =M38 -> T1 | N113: =M107 -> T3 | O113: T1+T2
B114: Courbe de rendement TC3 | L114: =L108 -> MAX | M114: =M39 -> 67g/s @ 14,77 b ; 50,44K | N114: =M108 -> 161g/s @ 13,07 b ; 9,16K | O114: =F83+F49 -> 310.713652
L115: =L109 -> MIN | M115: =M40 -> 70g/s @ 12,39 b ; 40,73K | N115: =M109 -> 95g/s @ 7,369 b ; 7,912K | O115: =G83+G49 -> 236.7977619
L116: =L110 -> STS | M116: =M41 -> 76g/s @ 8 b ; 55K | N116: =M110 ->  | O116: =H83+H49 -> 
L117: =L111 -> BAKING | M117: =M42 -> 62g/s @ 9,25 b ; 37,12K | N117: =M111 -> 117g/s @ 10,48 b ; 10,55K | O117: =I83+I49 -> 226.1933106
E118: d : mm
E119: N : Hz
E120: H : J/kG
B126: rendement=(0,321*rap^4 - 1,6098*rap^3 + 1,316*rap^2 + 0,9448*rap)*(ETAgar/0,97) | I126: U1/CO _nom | J126: 0.64
I127: Eta_gar | J127: 0.8
B128: U1/C0 | C128: =D19 -> 0.78 | D128: =D54 -> 0.76 | E128: =D88 -> 0.72
B129: 0 | C129: =(0.321*B129^4-1.6098*B129^3+1.316*B129^2+0.9448*B129)*$D$19/0.97215493 -> 0
B130: =B129+0.05 -> 0.05 | C130: =(0.321*$B130^4-1.6098*$B130^3+1.316*$B130^2+0.9448*$B130)*$C$128/0.97215493 -> 0.04038246185 | D130: =(0.321*$B130^4-1.6098*$B130^3+1.316*$B130^2+0.9448*$B130)*$D$128/0.97215493 -> 0.03934701411 | E130: =(0.321*$B130^4-1.6098*$B130^3+1.316*$B130^2+0.9448*$B130)*$E$128/0.97215493 -> 0.03727611863
B131: 0.1 | C131: =(0.321*$B131^4-1.6098*$B131^3+1.316*$B131^2+0.9448*$B131)*$C$128/0.97215493 -> 0.08509815817 | D131: =(0.321*$B131^4-1.6098*$B131^3+1.316*$B131^2+0.9448*$B131)*$D$128/0.97215493 -> 0.08291615412 | E131: =(0.321*$B131^4-1.6098*$B131^3+1.316*$B131^2+0.9448*$B131)*$E$128/0.97215493 -> 0.078552146
B132: 0.15 | C132: 0.1332363313 | D132: 0.1298200152 | E132: 0.1229873828
B133: 0.2 | C133: 0.1839248565 | D133: 0.1792088345 | E133: 0.1697767906
B134: 0.25 | C134: 0.2363302415 | D134: 0.2302704917 | E134: 0.2181509921
B135: 0.3 | C135: 0.2896576269 | D135: 0.2822305083 | E135: 0.267376271
B136: 0.35 | C136: 0.343150786 | D136: 0.3343520479 | E136: 0.3167545717
B137: 0.4 | C137: 0.3960921249 | D137: 0.3859359166 | E137: 0.3656234999
B138: 0.45 | C138: 0.4478026824 | D138: 0.4363205624 | E138: 0.4133563222
B139: 0.5 | C139: 0.4976421299 | D139: 0.4848820753 | E139: 0.4593619661
B140: 0.55 | C140: 0.5450087718 | D140: 0.5310341879 | E140: 0.5030850201
B141: 0.6 | C141: 0.5893395449 | D141: 0.5742282745 | E141: 0.5440057337
B142: 0.65 | C142: 0.630110019 | D142: 0.6139533518 | E142: 0.5816400175
B143: 0.7 | C143: 0.6668343964 | D143: 0.6497360786 | E143: 0.6155394429
B144: 0.75 | C144: 0.6990655125 | D144: 0.6811407558 | E144: 0.6452912423
B145: 0.8 | C145: 0.726394835 | D145: 0.7077693264 | E145: 0.6705183093
B146: 0.85 | C146: 0.7484524646 | D146: 0.7292613758 | E146: 0.6908791981
B147: 0.9 | C147: 0.7649071347 | D147: 0.7452941313 | E147: 0.7060681243
B148: 0.95 | C148: 0.7754662113 | D148: 0.7555824623 | E148: 0.7158149643
B149: 1 | C149: 0.7798756933 | D149: 0.7598788806 | E149: 0.7198852553
B150: 1.05 | C150: 0.7779202121 | D150: 0.75797354 | E150: 0.7180801958
B151: 1.1 | C151: 0.7694230322 | D151: 0.7496942365 | E151: 0.7102366451
B152: 1.15 | C152: 0.7542460504 | D152: 0.7349064081 | E152: 0.6962271235
B153: 1.2 | C153: 0.7322897966 | D153: 0.7135131352 | E153: 0.6759598123 | G153: F Let u be the peripheral speed of the wheel : u = p . Æ . N / 60 (in m/s)
B154: 1.25 | C154: 0.7034934333 | D154: 0.6854551401 | E154: 0.6493785538 | G154: F Let n, be the speed ratio of the turbine : n = u / [ 2 . (H1 - H2S ) ] 0.5 (dimensionless number)
B155: 1.3 | C155: 0.6678347555 | D155: 0.6507107874 | E155: 0.6164628512 | H155: N = speed of rotation of the turbine (in rpm)
B156: 1.35 | C156: 0.6253301913 | D156: 0.6092960839 | E156: 0.5772278689 | H156: Æ = diameter of the wheel of the turbine (in m)
B157: 1.4 | C157: 0.5760348014 | D157: 0.5612646783 | E157: 0.531724432
B158: 1.45 | C158: 0.520042279 | D158: 0.5067078616 | E158: 0.4800390268
B159: 1.5 | C159: 0.4574849505 | D159: 0.4457545671 | E159: 0.4222938004

Sheet Fluides
C1: Liste des fluides disponibles
A2: 1 | B2: 1 | C2: Ammoniac | D2: C:\Program files\GaspakDemo5\NH379.gas | H2: 1
A3: 2 | B3: 2 | C3: Argon | D3: C:\Program files\GaspakDemo5\ARGON83.gas | H3: 2
A4: 3 | B4: 21 | C4: Azote | D4: C:\Program files\GaspakDemo5\N273.gas | H4: 21
A5: 4 | B5: 22 | C5: Azote | D5: C:\Program files\GaspakDemo5\N286.gas | H5: 22
A6: 5 | B6: 4 | C6: Butane Normal | D6: C:\Program files\GaspakDemo5\NORB86.gas | H6: 4
A7: 6 | B7: 7 | C7: Deutérium | D7: C:\Program files\GaspakDemo5\D286.gas | H7: 7
A8: 7 | B8: 5 | C8: Dioxide de carbone | D8: C:\Program files\GaspakDemo5\CO289.gas | H8: 5
A9: 8 | B9: 27 | C9: Eau | D9: C:\Program files\GaspakDemo5\H2O89.gas | H9: 27
A10: 9 | B10: 8 | C10: Ethane | D10: C:\Program files\GaspakDemo5\C2H686.gas | H10: 8
A11: 10 | B11: 9 | C11: Ethylène | D11: C:\Program files\GaspakDemo5\C2H481.gas | H11: 9
A12: 11 | B12: 10 | C12: Ethylène | D12: C:\Program files\GaspakDemo5\C2H486.gas | H12: 10
A13: 12 | B13: 11 | C13: Helium | D13: C:\Program files\GaspakDemo5\HE89.gas | H13: 11
A14: 13 | B14: 16 | C14: Hydrogen Sulfide | D14: C:\Program files\GaspakDemo5\H2S93.gas | H14: 16
A15: 14 | B15: 3 | C15: Isobutane | D15: C:\Program files\GaspakDemo5\ISOB86.gas | H15: 3
A16: 15 | B16: 17 | C16: Krypton | D16: C:\Program files\GaspakDemo5\KR90.gas | H16: 17
A17: 16 | B17: 18 | C17: Méthane | D17: C:\Program files\GaspakDemo5\METH86.gas | H17: 18
A18: 17 | B18: 19 | C18: Méthane | D18: C:\Program files\GaspakDemo5\CH489.gas | H18: 19
A19: 18 | B19: 6 | C19: Monoxide de carbone | D19: C:\Program files\GaspakDemo5\CO85.gas | H19: 6
A20: 19 | B20: 20 | C20: Néon | D20: C:\Program files\GaspakDemo5\NE91.gas | H20: 20
A21: 20 | B21: 23 | C21: Nitrogene Trifluoride | D21: C:\Program files\GaspakDemo5\NF380.gas | H21: 23
A22: 21 | B22: 13 | C22: Normal Hydrogene | D22: C:\Program files\GaspakDemo5\NH291.gas | H22: 13
A23: 22 | B23: 24 | C23: Oxygène | D23: C:\Program files\GaspakDemo5\O278.gas | H23: 24
A24: 23 | B24: 25 | C24: Oxygène | D24: C:\Program files\GaspakDemo5\O285.gas | H24: 25
A25: 24 | B25: 15 | C25: Hydrogène Para | D25: C:\Program files\GaspakDemo5\PH275.gas | H25: 15
A26: 25 | B26: 26 | C26: Propane | D26: C:\Program files\GaspakDemo5\C3H886.gas | H26: 26
A27: 26 | B27: 29 | C27: R11 | D27: C:\Program files\GaspakDemo5\R1191.gas | H27: 29
A28: 27 | B28: 30 | C28: R12 | D28: C:\Program files\GaspakDemo5\R1291.gas | H28: 30
A29: 28 | B29: 33 | C29: R123 | D29: C:\Program files\GaspakDemo5\R123N93.gas | H29: 33
A30: 29 | B30: 34 | C30: R124 | D30: C:\Program files\GaspakDemo5\R124N93.gas | H30: 34
A31: 30 | B31: 35 | C31: R125 | D31: C:\Program files\GaspakDemo5\R125N93.gas | H31: 35
A32: 31 | B32: 36 | C32: R134 | D32: C:\Program files\GaspakDemo5\R134AN92.gas | H32: 36
A33: 32 | B33: 37 | C33: R134 | D33: C:\Program files\GaspakDemo5\R134AT93.gas | H33: 37
A34: 33 | B34: 38 | C34: R152 | D34: C:\Program files\GaspakDemo5\R152AT94.gas | H34: 38
A35: 34 | B35: 31 | C35: R22 | D35: C:\Program files\GaspakDemo5\R2291.gas | H35: 31
A36: 35 | B36: 32 | C36: R32 | D36: C:\Program files\GaspakDemo5\R32N93.gas | H36: 32
A37: 36 | B37: 50 | C37: R32 | D37: C:\Program files\GaspakDemo5\R32N94.gas | H37: 50
A38: 37 | B38: 28 | C38: Xénon | D38: C:\Program files\GaspakDemo5\\XE90.gas | H38: 28
A39: 38 | B39: Phosphine | C39: 1.45 | D39: 10.6
A40: 39 | B40: Protoxyde d'azote | C40: 1.872 | D40: 13.6
A41: 40 | B41: R11 gaz | C41: 6.2 | D41: 10.16
A42: 41 | B42: R12 gaz | C42: 5.75 | D42: 11.99
A43: 42 | B43: R22 gaz | C43: 4.23 | D43: 11.8
A44: 43 | B44: Silane | C44: 1.36 | D44: 10.8
A45: 44 | B45: Sulfure d'hydrogène | C45: 1.45 | D45: 11.79
A46: 45 | B46: R11 liq | C46: 1500 | D46: 567.5
A47: 46 | B47: R12 liq | C47: 1350 | D47: 260
A48: 47 | B48: R22 liq | C48: 1250 | D48: 210
A49: 48 | B49: R32 liq | C49: 1000 | D49: 193.2
A50: 49 | B50: R123 liq | C50: 1500 | D50: 569.6
A51: 50 | B51: R124 liq | C51: 1400 | D51: 346
A52: 51 | B52: R125 liq | C52: 1250 | D52: 205
A53: 52 | B53: R152a liq | C53: 950 | D53: 214

Sheet Turbines_Hefei
B8: Relation entre la puissance et la vitesse de rotation | M8: ²
B10: TURBINE 1
F12: ESSAI
D13: LIQUE | E13: REFRIG
B14: m | C14: g/s | D14: 26.3 | E14: 26.6 | F14: 26
B15: Pin | C15: Bara | D15: 13.83 | E15: 12.17 | F15: 12.11
B16: Tin | C16: K | D16: 43.18 | E16: 31.18 | F16: 41.44
B17: Pout | C17: Bara | D17: 6.53 | E17: 5.55 | F17: 5.28
B18: Tout | C18: K | D18: =[2]!T2_turb(11,D15,D16,D17,D19) -> 35.0229279 | E18: =[2]!T2_turb(11,E15,E16,E17,E19) -> 25.12535108 | F18: =[2]!T2_turb(11,F15,F16,F17,F19) -> 32.88060869
B19: Efficacity | C19: % | D19: 0.73 | E19: 0.7128 | F19: =(0.321*F41^4-1.6098*F41^3+1.316*F41^2+0.9448*F41)*($D$19/0.97) -> 0.7313595822
B20: Power | C20: W | D20: =+D14*(D31-D32) -> 1145.766019 | E20: 842.552402 | F20: 1181.795114
B21: Speed | C21: Hz | D21: 2696 | E21: 2463 | F21: 2737.681917
F22: =(F20/$D20*$D24/F24)^(1/3)*$D21 -> 2737.68217
F23: =F21-F22 -> -0.0002532871649
B24: Brake Pressure | D24: 5.35 | E24: 4.89 | F24: 5.27
B25: Rho (brake) | D25: =[2]!rho_(11,D24,330) -> 0.7787626569 | E25: =[2]!rho_(11,E24,330) -> 0.7119376196 | F25: =[2]!rho_(11,F24,330) -> 0.7671427193
B26: Wheel | C26: mm | D26: 25.5 | E26: =$D$26 -> 25.5 | F26: =$D$26 -> 25.5
B27: a = mÖT/P | D27: =D14*D16^0.5/D15 -> 12.49611138 | E27: =+$D$27 -> 12.49611138 | F27: =+$D$27 -> 12.49611138
B28: Rho (in) | C28: kg/m3 | D28: =[2]!rho_(11,D15,D16) -> 14.87979687 | E28: =[2]!rho_(11,E15,E16) -> 18.21975259 | F28: =[2]!rho_(11,F15,F16) -> 13.63189703
B29: Sound Speed | D29: =[2]!Sound_speed(11,D15,D16) -> 403.9482647 | E29: =[2]!Sound_speed(11,E15,E16) -> 345.0775348 | F29: =[2]!Sound_speed(11,F15,F16) -> 394.1049516
B30: S=Q/(rho*V) = cte | D30: =D14/(D28*D29) -> 0.004375553508 | E30: 0.004230799793 | F30: 0.004839551989
B31: Hin | D31: =[2]!H_(11,D15,D16) -> 240.3720183 | E31: =[2]!H_(11,E15,E16) -> 175.7937892 | F31: =[2]!H_(11,F15,F16) -> 230.985852
B32: Hout | D32: =[2]!H_(11,D17,D18) -> 196.8067705 | E32: =[2]!H_(11,E17,E18) -> 144.1188869 | F32: =[2]!H_(11,F17,F18) -> 185.5321937
B33: Sin = Sout | D33: =[2]!S_(11,D15,D16) -> 16.03404528 | E33: =[2]!S_(11,E15,E16) -> 14.55581693 | F33: =[2]!S_(11,F15,F16) -> 16.09745335
B34: Tout(iso) | D34: =[1]!HeCalc(2,0,1,D17*10^5,8,D33*1000,1) -> 31.99102543 | E34: =[1]!HeCalc(2,0,1,E17*10^5,8,E33*1000,1) -> 22.76421773 | F34: =[1]!HeCalc(2,0,1,F17*10^5,8,F33*1000,1) -> 29.73505809
B35: Hout(iso) | D35: =[2]!H_(11,D17,D34) -> 180.6935966 | E35: =[2]!H_(11,E17,E34) -> 131.3564964 | F35: =[2]!H_(11,F17,F34) -> 168.8363166
B36: ΔHs | D36: =D31-D35 -> 59.67842175 | E36: 44.43729283 | F36: 62.14953536
B37: u1 | C37: m/s | D37: =(2*52.7%*D36*1000*D19)^0.5 -> 214.2843234 | E37: =PI()*$D$38*E21 -> 195.7649438 | F37: =PI()*$D$38*F21 -> 217.5972987
B38: D1 | D38: =D37/PI()/D21 -> 0.0253000069 | M38: T1
B39: Co = (2*ΔHs)^0,5 | D39: =(2000*D36)^0.5 -> 345.4805979 | E39: 298.1184088 | F39: 352.5607334 | L39: MAX | M39: =ROUND(F14,0)&"g/s @ "&F15&" b ; "&F16&"K" -> 26g/s @ 12,11 b ; 41,44K
B40: u1/Co | D40: =D37/D39 -> 0.6202499496 | E40: 0.6566684179 | F40: 0.6171909634 | L40: MIN | M40: =ROUND(G14,0)&"g/s @ "&G15&" b ; "&G16&"K" -> 0g/s @ b ; K
B41: U1/C0 off de / U1/C0 nom | D41: =D40/$D$40 -> 1 | E41: =E40/$D40 -> 1.058715794 | F41: =F40/$D40 -> 0.9950681395 | L41: STS | M41: =ROUND(H14,0)&"g/s @ "&H15&" b ; "&H16&"K" -> 0g/s @ b ; K
B42: Rdt | D42: =(0.321*D41^4-1.6098*D41^3+1.316*D41^2+0.9448*D41)*($D19/0.97) -> 0.7315051546 | E42: 0.7287273232 | F42: 0.7313595822 | L42: BAKING | M42: =ROUND(I14,0)&"g/s @ "&I15&" b ; "&I16&"K" -> 0g/s @ b ; K
B45: TURBINE 2
D47: DESIGN | F47: =F12 -> ESSAI | G47: =G12 -> 0 | H47: =H12 -> 0 | I47: =I12 -> 0
B49: m | C49: g/s | D49: 248 | E49: 232.5020183 | F49: 274.4 | G49: 264.9 | H49: 202 | I49: 199
B50: Pin | C50: Bara | D50: 11 | E50: 10.37 | F50: 11 | G50: 10.69 | H50: 8.991 | I50: 8.494
B51: Tin | C51: K | D51: 20.6 | E51: 20.83 | F51: 19.29 | G51: 19.49 | H51: 23.4 | I51: 21.74
B52: Pout | C52: Bara | D52: 4.277 | E52: 4.177 | F52: 2.27 | G52: 4.227 | H52: 3.977 | I52: 4.477
B53: Tout | C53: K | D53: =[2]!T2_turb(11,D50,D51,D52,D54) -> 15.3638033 | E53: =[2]!T2_turb(11,E50,E51,E52,E54) -> 15.70619397 | F53: =[2]!T2_turb(11,F50,F51,F52,F54) -> 11.94380187 | G53: =[2]!T2_turb(11,G50,G51,G52,G54) -> 14.58084389 | H53: =[2]!T2_turb(11,H50,H51,H52,H54) -> 18.24285122 | I53: =[2]!T2_turb(11,I50,I51,I52,I54) -> 17.81453038
B54: Efficacity | C54: % | D54: 0.78 | E54: =(0.321*E76^4-1.6098*E76^3+1.316*E76^2+0.9448*E76)*($D$54/0.97) -> 0.7808654646 | F54: =(0.321*F76^4-1.6098*F76^3+1.316*F76^2+0.9448*F76)*($D$54/0.97) -> 0.7804205097 | G54: =(0.321*G76^4-1.6098*G76^3+1.316*G76^2+0.9448*G76)*($D$54/0.97) -> 0.7807666091 | H54: =(0.321*H76^4-1.6098*H76^3+1.316*H76^2+0.9448*H76)*($D$54/0.97) -> 0.7749049129 | I54: =(0.321*I76^4-1.6098*I76^3+1.316*I76^2+0.9448*I76)*($D$54/0.97) -> 0.7792654578
B55: Power | C55: W | D55: =+D49*(D66-D67) -> 6410.967772 | E55: 5909.819448 | F55: 9688.556437 | G55: 6344.369012 | H55: 5292.312281 | I55: 3940.846992
B56: Speed | C56: Hz | D56: 1400 | E56: 1365 | F56: 1703.998809 | G56: 1397.022489 | H56: 1324.063869 | I56: 1184.033167
F57: =(F55/$D55*$D59/F59)^(1/3)*$D56 -> 1703.988979 | G57: =(G55/$D55*$D59/G59)^(1/3)*$D56 -> 1397.015502 | H57: =(H55/$D55*$D59/H59)^(1/3)*$D56 -> 1324.079607 | I57: =(I55/$D55*$D59/I59)^(1/3)*$D56 -> 1184.041912
F58: =F56-F57 -> 0.009830350223 | G58: =G56-G57 -> 0.006987115569 | H58: =H56-H57 -> -0.01573822204 | I58: =I56-I57 -> -0.008745240151
B59: Brake Pressure | D59: 12.4 | F59: =($D59-$D52)+F52 -> 10.393 | G59: =($D59-$D52)+G52 -> 12.35 | H59: =($D59-$D52)+H52 -> 12.1 | I59: =($D59-$D52)+I52 -> 12.6
B60: Rho (brake) | D60: =[2]!rho_(11,D59,330) -> 1.79978714 | F60: =[2]!rho_(11,F59,330) -> 1.509720602 | G60: =[2]!rho_(11,G59,330) -> 1.792566553 | H60: =[2]!rho_(11,H59,330) -> 1.756459186 | I60: =[2]!rho_(11,I59,330) -> 1.828666536
B61: Wheel | C61: mm | D61: 37.5 | E61: =$D$26 -> 25.5 | F61: =$D$26 -> 25.5 | G61: =$D$26 -> 25.5 | H61: =$D$26 -> 25.5 | I61: =$D$26 -> 25.5
B62: a = mÖT/P | D62: =D49*D51^0.5/D50 -> 102.327557 | E62: 102.327557 | F62: 109.5613906 | G62: 109.3981991 | H62: 108.6804181 | I62: 109.2372075
B63: Rho (in) | C63: kg/m3 | D63: =[2]!rho_(11,D50,D51) -> 25.54085564 | E63: =[2]!rho_(11,E50,E51) -> 23.80755677 | F63: =[2]!rho_(11,F50,F51) -> 27.48048466 | G63: =[2]!rho_(11,G50,G51) -> 26.40668238 | H63: =[2]!rho_(11,H50,H51) -> 18.25723893 | I63: =[2]!rho_(11,I50,I51) -> 18.66731757
B64: Sound Speed | D64: =[2]!Sound_speed(11,D50,D51) -> 281.9832885 | E64: =[2]!Sound_speed(11,E50,E51) -> 282.4894475 | F64: =[2]!Sound_speed(11,F50,F51) -> 273.1733688 | G64: =[2]!Sound_speed(11,G50,G51) -> 274.0281513 | H64: =[2]!Sound_speed(11,H50,H51) -> 296.7210986 | I64: =[2]!Sound_speed(11,I50,I51) -> 285.5463219
B65: S=Q/(rho*V) = cte | D65: =D49/(D63*D64) -> 0.03443442755 | E65: 0.0345708191 | F65: 0.03655285981 | G65: 0.03660774148 | H65: 0.03728789285 | I65: 0.03733314612
B66: Hin | D66: =[2]!H_(11,D50,D51) -> 117.1989302 | E66: =[2]!H_(11,E50,E51) -> 118.7658848 | F66: =[2]!H_(11,F50,F51) -> 109.6280719 | G66: =[2]!H_(11,G50,G51) -> 110.9314561 | H66: =[2]!H_(11,H50,H51) -> 133.686484 | I66: =[2]!H_(11,I50,I51) -> 124.6266169
B67: Hout | D67: =[2]!H_(11,D52,D53) -> 91.34825375 | E67: =[2]!H_(11,E52,E53) -> 93.34752721 | F67: =[2]!H_(11,F52,F53) -> 74.31992159 | G67: =[2]!H_(11,G52,G53) -> 86.98140319 | H67: =[2]!H_(11,H52,H53) -> 107.4869183 | I67: =[2]!H_(11,I52,I53) -> 104.8233657
B68: Sin = Sout | D68: =[2]!S_(11,D50,D51) -> 12.47126993 | E68: =[2]!S_(11,E50,E51) -> 12.67023285 | F68: =[2]!S_(11,F50,F51) -> 12.0915174 | G68: =[2]!S_(11,G50,G51) -> 12.21808621 | H68: =[2]!S_(11,H50,H51) -> 13.64542278 | I68: =[2]!S_(11,I50,I51) -> 13.36317495
B69: Tout(iso) | D69: =[1]!HeCalc(2,0,1,D52*10^5,8,D68*1000,1) -> 14.07427198 | E69: =[1]!HeCalc(2,0,1,E52*10^5,8,E68*1000,1) -> 14.43704736 | F69: =[1]!HeCalc(2,0,1,F52*10^5,8,F68*1000,1) -> 10.1838211 | G69: =[1]!HeCalc(2,0,1,G52*10^5,8,G68*1000,1) -> 13.40160128 | H69: =[1]!HeCalc(2,0,1,H52*10^5,8,H68*1000,1) -> 16.85585413 | I69: =[1]!HeCalc(2,0,1,I52*10^5,8,I68*1000,1) -> 16.80071466
B70: Hout(iso) | D70: =[2]!H_(11,D52,D69) -> 84.0570373 | E70: =[2]!H_(11,E52,E69) -> 86.21436505 | F70: =[2]!H_(11,F52,F69) -> 64.38560343 | G70: =[2]!H_(11,G52,G69) -> 80.25640849 | H70: =[2]!H_(11,H52,H69) -> 99.87644451 | I70: =[2]!H_(11,I52,I69) -> 99.21390158
B71: ΔHs | D71: =D66-D70 -> 33.14189295 | E71: 32.55151978 | F71: 45.24246844 | G71: 30.6750476 | H71: 33.81003954 | I71: 25.41271529
B72: u1 | C72: m/s | D72: =(2*52.7%*D71*1000*D54)^0.5 -> 165.065481 | E72: =PI()*$D$73*E56 -> 160.938844 | F72: =PI()*$D$73*F56 -> 200.9081308 | G72: 164.7144209 | H72: 156.1123139 | I72: 139.6021459
B73: D1 | D73: =D72/PI()/D56 -> 0.03752998177 | M73: T2
B74: Co = (2*ΔHs)^0,5 | D74: =(2000*D71)^0.5 -> 257.4563767 | E74: 255.1529729 | F74: 300.8071423 | G74: 247.6895137 | H74: 260.0386108 | I74: 225.4449613 | L74: MAX | M74: =ROUND(F49,0)&"g/s @ "&F50&" b ; "&F51&"K" -> 274g/s @ 11 b ; 19,29K
B75: u1/Co | D75: =D72/D74 -> 0.6411396104 | E75: 0.6307543361 | F75: 0.6678968101 | G75: 0.6650036105 | H75: 0.6003428239 | I75: 0.61922939 | L75: MIN | M75: =ROUND(G49,0)&"g/s @ "&G50&" b ; "&G51&"K" -> 265g/s @ 10,69 b ; 19,49K
B76: U1/C0 off de / U1/C0 nom | D76: =D75/$D$40 -> 1.033679424 | E76: =E75/$D75 -> 0.9838018521 | F76: =F75/$D75 -> 1.041733812 | G76: =G75/$D75 -> 1.037221223 | H76: =H75/$D75 -> 0.9363683264 | I76: =I75/$D75 -> 0.965826132 | L76: STS | M76: =ROUND(H49,0)&"g/s @ "&H50&" b ; "&H51&"K" -> 202g/s @ 8,991 b ; 23,4K
B77: Rdt | D77: =(0.321*D76^4-1.6098*D76^3+1.316*D76^2+0.9448*D76)*($D54/0.97) -> 0.7810010592 | E77: 0.7808654646 | F77: 0.7804205097 | G77: 0.7807666091 | H77: 0.7749049129 | I77: 0.7792654578 | L77: BAKING | M77: =ROUND(I49,0)&"g/s @ "&I50&" b ; "&I51&"K" -> 199g/s @ 8,494 b ; 21,74K
B79: TURBINE 3
D81: DESIGN | F81: =F47 -> ESSAI | G81: =G47 -> 0 | H81: =H47 -> 0 | I81: =I47 -> 0
B83: m | C83: g/s | D83: 454 | E83: 433 | F83: 427 | G83: 408 | H83: 340 | I83: 370
B84: Pin | C84: Bara | D84: 15.69 | E84: 14.69 | F84: 15.34 | G84: 14.84 | H84: 13.54 | I84: 14.2
B85: Tin | C85: K | D85: 7.03 | E85: 7.37 | F85: 8.08 | G85: 8.301 | H85: 9.722 | I85: 9.184
B86: Pout | C86: Bara | D86: 2.8 | E86: 2.8 | F86: 5.123 | G86: 5.123 | H86: 5.003 | I86: 5
B87: Tout | C87: K | D87: =[2]!T2_turb(11,D84,D85,D86,D88) -> 5.392138359 | E87: =[2]!T2_turb(11,E84,E85,E86,E88) -> 5.4398165 | F87: =[2]!T2_turb(11,F84,F85,F86,F88) -> 6.421180464 | G87: =[2]!T2_turb(11,G84,G85,G86,G88) -> 6.527682223 | H87: =[2]!T2_turb(11,H84,H85,H86,H88) -> 7.2650649 | I87: =[2]!T2_turb(11,I84,I85,I86,I88) -> 6.911344271
B88: Efficacity | C88: % | D88: 0.73 | E88: =(0.321*E110^4-1.6098*E110^3+1.316*E110^2+0.9448*E110)*($D$88/0.97) -> 0.7312458963 | F88: =(0.321*F110^4-1.6098*F110^3+1.316*F110^2+0.9448*F110)*($D$88/0.97) -> 0.7216049458 | G88: =(0.321*G110^4-1.6098*G110^3+1.316*G110^2+0.9448*G110)*($D$88/0.97) -> 0.7192500132 | H88: =(0.321*H110^4-1.6098*H110^3+1.316*H110^2+0.9448*H110)*($D$88/0.97) -> 0.6994356112 | I88: =(0.321*I110^4-1.6098*I110^3+1.316*I110^2+0.9448*I110)*($D$88/0.97) -> 0.7091751805
B89: Power | C89: W | D89: =+D83*(D100-D101) -> 3516.41627 | E89: 3307.284865 | F89: 2914.059927 | G89: 2773.057826 | H89: 2723.121493 | I89: 2821.332328
B90: Speed | C90: Hz | D90: 1026 | E90: 1010 | F90: 888.8890105 | G90: 878.4624047 | H90: 898.5098379 | I90: 899.6268073
F91: =(F89/$D89*$D93/F93)^(1/3)*$D90 -> 910.0988196 | G91: =(G89/$D89*$D93/G93)^(1/3)*$D90 -> 895.1765568 | H91: =(H89/$D89*$D93/H93)^(1/3)*$D90 -> 892.2012071 | I91: =(I89/$D89*$D93/I93)^(1/3)*$D90 -> 902.8625213
F92: =F90-F91 -> -21.20980907 | G92: =G90-G91 -> -16.71415208 | H92: =H90-H91 -> 6.308630804 | I92: =I90-I91 -> -3.235714003
B93: Brake Pressure | D93: 12.4 | F93: =($D93-$D86)+F86 -> 14.723 | G93: =($D93-$D86)+G86 -> 14.723 | H93: =($D93-$D86)+H86 -> 14.603 | I93: =($D93-$D86)+I86 -> 14.6
B94: Rho (brake) | D94: =[2]!rho_(11,D93,330) -> 1.79978714 | F94: =[2]!rho_(11,F93,330) -> 2.134930232 | G94: =[2]!rho_(11,G93,330) -> 2.134930232 | H94: =[2]!rho_(11,H93,330) -> 2.117633225 | I94: =[2]!rho_(11,I93,330) -> 2.117200778
B95: Wheel | C95: mm | D95: 28 | E95: =$D$95 -> 28 | F95: =$D$95 -> 28 | G95: =$D$95 -> 28 | H95: =$D$95 -> 28 | I95: =$D$95 -> 28
B96: a = mÖT/P | D96: =D83*D85^0.5/D84 -> 76.72034936 | E96: 80.02023906 | F96: 79.12399299 | G96: 79.21208942 | H96: 78.29572701 | I96: 78.96403225
B97: Rho (in) | C97: kg/m3 | D97: =[2]!rho_(11,D84,D85) -> 133.1004121 | E97: =[2]!rho_(11,E84,E85) -> 126.1515043 | F97: =[2]!rho_(11,F84,F85) -> 118.5200748 | G97: =[2]!rho_(11,G84,G85) -> 113.5622187 | H97: =[2]!rho_(11,H84,H85) -> 86.35777128 | I97: =[2]!rho_(11,I84,I85) -> 97.52773946
B98: Sound Speed | D98: =[2]!Sound_speed(11,D84,D85) -> 278.3703741 | E98: =[2]!Sound_speed(11,E84,E85) -> 263.0805003 | F98: =[2]!Sound_speed(11,F84,F85) -> 255.305236 | G98: =[2]!Sound_speed(11,G84,G85) -> 246.6704079 | H98: =[2]!Sound_speed(11,H84,H85) -> 220.2651308 | I98: =[2]!Sound_speed(11,I84,I85) -> 228.8066449
B99: S=Q/(rho*V) = cte | D99: =D83/(D97*D98) -> 0.01225331052 | E99: 0.01304688408 | F99: 0.01411159931 | G99: 0.01456495818 | H99: 0.01787441101 | I99: 0.01658077909
B100: Hin | D100: =[2]!H_(11,D84,D85) -> 27.29765606 | E100: =[2]!H_(11,E84,E85) -> 28.80689924 | F100: =[2]!H_(11,F84,F85) -> 32.92956395 | G100: =[2]!H_(11,G84,G85) -> 34.29957906 | H100: =[2]!H_(11,H84,H85) -> 44.86444811 | I100: =[2]!H_(11,I84,I85) -> 40.5049855
B101: Hout | D101: =[2]!H_(11,D86,D87) -> 19.55224578 | E101: =[2]!H_(11,E86,E87) -> 21.16882796 | F101: =[2]!H_(11,F86,F87) -> 26.10506764 | G101: =[2]!H_(11,G86,G87) -> 27.5028687 | H101: =[2]!H_(11,H86,H87) -> 36.85526725 | I101: =[2]!H_(11,I86,I87) -> 32.87976299
B102: Sin = Sout | D102: =[2]!S_(11,D84,D85) -> 4.654874462 | E102: =[2]!S_(11,E84,E85) -> 4.971471814 | F102: =[2]!S_(11,F84,F85) -> 5.436379898 | G102: =[2]!S_(11,G84,G85) -> 5.656221826 | H102: =[2]!S_(11,H84,H85) -> 6.972202167 | I102: =[2]!S_(11,I84,I85) -> 6.435039228
B103: Tout(iso) | D103: =[1]!HeCalc(2,0,1,D86*10^5,8,D102*1000,1) -> 5.226469889 | E103: =[1]!HeCalc(2,0,1,E86*10^5,8,E102*1000,1) -> 5.34027921 | F103: =[1]!HeCalc(2,0,1,F86*10^5,8,F102*1000,1) -> 6.209158553 | G103: =[1]!HeCalc(2,0,1,G86*10^5,8,G102*1000,1) -> 6.323108306 | H103: =[1]!HeCalc(2,0,1,H86*10^5,8,H102*1000,1) -> 6.957029611 | I103: =[1]!HeCalc(2,0,1,I86*10^5,8,I102*1000,1) -> 6.663148532
B104: Hout(iso) | D104: =[2]!H_(11,D86,D103) -> 16.68750499 | E104: =[2]!H_(11,E86,E103) -> 18.36161506 | F104: =[2]!H_(11,F86,F103) -> 23.47217822 | G104: =[2]!H_(11,G86,G103) -> 24.84986028 | H104: =[2]!H_(11,H86,H103) -> 33.41352864 | I104: =[2]!H_(11,I86,I103) -> 29.75274442
B105: ΔHs | D105: =D100-D104 -> 10.61015108 | E105: 10.44528418 | F105: 9.457385728 | G105: 9.449718783 | H105: 11.45091948 | I105: 10.75224108
B106: u1 | C106: m/s | D106: =(2*52.7%*D105*1000*D88)^0.5 -> 90.352988 | E106: =PI()*$D$107*E90 -> 88.94397454 | F106: =PI()*$D$107*F90 -> 78.27853616 | G106: 77.36033442 | H106: 79.12577837 | I106: 79.22414242
B107: D1 | D107: =D106/PI()/D90 -> 0.02803143209 | M107: T3
B108: Co = (2*ΔHs)^0,5 | D108: =(2000*D105)^0.5 -> 145.671899 | E108: 144.5356993 | F108: 137.5309836 | G108: 137.4752253 | H108: 151.3335354 | I108: 146.6440662 | L108: MAX | M108: =ROUND(F83,0)&"g/s @ "&F84&" b ; "&F85&"K" -> 427g/s @ 15,34 b ; 8,08K
B109: u1/Co | D109: =D106/D108 -> 0.6202499496 | E109: 0.6153772043 | F109: 0.5691701906 | G109: 0.5627220051 | H109: 0.522856868 | I109: 0.5402478563 | L109: MIN | M109: =ROUND(G83,0)&"g/s @ "&G84&" b ; "&G85&"K" -> 408g/s @ 14,84 b ; 8,301K
B110: U1/C0 off de / U1/C0 nom | D110: =D109/$D$40 -> 1 | E110: =E109/$D109 -> 0.9921439005 | F110: =F109/$D109 -> 0.9176464923 | G110: =G109/$D109 -> 0.9072503842 | H110: =H109/$D109 -> 0.8429776872 | I110: =I109/$D109 -> 0.8710163646 | L110: STS | M110: =ROUND(H83,0)&"g/s @ "&H84&" b ; "&H85&"K" -> 340g/s @ 13,54 b ; 9,722K
B111: Rdt | D111: =(0.321*D110^4-1.6098*D110^3+1.316*D110^2+0.9448*D110)*($D88/0.97) -> 0.7315051546 | E111: 0.7312458963 | F111: 0.7216049458 | G111: 0.7192500132 | H111: 0.6994356112 | I111: 0.7091751805 | L111: BAKING | M111: =ROUND(I83,0)&"g/s @ "&I84&" b ; "&I85&"K" -> 370g/s @ 14,2 b ; 9,184K
M113: =M38 -> T1 | N113: =M107 -> T3 | O113: T1+T2
B114: Courbe de rendement TC3 | L114: =L108 -> MAX | M114: =M39 -> 26g/s @ 12,11 b ; 41,44K | N114: =M108 -> 427g/s @ 15,34 b ; 8,08K | O114: =F83+F49 -> 701.4
L115: =L109 -> MIN | M115: =M40 -> 0g/s @ b ; K | N115: =M109 -> 408g/s @ 14,84 b ; 8,301K | O115: =G83+G49 -> 672.9
L116: =L110 -> STS | M116: =M41 -> 0g/s @ b ; K | N116: =M110 -> 340g/s @ 13,54 b ; 9,722K | O116: =H83+H49 -> 542
L117: =L111 -> BAKING | M117: =M42 -> 0g/s @ b ; K | N117: =M111 -> 370g/s @ 14,2 b ; 9,184K | O117: =I83+I49 -> 569
E118: d : mm
E119: N : Hz
E120: H : J/kG
B126: rendement=(0,321*rap^4 - 1,6098*rap^3 + 1,316*rap^2 + 0,9448*rap)*(ETAgar/0,97) | I126: U1/CO _nom | J126: 0.64
I127: Eta_gar | J127: 0.8
B128: U1/C0 | C128: =D19 -> 0.73 | D128: =D54 -> 0.78 | E128: =D88 -> 0.73
B129: 0 | C129: =(0.321*B129^4-1.6098*B129^3+1.316*B129^2+0.9448*B129)*$D$19/0.97215493 -> 0
B130: =B129+0.05 -> 0.05 | C130: =(0.321*$B130^4-1.6098*$B130^3+1.316*$B130^2+0.9448*$B130)*$C$128/0.97215493 -> 0.0377938425 | D130: =(0.321*$B130^4-1.6098*$B130^3+1.316*$B130^2+0.9448*$B130)*$D$128/0.97215493 -> 0.04038246185 | E130: =(0.321*$B130^4-1.6098*$B130^3+1.316*$B130^2+0.9448*$B130)*$E$128/0.97215493 -> 0.0377938425
B131: 0.1 | C131: 0.07964314803 | D131: 0.08509815817 | E131: 0.07964314803
B132: 0.15 | C132: 0.1246955409 | D132: 0.1332363313 | E132: 0.1246955409
B133: 0.2 | C133: 0.1721348016 | D133: 0.1839248565 | E133: 0.1721348016
B134: 0.25 | C134: 0.221180867 | D134: 0.2363302415 | E134: 0.221180867
B135: 0.3 | C135: 0.2710898303 | D135: 0.2896576269 | E135: 0.2710898303
B136: 0.35 | C136: 0.3211539408 | D136: 0.343150786 | E136: 0.3211539408
B137: 0.4 | C137: 0.3707016041 | D137: 0.3960921249 | E137: 0.3707016041
B138: 0.45 | C138: 0.4190973823 | D138: 0.4478026824 | E138: 0.4190973823
B139: 0.5 | C139: 0.4657419934 | D139: 0.4976421299 | E139: 0.4657419934
B140: 0.55 | C140: 0.510072312 | D140: 0.5450087718 | E140: 0.510072312
B141: 0.6 | C141: 0.5515613689 | D141: 0.5893395449 | E141: 0.5515613689
B142: 0.65 | C142: 0.5897183511 | D142: 0.630110019 | E142: 0.5897183511
B143: 0.7 | C143: 0.6240886018 | D143: 0.6668343964 | E143: 0.6240886018
B144: 0.75 | C144: 0.6542536207 | D144: 0.6990655125 | E144: 0.6542536207
B145: 0.8 | C145: 0.6798310636 | D145: 0.726394835 | E145: 0.6798310636
B146: 0.85 | C146: 0.7004747426 | D146: 0.7484524646 | E146: 0.7004747426
B147: 0.9 | C147: 0.7158746261 | D147: 0.7649071347 | E147: 0.7158746261
B148: 0.95 | C148: 0.7257568388 | D148: 0.7754662113 | E148: 0.7257568388
B149: 1 | C149: 0.7298836617 | D149: 0.7798756933 | E149: 0.7298836617
B150: 1.05 | C150: 0.7280535319 | D150: 0.7779202121 | E150: 0.7280535319
B151: 1.1 | C151: 0.7201010429 | D151: 0.7694230322 | E151: 0.7201010429
B152: 1.15 | C152: 0.7058969446 | D152: 0.7542460504 | E152: 0.7058969446
B153: 1.2 | C153: 0.685348143 | D153: 0.7322897966 | E153: 0.685348143 | G153: F Let u be the peripheral speed of the wheel : u = p . Æ . N / 60 (in m/s)
B154: 1.25 | C154: 0.6583977004 | D154: 0.7034934333 | E154: 0.6583977004 | G154: F Let n, be the speed ratio of the turbine : n = u / [ 2 . (H1 - H2S ) ] 0.5 (dimensionless number)
B155: 1.3 | C155: 0.6250248353 | D155: 0.6678347555 | E155: 0.6250248353 | H155: N = speed of rotation of the turbine (in rpm)
B156: 1.35 | C156: 0.5852449227 | D156: 0.6253301913 | E156: 0.5852449227 | H156: Æ = diameter of the wheel of the turbine (in m)
B157: 1.4 | C157: 0.5391094936 | D157: 0.5760348014 | E157: 0.5391094936
B158: 1.45 | C158: 0.4867062355 | D158: 0.520042279 | E158: 0.4867062355
B159: 1.5 | C159: 0.4281589921 | D159: 0.4574849505 | E159: 0.4281589921
